Workbook

Sheet Start Here

Sheet Takt Elements
A10: Project Name
A11: 2024 | BB11: 2025
A12: Cold Winter Months | AS12: Cold Winter Months | CS12: Cold Winter Months
A13: JANUARY | F13: FEBRUARY | J13: MARCH | N13: APRIL | S13: MAY | W13: JUNE | AA13: JULY | AF13: AUGUST | AJ13: SEPTEMBER | AO13: OCTOBER | AS13: NOVEMBER | AW13: DECEMBER | BB13: JANUARY | BF13: FEBRUARY | BJ13: MARCH | BO13: APRIL | BS13: MAY | BW13: JUNE | CB13: JULY | CF13: AUGUST | CJ13: SEPTEMBER | CO13: OCTOBER | CS13: NOVEMBER | CW13: DECEMBER
A14: 2024-01-01 | B14: 2024-01-08 | C14: 2024-01-15 | D14: 2024-01-22 | E14: 2024-01-29 | F14: 2024-02-05 | G14: 2024-02-12 | H14: 2024-02-19 | I14: 2024-02-26 | J14: 2024-03-04 | K14: 2024-03-11 | L14: 2024-03-18 | M14: 2024-03-25 | N14: 2024-04-01 | O14: 2024-04-08 | P14: 2024-04-15 | Q14: 2024-04-22 | R14: 2024-04-29 | S14: 2024-05-06 | T14: 2024-05-13 | U14: 2024-05-20 | V14: 2024-05-27 | W14: 2024-06-03 | X14: 2024-06-10 | Y14: 2024-06-17 | Z14: 2024-06-24 | AA14: 2024-07-01 | AB14: 2024-07-08 | AC14: 2024-07-15 | AD14: 2024-07-22 | AE14: 2024-07-29 | AF14: 2024-08-05 | AG14: 2024-08-12 | AH14: 2024-08-19 | AI14: 2024-08-26 | AJ14: 2024-09-02 | AK14: 2024-09-09 | AL14: 2024-09-16 | AM14: 2024-09-23 | AN14: 2024-09-30 | AO14: 2024-10-07 | AP14: 2024-10-14 | AQ14: 2024-10-21 | AR14: 2024-10-28 | AS14: 2024-11-04 | AT14: 2024-11-11 | AU14: 2024-11-18 | AV14: 2024-11-25 | AW14: 2024-12-02 | AX14: 2024-12-09 | AY14: 2024-12-16 | AZ14: 2024-12-23 | BA14: 2024-12-30 | BB14: 2025-01-06 | BC14: 2025-01-13 | BD14: 2025-01-20 | BE14: 2025-01-27 | BF14: 2025-02-03 | BG14: 2025-02-10 | BH14: 2025-02-17 | BI14: 2025-02-24 | BJ14: 2025-03-03 | BK14: 2025-03-10 | BL14: 2025-03-17 | BM14: 2025-03-24 | BN14: 2025-03-31 | BO14: 2025-04-07 | BP14: 2025-04-14 | BQ14: 2025-04-21 | BR14: 2025-04-28 | BS14: 2025-05-05 | BT14: 2025-05-12 | BU14: 2025-05-19 | BV14: 2025-05-26 | BW14: 2025-06-02 | BX14: 2025-06-09 | BY14: 2025-06-16 | BZ14: 2025-06-23 | CA14: 2025-06-30 | CB14: 2025-07-07 | CC14: 2025-07-14 | CD14: 2025-07-21 | CE14: 2025-07-28 | CF14: 2025-08-04 | CG14: 2025-08-11 | CH14: 2025-08-18 | CI14: 2025-08-25 | CJ14: 2025-09-01 | CK14: 2025-09-08 | CL14: 2025-09-15 | CM14: 2025-09-22 | CN14: 2025-09-29 | CO14: 2025-10-06 | CP14: 2025-10-13 | CQ14: 2025-10-20 | CR14: 2025-10-27 | CS14: 2025-11-03 | CT14: 2025-11-10 | CU14: 2025-11-17 | CV14: 2025-11-24 | CW14: 2025-12-01 | CX14: 2025-12-08 | CY14: 2025-12-15 | CZ14: 2025-12-22 | DA14: 2025-12-29
BU22: INTERIORS LEGEND
AR24: SOIL DISTURBANCE PERMIT | BV24: 1 | BW24: Wall Layout + Top Track
AU25: MAKE SAFE UTILITIES | BV25: 2 | BW25: Fire Sprinkler + Priority Walls
AW26: MOBILIZATION | BV26: 3 | BW26: OH Ductwork
AY27: EXCAVATION | BE27: BIM LEGEND | BV27: 4 | BW27: OH Branch Conduits and Lighting
AZ28: SHORING | BF28: Model Coordination | BV28: 5 | BW28: OH Mechanical Piping
BB29: PIERS | BF29: Prepare Shop Drawings + Layout Drawings | BV29: 6 | BW29: OH Electrical
BF30: Shop Drawing Approval | BV30: 7 | BW30: Wall Framing
AQ31: UG BIM Coordination | BF31: Prefabrication of Material | BV31: 8 | BW31: In wall Rough-in
BV32: 9 | BW32: Soffits + Ceilings
AN33: Shaft Prep | BV33: 10 | BW33: Soffit & Ceiling Rough
AR34: Elevator Cabs | BV34: 11 | BW34: Drywall
BF35: Test + Certification | BV35: 12 | BW35: Taping
AN36: Erect Stair | BV36: 13 | BW36: Prime + First Coat
AR37: Pour Stair Pans | BV37: 14 | BW37: Data Cabling
BV38: 15 | BW38: Ceiling Grid
AP39: Temp Roof | AU39: Install Swing Stages | BV39: 16 | BW39: Casework + Doors
AY40: Set AHU & Install | BV40: 17 | BW40: MEP Trim / Light and Devices
BD41: Roofing | BV41: 18 | BW41: Flooring + Baseboards
BV42: 19 | BW42: Final Paint
BV43: 20 | BW43: Final Accessories
AU44: 1 | AV44: 2 | AW44: 3 | AX44: 4 | AY44: 5 | AZ44: 6 | BA44: 7 | BB44: 8 | BC44: 9 | BD44: 10 | BE44: 11 | BF44: 12 | BG44: 13 | BH44: 14 | BI44: 15 | BJ44: 16 | BK44: 17 | BL44: 18 | BM44: 19 | BN44: 20 | BO44: 21 | BP44: 22 | BV44: 21 | BW44: Pre-Punch & Clean
BV45: 22 | BW45: Punchlist
CA64: More colors
J65: 1 | K65: 2 | L65: 3 | M65: 4 | N65: 5 | O65: 6 | P65: 7 | Q65: 8 | R65: 9 | S65: 10 | T65: 11 | U65: 12 | V65: 13 | AL65: 1 | AM65: 2 | AN65: 3 | AO65: 4 | AP65: 5 | AQ65: 6 | AZ65: 7 | BA65: 8 | BB65: 9 | BC65: 10 | BD65: 11 | BE65: 12 | BN65: 13 | BO65: 14 | BP65: B | BQ65: 15 | BR65: 16 | BS65: PI
K66: 1 | L66: 2 | M66: 3 | N66: 4 | O66: 5 | P66: 6 | Q66: 7 | R66: 8 | S66: 9 | T66: 10 | U66: 11 | V66: 12 | W66: 13 | AM66: 1 | AN66: 2 | AO66: 3 | AP66: 4 | AQ66: 5 | AR66: 6 | BA66: 7 | BB66: 8 | BC66: 9 | BD66: 10 | BE66: 11 | BF66: 12 | BO66: 13 | BP66: 14 | BQ66: IR | BR66: 15 | BS66: 16 | BT66: PI
L67: 1 | M67: 2 | N67: 3 | O67: 4 | P67: 5 | Q67: 6 | R67: 7 | S67: 8 | T67: 9 | U67: 10 | V67: 11 | W67: 12 | X67: 13 | AN67: 1 | AO67: 2 | AP67: 3 | AQ67: 4 | AR67: 5 | AS67: 6 | BB67: 7 | BC67: 8 | BD67: 9 | BE67: 10 | BF67: 11 | BG67: 12 | BL67: B | BP67: 13 | BQ67: 14 | BR67: IR | BS67: B | BT67: 16 | BU67: PI
M68: 1 | N68: 2 | O68: 3 | P68: 4 | Q68: 5 | R68: 6 | S68: 7 | T68: 8 | U68: 9 | V68: 10 | W68: 11 | X68: 12 | Y68: 13 | AO68: 1 | AP68: 2 | AQ68: 3 | AR68: 4 | AS68: 5 | AT68: 6 | BC68: 7 | BD68: 8 | BE68: 9 | BF68: 10 | BG68: 11 | BH68: 12 | BQ68: 13 | BR68: 14 | BS68: IR | BT68: 15 | BU68: 16 | BV68: PI
N69: 1 | O69: 2 | P69: 3 | Q69: 4 | R69: 5 | S69: 6 | T69: 7 | U69: 8 | V69: 9 | W69: 10 | X69: 11 | Y69: 12 | Z69: 13 | AP69: 1 | AQ69: 2 | AR69: 3 | AS69: 4 | AT69: 5 | AU69: 6 | BD69: 7 | BE69: 8 | BF69: 9 | BG69: 10 | BH69: 11 | BI69: 12 | BR69: 13 | BS69: 14 | BT69: IR | BU69: 15 | BV69: 16 | BW69: PI
O70: 1 | P70: 2 | Q70: 3 | R70: 4 | S70: 5 | T70: 6 | U70: 7 | V70: 8 | W70: 9 | X70: 10 | Y70: 11 | Z70: 12 | AA70: 13 | AQ70: 1 | AR70: 2 | AS70: 3 | AT70: 4 | AU70: 5 | AV70: 6 | BE70: 7 | BF70: 8 | BG70: 9 | BH70: 10 | BI70: 11 | BJ70: 12 | BS70: 13 | BT70: 14 | BU70: IR | BV70: 15 | BW70: 16 | BX70: PI
P71: 1 | Q71: 2 | R71: 3 | S71: 4 | T71: 5 | U71: 6 | V71: 7 | W71: 8 | X71: 9 | Y71: 10 | Z71: 11 | AA71: 12 | AB71: 13
Q72: 1 | R72: 2 | S72: 3 | T72: 4 | U72: 5 | V72: 6 | W72: 7 | X72: 8 | Y72: 9 | Z72: 10 | AA72: 11 | AB72: 12 | AC72: 13
R73: 1 | S73: 2 | T73: 3 | U73: 4 | V73: 5 | W73: 6 | X73: 7 | Y73: 8 | Z73: 9 | AA73: 10 | AB73: 11 | AC73: 12 | AD73: 13 | AL73: 1 | AM73: 2 | AN73: 3 | AO73: 4 | AP73: 5 | AZ73: 6 | BA73: 7 | BB73: 8 | BC73: 9 | BD73: 10 | BN73: 11 | BO73: 12 | BP73: 13 | BQ73: 14 | BR73: 15
AM74: 1 | AN74: 2 | AO74: 3 | AP74: 4 | AQ74: 5 | BA74: 6 | BB74: 7 | BC74: 8 | BD74: 9 | BE74: 10 | BO74: 11 | BP74: 12 | BQ74: 13 | BR74: 14 | BS74: 15
AN75: 1 | AO75: 2 | AP75: 3 | AQ75: 4 | AR75: 5 | BB75: 6 | BC75: 7 | BD75: 8 | BE75: 9 | BF75: 10 | BP75: 11 | BQ75: 12 | BR75: 13 | BS75: 14 | BT75: 15
AO76: 1 | AP76: 2 | AQ76: 3 | AR76: 4 | AS76: 5 | BC76: 6 | BD76: 7 | BE76: 8 | BF76: 9 | BG76: 10 | BQ76: 11 | BR76: 12 | BS76: 13 | BT76: 14 | BU76: 15
AP77: 1 | AQ77: 2 | AR77: 3 | AS77: 4 | AT77: 5 | BD77: 6 | BE77: 7 | BF77: 8 | BG77: 9 | BH77: 10 | BR77: 11 | BS77: 12 | BT77: 13 | BU77: 14 | BV77: 15
J80: 1 | K80: 2 | L80: 3 | M80: 4 | N80: 5 | O80: 6 | X80: A | Y80: B | Z80: C | AA80: D | AB80: E | AC80: F
K81: 1 | L81: 2 | M81: 3 | N81: 4 | O81: 5 | P81: 6 | Y81: A | Z81: B | AA81: C | AB81: D | AC81: E | AD81: F
L82: 1 | M82: 2 | N82: 3 | O82: 4 | P82: 5 | Q82: 6 | Z82: A | AA82: B | AB82: C | AC82: D | AD82: E | AE82: F
M83: 1 | N83: 2 | O83: 3 | P83: 4 | Q83: 5 | R83: 6 | AA83: A | AB83: B | AC83: C | AD83: D | AE83: E | AF83: F
N84: 1 | O84: 2 | P84: 3 | Q84: 4 | R84: 5 | S84: 6 | AB84: A | AC84: B | AD84: C | AE84: D | AF84: E | AG84: F
O85: 1 | P85: 2 | Q85: 3 | R85: 4 | S85: 5 | T85: 6 | AC85: A | AD85: B | AE85: C | AF85: D | AG85: E | AH85: F

Sheet Work Density
DW7: Work Density Table
DW9: Zone | DZ9: Density
DW10: 1 | DZ10: =+SUM(FC16:FD17,FA16:FB19) -> 0
DW11: 2 | DZ11: =+SUM(FA11:FD15) -> 0
DW12: 3 | DZ12: =+SUM(EW11:EZ15) -> 0
DW13: 4 | DZ13: =+SUM(EW16:EZ19) -> 0
DW14: 5 | DZ14: =+SUM(ES16:EV19) -> 0
DW15: 6 | DZ15: =+SUM(ES11:EV15) -> 0
DW16: 7 | DZ16: =+SUM(EO11:ER15) -> 0
DW17: 8 | DZ17: =+SUM(EO16:ER19) -> 0
DW18: 9 | DZ18: =+SUM(EL7:EN19) -> 0
DW19: 10 | DZ19: =+SUM(EI7:EK19) -> 0
DW20: 11 | DZ20: =+SUM(EE11:EH19,EF7:EH10) -> 0
D23: Creating & populating grid according to our scale
S42: 0 | T42: 0 | U42: 0 | V42: 0 | W42: 0 | X42: 0 | Y42: 0 | Z42: 0 | AA42: 0 | AB42: 0
S43: 0 | T43: 3 | U43: 3 | V43: 3 | W43: 3 | X43: 3 | Y43: 3 | Z43: 3 | AA43: 3 | AB43: 3
S44: 0 | T44: 3 | U44: 3 | V44: 3 | W44: 3 | X44: 3 | Y44: 3 | Z44: 3 | AA44: 3 | AB44: 3
S45: 0 | T45: 3 | U45: 3 | V45: 3 | W45: 3 | X45: 3 | Y45: 3 | Z45: 3 | AA45: 3 | AB45: 3
S46: 0 | T46: 3 | U46: 4 | V46: 4 | W46: 6 | X46: 6 | Y46: 6 | Z46: 3 | AA46: 3 | AB46: 3
S47: 3 | T47: 3 | U47: 6 | V47: 4 | W47: 6 | X47: 6 | Y47: 6 | Z47: 3 | AA47: 3 | AB47: 3 | AC47: 8 | AD47: 8 | AE47: 8 | AF47: 8 | AG47: 8 | AH47: 8 | AI47: 8 | AJ47: 8 | AK47: 8 | AL47: 8 | AM47: 8 | AN47: 8 | AO47: 8 | AP47: 8 | AQ47: 8 | AR47: 8
S48: 3 | T48: 3 | U48: 6 | V48: 4 | W48: 6 | X48: 6 | Y48: 6 | Z48: 3 | AA48: 3 | AB48: 3 | AC48: 8 | AD48: 8 | AE48: 8 | AF48: 8 | AG48: 8 | AH48: 8 | AI48: 8 | AJ48: 8 | AK48: 8 | AL48: 8 | AM48: 8 | AN48: 8 | AO48: 8 | AP48: 8 | AQ48: 8 | AR48: 8
S49: 3 | T49: 3 | U49: 6 | V49: 4 | W49: 7 | X49: 7 | Y49: 7 | Z49: 7 | AA49: 3 | AB49: 3 | AC49: 8 | AD49: 8 | AE49: 8 | AF49: 8 | AG49: 8 | AH49: 8 | AI49: 8 | AJ49: 8 | AK49: 8 | AL49: 8 | AM49: 8 | AN49: 8 | AO49: 8 | AP49: 8 | AQ49: 8 | AR49: 8
S50: 3 | T50: 3 | U50: 6 | V50: 4 | W50: 7 | X50: 7 | Y50: 7 | Z50: 9 | AA50: 9 | AB50: 9 | AC50: 8 | AD50: 8 | AE50: 8 | AF50: 8 | AG50: 8 | AH50: 8 | AI50: 8 | AJ50: 8 | AK50: 8 | AL50: 8 | AM50: 8 | AN50: 8 | AO50: 8 | AP50: 8 | AQ50: 8 | AR50: 8
S51: 3 | T51: 3 | U51: 4 | V51: 4 | W51: 7 | X51: 7 | Y51: 7 | Z51: 9 | AA51: 9 | AB51: 9 | AC51: 8 | AD51: 8 | AE51: 8 | AF51: 8 | AG51: 8 | AH51: 8 | AI51: 8 | AJ51: 8 | AK51: 8 | AL51: 7 | AM51: 8 | AN51: 8 | AO51: 8 | AP51: 8 | AQ51: 8 | AR51: 8
S52: 3 | T52: 3 | U52: 4 | V52: 4 | W52: 7 | X52: 7 | Y52: 7 | Z52: 9 | AA52: 9 | AB52: 9 | AC52: 8 | AD52: 8 | AE52: 8 | AF52: 8 | AG52: 8 | AH52: 8 | AI52: 8 | AJ52: 8 | AK52: 8 | AL52: 7 | AM52: 7 | AN52: 8 | AO52: 8 | AP52: 8 | AQ52: 8 | AR52: 8
S53: 3 | T53: 4 | U53: 4 | V53: 4 | W53: 4 | X53: 4 | Y53: 4 | Z53: 4 | AA53: 9 | AB53: 9 | AC53: 8 | AD53: 8 | AE53: 8 | AF53: 8 | AG53: 8 | AH53: 8 | AI53: 8 | AJ53: 8 | AK53: 8 | AL53: 7 | AM53: 7 | AN53: 7 | AO53: 7 | AP53: 7 | AQ53: 8 | AR53: 8
S54: 2 | T54: 8 | U54: 8 | V54: 8 | W54: 4 | X54: 4 | Y54: 4 | Z54: 4 | AA54: 8 | AB54: 8 | AC54: 7 | AD54: 7 | AE54: 7 | AF54: 7 | AG54: 7 | AH54: 7 | AI54: 7 | AJ54: 7 | AK54: 7 | AL54: 7 | AM54: 7 | AN54: 7 | AO54: 7 | AP54: 7
S55: 2 | T55: 8 | U55: 8 | V55: 8 | W55: 4 | X55: 4 | Y55: 4 | Z55: 4 | AA55: 4 | AB55: 4 | AC55: 4 | AD55: 4 | AE55: 4 | AF55: 4 | AG55: 4 | AH55: 4 | AI55: 4 | AJ55: 4 | AK55: 4 | AL55: 4 | AM55: 4 | AN55: 4 | AO55: 4 | AP55: 4
D58: Work density with initial zoning (aggregate scores)
K62: Work Density Table | Y62: 0 | Z62: 0 | AA62: 0 | AB62: 0 | AC62: 0 | AD62: 0 | AE62: 0 | AF62: 0 | AG62: 0 | AH62: 0
Y63: 0 | Z63: 3 | AA63: 3 | AB63: 3 | AC63: 3 | AD63: 3 | AE63: 3 | AF63: 3 | AG63: 3 | AH63: 3
K64: Zone | N64: Density | Y64: 0 | Z64: 3 | AA64: 3 | AB64: 3 | AC64: 3 | AD64: 3 | AE64: 3 | AF64: 3 | AG64: 3 | AH64: 3
K65: 1 | N65: =+SUM(AW72:AX73,AU72:AV75) -> 84 | Y65: 0 | Z65: 3 | AA65: 3 | AB65: 3 | AC65: 3 | AD65: 3 | AE65: 3 | AF65: 3 | AG65: 3 | AH65: 3
K66: 2 | N66: =+SUM(AU67:AX71) -> 160 | Y66: 0 | Z66: 3 | AA66: 4 | AB66: 4 | AC66: 6 | AD66: 6 | AE66: 6 | AF66: 3 | AG66: 3 | AH66: 3
K67: 3 | N67: =+SUM(AQ67:AT71) -> 159 | Y67: 3 | Z67: 3 | AA67: 6 | AB67: 4 | AC67: 6 | AD67: 6 | AE67: 6 | AF67: 3 | AG67: 3 | AH67: 3 | AI67: 8 | AJ67: 8 | AK67: 8 | AL67: 8 | AM67: 8 | AN67: 8 | AO67: 8 | AP67: 8 | AQ67: 8 | AR67: 8 | AS67: 8 | AT67: 8 | AU67: 8 | AV67: 8 | AW67: 8 | AX67: 8
K68: 4 | N68: =+SUM(AQ72:AT75) -> 103 | Y68: 3 | Z68: 3 | AA68: 6 | AB68: 4 | AC68: 6 | AD68: 6 | AE68: 6 | AF68: 3 | AG68: 3 | AH68: 3 | AI68: 8 | AJ68: 8 | AK68: 8 | AL68: 8 | AM68: 8 | AN68: 8 | AO68: 8 | AP68: 8 | AQ68: 8 | AR68: 8 | AS68: 8 | AT68: 8 | AU68: 8 | AV68: 8 | AW68: 8 | AX68: 8
K69: 5 | N69: =+SUM(AM72:AP75) -> 108 | Y69: 3 | Z69: 3 | AA69: 6 | AB69: 4 | AC69: 7 | AD69: 7 | AE69: 7 | AF69: 7 | AG69: 3 | AH69: 3 | AI69: 8 | AJ69: 8 | AK69: 8 | AL69: 8 | AM69: 8 | AN69: 8 | AO69: 8 | AP69: 8 | AQ69: 8 | AR69: 8 | AS69: 8 | AT69: 8 | AU69: 8 | AV69: 8 | AW69: 8 | AX69: 8
K70: 6 | N70: =+SUM(AM67:AP71) -> 160 | Y70: 3 | Z70: 3 | AA70: 6 | AB70: 4 | AC70: 7 | AD70: 7 | AE70: 7 | AF70: 9 | AG70: 9 | AH70: 9 | AI70: 8 | AJ70: 8 | AK70: 8 | AL70: 8 | AM70: 8 | AN70: 8 | AO70: 8 | AP70: 8 | AQ70: 8 | AR70: 8 | AS70: 8 | AT70: 8 | AU70: 8 | AV70: 8 | AW70: 8 | AX70: 8
K71: 7 | N71: =+SUM(AI67:AL71) -> 160 | Y71: 3 | Z71: 3 | AA71: 4 | AB71: 4 | AC71: 7 | AD71: 7 | AE71: 7 | AF71: 9 | AG71: 9 | AH71: 9 | AI71: 8 | AJ71: 8 | AK71: 8 | AL71: 8 | AM71: 8 | AN71: 8 | AO71: 8 | AP71: 8 | AQ71: 8 | AR71: 7 | AS71: 8 | AT71: 8 | AU71: 8 | AV71: 8 | AW71: 8 | AX71: 8
K72: 8 | N72: =+SUM(AI72:AL75) -> 108 | Y72: 3 | Z72: 3 | AA72: 4 | AB72: 4 | AC72: 7 | AD72: 7 | AE72: 7 | AF72: 9 | AG72: 9 | AH72: 9 | AI72: 8 | AJ72: 8 | AK72: 8 | AL72: 8 | AM72: 8 | AN72: 8 | AO72: 8 | AP72: 8 | AQ72: 8 | AR72: 7 | AS72: 7 | AT72: 8 | AU72: 8 | AV72: 8 | AW72: 8 | AX72: 8
K73: 9 | N73: =+SUM(AF63:AH75) -> 202 | Y73: 3 | Z73: 4 | AA73: 4 | AB73: 4 | AC73: 4 | AD73: 4 | AE73: 4 | AF73: 4 | AG73: 9 | AH73: 9 | AI73: 8 | AJ73: 8 | AK73: 8 | AL73: 8 | AM73: 8 | AN73: 8 | AO73: 8 | AP73: 8 | AQ73: 8 | AR73: 7 | AS73: 7 | AT73: 7 | AU73: 7 | AV73: 7 | AW73: 8 | AX73: 8
K74: 10 | N74: =+SUM(AC63:AE75) -> 201 | Y74: 2 | Z74: 8 | AA74: 8 | AB74: 8 | AC74: 4 | AD74: 4 | AE74: 4 | AF74: 4 | AG74: 8 | AH74: 8 | AI74: 7 | AJ74: 7 | AK74: 7 | AL74: 7 | AM74: 7 | AN74: 7 | AO74: 7 | AP74: 7 | AQ74: 7 | AR74: 7 | AS74: 7 | AT74: 7 | AU74: 7 | AV74: 7
K75: 11 | N75: =+SUM(Y67:AB75,Z63:AB66) -> 197 | Y75: 2 | Z75: 8 | AA75: 8 | AB75: 8 | AC75: 4 | AD75: 4 | AE75: 4 | AF75: 4 | AG75: 4 | AH75: 4 | AI75: 4 | AJ75: 4 | AK75: 4 | AL75: 4 | AM75: 4 | AN75: 4 | AO75: 4 | AP75: 4 | AQ75: 4 | AR75: 4 | AS75: 4 | AT75: 4 | AU75: 4 | AV75: 4
D79: Adjusing areas for a better density leveling
K82: Work Density Table | X82: 0 | Y82: 0 | Z82: 0 | AA82: 0 | AB82: 0 | AC82: 0 | AD82: 0 | AE82: 0 | AF82: 0 | AG82: 0
X83: 0 | Y83: 3 | Z83: 3 | AA83: 3 | AB83: 3 | AC83: 3 | AD83: 3 | AE83: 3 | AF83: 3 | AG83: 3
K84: Zone | N84: Density | X84: 0 | Y84: 3 | Z84: 3 | AA84: 3 | AB84: 3 | AC84: 3 | AD84: 3 | AE84: 3 | AF84: 3 | AG84: 3
K85: 1 | N85: =+SUM(AS91:AS95,AT91:AW95) -> 150 | X85: 0 | Y85: 3 | Z85: 3 | AA85: 3 | AB85: 3 | AC85: 3 | AD85: 3 | AE85: 3 | AF85: 3 | AG85: 3
K86: 2 | N86: =+SUM(AT87:AW90,AS88:AS90) -> 152 | X86: 0 | Y86: 3 | Z86: 4 | AA86: 4 | AB86: 6 | AC86: 6 | AD86: 6 | AE86: 3 | AF86: 3 | AG86: 3
K87: 3 | N87: =+SUM(AP87:AR91,AS87,AO89:AO91) -> 151 | X87: 3 | Y87: 3 | Z87: 6 | AA87: 4 | AB87: 6 | AC87: 6 | AD87: 6 | AE87: 3 | AF87: 3 | AG87: 3 | AH87: 8 | AI87: 8 | AJ87: 8 | AK87: 8 | AL87: 8 | AM87: 8 | AN87: 8 | AO87: 8 | AP87: 8 | AQ87: 8 | AR87: 8 | AS87: 8 | AT87: 8 | AU87: 8 | AV87: 8 | AW87: 8
K88: 4 | N88: =+SUM(AN92:AR95,AM92:AM94) -> 154 | X88: 3 | Y88: 3 | Z88: 6 | AA88: 4 | AB88: 6 | AC88: 6 | AD88: 6 | AE88: 3 | AF88: 3 | AG88: 3 | AH88: 8 | AI88: 8 | AJ88: 8 | AK88: 8 | AL88: 8 | AM88: 8 | AN88: 8 | AO88: 8 | AP88: 8 | AQ88: 8 | AR88: 8 | AS88: 8 | AT88: 8 | AU88: 8 | AV88: 8 | AW88: 8
K89: 5 | N89: =+SUM(AH92:AK95,AL92:AL95,AM95,AG94:AG95) -> 151 | X89: 3 | Y89: 3 | Z89: 6 | AA89: 4 | AB89: 7 | AC89: 7 | AD89: 7 | AE89: 7 | AF89: 3 | AG89: 3 | AH89: 8 | AI89: 8 | AJ89: 8 | AK89: 8 | AL89: 8 | AM89: 8 | AN89: 8 | AO89: 8 | AP89: 8 | AQ89: 8 | AR89: 8 | AS89: 8 | AT89: 8 | AU89: 8 | AV89: 8 | AW89: 8
K90: 6 | N90: =+SUM(AL87:AN91,AO87:AO88,AK90:AK91) -> 152 | X90: 3 | Y90: 3 | Z90: 6 | AA90: 4 | AB90: 7 | AC90: 7 | AD90: 7 | AE90: 9 | AF90: 9 | AG90: 9 | AH90: 8 | AI90: 8 | AJ90: 8 | AK90: 8 | AL90: 8 | AM90: 8 | AN90: 8 | AO90: 8 | AP90: 8 | AQ90: 8 | AR90: 8 | AS90: 8 | AT90: 8 | AU90: 8 | AV90: 8 | AW90: 8
K91: 7 | N91: =+SUM(AH87:AJ91,AK87:AK89,AG87:AG88) -> 150 | X91: 3 | Y91: 3 | Z91: 4 | AA91: 4 | AB91: 7 | AC91: 7 | AD91: 7 | AE91: 9 | AF91: 9 | AG91: 9 | AH91: 8 | AI91: 8 | AJ91: 8 | AK91: 8 | AL91: 8 | AM91: 8 | AN91: 8 | AO91: 8 | AP91: 8 | AQ91: 7 | AR91: 8 | AS91: 8 | AT91: 8 | AU91: 8 | AV91: 8 | AW91: 8
K92: 8 | N92: =+SUM(AE83:AF92,AG83:AG86,AG89:AG93) -> 151 | X92: 3 | Y92: 3 | Z92: 4 | AA92: 4 | AB92: 7 | AC92: 7 | AD92: 7 | AE92: 9 | AF92: 9 | AG92: 9 | AH92: 8 | AI92: 8 | AJ92: 8 | AK92: 8 | AL92: 8 | AM92: 8 | AN92: 8 | AO92: 8 | AP92: 8 | AQ92: 7 | AR92: 7 | AS92: 8 | AT92: 8 | AU92: 8 | AV92: 8 | AW92: 8
K93: 9 | N93: =+SUM(AB90:AD95,AE93:AF95,AA92:AA95) -> 156 | X93: 3 | Y93: 4 | Z93: 4 | AA93: 4 | AB93: 4 | AC93: 4 | AD93: 4 | AE93: 4 | AF93: 9 | AG93: 9 | AH93: 8 | AI93: 8 | AJ93: 8 | AK93: 8 | AL93: 8 | AM93: 8 | AN93: 8 | AO93: 8 | AP93: 8 | AQ93: 7 | AR93: 7 | AS93: 7 | AT93: 7 | AU93: 7 | AV93: 8 | AW93: 8
K94: 10 | N94: =+SUM(Y83:AD87,AB88:AD89,,X87) -> 156 | X94: 2 | Y94: 8 | Z94: 8 | AA94: 8 | AB94: 4 | AC94: 4 | AD94: 4 | AE94: 4 | AF94: 8 | AG94: 8 | AH94: 7 | AI94: 7 | AJ94: 7 | AK94: 7 | AL94: 7 | AM94: 7 | AN94: 7 | AO94: 7 | AP94: 7 | AQ94: 7 | AR94: 7 | AS94: 7 | AT94: 7 | AU94: 7
K95: 11 | N95: =+SUM(X88:Z95,Y83:AA86,AA88:AA91) -> 157 | X95: 2 | Y95: 8 | Z95: 8 | AA95: 8 | AB95: 4 | AC95: 4 | AD95: 4 | AE95: 4 | AF95: 4 | AG95: 4 | AH95: 4 | AI95: 4 | AJ95: 4 | AK95: 4 | AL95: 4 | AM95: 4 | AN95: 4 | AO95: 4 | AP95: 4 | AQ95: 4 | AR95: 4 | AS95: 4 | AT95: 4 | AU95: 4

Sheet Norm Calculator
F2: Macro | I2: Norm | O2: General Information
F3: Adjusted Takt Wagons | G3: Adjusted Takt Zones | H3: Fixed Takt Time | I3: Fixed Takt Wagons | J3: Adjusted Takt Zones | K3: Takt Time Unrounded | L3: Theoretical Low Limit | M3: Train Length | N3: Adjusted Takt Time | O3: Takt Level | P3: Duration | Q3: SSU per Zone | R3: Trade Time Gained | S3: Area per Zone | T3: Realized Flow Potential | U3: Efficiency Parametric | V3: Value Parametric | W3: 36 | Z3: 1 | AA3: 2 | AB3: 3 | AC3: 4 | AD3: 5 | AE3: 6 | AF3: 7 | AG3: 8 | AH3: 9 | AI3: 10 | AJ3: 11 | AK3: 12 | AL3: 13 | AM3: 14 | AN3: 15 | AO3: 16 | AP3: 17 | AQ3: 18 | AR3: 19 | AS3: 20 | AT3: 21 | AU3: 22 | AV3: 23 | AW3: 24 | AX3: 25 | AY3: 26 | AZ3: 27 | BA3: 28 | BB3: 29 | BC3: 30 | BD3: 31 | BE3: 32 | BF3: 33 | BG3: 34 | BH3: 35 | BI3: 36 | BJ3: 37 | BK3: 38 | BL3: 39 | BM3: 40 | BN3: 41 | BO3: 42 | BP3: 43 | BQ3: 44 | BR3: 45 | BS3: 46 | BT3: 47 | BU3: 48 | BV3: 49 | BW3: 50 | BX3: 51 | BY3: 52 | BZ3: 53 | CA3: 54 | CB3: 55 | CC3: 56 | CD3: 57 | CE3: 58 | CF3: 59 | CG3: 60 | CH3: 61 | CI3: 62 | CJ3: 63 | CK3: 64 | CL3: 65 | CM3: 66 | CN3: 67 | CO3: 68 | CP3: 69 | CQ3: 70 | CR3: 71 | CS3: 72 | CT3: 73 | CU3: 74 | CV3: 75 | CW3: 76 | CX3: 77 | CY3: 78 | CZ3: 79 | DA3: 80 | DB3: 81 | DC3: 82 | DD3: 83 | DE3: 84 | DF3: 85 | DG3: 86 | DH3: 87 | DI3: 88 | DJ3: 89 | DK3: 90 | DL3: 91 | DM3: 92 | DN3: 93 | DO3: 94 | DP3: 95 | DQ3: 96 | DR3: 97 | DS3: 98 | DT3: 99 | DU3: 100 | DV3: 101 | DW3: 102 | DX3: 103 | DY3: 104 | DZ3: 105 | EA3: 106 | EB3: 107 | EC3: 108 | ED3: 109 | EE3: 110 | EF3: 111 | EG3: 112 | EH3: 113 | EI3: 114 | EJ3: 115 | EK3: 116 | EL3: 117 | EM3: 118 | EN3: 119 | EO3: 120 | EP3: 121 | EQ3: 122 | ER3: 123 | ES3: 124 | ET3: 125 | EU3: 126 | EV3: 127 | EW3: 128 | EX3: 129 | EY3: 130 | EZ3: 131 | FA3: 132 | FB3: 133 | FC3: 134 | FD3: 135 | FE3: 136 | FF3: 137 | FG3: 138 | FH3: 139 | FI3: 140 | FJ3: 141 | FK3: 142 | FL3: 143 | FM3: 144 | FN3: 145 | FO3: 146 | FP3: 147 | FQ3: 148 | FR3: 149 | FS3: 150 | FT3: 151 | FU3: 152 | FV3: 153 | FW3: 154 | FX3: 155 | FY3: 156 | FZ3: 157 | GA3: 158 | GB3: 159 | GC3: 160 | GD3: 161 | GE3: 162 | GF3: 163 | GG3: 164 | GH3: 165 | GI3: 166 | GJ3: 167 | GK3: 168 | GL3: 169 | GM3: 170 | GN3: 171 | GO3: 172 | GP3: 173 | GQ3: 174 | GR3: 175 | GS3: 176 | GT3: 177 | GU3: 178 | GV3: 179 | GW3: 180 | GX3: 181 | GY3: 182 | GZ3: 183 | HA3: 184 | HB3: 185 | HC3: 186 | HD3: 187 | HE3: 188 | HF3: 189 | HG3: 190 | HH3: 191 | HI3: 192 | HJ3: 193 | HK3: 194 | HL3: 195 | HM3: 196 | HN3: 197 | HO3: 198 | HP3: 199 | HQ3: 200 | HR3: 201 | HS3: 202 | HT3: 203 | HU3: 204 | HV3: 205 | HW3: 206 | HX3: 207 | HY3: 208 | HZ3: 209 | IA3: 210 | IB3: 211 | IC3: 212 | ID3: 213 | IE3: 214 | IF3: 215 | IG3: 216 | IH3: 217 | II3: 218 | IJ3: 219 | IK3: 220 | IL3: 221 | IM3: 222 | IN3: 223 | IO3: 224 | IP3: 225 | IQ3: 226 | IR3: 227 | IS3: 228 | IT3: 229 | IU3: 230 | IV3: 231 | IW3: 232 | IX3: 233 | IY3: 234 | IZ3: 235 | JA3: 236 | JB3: 237 | JC3: 238 | JD3: 239 | JE3: 240 | JF3: 241 | JG3: 242 | JH3: 243 | JI3: 244 | JJ3: 245 | JK3: 246 | JL3: 247 | JM3: 248 | JN3: 249 | JO3: 250
Y4: 1 | Z4: =IFERROR( _xlfn.LET( _xlpm.val, $D$12 / Z3, _xlpm.n, ROUNDUP(1 / _xlpm.val, 0), IF(_xlpm.n > $D$8, "", _xlpm.n) ), "") -> 1 | AA4: =IFERROR( _xlfn.LET( _xlpm.val, $D$12 / AA3, _xlpm.n, ROUNDUP(1 / _xlpm.val, 0), IF(_xlpm.n > $D$8, "", _xlpm.n) ), "") -> 1 | AB4: 1 | AC4: 1 | AD4: 1 | AE4: 2 | AF4: 2 | AG4: 2 | AH4: 2 | AI4: 2 | AJ4: 3 | AK4: 3 | AL4: 3 | AM4: 3 | AN4: 3 | AO4: 4 | AP4: 4 | AQ4: 4 | AR4: 4 | AS4: 4 | AT4: 5 | AU4: 5 | AV4: 5 | AW4: 5 | AX4: 5 | AY4: 6 | AZ4: 6 | BA4: 6 | BB4: 6 | BC4: 6 | BD4: 7 | BE4: 7 | BF4: 7 | BG4: 7 | BH4: 7 | BI4: 8 | BJ4: 8 | BK4: 8 | BL4: 8 | BM4: 8 | BN4: 9 | BO4: 9 | BP4: 9 | BQ4: 9 | BR4: 9 | BS4: 10 | BT4: 10 | BU4: 10 | BV4: 10 | BW4: 10 | BX4: 11 | BY4: 11 | BZ4: 11 | CA4: 11 | CB4: 11 | CC4: 12 | CD4: 12 | CE4: 12 | CF4: 12 | CG4: 12 | CH4: 13 | CI4: 13 | CJ4: 13 | CK4: 13 | CL4: 13 | CM4: =IFERROR( _xlfn.LET( _xlpm.val, $D$12 / CM3, _xlpm.n, ROUNDUP(1 / _xlpm.val, 0), IF(_xlpm.n > $D$8, "", _xlpm.n) ), "") -> 14 | CN4: 14 | CO4: 14 | CP4: 14 | CQ4: 14 | CR4: 15 | CS4: 15 | CT4: 15 | CU4: 15 | CV4: 15 | EY4: =IFERROR( _xlfn.LET( _xlpm.val, $D$12 / EY3, _xlpm.n, ROUNDUP(1 / _xlpm.val, 0), IF(_xlpm.n > $D$8, "", _xlpm.n) ), "") ->  | HK4: =IFERROR( _xlfn.LET( _xlpm.val, $D$12 / HK3, _xlpm.n, ROUNDUP(1 / _xlpm.val, 0), IF(_xlpm.n > $D$8, "", _xlpm.n) ), "") -> 
F5: =($D$8*N5)/H5 -> 39 | G5: =IFERROR(D10/D10+1,"") -> 2 | H5: =IF($D$12="","",$D$12) -> 5 | I5: =IF($D$8="","",$D$8) -> 15 | J5: =IFERROR($D$10/$D$10+1,"") -> 2 | K5: =IFERROR($D$10*$D$12/J5,"") -> 12.5 | L5: =(I5+J5-1)*K5 -> 200 | M5: =I5*N5 -> 195 | N5: =IFERROR(ROUNDUP($D$10*$D$12/J5,0),"") -> 13 | O5: =_xlfn.IFS(T5<=0.3,"Bad",AND(T5<0.5,T5>0.3),"Macro",T5>=0.5,"Norm") -> Bad | P5: =IFERROR(SUM(I5+J5-1)*N5,"") -> 208 | Q5: =$D$15/J5 -> 12 | R5: =IFERROR(SUM(J5*N5-$D$10*$D$12),"") -> 1 | S5: =IFERROR(IF($D$26="","",$D$26/J5),"") -> 24712.5 | T5: =IFERROR($D$31/P5,"") -> 0.1875 | U5: =IFERROR(I5/J5,"") -> 7.5 | V5: =IFERROR(I5/(J5-1),"") -> 15 | W5: =IF(ROW(W5)=$W$3+4,"x","") ->  | Y5: 2 | Z5: =IF($Y5<=$D$10,IF(COLUMN()<26+$D$12,"",OFFSET(Z4,0,-$D$12,1,1)),"") ->  | AA5: =IF($Y5<=$D$10,IF(COLUMN()<26+$D$12,"",OFFSET(AA4,0,-$D$12,1,1)),"") ->  | AE5: 1 | AF5: 1 | AG5: 1 | AH5: 1 | AI5: 1 | AJ5: 2 | AK5: 2 | AL5: 2 | AM5: 2 | AN5: 2 | AO5: 3 | AP5: 3 | AQ5: 3 | AR5: 3 | AS5: 3 | AT5: 4 | AU5: 4 | AV5: 4 | AW5: 4 | AX5: 4 | AY5: 5 | AZ5: 5 | BA5: 5 | BB5: 5 | BC5: 5 | BD5: 6 | BE5: 6 | BF5: 6 | BG5: 6 | BH5: 6 | BI5: 7 | BJ5: 7 | BK5: 7 | BL5: 7 | BM5: 7 | BN5: 8 | BO5: 8 | BP5: 8 | BQ5: 8 | BR5: 8 | BS5: 9 | BT5: 9 | BU5: 9 | BV5: 9 | BW5: 9 | BX5: 10 | BY5: 10 | BZ5: 10 | CA5: 10 | CB5: 10 | CC5: 11 | CD5: 11 | CE5: 11 | CF5: 11 | CG5: 11 | CH5: 12 | CI5: 12 | CJ5: 12 | CK5: 12 | CL5: 12 | CM5: =IF($Y5<=$D$10,IF(COLUMN()<26+$D$12,"",OFFSET(CM4,0,-$D$12,1,1)),"") -> 13 | CN5: 13 | CO5: 13 | CP5: 13 | CQ5: 13 | CR5: 14 | CS5: 14 | CT5: 14 | CU5: 14 | CV5: 14 | CW5: 15 | CX5: 15 | CY5: 15 | CZ5: 15 | DA5: 15 | EY5: =IF($Y5<=$D$10,IF(COLUMN()<26+$D$12,"",OFFSET(EY4,0,-$D$12,1,1)),"") ->  | HK5: =IF($Y5<=$D$10,IF(COLUMN()<26+$D$12,"",OFFSET(HK4,0,-$D$12,1,1)),"") ->  | ID5: =IF($Y5<=$D$10,IF(COLUMN()<26+$D$12,"",OFFSET(ID4,0,-$D$12,1,1)),"") ->  | IE5: =IF($Y5<=$D$10,IF(COLUMN()<26+$D$12,"",OFFSET(IE4,0,-$D$12,1,1)),"") -> 
B6: Takt Inputs | F6: =($D$8*N6)/H6 -> 27 | G6: =IFERROR(G5+1,"") -> 3 | H6: =IF($D$12="","",$D$12) -> 5 | I6: =IF($D$8="","",$D$8) -> 15 | J6: =IFERROR(J5+1,"") -> 3 | K6: 8.333333333 | L6: 141.6666667 | M6: 135 | N6: =IFERROR(ROUNDUP($D$10*$D$12/J6,0),"") -> 9 | O6: =_xlfn.IFS(T6<=0.3,"Bad",AND(T6<0.5,T6>0.3),"Macro",T6>=0.5,"Norm") -> Bad | P6: 153 | Q6: 8 | R6: 2 | S6: 16475 | T6: 0.2549019608 | U6: 5 | V6: 7.5 | W6: =IF(ROW(W6)=$W$3+4,"x","") ->  | Y6: 3 | Z6: =IF($Y6<=$D$10,IF(COLUMN()<26+$D$12,"",OFFSET(Z5,0,-$D$12,1,1)),"") ->  | AJ6: 1 | AK6: 1 | AL6: 1 | AM6: 1 | AN6: 1 | AO6: 2 | AP6: 2 | AQ6: 2 | AR6: 2 | AS6: 2 | AT6: 3 | AU6: 3 | AV6: 3 | AW6: 3 | AX6: 3 | AY6: 4 | AZ6: 4 | BA6: 4 | BB6: 4 | BC6: 4 | BD6: 5 | BE6: 5 | BF6: 5 | BG6: 5 | BH6: 5 | BI6: 6 | BJ6: 6 | BK6: 6 | BL6: 6 | BM6: 6 | BN6: 7 | BO6: 7 | BP6: 7 | BQ6: 7 | BR6: 7 | BS6: 8 | BT6: 8 | BU6: 8 | BV6: 8 | BW6: 8 | BX6: 9 | BY6: 9 | BZ6: 9 | CA6: 9 | CB6: 9 | CC6: 10 | CD6: 10 | CE6: 10 | CF6: 10 | CG6: 10 | CH6: 11 | CI6: 11 | CJ6: 11 | CK6: 11 | CL6: 11 | CM6: 12 | CN6: 12 | CO6: 12 | CP6: 12 | CQ6: 12 | CR6: 13 | CS6: 13 | CT6: 13 | CU6: 13 | CV6: 13 | CW6: 14 | CX6: 14 | CY6: 14 | CZ6: 14 | DA6: 14 | DB6: 15 | DC6: 15 | DD6: 15 | DE6: 15 | DF6: 15 | ID6: =IF($Y6<=$D$10,IF(COLUMN()<26+$D$12,"",OFFSET(ID5,0,-$D$12,1,1)),"") -> 
F7: 21 | G7: =IFERROR(G6+1,"") -> 4 | H7: =IF($D$12="","",$D$12) -> 5 | I7: =IF($D$8="","",$D$8) -> 15 | J7: =IFERROR(J6+1,"") -> 4 | K7: 6.25 | L7: 112.5 | M7: 105 | N7: =IFERROR(ROUNDUP($D$10*$D$12/J7,0),"") -> 7 | O7: =_xlfn.IFS(T7<=0.3,"Bad",AND(T7<0.5,T7>0.3),"Macro",T7>=0.5,"Norm") -> Macro | P7: 126 | Q7: 6 | R7: 3 | S7: 12356.25 | T7: 0.3095238095 | U7: 3.75 | V7: 5 | Y7: 4 | Z7: =IF($Y7<=$D$10,IF(COLUMN()<26+$D$12,"",OFFSET(Z6,0,-$D$12,1,1)),"") ->  | AO7: 1 | AP7: 1 | AQ7: 1 | AR7: 1 | AS7: 1 | AT7: 2 | AU7: 2 | AV7: 2 | AW7: 2 | AX7: 2 | AY7: 3 | AZ7: 3 | BA7: 3 | BB7: 3 | BC7: 3 | BD7: 4 | BE7: 4 | BF7: 4 | BG7: 4 | BH7: 4 | BI7: 5 | BJ7: 5 | BK7: 5 | BL7: 5 | BM7: 5 | BN7: 6 | BO7: 6 | BP7: 6 | BQ7: 6 | BR7: 6 | BS7: 7 | BT7: 7 | BU7: 7 | BV7: 7 | BW7: 7 | BX7: 8 | BY7: 8 | BZ7: 8 | CA7: 8 | CB7: 8 | CC7: 9 | CD7: 9 | CE7: 9 | CF7: 9 | CG7: 9 | CH7: 10 | CI7: 10 | CJ7: 10 | CK7: 10 | CL7: 10 | CM7: 11 | CN7: 11 | CO7: 11 | CP7: 11 | CQ7: 11 | CR7: 12 | CS7: 12 | CT7: 12 | CU7: 12 | CV7: 12 | CW7: 13 | CX7: 13 | CY7: 13 | CZ7: 13 | DA7: 13 | DB7: 14 | DC7: 14 | DD7: 14 | DE7: 14 | DF7: 14 | DG7: 15 | DH7: 15 | DI7: 15 | DJ7: 15 | DK7: 15
B8: Takt Wagons | D8: 15 | F8: =($D$8*N8)/H8 -> 15 | G8: =IFERROR(G7+1,"") -> 5 | H8: 5 | I8: 15 | J8: 5 | K8: 5 | L8: 95 | M8: 75 | N8: =IFERROR(ROUNDUP($D$10*$D$12/J8,0),"") -> 5 | O8: =_xlfn.IFS(T8<=0.3,"Bad",AND(T8<0.5,T8>0.3),"Macro",T8>=0.5,"Norm") -> Macro | P8: 95 | Q8: 4.8 | R8: 0 | S8: 9885 | T8: 0.4105263158 | U8: 3 | V8: 3.75 | Y8: 5 | Z8: =IF($Y8<=$D$10,IF(COLUMN()<26+$D$12,"",OFFSET(Z7,0,-$D$12,1,1)),"") ->  | AC8: =IF($Y8<=$D$10,IF(COLUMN()<26+$D$12,"",OFFSET(AC7,0,-$D$12,1,1)),"") ->  | AT8: 1 | AU8: 1 | AV8: 1 | AW8: 1 | AX8: 1 | AY8: 2 | AZ8: 2 | BA8: 2 | BB8: 2 | BC8: 2 | BD8: 3 | BE8: 3 | BF8: 3 | BG8: 3 | BH8: 3 | BI8: 4 | BJ8: 4 | BK8: 4 | BL8: 4 | BM8: 4 | BN8: 5 | BO8: 5 | BP8: 5 | BQ8: 5 | BR8: 5 | BS8: 6 | BT8: 6 | BU8: 6 | BV8: 6 | BW8: 6 | BX8: 7 | BY8: 7 | BZ8: 7 | CA8: 7 | CB8: 7 | CC8: 8 | CD8: 8 | CE8: 8 | CF8: 8 | CG8: 8 | CH8: 9 | CI8: 9 | CJ8: 9 | CK8: 9 | CL8: 9 | CM8: 10 | CN8: 10 | CO8: 10 | CP8: 10 | CQ8: 10 | CR8: 11 | CS8: 11 | CT8: 11 | CU8: 11 | CV8: 11 | CW8: 12 | CX8: 12 | CY8: 12 | CZ8: 12 | DA8: 12 | DB8: 13 | DC8: 13 | DD8: 13 | DE8: 13 | DF8: 13 | DG8: 14 | DH8: 14 | DI8: 14 | DJ8: 14 | DK8: 14 | DL8: 15 | DM8: 15 | DN8: 15 | DO8: 15 | DP8: 15 | EX8: =IF($Y8<=$D$10,IF(COLUMN()<26+$D$12,"",OFFSET(EX7,0,-$D$12,1,1)),"") ->  | HJ8: =IF($Y8<=$D$10,IF(COLUMN()<26+$D$12,"",OFFSET(HJ7,0,-$D$12,1,1)),"") -> 
F9: =($D$8*N9)/H9 -> 15 | G9: =IFERROR(G8+1,"") -> 6 | H9: 5 | I9: 15 | J9: =IFERROR(J8+1,"") -> 6 | K9: 4.166666667 | L9: 83.33333333 | M9: 75 | N9: =IFERROR(ROUNDUP($D$10*$D$12/J9,0),"") -> 5 | O9: =_xlfn.IFS(T9<=0.3,"Bad",AND(T9<0.5,T9>0.3),"Macro",T9>=0.5,"Norm") -> Macro | P9: 100 | Q9: 4 | R9: 5 | S9: 8237.5 | T9: 0.39 | U9: 2.5 | V9: 3 | Y9: 6 | Z9: =IF($Y9<=$D$10,IF(COLUMN()<26+$D$12,"",OFFSET(Z8,0,-$D$12,1,1)),"") ->  | AA9: =IF($Y9<=$D$10,IF(COLUMN()<26+$D$12,"",OFFSET(AA8,0,-$D$12,1,1)),"") ->  | CM9: =IF($Y9<=$D$10,IF(COLUMN()<26+$D$12,"",OFFSET(CM8,0,-$D$12,1,1)),"") ->  | FN9: =IF($Y9<=$D$10,IF(COLUMN()<26+$D$12,"",OFFSET(FN8,0,-$D$12,1,1)),"") -> 
B10: Takt Zones | D10: 5 | F10: =($D$8*N10)/H10 -> 12 | G10: 7 | H10: 5 | I10: 15 | J10: =IFERROR(J9+1,"") -> 7 | K10: 3.571428571 | L10: 75 | M10: 60 | N10: =IFERROR(ROUNDUP($D$10*$D$12/J10,0),"") -> 4 | O10: =_xlfn.IFS(T10<=0.3,"Bad",AND(T10<0.5,T10>0.3),"Macro",T10>=0.5,"Norm") -> Macro | P10: 84 | Q10: 3.428571429 | R10: 3 | S10: 7060.714286 | T10: 0.4642857143 | U10: 2.142857143 | V10: 2.5 | Y10: 7 | Z10: =IF($Y10<=$D$10,IF(COLUMN()<26+$D$12,"",OFFSET(Z9,0,-$D$12,1,1)),"") -> 
F11: 12 | G11: 8 | H11: 5 | I11: 15 | J11: 8 | K11: 3.125 | L11: 68.75 | M11: 60 | N11: 4 | O11: =_xlfn.IFS(T11<=0.3,"Bad",AND(T11<0.5,T11>0.3),"Macro",T11>=0.5,"Norm") -> Macro | P11: 88 | Q11: 3 | R11: 7 | S11: 6178.125 | T11: 0.4431818182 | U11: 1.875 | V11: 2.142857143 | Y11: 8 | JL11: =IF($Y11<=$D$10,IF(COLUMN()<26+$D$12,"",OFFSET(JL10,0,-$D$12,1,1)),"") -> 
B12: Takt Time | D12: 5 | F12: 9 | G12: 9 | H12: 5 | I12: 15 | J12: 9 | K12: 2.777777778 | L12: 63.88888889 | M12: 45 | N12: 3 | O12: =_xlfn.IFS(T12<=0.3,"Bad",AND(T12<0.5,T12>0.3),"Macro",T12>=0.5,"Norm") -> Norm | P12: 69 | Q12: 2.666666667 | R12: 2 | S12: 5491.666667 | T12: 0.5652173913 | U12: 1.666666667 | V12: 1.875 | Y12: 9 | CL12: =IF($Y12<=$D$10,IF(COLUMN()<26+$D$12,"",OFFSET(CL11,0,-$D$12,1,1)),"") ->  | IT12: =IF($Y12<=$D$10,IF(COLUMN()<26+$D$12,"",OFFSET(IT11,0,-$D$12,1,1)),"") -> 
F13: 9 | G13: 10 | H13: 5 | I13: 15 | J13: 10 | K13: 2.5 | L13: 60 | M13: 45 | N13: 3 | O13: =_xlfn.IFS(T13<=0.3,"Bad",AND(T13<0.5,T13>0.3),"Macro",T13>=0.5,"Norm") -> Norm | P13: 72 | Q13: 2.4 | R13: 5 | S13: 4942.5 | T13: 0.5416666667 | U13: 1.5 | V13: 1.666666667 | Y13: 10 | Z13: =IF($Y12<=$D$10,IF(COLUMN()<26+$D$12,"",OFFSET(Z12,0,-$D$12,1,1)),"") ->  | CL13: =IF($Y12<=$D$10,IF(COLUMN()<26+$D$12,"",OFFSET(CL12,0,-$D$12,1,1)),"") ->  | EX13: =IF($Y12<=$D$10,IF(COLUMN()<26+$D$12,"",OFFSET(EX12,0,-$D$12,1,1)),"") ->  | HJ13: =IF($Y12<=$D$10,IF(COLUMN()<26+$D$12,"",OFFSET(HJ12,0,-$D$12,1,1)),"") ->  | IC13: =IF($Y12<=$D$10,IF(COLUMN()<26+$D$12,"",OFFSET(IC12,0,-$D$12,1,1)),"") ->  | IF13: =IF($Y12<=$D$10,IF(COLUMN()<26+$D$12,"",OFFSET(IF12,0,-$D$12,1,1)),"") ->  | II13: =IF($Y12<=$D$10,IF(COLUMN()<26+$D$12,"",OFFSET(II12,0,-$D$12,1,1)),"") ->  | IL13: =IF($Y12<=$D$10,IF(COLUMN()<26+$D$12,"",OFFSET(IL12,0,-$D$12,1,1)),"") ->  | IO13: =IF($Y12<=$D$10,IF(COLUMN()<26+$D$12,"",OFFSET(IO12,0,-$D$12,1,1)),"") ->  | IR13: =IF($Y12<=$D$10,IF(COLUMN()<26+$D$12,"",OFFSET(IR12,0,-$D$12,1,1)),"") ->  | IU13: =IF($Y12<=$D$10,IF(COLUMN()<26+$D$12,"",OFFSET(IU12,0,-$D$12,1,1)),"") ->  | IX13: =IF($Y12<=$D$10,IF(COLUMN()<26+$D$12,"",OFFSET(IX12,0,-$D$12,1,1)),"") ->  | JA13: =IF($Y12<=$D$10,IF(COLUMN()<26+$D$12,"",OFFSET(JA12,0,-$D$12,1,1)),"") ->  | JD13: =IF($Y12<=$D$10,IF(COLUMN()<26+$D$12,"",OFFSET(JD12,0,-$D$12,1,1)),"") ->  | JG13: =IF($Y12<=$D$10,IF(COLUMN()<26+$D$12,"",OFFSET(JG12,0,-$D$12,1,1)),"") ->  | JJ13: =IF($Y12<=$D$10,IF(COLUMN()<26+$D$12,"",OFFSET(JJ12,0,-$D$12,1,1)),"") ->  | JM13: =IF($Y12<=$D$10,IF(COLUMN()<26+$D$12,"",OFFSET(JM12,0,-$D$12,1,1)),"") -> 
B14: Duration | D14: =IF(OR(D8="",D10="",D12=""),"",(D8+D10-1)*D12) -> 95 | F14: 9 | G14: 11 | H14: 5 | I14: 15 | J14: 11 | K14: 2.272727273 | L14: 56.81818182 | M14: 45 | N14: 3 | O14: =_xlfn.IFS(T14<=0.3,"Bad",AND(T14<0.5,T14>0.3),"Macro",T14>=0.5,"Norm") -> Norm | P14: 75 | Q14: 2.181818182 | R14: 8 | S14: 4493.181818 | T14: 0.52 | U14: 1.363636364 | V14: 1.5 | Y14: 11
B15: Number of SSU's | D15: 24 | F15: 9 | G15: 12 | H15: 5 | I15: 15 | J15: 12 | K15: 2.083333333 | L15: 54.16666667 | M15: 45 | N15: 3 | O15: =_xlfn.IFS(T15<=0.3,"Bad",AND(T15<0.5,T15>0.3),"Macro",T15>=0.5,"Norm") -> Norm | P15: 78 | Q15: 2 | R15: 11 | S15: 4118.75 | T15: 0.5 | U15: 1.25 | V15: 1.363636364 | Y15: 12
F16: 6 | G16: 13 | H16: 5 | I16: 15 | J16: 13 | K16: 1.923076923 | L16: 51.92307692 | M16: 30 | N16: 2 | O16: =_xlfn.IFS(T16<=0.3,"Bad",AND(T16<0.5,T16>0.3),"Macro",T16>=0.5,"Norm") -> Norm | P16: 54 | Q16: 1.846153846 | R16: 1 | S16: 3801.923077 | T16: 0.7222222222 | U16: 1.153846154 | V16: 1.25 | Y16: 13 | CK16: =IF($Y15<=$D$10,IF(COLUMN()<26+$D$12,"",OFFSET(CK15,0,-$D$12,1,1)),"") ->  | EW16: =IF($Y15<=$D$10,IF(COLUMN()<26+$D$12,"",OFFSET(EW15,0,-$D$12,1,1)),"") ->  | HI16: =IF($Y15<=$D$10,IF(COLUMN()<26+$D$12,"",OFFSET(HI15,0,-$D$12,1,1)),"") -> 
F17: 6 | G17: 14 | H17: 5 | I17: 15 | J17: 14 | K17: 1.785714286 | L17: 50 | M17: 30 | N17: =IFERROR(ROUNDUP($D$10*$D$12/J17,0),"") -> 2 | O17: =_xlfn.IFS(T17<=0.3,"Bad",AND(T17<0.5,T17>0.3),"Macro",T17>=0.5,"Norm") -> Norm | P17: 56 | Q17: 1.714285714 | R17: 3 | S17: 3530.357143 | T17: 0.6964285714 | U17: 1.071428571 | V17: 1.153846154 | Y17: 14 | Z17: =IF($Y16<=$D$10,IF(COLUMN()<26+$D$12,"",OFFSET(Z16,0,-$D$12,1,1)),"") ->  | DA17: =IF($Y16<=$D$10,IF(COLUMN()<26+$D$12,"",OFFSET(DA16,0,-$D$12,1,1)),"") ->  | FM17: =IF($Y16<=$D$10,IF(COLUMN()<26+$D$12,"",OFFSET(FM16,0,-$D$12,1,1)),"") -> 
B18: Area Inputs (m2, sqft) | F18: 6 | G18: 15 | H18: 5 | I18: 15 | J18: 15 | K18: 1.666666667 | L18: 48.33333333 | M18: 30 | N18: =IFERROR(ROUNDUP($D$10*$D$12/J18,0),"") -> 2 | O18: =_xlfn.IFS(T18<=0.3,"Bad",AND(T18<0.5,T18>0.3),"Macro",T18>=0.5,"Norm") -> Norm | P18: 58 | Q18: 1.6 | R18: 5 | S18: 3295 | T18: 0.6724137931 | U18: 1 | V18: 1.071428571 | Y18: 15
F19: 6 | G19: 16 | H19: 5 | I19: 15 | J19: 16 | K19: 1.5625 | L19: 46.875 | M19: 30 | N19: 2 | O19: =_xlfn.IFS(T19<=0.3,"Bad",AND(T19<0.5,T19>0.3),"Macro",T19>=0.5,"Norm") -> Norm | P19: 60 | Q19: 1.5 | R19: 7 | S19: 3089.0625 | T19: 0.65 | U19: 0.9375 | V19: 1 | Y19: 16
B20: Area / Zone | D20: 9885 | F20: 6 | G20: 17 | H20: 5 | I20: 15 | J20: 17 | K20: 1.470588235 | L20: 45.58823529 | M20: 30 | N20: 2 | O20: =_xlfn.IFS(T20<=0.3,"Bad",AND(T20<0.5,T20>0.3),"Macro",T20>=0.5,"Norm") -> Norm | P20: 62 | Q20: 1.411764706 | R20: 9 | S20: 2907.352941 | T20: 0.6290322581 | U20: 0.8823529412 | V20: 0.9375 | Y20: 17
F21: 6 | G21: 18 | H21: 5 | I21: 15 | J21: 18 | K21: 1.388888889 | L21: 44.44444444 | M21: 30 | N21: 2 | O21: =_xlfn.IFS(T21<=0.3,"Bad",AND(T21<0.5,T21>0.3),"Macro",T21>=0.5,"Norm") -> Norm | P21: 64 | Q21: 1.333333333 | R21: 11 | S21: 2745.833333 | T21: 0.609375 | U21: 0.8333333333 | V21: 0.8823529412 | Y21: 18 | AC21: =IF($Y20<=$D$10,IF(COLUMN()<26+$D$12,"",OFFSET(AC20,0,-$D$12,1,1)),"") -> 
B22: Min Zone Size | D22: 1000 | F22: 6 | G22: 19 | H22: 5 | I22: 15 | J22: 19 | K22: 1.315789474 | L22: 43.42105263 | M22: 30 | N22: 2 | O22: =_xlfn.IFS(T22<=0.3,"Bad",AND(T22<0.5,T22>0.3),"Macro",T22>=0.5,"Norm") -> Norm | P22: 66 | Q22: 1.263157895 | R22: 13 | S22: 2601.315789 | T22: 0.5909090909 | U22: 0.7894736842 | V22: 0.8333333333 | Y22: 19 | Z22: =IF($Y21<=$D$10,IF(COLUMN()<26+$D$12,"",OFFSET(Z21,0,-$D$12,1,1)),"") ->  | DP22: =IF($Y21<=$D$10,IF(COLUMN()<26+$D$12,"",OFFSET(DP21,0,-$D$12,1,1)),"") ->  | GB22: =IF($Y21<=$D$10,IF(COLUMN()<26+$D$12,"",OFFSET(GB21,0,-$D$12,1,1)),"") -> 
F23: 6 | G23: 20 | H23: 5 | I23: 15 | J23: 20 | K23: 1.25 | L23: 42.5 | M23: 30 | N23: 2 | O23: =_xlfn.IFS(T23<=0.3,"Bad",AND(T23<0.5,T23>0.3),"Macro",T23>=0.5,"Norm") -> Norm | P23: 68 | Q23: 1.2 | R23: 15 | S23: 2471.25 | T23: 0.5735294118 | U23: 0.75 | V23: 0.7894736842 | Y23: 20 | DA23: =IF($Y22<=$D$10,IF(COLUMN()<26+$D$12,"",OFFSET(DA22,0,-$D$12,1,1)),"") ->  | FM23: =IF($Y22<=$D$10,IF(COLUMN()<26+$D$12,"",OFFSET(FM22,0,-$D$12,1,1)),"") -> 
B24: Max Zone Size | D24: 10000 | F24: 6 | G24: 21 | H24: 5 | I24: 15 | J24: 21 | K24: 1.19047619 | L24: 41.66666667 | M24: 30 | N24: 2 | O24: =_xlfn.IFS(T24<=0.3,"Bad",AND(T24<0.5,T24>0.3),"Macro",T24>=0.5,"Norm") -> Norm | P24: 70 | Q24: 1.142857143 | R24: 17 | S24: 2353.571429 | T24: 0.5571428571 | U24: 0.7142857143 | V24: 0.75 | Y24: 21
F25: 6 | G25: 22 | H25: 5 | I25: 15 | J25: 22 | K25: 1.136363636 | L25: 40.90909091 | M25: 30 | N25: 2 | O25: =_xlfn.IFS(T25<=0.3,"Bad",AND(T25<0.5,T25>0.3),"Macro",T25>=0.5,"Norm") -> Norm | P25: 72 | Q25: 1.090909091 | R25: 19 | S25: 2246.590909 | T25: 0.5416666667 | U25: 0.6818181818 | V25: 0.7142857143 | Y25: 22 | AR25: =IF($Y24<=$D$10,IF(COLUMN()<26+$D$12,"",OFFSET(AR24,0,-$D$12,1,1)),"") -> 
B26: Total SQFT of Phase | D26: =IF(OR(D10="",D20=""),"",D10*D20) -> 49425 | F26: 6 | G26: 23 | H26: 5 | I26: 15 | J26: 23 | K26: 1.086956522 | L26: 40.2173913 | M26: 30 | N26: 2 | O26: =_xlfn.IFS(T26<=0.3,"Bad",AND(T26<0.5,T26>0.3),"Macro",T26>=0.5,"Norm") -> Norm | P26: 74 | Q26: 1.043478261 | R26: 21 | S26: 2148.913043 | T26: 0.527027027 | U26: 0.652173913 | V26: 0.6818181818 | Y26: 23 | AP26: =IF($Y25<=$D$10,IF(COLUMN()<26+$D$12,"",OFFSET(AP25,0,-$D$12,1,1)),"") -> 
F27: 6 | G27: 24 | H27: 5 | I27: 15 | J27: 24 | K27: 1.041666667 | L27: 39.58333333 | M27: 30 | N27: 2 | O27: =_xlfn.IFS(T27<=0.3,"Bad",AND(T27<0.5,T27>0.3),"Macro",T27>=0.5,"Norm") -> Norm | P27: 76 | Q27: 1 | R27: 23 | S27: 2059.375 | T27: 0.5131578947 | U27: 0.625 | V27: 0.652173913 | Y27: 24
B28: Shortest Durations | F28: 3 | G28: 25 | H28: 5 | I28: 15 | J28: 25 | K28: 1 | L28: 39 | M28: 15 | N28: 1 | O28: =_xlfn.IFS(T28<=0.3,"Bad",AND(T28<0.5,T28>0.3),"Macro",T28>=0.5,"Norm") -> Norm | P28: 39 | Q28: 0.96 | R28: 0 | S28: 1977 | T28: 1 | U28: 0.6 | V28: 0.625 | Y28: 25 | HZ28: =IF($Y27<=$D$10,IF(COLUMN()<26+$D$12,"",OFFSET(HZ27,0,-$D$12,1,1)),"") -> 
F29: 3 | G29: 26 | H29: 5 | I29: 15 | J29: 26 | K29: 0.9615384615 | L29: 38.46153846 | M29: 15 | N29: 1 | O29: =_xlfn.IFS(T29<=0.3,"Bad",AND(T29<0.5,T29>0.3),"Macro",T29>=0.5,"Norm") -> Norm | P29: 40 | Q29: 0.9230769231 | R29: 1 | S29: 1900.961538 | T29: 0.975 | U29: 0.5769230769 | V29: 0.6 | Y29: 26 | EN29: =IF($Y28<=$D$10,IF(COLUMN()<26+$D$12,"",OFFSET(EN28,0,-$D$12,1,1)),"") ->  | GZ29: =IF($Y28<=$D$10,IF(COLUMN()<26+$D$12,"",OFFSET(GZ28,0,-$D$12,1,1)),"") ->  | IC29: =IF($Y28<=$D$10,IF(COLUMN()<26+$D$12,"",OFFSET(IC28,0,-$D$12,1,1)),"") ->  | IF29: =IF($Y28<=$D$10,IF(COLUMN()<26+$D$12,"",OFFSET(IF28,0,-$D$12,1,1)),"") ->  | II29: =IF($Y28<=$D$10,IF(COLUMN()<26+$D$12,"",OFFSET(II28,0,-$D$12,1,1)),"") ->  | IL29: =IF($Y28<=$D$10,IF(COLUMN()<26+$D$12,"",OFFSET(IL28,0,-$D$12,1,1)),"") ->  | IO29: =IF($Y28<=$D$10,IF(COLUMN()<26+$D$12,"",OFFSET(IO28,0,-$D$12,1,1)),"") ->  | IR29: =IF($Y28<=$D$10,IF(COLUMN()<26+$D$12,"",OFFSET(IR28,0,-$D$12,1,1)),"") ->  | IU29: =IF($Y28<=$D$10,IF(COLUMN()<26+$D$12,"",OFFSET(IU28,0,-$D$12,1,1)),"") ->  | IX29: =IF($Y28<=$D$10,IF(COLUMN()<26+$D$12,"",OFFSET(IX28,0,-$D$12,1,1)),"") ->  | JA29: =IF($Y28<=$D$10,IF(COLUMN()<26+$D$12,"",OFFSET(JA28,0,-$D$12,1,1)),"") ->  | JD29: =IF($Y28<=$D$10,IF(COLUMN()<26+$D$12,"",OFFSET(JD28,0,-$D$12,1,1)),"") ->  | JG29: =IF($Y28<=$D$10,IF(COLUMN()<26+$D$12,"",OFFSET(JG28,0,-$D$12,1,1)),"") ->  | JJ29: =IF($Y28<=$D$10,IF(COLUMN()<26+$D$12,"",OFFSET(JJ28,0,-$D$12,1,1)),"") ->  | JM29: =IF($Y28<=$D$10,IF(COLUMN()<26+$D$12,"",OFFSET(JM28,0,-$D$12,1,1)),"") -> 
B30: Best # Zones | C30: Takt Time | D30: Duration | F30: 3 | G30: 27 | H30: 5 | I30: 15 | J30: 27 | K30: 0.9259259259 | L30: 37.96296296 | M30: 15 | N30: 1 | O30: =_xlfn.IFS(T30<=0.3,"Bad",AND(T30<0.5,T30>0.3),"Macro",T30>=0.5,"Norm") -> Norm | P30: 41 | Q30: 0.8888888889 | R30: 2 | S30: 1830.555556 | T30: 0.9512195122 | U30: 0.5555555556 | V30: 0.5769230769 | Y30: 27 | BV30: =IF($Y29<=$D$10,IF(COLUMN()<26+$D$12,"",OFFSET(BV29,0,-$D$12,1,1)),"") ->  | DQ30: =IF($Y29<=$D$10,IF(COLUMN()<26+$D$12,"",OFFSET(DQ29,0,-$D$12,1,1)),"") ->  | GC30: =IF($Y29<=$D$10,IF(COLUMN()<26+$D$12,"",OFFSET(GC29,0,-$D$12,1,1)),"") -> 
B31: =IFERROR(ROUNDUP($D$10*$D$12*1/C31,0),"") -> 25 | C31: =IF($D$12="","",$D$12/$D$12) -> 1 | D31: =IFERROR(($D$8+B31-1)*C31,"") -> 39 | F31: 3 | G31: 28 | H31: 5 | I31: 15 | J31: 28 | K31: 0.8928571429 | L31: 37.5 | M31: 15 | N31: 1 | O31: =_xlfn.IFS(T31<=0.3,"Bad",AND(T31<0.5,T31>0.3),"Macro",T31>=0.5,"Norm") -> Norm | P31: 42 | Q31: 0.8571428571 | R31: 3 | S31: 1765.178571 | T31: 0.9285714286 | U31: 0.5357142857 | V31: 0.5555555556 | Y31: 28 | BF31: =IF($Y30<=$D$10,IF(COLUMN()<26+$D$12,"",OFFSET(BF30,0,-$D$12,1,1)),"") -> 
B32: 13 | C32: =IFERROR(C31+1,"") -> 2 | D32: 54 | F32: 3 | G32: 29 | H32: 5 | I32: 15 | J32: 29 | K32: 0.8620689655 | L32: 37.06896552 | M32: 15 | N32: 1 | O32: =_xlfn.IFS(T32<=0.3,"Bad",AND(T32<0.5,T32>0.3),"Macro",T32>=0.5,"Norm") -> Norm | P32: 43 | Q32: 0.8275862069 | R32: 4 | S32: 1704.310345 | T32: 0.9069767442 | U32: 0.5172413793 | V32: 0.5357142857 | Y32: 29 | CL32: =IF($Y31<=$D$10,IF(COLUMN()<26+$D$12,"",OFFSET(CL31,0,-$D$12,1,1)),"") ->  | FD32: =IF($Y31<=$D$10,IF(COLUMN()<26+$D$12,"",OFFSET(FD31,0,-$D$12,1,1)),"") ->  | HP32: =IF($Y31<=$D$10,IF(COLUMN()<26+$D$12,"",OFFSET(HP31,0,-$D$12,1,1)),"") -> 
B33: 9 | C33: =IFERROR(C32+1,"") -> 3 | D33: 69 | F33: 3 | G33: 30 | H33: 5 | I33: 15 | J33: 30 | K33: 0.8333333333 | L33: 36.66666667 | M33: 15 | N33: 1 | O33: =_xlfn.IFS(T33<=0.3,"Bad",AND(T33<0.5,T33>0.3),"Macro",T33>=0.5,"Norm") -> Norm | P33: 44 | Q33: 0.8 | R33: 5 | S33: 1647.5 | T33: 0.8863636364 | U33: 0.5 | V33: 0.5172413793 | Y33: 30
B34: 7 | C34: 4 | D34: 84 | F34: 3 | G34: 31 | H34: 5 | I34: 15 | J34: 31 | K34: 0.8064516129 | L34: 36.29032258 | M34: 15 | N34: 1 | O34: =_xlfn.IFS(T34<=0.3,"Bad",AND(T34<0.5,T34>0.3),"Macro",T34>=0.5,"Norm") -> Norm | P34: 45 | Q34: 0.7741935484 | R34: 6 | S34: 1594.354839 | T34: 0.8666666667 | U34: 0.4838709677 | V34: 0.5 | Y34: 31
B35: 5 | C35: 5 | D35: 95 | F35: 3 | G35: 32 | H35: 5 | I35: 15 | J35: 32 | K35: 0.78125 | L35: 35.9375 | M35: 15 | N35: 1 | O35: =_xlfn.IFS(T35<=0.3,"Bad",AND(T35<0.5,T35>0.3),"Macro",T35>=0.5,"Norm") -> Norm | P35: 46 | Q35: 0.75 | R35: 7 | S35: 1544.53125 | T35: 0.847826087 | U35: 0.46875 | V35: 0.4838709677 | Y35: 32
B36: 5 | C36: 6 | D36: 114 | F36: 3 | G36: 33 | H36: 5 | I36: 15 | J36: 33 | K36: 0.7575757576 | L36: 35.60606061 | M36: 15 | N36: 1 | O36: =_xlfn.IFS(T36<=0.3,"Bad",AND(T36<0.5,T36>0.3),"Macro",T36>=0.5,"Norm") -> Norm | P36: 47 | Q36: 0.7272727273 | R36: 8 | S36: 1497.727273 | T36: 0.829787234 | U36: 0.4545454545 | V36: 0.46875 | Y36: 33
B37: 4 | C37: 7 | D37: 126 | F37: 3 | G37: 34 | H37: 5 | I37: 15 | J37: 34 | K37: 0.7352941176 | L37: 35.29411765 | M37: 15 | N37: 1 | O37: =_xlfn.IFS(T37<=0.3,"Bad",AND(T37<0.5,T37>0.3),"Macro",T37>=0.5,"Norm") -> Norm | P37: 48 | Q37: 0.7058823529 | R37: 9 | S37: 1453.676471 | T37: 0.8125 | U37: 0.4411764706 | V37: 0.4545454545 | Y37: 34
B38: 4 | C38: 8 | D38: 144 | F38: 3 | G38: 35 | H38: 5 | I38: 15 | J38: 35 | K38: 0.7142857143 | L38: 35 | M38: 15 | N38: 1 | O38: =_xlfn.IFS(T38<=0.3,"Bad",AND(T38<0.5,T38>0.3),"Macro",T38>=0.5,"Norm") -> Norm | P38: 49 | Q38: 0.6857142857 | R38: 10 | S38: 1412.142857 | T38: 0.7959183673 | U38: 0.4285714286 | V38: 0.4411764706 | Y38: 35 | Z38: =IF($Y37<=$D$10,IF(COLUMN()<26+$D$12,"",OFFSET(Z37,0,-$D$12,1,1)),"") -> 
B39: 3 | C39: 9 | D39: 153 | F39: 3 | G39: 36 | H39: 5 | I39: 15 | J39: 36 | K39: 0.6944444444 | L39: 34.72222222 | M39: 15 | N39: 1 | O39: =_xlfn.IFS(T39<=0.3,"Bad",AND(T39<0.5,T39>0.3),"Macro",T39>=0.5,"Norm") -> Norm | P39: 50 | Q39: 0.6666666667 | R39: 11 | S39: 1372.916667 | T39: 0.78 | U39: 0.4166666667 | V39: 0.4285714286 | Y39: 36 | DB39: =IF($Y38<=$D$10,IF(COLUMN()<26+$D$12,"",OFFSET(DB38,0,-$D$12,1,1)),"") ->  | FT39: =IF($Y38<=$D$10,IF(COLUMN()<26+$D$12,"",OFFSET(FT38,0,-$D$12,1,1)),"") -> 
B40: 3 | C40: 10 | D40: 170 | F40: 3 | G40: =IFERROR(G39+1,"") -> 37 | H40: 5 | I40: 15 | J40: 37 | K40: 0.6756756757 | L40: 34.45945946 | M40: 15 | N40: 1 | O40: =_xlfn.IFS(T40<=0.3,"Bad",AND(T40<0.5,T40>0.3),"Macro",T40>=0.5,"Norm") -> Norm | P40: 51 | Q40: 0.6486486486 | R40: 12 | S40: 1335.810811 | T40: 0.7647058824 | U40: 0.4054054054 | V40: 0.4166666667 | W40: x | Y40: 37
Y41: 38 | Z41: Wagons | AD41: =IF(D8="","",D8) -> 15
Y42: 39 | Z42: Zones | AD42: =IF(D10="","",D10) -> 5 | AP42: =IF($Y41<=$D$10,IF(COLUMN()<26+$D$12,"",OFFSET(AP41,0,-$D$12,1,1)),"") ->  | DT42: =IF($Y41<=$D$10,IF(COLUMN()<26+$D$12,"",OFFSET(DT41,0,-$D$12,1,1)),"") -> 
Y43: 40 | Z43: Takt Time | AD43: =IF(D12="","",D12) -> 5 | GS43: =IF($Y42<=$D$10,IF(COLUMN()<26+$D$12,"",OFFSET(GS42,0,-$D$12,1,1)),"") -> 
Z46: 1 | AA46: 2 | AB46: 3 | AC46: 4 | AD46: 5 | AE46: 6 | AF46: 7 | AG46: 8 | AH46: 9 | AI46: 10 | AJ46: 11 | AK46: 12 | AL46: 13 | AM46: 14 | AN46: 15 | AO46: 16 | AP46: 17 | AQ46: 18 | AR46: 19 | AS46: 20 | AT46: 21 | AU46: 22 | AV46: 23 | AW46: 24 | AX46: 25 | AY46: 26 | AZ46: 27 | BA46: 28 | BB46: 29 | BC46: 30 | BD46: 31 | BE46: 32 | BF46: 33 | BG46: 34 | BH46: 35 | BI46: 36 | BJ46: 37 | BK46: 38 | BL46: 39 | BM46: 40 | BN46: 41 | BO46: 42 | BP46: 43 | BQ46: 44 | BR46: 45 | BS46: 46 | BT46: 47 | BU46: 48 | BV46: 49 | BW46: 50 | BX46: 51 | BY46: 52 | BZ46: 53 | CA46: 54 | CB46: 55 | CC46: 56 | CD46: 57 | CE46: 58 | CF46: 59 | CG46: 60 | CH46: 61 | CI46: 62 | CJ46: 63 | CK46: 64 | CL46: 65 | CM46: 66 | CN46: 67 | CO46: 68 | CP46: 69 | CQ46: 70 | CR46: 71 | CS46: 72 | CT46: 73 | CU46: 74 | CV46: 75 | CW46: 76 | CX46: 77 | CY46: 78 | CZ46: 79 | DA46: 80 | DB46: 81 | DC46: 82 | DD46: 83 | DE46: 84 | DF46: 85 | DG46: 86 | DH46: 87 | DI46: 88 | DJ46: 89 | DK46: 90 | DL46: 91 | DM46: 92 | DN46: 93 | DO46: 94 | DP46: 95 | DQ46: 96 | DR46: 97 | DS46: 98 | DT46: 99 | DU46: 100 | DV46: 101 | DW46: 102 | DX46: 103 | DY46: 104 | DZ46: 105 | EA46: 106 | EB46: 107 | EC46: 108 | ED46: 109 | EE46: 110 | EF46: 111 | EG46: 112 | EH46: 113 | EI46: 114 | EJ46: 115 | EK46: 116 | EL46: 117 | EM46: 118 | EN46: 119 | EO46: 120 | EP46: 121 | EQ46: 122 | ER46: 123 | ES46: 124 | ET46: 125 | EU46: 126 | EV46: 127 | EW46: 128 | EX46: 129 | EY46: 130 | EZ46: 131 | FA46: 132 | FB46: 133 | FC46: 134 | FD46: 135 | FE46: 136 | FF46: 137 | FG46: 138 | FH46: 139 | FI46: 140 | FJ46: 141 | FK46: 142 | FL46: 143 | FM46: 144 | FN46: 145 | FO46: 146 | FP46: 147 | FQ46: 148 | FR46: 149 | FS46: 150 | FT46: 151 | FU46: 152 | FV46: 153 | FW46: 154 | FX46: 155 | FY46: 156 | FZ46: 157 | GA46: 158 | GB46: 159 | GC46: 160 | GD46: 161 | GE46: 162 | GF46: 163 | GG46: 164 | GH46: 165 | GI46: 166 | GJ46: 167 | GK46: 168 | GL46: 169 | GM46: 170 | GN46: 171 | GO46: 172 | GP46: 173 | GQ46: 174 | GR46: 175 | GS46: 176 | GT46: 177 | GU46: 178 | GV46: 179 | GW46: 180 | GX46: 181 | GY46: 182 | GZ46: 183 | HA46: 184 | HB46: 185 | HC46: 186 | HD46: 187 | HE46: 188 | HF46: 189 | HG46: 190 | HH46: 191 | HI46: 192 | HJ46: 193 | HK46: 194 | HL46: 195 | HM46: 196 | HN46: 197 | HO46: 198 | HP46: 199 | HQ46: 200 | HR46: 201 | HS46: 202 | HT46: 203 | HU46: 204 | HV46: 205 | HW46: 206 | HX46: 207 | HY46: 208 | HZ46: 209 | IA46: 210 | IB46: 211 | IC46: 212 | ID46: 213 | IE46: 214 | IF46: 215 | IG46: 216 | IH46: 217 | II46: 218 | IJ46: 219 | IK46: 220 | IL46: 221 | IM46: 222 | IN46: 223 | IO46: 224 | IP46: 225 | IQ46: 226 | IR46: 227 | IS46: 228 | IT46: 229 | IU46: 230 | IV46: 231 | IW46: 232 | IX46: 233 | IY46: 234 | IZ46: 235 | JA46: 236 | JB46: 237 | JC46: 238 | JD46: 239 | JE46: 240 | JF46: 241 | JG46: 242 | JH46: 243 | JI46: 244 | JJ46: 245 | JK46: 246 | JL46: 247 | JM46: 248 | JN46: 249 | JO46: 250
Y47: 1 | Z47: =IFERROR( _xlfn.LET( _xlpm.val, $AD$86 / Z46, _xlpm.n, ROUNDUP(1 / _xlpm.val, 0), IF(_xlpm.n > $AD$84, "", _xlpm.n) ), "") -> 1 | AA47: =IFERROR( _xlfn.LET( _xlpm.val, $AD$86 / AA46, _xlpm.n, ROUNDUP(1 / _xlpm.val, 0), IF(_xlpm.n > $AD$84, "", _xlpm.n) ), "") -> 2 | AB47: 3 | AC47: 4 | AD47: 5 | AE47: 6 | AF47: 7 | AG47: 8 | AH47: 9 | AI47: 10 | AJ47: 11 | AK47: 12 | AL47: 13 | AM47: 14 | AN47: 15 | CM47: =IFERROR( _xlfn.LET( _xlpm.val, $AD$86 / CM46, _xlpm.n, ROUNDUP(1 / _xlpm.val, 0), IF(_xlpm.n > $AD$84, "", _xlpm.n) ), "") ->  | EY47: =IFERROR( _xlfn.LET( _xlpm.val, $AD$86 / EY46, _xlpm.n, ROUNDUP(1 / _xlpm.val, 0), IF(_xlpm.n > $AD$84, "", _xlpm.n) ), "") ->  | HK47: =IFERROR( _xlfn.LET( _xlpm.val, $AD$86 / HK46, _xlpm.n, ROUNDUP(1 / _xlpm.val, 0), IF(_xlpm.n > $AD$84, "", _xlpm.n) ), "") -> 
Y48: 2 | Z48: =IFERROR(IF($Y48<=$AD$85,IF(COLUMN()<26+$AD$86,"",OFFSET(Z47,0,-$AD$86,1,1)),""),"") ->  | AA48: 1 | AB48: 2 | AC48: 3 | AD48: 4 | AE48: 5 | AF48: 6 | AG48: 7 | AH48: 8 | AI48: 9 | AJ48: 10 | AK48: 11 | AL48: 12 | AM48: 13 | AN48: 14 | AO48: 15 | CL48: =IFERROR(IF($Y48<=$AD$85,IF(COLUMN()<26+$AD$86,"",OFFSET(CL47,0,-$AD$86,1,1)),""),"") ->  | EX48: =IFERROR(IF($Y48<=$AD$85,IF(COLUMN()<26+$AD$86,"",OFFSET(EX47,0,-$AD$86,1,1)),""),"") ->  | HJ48: =IFERROR(IF($Y48<=$AD$85,IF(COLUMN()<26+$AD$86,"",OFFSET(HJ47,0,-$AD$86,1,1)),""),"") -> 
Y49: 3 | AB49: 1 | AC49: 2 | AD49: 3 | AE49: 4 | AF49: 5 | AG49: 6 | AH49: 7 | AI49: 8 | AJ49: 9 | AK49: 10 | AL49: 11 | AM49: 12 | AN49: 13 | AO49: 14 | AP49: 15
Y50: 4 | AC50: 1 | AD50: 2 | AE50: 3 | AF50: 4 | AG50: 5 | AH50: 6 | AI50: 7 | AJ50: 8 | AK50: 9 | AL50: 10 | AM50: 11 | AN50: 12 | AO50: 13 | AP50: 14 | AQ50: 15
Y51: 5 | AD51: 1 | AE51: 2 | AF51: 3 | AG51: 4 | AH51: 5 | AI51: 6 | AJ51: 7 | AK51: 8 | AL51: 9 | AM51: 10 | AN51: 11 | AO51: 12 | AP51: 13 | AQ51: 14 | AR51: 15 | CK51: =IFERROR(IF($Y51<=$AD$85,IF(COLUMN()<26+$AD$86,"",OFFSET(CK50,0,-$AD$86,1,1)),""),"") ->  | EW51: =IFERROR(IF($Y51<=$AD$85,IF(COLUMN()<26+$AD$86,"",OFFSET(EW50,0,-$AD$86,1,1)),""),"") ->  | HI51: =IFERROR(IF($Y51<=$AD$85,IF(COLUMN()<26+$AD$86,"",OFFSET(HI50,0,-$AD$86,1,1)),""),"") -> 
Y52: 6 | Z52: =IFERROR(IF($Y52<=$AD$85,IF(COLUMN()<26+$AD$86,"",OFFSET(Z51,0,-$AD$86,1,1)),""),"") ->  | AE52: 1 | AF52: 2 | AG52: 3 | AH52: 4 | AI52: 5 | AJ52: 6 | AK52: 7 | AL52: 8 | AM52: 9 | AN52: 10 | AO52: 11 | AP52: 12 | AQ52: 13 | AR52: 14 | AS52: 15 | DA52: =IFERROR(IF($Y52<=$AD$85,IF(COLUMN()<26+$AD$86,"",OFFSET(DA51,0,-$AD$86,1,1)),""),"") ->  | FM52: =IFERROR(IF($Y52<=$AD$85,IF(COLUMN()<26+$AD$86,"",OFFSET(FM51,0,-$AD$86,1,1)),""),"") ->  | HZ52: 0 | ID52: 0 | IH52: 0 | IL52: 0 | IP52: 0 | IT52: 0 | IX52: 0 | IY52: =IFERROR(IF($Y52<=$AD$85,IF(COLUMN()<26+$AD$86,"",OFFSET(IY51,0,-$AD$86,1,1)),""),"") ->  | JB52: =IFERROR(IF($Y52<=$AD$85,IF(COLUMN()<26+$AD$86,"",OFFSET(JB51,0,-$AD$86,1,1)),""),"") -> 0 | JF52: =IFERROR(IF($Y52<=$AD$85,IF(COLUMN()<26+$AD$86,"",OFFSET(JF51,0,-$AD$86,1,1)),""),"") -> 0 | JJ52: =IFERROR(IF($Y52<=$AD$85,IF(COLUMN()<26+$AD$86,"",OFFSET(JJ51,0,-$AD$86,1,1)),""),"") -> 0 | JM52: =IFERROR(IF($Y52<=$AD$85,IF(COLUMN()<26+$AD$86,"",OFFSET(JM51,0,-$AD$86,1,1)),""),"") -> 0
Y53: 7 | AF53: 1 | AG53: 2 | AH53: 3 | AI53: 4 | AJ53: 5 | AK53: 6 | AL53: 7 | AM53: 8 | AN53: 9 | AO53: 10 | AP53: 11 | AQ53: 12 | AR53: 13 | AS53: 14 | AT53: 15 | HZ53: =IFERROR(IF($Y53<=$AD$85,IF(COLUMN()<26+$AD$86,"",OFFSET(HZ52,0,-$AD$86,1,1)),""),"") -> 0 | IA53: 0 | ID53: =IFERROR(IF($Y53<=$AD$85,IF(COLUMN()<26+$AD$86,"",OFFSET(ID52,0,-$AD$86,1,1)),""),"") -> 0 | IE53: 0 | IH53: =IFERROR(IF($Y53<=$AD$85,IF(COLUMN()<26+$AD$86,"",OFFSET(IH52,0,-$AD$86,1,1)),""),"") -> 0 | II53: 0 | IL53: =IFERROR(IF($Y53<=$AD$85,IF(COLUMN()<26+$AD$86,"",OFFSET(IL52,0,-$AD$86,1,1)),""),"") -> 0 | IM53: 0 | IP53: =IFERROR(IF($Y53<=$AD$85,IF(COLUMN()<26+$AD$86,"",OFFSET(IP52,0,-$AD$86,1,1)),""),"") -> 0 | IQ53: 0 | IT53: =IFERROR(IF($Y53<=$AD$85,IF(COLUMN()<26+$AD$86,"",OFFSET(IT52,0,-$AD$86,1,1)),""),"") -> 0 | IU53: 0 | IX53: =IFERROR(IF($Y53<=$AD$85,IF(COLUMN()<26+$AD$86,"",OFFSET(IX52,0,-$AD$86,1,1)),""),"") -> 0 | IY53: 0 | JB53: 0 | JC53: 0 | JF53: 0 | JG53: 0 | JJ53: 0 | JK53: 0 | JM53: 0 | JN53: 0
Y54: 8 | AG54: 1 | AH54: 2 | AI54: 3 | AJ54: 4 | AK54: 5 | AL54: 6 | AM54: 7 | AN54: 8 | AO54: 9 | AP54: 10 | AQ54: 11 | AR54: 12 | AS54: 13 | AT54: 14 | AU54: 15 | HZ54: 0 | IA54: 0 | IB54: 0 | ID54: 0 | IE54: 0 | IF54: 0 | IH54: 0 | II54: 0 | IJ54: 0 | IL54: 0 | IM54: 0 | IN54: 0 | IP54: 0 | IQ54: 0 | IR54: 0 | IT54: 0 | IU54: 0 | IV54: 0 | IX54: 0 | IY54: 0 | IZ54: 0 | JB54: 0 | JC54: 0 | JD54: 0 | JF54: 0 | JG54: 0 | JH54: 0 | JJ54: 0 | JK54: 0 | JM54: 0 | JN54: 0 | JO54: 0
Y55: 9 | AH55: 1 | AI55: 2 | AJ55: 3 | AK55: 4 | AL55: 5 | AM55: 6 | AN55: 7 | AO55: 8 | AP55: 9 | AQ55: 10 | AR55: 11 | AS55: 12 | AT55: 13 | AU55: 14 | AV55: 15 | HZ55: 0 | IA55: 0 | IB55: 0 | ID55: 0 | IE55: 0 | IF55: 0 | IH55: 0 | II55: 0 | IJ55: 0 | IL55: 0 | IM55: 0 | IN55: 0 | IP55: 0 | IQ55: 0 | IR55: 0 | IT55: 0 | IU55: 0 | IV55: 0 | IX55: 0 | IY55: 0 | IZ55: 0 | JB55: 0 | JC55: 0 | JD55: 0 | JF55: 0 | JG55: 0 | JH55: 0 | JJ55: 0 | JK55: 0 | JM55: 0 | JN55: 0 | JO55: 0
Y56: 10 | AC56: =IFERROR(IF($Y56<=$AD$85,IF(COLUMN()<26+$AD$86,"",OFFSET(AC55,0,-$AD$86,1,1)),""),"") ->  | AI56: 1 | AJ56: 2 | AK56: 3 | AL56: 4 | AM56: 5 | AN56: 6 | AO56: 7 | AP56: 8 | AQ56: 9 | AR56: 10 | AS56: 11 | AT56: 12 | AU56: 13 | AV56: 14 | AW56: 15 | HZ56: 0 | IA56: 0 | IB56: 0 | ID56: 0 | IE56: 0 | IF56: 0 | IH56: 0 | II56: 0 | IJ56: 0 | IL56: 0 | IM56: 0 | IN56: 0 | IP56: 0 | IQ56: 0 | IR56: 0 | IT56: 0 | IU56: 0 | IV56: 0 | IX56: 0 | IY56: 0 | IZ56: 0 | JB56: 0 | JC56: 0 | JD56: 0 | JF56: 0 | JG56: 0 | JH56: 0 | JJ56: 0 | JK56: 0 | JM56: 0 | JN56: 0 | JO56: 0
Y57: 11 | AJ57: 1 | AK57: 2 | AL57: 3 | AM57: 4 | AN57: 5 | AO57: 6 | AP57: 7 | AQ57: 8 | AR57: 9 | AS57: 10 | AT57: 11 | AU57: 12 | AV57: 13 | AW57: 14 | AX57: 15 | DP57: =IFERROR(IF($Y57<=$AD$85,IF(COLUMN()<26+$AD$86,"",OFFSET(DP56,0,-$AD$86,1,1)),""),"") ->  | GB57: =IFERROR(IF($Y57<=$AD$85,IF(COLUMN()<26+$AD$86,"",OFFSET(GB56,0,-$AD$86,1,1)),""),"") ->  | HZ57: 0 | IA57: 0 | IB57: 0 | ID57: 0 | IE57: 0 | IF57: 0 | IH57: 0 | II57: 0 | IJ57: 0 | IL57: 0 | IM57: 0 | IN57: 0 | IP57: 0 | IQ57: 0 | IR57: 0 | IT57: 0 | IU57: 0 | IV57: 0 | IX57: 0 | IY57: 0 | IZ57: 0 | JB57: 0 | JC57: 0 | JD57: 0 | JF57: 0 | JG57: 0 | JH57: 0 | JJ57: 0 | JK57: 0 | JM57: 0 | JN57: 0 | JO57: 0
Y58: 12 | AK58: 1 | AL58: 2 | AM58: 3 | AN58: 4 | AO58: 5 | AP58: 6 | AQ58: 7 | AR58: 8 | AS58: 9 | AT58: 10 | AU58: 11 | AV58: 12 | AW58: 13 | AX58: 14 | AY58: 15 | DA58: =IFERROR(IF($Y58<=$AD$85,IF(COLUMN()<26+$AD$86,"",OFFSET(DA57,0,-$AD$86,1,1)),""),"") ->  | FM58: =IFERROR(IF($Y58<=$AD$85,IF(COLUMN()<26+$AD$86,"",OFFSET(FM57,0,-$AD$86,1,1)),""),"") ->  | HZ58: 0 | IA58: 0 | IB58: 0 | ID58: 0 | IE58: 0 | IF58: 0 | IH58: 0 | II58: 0 | IJ58: 0 | IL58: 0 | IM58: 0 | IN58: 0 | IP58: 0 | IQ58: 0 | IR58: 0 | IT58: 0 | IU58: 0 | IV58: 0 | IX58: 0 | IY58: 0 | IZ58: 0 | JB58: 0 | JC58: 0 | JD58: 0 | JF58: 0 | JG58: 0 | JH58: 0 | JJ58: 0 | JK58: 0 | JM58: 0 | JN58: 0 | JO58: 0
Y59: 13 | AL59: 1 | AM59: 2 | AN59: 3 | AO59: 4 | AP59: 5 | AQ59: 6 | AR59: 7 | AS59: 8 | AT59: 9 | AU59: 10 | AV59: 11 | AW59: 12 | AX59: 13 | AY59: 14 | AZ59: 15 | HZ59: 0 | IA59: 0 | IB59: 0 | ID59: 0 | IE59: 0 | IF59: 0 | IH59: 0 | II59: 0 | IJ59: 0 | IL59: 0 | IM59: 0 | IN59: 0 | IP59: 0 | IQ59: 0 | IR59: 0 | IT59: 0 | IU59: 0 | IV59: 0 | IX59: 0 | IY59: 0 | IZ59: 0 | JB59: 0 | JC59: 0 | JD59: 0 | JF59: 0 | JG59: 0 | JH59: 0 | JJ59: 0 | JK59: 0 | JM59: 0 | JN59: 0 | JO59: 0
Y60: 14 | AF60: =IFERROR(IF($Y60<=$AD$85,IF(COLUMN()<26+$AD$86,"",OFFSET(AF59,0,-$AD$86,1,1)),""),"") ->  | AM60: 1 | AN60: 2 | AO60: 3 | AP60: 4 | AQ60: 5 | AR60: 6 | AS60: 7 | AT60: 8 | AU60: 9 | AV60: 10 | AW60: 11 | AX60: 12 | AY60: 13 | AZ60: 14 | BA60: 15 | HZ60: 0 | IA60: 0 | IB60: 0 | ID60: 0 | IE60: 0 | IF60: 0 | IH60: 0 | II60: 0 | IJ60: 0 | IL60: 0 | IM60: 0 | IN60: 0 | IP60: 0 | IQ60: 0 | IR60: 0 | IT60: 0 | IU60: 0 | IV60: 0 | IX60: 0 | IY60: 0 | IZ60: 0 | JB60: 0 | JC60: 0 | JD60: 0 | JF60: 0 | JG60: 0 | JH60: 0 | JJ60: 0 | JK60: 0 | JM60: 0 | JN60: 0 | JO60: 0
Y61: 15 | AN61: 1 | AO61: 2 | AP61: 3 | AQ61: 4 | AR61: 5 | AS61: 6 | AT61: 7 | AU61: 8 | AV61: 9 | AW61: 10 | AX61: 11 | AY61: 12 | AZ61: 13 | BA61: 14 | BB61: 15 | HZ61: 0 | IA61: 0 | IB61: 0 | ID61: 0 | IE61: 0 | IF61: 0 | IH61: 0 | II61: 0 | IJ61: 0 | IL61: 0 | IM61: 0 | IN61: 0 | IP61: 0 | IQ61: 0 | IR61: 0 | IT61: 0 | IU61: 0 | IV61: 0 | IX61: 0 | IY61: 0 | IZ61: 0 | JB61: 0 | JC61: 0 | JD61: 0 | JF61: 0 | JG61: 0 | JH61: 0 | JJ61: 0 | JK61: 0 | JM61: 0 | JN61: 0 | JO61: 0
Y62: 16 | AO62: 1 | AP62: 2 | AQ62: 3 | AR62: 4 | AS62: 5 | AT62: 6 | AU62: 7 | AV62: 8 | AW62: 9 | AX62: 10 | AY62: 11 | AZ62: 12 | BA62: 13 | BB62: 14 | BC62: 15 | HZ62: 0 | IA62: 0 | IB62: 0 | ID62: 0 | IE62: 0 | IF62: 0 | IH62: 0 | II62: 0 | IJ62: 0 | IL62: 0 | IM62: 0 | IN62: 0 | IP62: 0 | IQ62: 0 | IR62: 0 | IT62: 0 | IU62: 0 | IV62: 0 | IX62: 0 | IY62: 0 | IZ62: 0 | JB62: 0 | JC62: 0 | JD62: 0 | JF62: 0 | JG62: 0 | JH62: 0 | JJ62: 0 | JK62: 0 | JM62: 0 | JN62: 0 | JO62: 0
Y63: 17 | AP63: 1 | AQ63: 2 | AR63: 3 | AS63: 4 | AT63: 5 | AU63: 6 | AV63: 7 | AW63: 8 | AX63: 9 | AY63: 10 | AZ63: 11 | BA63: 12 | BB63: 13 | BC63: 14 | BD63: 15 | HZ63: 0 | IA63: 0 | IB63: 0 | ID63: 0 | IE63: 0 | IF63: 0 | IH63: 0 | II63: 0 | IJ63: 0 | IL63: 0 | IM63: 0 | IN63: 0 | IP63: 0 | IQ63: 0 | IR63: 0 | IT63: 0 | IU63: 0 | IV63: 0 | IX63: 0 | IY63: 0 | IZ63: 0 | JB63: 0 | JC63: 0 | JD63: 0 | JF63: 0 | JG63: 0 | JH63: 0 | JJ63: 0 | JK63: 0 | JM63: 0 | JN63: 0 | JO63: 0
Y64: 18 | AI64: =IFERROR(IF($Y64<=$AD$85,IF(COLUMN()<26+$AD$86,"",OFFSET(AI63,0,-$AD$86,1,1)),""),"") ->  | AQ64: 1 | AR64: 2 | AS64: 3 | AT64: 4 | AU64: 5 | AV64: 6 | AW64: 7 | AX64: 8 | AY64: 9 | AZ64: 10 | BA64: 11 | BB64: 12 | BC64: 13 | BD64: 14 | BE64: 15 | EN64: =IFERROR(IF($Y64<=$AD$85,IF(COLUMN()<26+$AD$86,"",OFFSET(EN63,0,-$AD$86,1,1)),""),"") ->  | GZ64: =IFERROR(IF($Y64<=$AD$85,IF(COLUMN()<26+$AD$86,"",OFFSET(GZ63,0,-$AD$86,1,1)),""),"") ->  | HZ64: 0 | IA64: 0 | IB64: 0 | ID64: 0 | IE64: 0 | IF64: 0 | IH64: 0 | II64: 0 | IJ64: 0 | IL64: 0 | IM64: 0 | IN64: 0 | IP64: 0 | IQ64: 0 | IR64: 0 | IT64: 0 | IU64: 0 | IV64: 0 | IX64: 0 | IY64: 0 | IZ64: 0 | JB64: 0 | JC64: 0 | JD64: 0 | JF64: 0 | JG64: 0 | JH64: 0 | JJ64: 0 | JK64: 0 | JM64: 0 | JN64: 0 | JO64: 0
Y65: 19 | Z65: =IFERROR(IF($Y65<=$AD$85,IF(COLUMN()<26+$AD$86,"",OFFSET(Z64,0,-$AD$86,1,1)),""),"") ->  | AR65: 1 | AS65: 2 | AT65: 3 | AU65: 4 | AV65: 5 | AW65: 6 | AX65: 7 | AY65: 8 | AZ65: 9 | BA65: 10 | BB65: 11 | BC65: 12 | BD65: 13 | BE65: 14 | BF65: 15 | DQ65: =IFERROR(IF($Y65<=$AD$85,IF(COLUMN()<26+$AD$86,"",OFFSET(DQ64,0,-$AD$86,1,1)),""),"") ->  | GC65: =IFERROR(IF($Y65<=$AD$85,IF(COLUMN()<26+$AD$86,"",OFFSET(GC64,0,-$AD$86,1,1)),""),"") ->  | HZ65: 0 | IA65: 0 | IB65: 0 | ID65: 0 | IE65: 0 | IF65: 0 | IH65: 0 | II65: 0 | IJ65: 0 | IL65: 0 | IM65: 0 | IN65: 0 | IP65: 0 | IQ65: 0 | IR65: 0 | IT65: 0 | IU65: 0 | IV65: 0 | IX65: 0 | IY65: 0 | IZ65: 0 | JB65: 0 | JC65: 0 | JD65: 0 | JF65: 0 | JG65: 0 | JH65: 0 | JJ65: 0 | JK65: 0 | JM65: 0 | JN65: 0 | JO65: 0
Y66: 20 | AS66: 1 | AT66: 2 | AU66: 3 | AV66: 4 | AW66: 5 | AX66: 6 | AY66: 7 | AZ66: 8 | BA66: 9 | BB66: 10 | BC66: 11 | BD66: 12 | BE66: 13 | BF66: 14 | BG66: 15 | HZ66: 0 | IA66: 0 | IB66: 0 | ID66: 0 | IE66: 0 | IF66: 0 | IH66: 0 | II66: 0 | IJ66: 0 | IL66: 0 | IM66: 0 | IN66: 0 | IP66: 0 | IQ66: 0 | IR66: 0 | IT66: 0 | IU66: 0 | IV66: 0 | IX66: 0 | IY66: 0 | IZ66: 0 | JB66: 0 | JC66: 0 | JD66: 0 | JF66: 0 | JG66: 0 | JH66: 0 | JJ66: 0 | JK66: 0 | JM66: 0 | JN66: 0 | JO66: 0
Y67: 21 | AT67: 1 | AU67: 2 | AV67: 3 | AW67: 4 | AX67: 5 | AY67: 6 | AZ67: 7 | BA67: 8 | BB67: 9 | BC67: 10 | BD67: 11 | BE67: 12 | BF67: 13 | BG67: 14 | BH67: 15 | CK67: =IFERROR(IF($Y67<=$AD$85,IF(COLUMN()<26+$AD$86,"",OFFSET(CK66,0,-$AD$86,1,1)),""),"") ->  | FD67: =IFERROR(IF($Y67<=$AD$85,IF(COLUMN()<26+$AD$86,"",OFFSET(FD66,0,-$AD$86,1,1)),""),"") ->  | HP67: =IFERROR(IF($Y67<=$AD$85,IF(COLUMN()<26+$AD$86,"",OFFSET(HP66,0,-$AD$86,1,1)),""),"") ->  | HZ67: 0 | IA67: 0 | IB67: 0 | ID67: 0 | IE67: 0 | IF67: 0 | IH67: 0 | II67: 0 | IJ67: 0 | IL67: 0 | IM67: 0 | IN67: 0 | IP67: 0 | IQ67: 0 | IR67: 0 | IT67: 0 | IU67: 0 | IV67: 0 | IX67: 0 | IY67: 0 | IZ67: 0 | JB67: 0 | JC67: 0 | JD67: 0 | JF67: 0 | JG67: 0 | JH67: 0 | JJ67: 0 | JK67: 0 | JM67: 0 | JN67: 0 | JO67: 0
Y68: 22 | AU68: 1 | AV68: 2 | AW68: 3 | AX68: 4 | AY68: 5 | AZ68: 6 | BA68: 7 | BB68: 8 | BC68: 9 | BD68: 10 | BE68: 11 | BF68: 12 | BG68: 13 | BH68: 14 | BI68: 15 | BV68: =IFERROR(IF($Y68<=$AD$85,IF(COLUMN()<26+$AD$86,"",OFFSET(BV67,0,-$AD$86,1,1)),""),"") ->  | HZ68: 0 | IA68: 0 | IB68: 0 | ID68: 0 | IE68: 0 | IF68: 0 | IH68: 0 | II68: 0 | IJ68: 0 | IL68: 0 | IM68: 0 | IN68: 0 | IP68: 0 | IQ68: 0 | IR68: 0 | IT68: 0 | IU68: 0 | IV68: 0 | IX68: 0 | IY68: 0 | IZ68: 0 | JB68: =IFERROR(IF($Y68<=$AD$85,IF(COLUMN()<26+$AD$86,"",OFFSET(JB67,0,-$AD$86,1,1)),""),"") -> 0 | JC68: 0 | JD68: 0 | JF68: =IFERROR(IF($Y68<=$AD$85,IF(COLUMN()<26+$AD$86,"",OFFSET(JF67,0,-$AD$86,1,1)),""),"") -> 0 | JG68: 0 | JH68: 0 | JJ68: =IFERROR(IF($Y68<=$AD$85,IF(COLUMN()<26+$AD$86,"",OFFSET(JJ67,0,-$AD$86,1,1)),""),"") -> 0 | JK68: 0 | JM68: =IFERROR(IF($Y68<=$AD$85,IF(COLUMN()<26+$AD$86,"",OFFSET(JM67,0,-$AD$86,1,1)),""),"") -> 0 | JN68: 0 | JO68: 0
Y69: 23 | AP69: =IFERROR(IF($Y69<=$AD$85,IF(COLUMN()<26+$AD$86,"",OFFSET(AP68,0,-$AD$86,1,1)),""),"") ->  | AV69: 1 | AW69: 2 | AX69: 3 | AY69: 4 | AZ69: 5 | BA69: 6 | BB69: 7 | BC69: 8 | BD69: 9 | BE69: 10 | BF69: 11 | BG69: 12 | BH69: 13 | BI69: 14 | BJ69: 15 | HZ69: 0 | IA69: 0 | IB69: 0 | ID69: =IFERROR(IF($Y69<=$AD$85,IF(COLUMN()<26+$AD$86,"",OFFSET(ID68,0,-$AD$86,1,1)),""),"") -> 0 | IE69: 0 | IF69: 0 | IH69: =IFERROR(IF($Y69<=$AD$85,IF(COLUMN()<26+$AD$86,"",OFFSET(IH68,0,-$AD$86,1,1)),""),"") -> 0 | II69: 0 | IJ69: 0 | IL69: =IFERROR(IF($Y69<=$AD$85,IF(COLUMN()<26+$AD$86,"",OFFSET(IL68,0,-$AD$86,1,1)),""),"") -> 0 | IM69: 0 | IN69: 0 | IP69: =IFERROR(IF($Y69<=$AD$85,IF(COLUMN()<26+$AD$86,"",OFFSET(IP68,0,-$AD$86,1,1)),""),"") -> 0 | IQ69: 0 | IR69: 0 | IT69: =IFERROR(IF($Y69<=$AD$85,IF(COLUMN()<26+$AD$86,"",OFFSET(IT68,0,-$AD$86,1,1)),""),"") -> 0 | IU69: 0 | IV69: 0 | IX69: =IFERROR(IF($Y69<=$AD$85,IF(COLUMN()<26+$AD$86,"",OFFSET(IX68,0,-$AD$86,1,1)),""),"") -> 0 | IY69: 0 | IZ69: 0 | JB69: 0 | JC69: 0 | JD69: 0 | JF69: 0 | JG69: 0 | JH69: 0 | JJ69: 0 | JK69: 0 | JM69: 0 | JN69: 0 | JO69: 0
Y70: 24 | AW70: 1 | AX70: 2 | AY70: 3 | AZ70: 4 | BA70: 5 | BB70: 6 | BC70: 7 | BD70: 8 | BE70: 9 | BF70: 10 | BG70: 11 | BH70: 12 | BI70: 13 | BJ70: 14 | BK70: 15 | HZ70: 0 | IA70: 0 | IB70: 0 | ID70: 0 | IE70: 0 | IF70: 0 | IH70: 0 | II70: 0 | IJ70: 0 | IL70: 0 | IM70: 0 | IN70: 0 | IP70: 0 | IQ70: 0 | IR70: 0 | IT70: 0 | IU70: 0 | IV70: 0 | IX70: 0 | IY70: 0 | IZ70: 0 | JB70: 0 | JC70: 0 | JD70: 0 | JF70: 0 | JG70: 0 | JH70: 0 | JJ70: 0 | JK70: 0 | JM70: 0 | JN70: 0 | JO70: 0
Y71: 25 | AX71: 1 | AY71: 2 | AZ71: 3 | BA71: 4 | BB71: 5 | BC71: 6 | BD71: 7 | BE71: 8 | BF71: 9 | BG71: 10 | BH71: 11 | BI71: 12 | BJ71: 13 | BK71: 14 | BL71: 15 | HZ71: 0 | IA71: 0 | IB71: 0 | ID71: 0 | IE71: 0 | IF71: 0 | IH71: 0 | II71: 0 | IJ71: 0 | IL71: 0 | IM71: 0 | IN71: 0 | IP71: 0 | IQ71: 0 | IR71: 0 | IT71: 0 | IU71: 0 | IV71: 0 | IX71: 0 | IY71: 0 | IZ71: 0 | JB71: 0 | JC71: 0 | JD71: 0 | JF71: 0 | JG71: 0 | JH71: 0 | JJ71: 0 | JK71: 0 | JM71: 0 | JN71: 0 | JO71: 0
Y72: 26 | AY72: 1 | AZ72: 2 | BA72: 3 | BB72: 4 | BC72: 5 | BD72: 6 | BE72: 7 | BF72: 8 | BG72: 9 | BH72: 10 | BI72: 11 | BJ72: 12 | BK72: 13 | BL72: 14 | BM72: 15 | HZ72: 0 | IA72: 0 | IB72: 0 | ID72: 0 | IE72: 0 | IF72: 0 | IH72: 0 | II72: 0 | IJ72: 0 | IL72: 0 | IM72: 0 | IN72: 0 | IP72: 0 | IQ72: 0 | IR72: 0 | IT72: 0 | IU72: 0 | IV72: 0 | IX72: 0 | IY72: 0 | IZ72: 0 | JB72: 0 | JC72: 0 | JD72: 0 | JF72: 0 | JG72: 0 | JH72: 0 | JJ72: 0 | JK72: 0 | JM72: 0 | JN72: 0 | JO72: 0
Y73: 27 | AZ73: 1 | BA73: 2 | BB73: 3 | BC73: 4 | BD73: 5 | BE73: 6 | BF73: 7 | BG73: 8 | BH73: 9 | BI73: 10 | BJ73: 11 | BK73: 12 | BL73: 13 | BM73: 14 | BN73: 15 | HZ73: 0 | IA73: 0 | IB73: 0 | ID73: 0 | IE73: 0 | IF73: 0 | IH73: 0 | II73: 0 | IJ73: 0 | IL73: 0 | IM73: 0 | IN73: 0 | IP73: 0 | IQ73: 0 | IR73: 0 | IT73: 0 | IU73: 0 | IV73: 0 | IX73: 0 | IY73: 0 | IZ73: 0 | JB73: 0 | JC73: 0 | JD73: 0 | JF73: 0 | JG73: 0 | JH73: 0 | JJ73: 0 | JK73: 0 | JM73: 0 | JN73: 0 | JO73: 0
Y74: 28 | BA74: 1 | BB74: 2 | BC74: 3 | BD74: 4 | BE74: 5 | BF74: 6 | BG74: 7 | BH74: 8 | BI74: 9 | BJ74: 10 | BK74: 11 | BL74: 12 | BM74: 13 | BN74: 14 | BO74: 15 | DA74: =IFERROR(IF($Y74<=$AD$85,IF(COLUMN()<26+$AD$86,"",OFFSET(DA73,0,-$AD$86,1,1)),""),"") ->  | FT74: =IFERROR(IF($Y74<=$AD$85,IF(COLUMN()<26+$AD$86,"",OFFSET(FT73,0,-$AD$86,1,1)),""),"") ->  | HZ74: 0 | IA74: 0 | IB74: 0 | ID74: 0 | IE74: 0 | IF74: 0 | IH74: 0 | II74: 0 | IJ74: 0 | IL74: 0 | IM74: 0 | IN74: 0 | IP74: 0 | IQ74: 0 | IR74: 0 | IT74: 0 | IU74: 0 | IV74: 0 | IX74: 0 | IY74: 0 | IZ74: 0 | JB74: 0 | JC74: 0 | JD74: 0 | JF74: 0 | JG74: 0 | JH74: 0 | JJ74: 0 | JK74: 0 | JM74: 0 | JN74: 0 | JO74: 0
Y75: 29 | AF75: =IFERROR(IF($Y75<=$AD$85,IF(COLUMN()<26+$AD$86,"",OFFSET(AF74,0,-$AD$86,1,1)),""),"") ->  | BB75: 1 | BC75: 2 | BD75: 3 | BE75: 4 | BF75: 5 | BG75: 6 | BH75: 7 | BI75: 8 | BJ75: 9 | BK75: 10 | BL75: 11 | BM75: 12 | BN75: 13 | BO75: 14 | BP75: 15 | HZ75: 0 | IA75: 0 | IB75: 0 | ID75: 0 | IE75: 0 | IF75: 0 | IH75: 0 | II75: 0 | IJ75: 0 | IL75: 0 | IM75: 0 | IN75: 0 | IP75: 0 | IQ75: 0 | IR75: 0 | IT75: 0 | IU75: 0 | IV75: 0 | IX75: 0 | IY75: 0 | IZ75: 0 | JB75: 0 | JC75: 0 | JD75: 0 | JF75: 0 | JG75: 0 | JH75: 0 | JJ75: 0 | JK75: 0 | JM75: 0 | JN75: 0 | JO75: 0
Y76: 30 | BC76: 1 | BD76: 2 | BE76: 3 | BF76: 4 | BG76: 5 | BH76: 6 | BI76: 7 | BJ76: 8 | BK76: 9 | BL76: 10 | BM76: 11 | BN76: 12 | BO76: 13 | BP76: 14 | BQ76: 15 | BU76: =IFERROR(IF($Y76<=$AD$85,IF(COLUMN()<26+$AD$86,"",OFFSET(BU75,0,-$AD$86,1,1)),""),"") ->  | DS76: =IFERROR(IF($Y76<=$AD$85,IF(COLUMN()<26+$AD$86,"",OFFSET(DS75,0,-$AD$86,1,1)),""),"") ->  | GE76: =IFERROR(IF($Y76<=$AD$85,IF(COLUMN()<26+$AD$86,"",OFFSET(GE75,0,-$AD$86,1,1)),""),"") ->  | HZ76: 0 | IA76: 0 | IB76: 0 | ID76: 0 | IE76: 0 | IF76: 0 | IH76: 0 | II76: 0 | IJ76: 0 | IL76: 0 | IM76: 0 | IN76: 0 | IP76: 0 | IQ76: 0 | IR76: 0 | IT76: 0 | IU76: 0 | IV76: 0 | IX76: 0 | IY76: 0 | IZ76: 0 | JB76: 0 | JC76: 0 | JD76: 0 | JF76: 0 | JG76: 0 | JH76: 0 | JJ76: 0 | JK76: 0 | JM76: 0 | JN76: 0 | JO76: 0
Y77: 31 | AP77: =IFERROR(IF($Y77<=$AD$85,IF(COLUMN()<26+$AD$86,"",OFFSET(AP76,0,-$AD$86,1,1)),""),"") ->  | BD77: 1 | BE77: 2 | BF77: 3 | BG77: 4 | BH77: 5 | BI77: 6 | BJ77: 7 | BK77: 8 | BL77: 9 | BM77: 10 | BN77: 11 | BO77: 12 | BP77: 13 | BQ77: 14 | BR77: 15 | DQ77: =IFERROR(IF($Y77<=$AD$85,IF(COLUMN()<26+$AD$86,"",OFFSET(DQ76,0,-$AD$86,1,1)),""),"") ->  | HZ77: 0 | IA77: 0 | IB77: 0 | ID77: 0 | IE77: 0 | IF77: 0 | IH77: 0 | II77: 0 | IJ77: 0 | IL77: 0 | IM77: 0 | IN77: 0 | IP77: 0 | IQ77: 0 | IR77: 0 | IT77: 0 | IU77: 0 | IV77: 0 | IX77: 0 | IY77: 0 | IZ77: 0 | JB77: 0 | JC77: 0 | JD77: 0 | JF77: 0 | JG77: 0 | JH77: 0 | JJ77: 0 | JK77: 0 | JM77: 0 | JN77: 0 | JO77: 0
Y78: 32 | BE78: 1 | BF78: 2 | BG78: 3 | BH78: 4 | BI78: 5 | BJ78: 6 | BK78: 7 | BL78: 8 | BM78: 9 | BN78: 10 | BO78: 11 | BP78: 12 | BQ78: 13 | BR78: 14 | BS78: 15 | HZ78: 0 | IA78: 0 | IB78: 0 | ID78: 0 | IE78: 0 | IF78: 0 | IH78: 0 | II78: 0 | IJ78: 0 | IL78: 0 | IM78: 0 | IN78: 0 | IP78: 0 | IQ78: 0 | IR78: 0 | IT78: 0 | IU78: 0 | IV78: 0 | IX78: 0 | IY78: 0 | IZ78: 0 | JB78: 0 | JC78: 0 | JD78: 0 | JF78: 0 | JG78: 0 | JH78: 0 | JJ78: 0 | JK78: 0 | JM78: 0 | JN78: 0 | JO78: 0
Y79: 33 | BF79: 1 | BG79: 2 | BH79: 3 | BI79: 4 | BJ79: 5 | BK79: 6 | BL79: 7 | BM79: 8 | BN79: 9 | BO79: 10 | BP79: 11 | BQ79: 12 | BR79: 13 | BS79: 14 | BT79: 15 | HZ79: 0 | IA79: 0 | IB79: 0 | ID79: 0 | IE79: 0 | IF79: 0 | IH79: 0 | II79: 0 | IJ79: 0 | IL79: 0 | IM79: 0 | IN79: 0 | IP79: 0 | IQ79: 0 | IR79: 0 | IT79: 0 | IU79: 0 | IV79: 0 | IX79: 0 | IY79: 0 | IZ79: 0 | JB79: 0 | JC79: 0 | JD79: 0 | JF79: 0 | JG79: 0 | JH79: 0 | JJ79: 0 | JK79: 0 | JM79: 0 | JN79: 0 | JO79: 0
Y80: 34 | BG80: 1 | BH80: 2 | BI80: 3 | BJ80: 4 | BK80: 5 | BL80: 6 | BM80: 7 | BN80: 8 | BO80: 9 | BP80: 10 | BQ80: 11 | BR80: 12 | BS80: 13 | BT80: 14 | BU80: 15 | EN80: =IFERROR(IF($Y80<=$AD$85,IF(COLUMN()<26+$AD$86,"",OFFSET(EN79,0,-$AD$86,1,1)),""),"") ->  | GZ80: =IFERROR(IF($Y80<=$AD$85,IF(COLUMN()<26+$AD$86,"",OFFSET(GZ79,0,-$AD$86,1,1)),""),"") ->  | HZ80: 0 | IA80: 0 | IB80: 0 | ID80: 0 | IE80: 0 | IF80: 0 | IH80: 0 | II80: 0 | IJ80: 0 | IL80: 0 | IM80: 0 | IN80: 0 | IP80: 0 | IQ80: 0 | IR80: 0 | IT80: 0 | IU80: 0 | IV80: 0 | IX80: 0 | IY80: 0 | IZ80: 0 | JB80: 0 | JC80: 0 | JD80: 0 | JF80: 0 | JG80: 0 | JH80: 0 | JJ80: 0 | JK80: 0 | JM80: 0 | JN80: 0 | JO80: 0
Y81: 35 | Z81: =IFERROR(IF($Y81<=$AD$85,IF(COLUMN()<26+$AD$86,"",OFFSET(Z80,0,-$AD$86,1,1)),""),"") ->  | BH81: 1 | BI81: 2 | BJ81: 3 | BK81: 4 | BL81: 5 | BM81: 6 | BN81: 7 | BO81: 8 | BP81: 9 | BQ81: 10 | BR81: 11 | BS81: 12 | BT81: 13 | BU81: 14 | BV81: 15 | HZ81: 0 | IA81: 0 | IB81: 0 | ID81: 0 | IE81: 0 | IF81: 0 | IH81: 0 | II81: 0 | IJ81: 0 | IL81: 0 | IM81: 0 | IN81: 0 | IP81: 0 | IQ81: 0 | IR81: 0 | IT81: 0 | IU81: 0 | IV81: 0 | IX81: 0 | IY81: 0 | IZ81: 0 | JB81: 0 | JC81: 0 | JD81: 0 | JF81: 0 | JG81: 0 | JH81: 0 | JJ81: 0 | JK81: 0 | JM81: 0 | JN81: 0 | JO81: 0
Y82: 36 | BI82: 1 | BJ82: 2 | BK82: 3 | BL82: 4 | BM82: 5 | BN82: 6 | BO82: 7 | BP82: 8 | BQ82: 9 | BR82: 10 | BS82: 11 | BT82: 12 | BU82: 13 | BV82: 14 | BW82: 15 | CZ82: =IFERROR(IF($Y82<=$AD$85,IF(COLUMN()<26+$AD$86,"",OFFSET(CZ81,0,-$AD$86,1,1)),""),"") ->  | HZ82: 0 | IA82: 0 | IB82: 0 | ID82: 0 | IE82: 0 | IF82: 0 | IH82: 0 | II82: 0 | IJ82: 0 | IL82: 0 | IM82: 0 | IN82: 0 | IP82: 0 | IQ82: 0 | IR82: 0 | IT82: 0 | IU82: 0 | IV82: 0 | IX82: 0 | IY82: 0 | IZ82: 0 | JB82: 0 | JC82: 0 | JD82: 0 | JF82: 0 | JG82: 0 | JH82: 0 | JJ82: 0 | JK82: 0 | JM82: 0 | JN82: 0 | JO82: 0
Y83: 37 | BJ83: 1 | BK83: 2 | BL83: 3 | BM83: 4 | BN83: 5 | BO83: 6 | BP83: 7 | BQ83: 8 | BR83: 9 | BS83: 10 | BT83: 11 | BU83: 12 | BV83: 13 | BW83: 14 | BX83: 15 | CL83: =IFERROR(IF($Y83<=$AD$85,IF(COLUMN()<26+$AD$86,"",OFFSET(CL82,0,-$AD$86,1,1)),""),"") ->  | FD83: =IFERROR(IF($Y83<=$AD$85,IF(COLUMN()<26+$AD$86,"",OFFSET(FD82,0,-$AD$86,1,1)),""),"") ->  | HP83: =IFERROR(IF($Y83<=$AD$85,IF(COLUMN()<26+$AD$86,"",OFFSET(HP82,0,-$AD$86,1,1)),""),"") ->  | HZ83: 0 | IA83: 0 | IB83: 0 | ID83: 0 | IE83: 0 | IF83: 0 | IH83: 0 | II83: 0 | IJ83: 0 | IL83: 0 | IM83: 0 | IN83: 0 | IP83: 0 | IQ83: 0 | IR83: 0 | IT83: 0 | IU83: 0 | IV83: 0 | IX83: 0 | IY83: 0 | IZ83: 0 | JB83: 0 | JC83: 0 | JD83: 0 | JF83: 0 | JG83: 0 | JH83: 0 | JJ83: 0 | JK83: 0 | JM83: 0 | JN83: 0 | JO83: 0
Y84: 38 | Z84: Wagons | AD84: =INDEX($I$5:$W$40,MATCH("x",$W$5:$W$40,0),1) -> 15
Y85: 39 | Z85: Zones | AD85: =INDEX($I$5:$W$40,MATCH("x",$W$5:$W$40,0),2) -> 37
Y86: 40 | Z86: Takt Time | AD86: =INDEX($I$5:$W$40,MATCH("x",$W$5:$W$40,0),6) -> 1

Sheet Buyout & Procurement Log
AK2: Today: | AL2: =TODAY() -> 2025-12-08
AK3: Week of the year: | AL3: =WEEKNUM(AL2) -> 50
B5: Spec Section | C5: Takt Zone | D5: Scope of Work | E5: Selected Subcontractor | F5: RFP To Subcontractor | G5: RFI & PREQ. Prep WKS | H5: RFI & PREQ. Due | I5: RFI Due To Sub Visit Start WKS | J5: Start Trade Partner Site Visit | K5: Trade Visit Start To Bids due WKS | L5: Bids Due | M5: Bid Review WKS | N5: Client Presentation & Sub Selection | O5: Approvals & NTP WKS | P5: Start Contracting with Sub | Q5: Contracting Process Time (WKS) | S5: Drop Dead Subcontract Execution | T5: Subcontract Executed | U5: Submittal Prep WKS | V5: Receive Submittal | W5: Actual Approved Submittal | X5: Submittal Review WKS | Y5: Sent To Design Team | Z5: Design Approved | AA5: Design Team Approval Wks. | AB5: Release Date (Order Materials By) | AC5: Confirmed Release Date | AD5: Submittal Over/Under Days | AE5: Lead Time WKS | AF5: Ship Date | AG5: Delivery Weeks | AH5: Buffer Duration WEEKS | AI5: Actual Date on Site | AJ5: Required On Job (Get Superintendent Input!) | AK5: Material Over/Under DAYS | AL5: Notes | AM5: Last Date of Contact
B6: Toggle Light Switches | C6: 2 | D6: Electrical | E6: Electrical Services | F6: =IF(H6="","",H6-(7*G6)) -> 2023-07-27 | G6: 1 | H6: =IF(J6="","",J6-(7*I6)) -> 2023-08-03 | I6: 1 | J6: =IF(L6="","",L6-(7*K6)) -> 2023-08-10 | K6: 1 | L6: =IF(N6="","",N6-(7*M6)) -> 2023-08-17 | M6: 1 | N6: =IF(P6="","",P6-(7*O6)) -> 2023-08-24 | O6: 1 | P6: =IF(S6="","",S6-(7*Q6)) -> 2023-08-31 | Q6: 1 | S6: =IF(V6="","",V6-(7*U6)) -> 2023-09-07 | U6: 1 | V6: =IF(Y6="","",Y6-(X6*7)) -> 2023-09-14 | X6: 1 | Y6: =IF(AB6="","",AB6-(AA6*7)) -> 2023-09-21 | AA6: 1 | AB6: =IF(AF6="","",AF6-(7*AE6)) -> 2023-09-28 | AD6: =IF(AND(W6="", T6=""),"",IF(W6="",T6-S6,W6-AB6)) ->  | AE6: 5 | AF6: =IF(AJ6="","",AJ6-(7*AG6)-(7*AH6)) -> 2023-11-02 | AG6: 1 | AH6: 1 | AJ6: 2023-11-16
B7: Duplex Receptacles | C7: 2 | D7: Electrical | E7: Electrical Services | F7: =IF(H7="","",H7-(7*G7)) -> 2024-10-12 | G7: 0 | H7: =IF(J7="","",J7-(7*I7)) -> 2024-10-12 | I7: 0 | J7: =IF(L7="","",L7-(7*K7)) -> 2024-10-12 | K7: 0 | L7: =IF(N7="","",N7-(7*M7)) -> 2024-10-12 | M7: 0 | N7: =IF(P7="","",P7-(7*O7)) -> 2024-10-12 | O7: 0 | P7: =IF(S7="","",S7-(7*Q7)) -> 2024-10-12 | Q7: 0 | S7: =IF(V7="","",V7-(7*U7)) -> 2024-10-12 | U7: 0 | V7: =IF(Y7="","",Y7-(X7*7)) -> 2024-10-12 | X7: 0 | Y7: =IF(AB7="","",AB7-(AA7*7)) -> 2024-10-12 | AA7: 0 | AB7: =IF(AF7="","",AF7-(7*AE7)) -> 2024-10-12 | AD7: =IF(AND(W7="", T7=""),"",IF(W7="",T7-S7,W7-AB7)) ->  | AE7: 3 | AF7: =IF(AJ7="","",AJ7-(7*AG7)-(7*AH7)) -> 2024-11-02 | AG7: 2 | AH7: 0 | AJ7: 2024-11-16
B8: Recessed lighting | C8: 2 | D8: Electrical | E8: Electrical Services | F8: 2024-09-14 | G8: 0 | H8: 2024-09-14 | I8: 0 | J8: 2024-09-14 | K8: 0 | L8: 2024-09-14 | M8: 0 | N8: 2024-09-14 | O8: 0 | P8: 2024-09-14 | Q8: 0 | S8: =IF(V8="","",V8-(7*U8)) -> 2024-09-14 | U8: 0 | V8: 2024-09-14 | X8: 0 | Y8: 2024-09-14 | AA8: 0 | AB8: 2024-09-14 | AE8: 5 | AF8: 2024-10-19 | AG8: 2 | AH8: 2 | AJ8: 2024-11-16
B9: Cabinets | C9: 2 | D9: Casework | E9: Cabintes & More LLC | F9: 2024-08-01 | G9: 0 | H9: 2024-08-01 | I9: 0 | J9: 2024-08-01 | K9: 0 | L9: 2024-08-01 | M9: 0 | N9: 2024-08-01 | O9: 0 | P9: 2024-08-01 | Q9: 0 | S9: =IF(V9="","",V9-(7*U9)) -> 2024-08-01 | U9: 0 | V9: 2024-08-01 | X9: 0 | Y9: 2024-08-01 | AA9: 0 | AB9: 2024-08-01 | AE9: 14 | AF9: 2024-11-07 | AG9: 3 | AH9: 0 | AJ9: 2024-11-28
B10: Drawers | C10: 2 | D10: Casework | E10: Cabintes & More LLC | F10: 2024-10-10 | G10: 0 | H10: 2024-10-10 | I10: 0 | J10: 2024-10-10 | K10: 0 | L10: 2024-10-10 | M10: 0 | N10: 2024-10-10 | O10: 0 | P10: 2024-10-10 | Q10: 0 | S10: =IF(V10="","",V10-(7*U10)) -> 2024-10-10 | T10: 2023-12-30 | U10: 0 | V10: 2024-10-10 | X10: 0 | Y10: 2024-10-10 | AA10: 0 | AB10: 2024-10-10 | AD10: =IF(AND(W10="", T10=""),"",IF(W10="",T10-S10,W10-AB10)) -> -285 | AE10: 4 | AF10: 2024-11-07 | AG10: 2 | AH10: 1 | AJ10: 2024-11-28
B11: Bookshelves | C11: 2 | D11: Casework | E11: Cabintes & More LLC | F11: 2024-10-03 | G11: 0 | H11: 2024-10-03 | I11: 0 | J11: 2024-10-03 | K11: 0 | L11: 2024-10-03 | M11: 0 | N11: 2024-10-03 | O11: 0 | P11: 2024-10-03 | Q11: 0 | S11: 2024-10-03 | U11: 0 | V11: 2024-10-03 | X11: 0 | Y11: 2024-10-03 | AA11: 0 | AB11: 2024-10-03 | AE11: 7 | AF11: 2024-11-21 | AG11: 1 | AH11: 0 | AJ11: 2024-11-28
B12: Windows | C12: 2 | D12: Millwork | E12: Doors & Windows Inc | F12: 2024-08-30 | G12: 0 | H12: 2024-08-30 | I12: 0 | J12: 2024-08-30 | K12: 0 | L12: 2024-08-30 | M12: 0 | N12: 2024-08-30 | O12: 0 | P12: =IF(S12="","",S12-(7*Q12)) -> 2024-08-30 | Q12: 0 | S12: 2024-08-30 | U12: 0 | V12: 2024-08-30 | X12: 0 | Y12: 2024-08-30 | AA12: 0 | AB12: 2024-08-30 | AE12: 8 | AF12: 2024-10-25 | AG12: 5 | AH12: 1 | AJ12: 2024-12-06
B13: Doors | C13: 2 | D13: Millwork | E13: Doors & Windows Inc | F13: 2024-10-11 | G13: 0 | H13: 2024-10-11 | I13: 0 | J13: 2024-10-11 | K13: 0 | L13: 2024-10-11 | M13: 0 | N13: 2024-10-11 | O13: 0 | P13: 2024-10-11 | Q13: 0 | S13: 2024-10-11 | U13: 0 | V13: 2024-10-11 | X13: 0 | Y13: 2024-10-11 | AA13: 0 | AB13: 2024-10-11 | AE13: 4 | AF13: 2024-11-08 | AG13: 3 | AH13: 1 | AJ13: 2024-12-06
B14: Light Fixtures | C14: 2 | D14: Electrical | E14: Electrical Services | F14: 2024-06-22 | G14: 0 | H14: 2024-06-22 | I14: 0 | J14: 2024-06-22 | K14: 0 | L14: 2024-06-22 | M14: 0 | N14: 2024-06-22 | O14: 0 | P14: 2024-06-22 | Q14: 0 | S14: 2024-06-22 | U14: 0 | V14: 2024-06-22 | X14: 0 | Y14: 2024-06-22 | AA14: 0 | AB14: 2024-06-22 | AE14: 20 | AF14: 2024-11-09 | AG14: 1 | AH14: 0 | AJ14: 2024-11-16
B15: Electric Sockets | C15: 2 | D15: Electrical | E15: Electrical Services | F15: 2024-10-05 | G15: 0 | H15: 2024-10-05 | I15: 0 | J15: 2024-10-05 | K15: 0 | L15: 2024-10-05 | M15: 0 | N15: 2024-10-05 | O15: 0 | P15: 2024-10-05 | Q15: 0 | S15: 2024-10-05 | U15: 0 | V15: 2024-10-05 | X15: 0 | Y15: 2024-10-05 | AA15: 0 | AB15: 2024-10-05 | AE15: 3 | AF15: 2024-10-26 | AG15: 2 | AH15: 1 | AJ15: 2024-11-16
B16: Security Alarm System | C16: 2 | D16: Electrical | E16: Electrical Services | F16: 2024-10-19 | G16: 0 | H16: 2024-10-19 | I16: 0 | J16: =IF(L16="","",L16-(7*K16)) -> 2024-10-19 | K16: 0 | L16: 2024-10-19 | M16: 0 | N16: 2024-10-19 | O16: 0 | P16: 2024-10-19 | Q16: 0 | S16: 2024-10-19 | U16: 0 | V16: 2024-10-19 | X16: 0 | Y16: 2024-10-19 | AA16: 0 | AB16: 2024-10-19 | AE16: 2 | AF16: 2024-11-02 | AG16: 2 | AH16: 0 | AJ16: 2024-11-16
B17: Fire Alarm | C17: 2 | D17: Electrical | E17: Electrical Services | F17: 2024-10-05 | G17: 0 | H17: 2024-10-05 | I17: 0 | J17: 2024-10-05 | K17: 0 | L17: 2024-10-05 | M17: 0 | N17: 2024-10-05 | O17: 0 | P17: 2024-10-05 | Q17: 0 | S17: 2024-10-05 | U17: 0 | V17: 2024-10-05 | X17: 0 | Y17: 2024-10-05 | AA17: 0 | AB17: 2024-10-05 | AE17: 2 | AF17: 2024-10-19 | AG17: 2 | AH17: 2 | AJ17: 2024-11-16
B18: Kitchens | C18: 2 | D18: Casework | E18: Kitchens Inc | F18: 2024-08-31 | G18: 0 | H18: 2024-08-31 | I18: 0 | J18: 2024-08-31 | K18: 0 | L18: 2024-08-31 | M18: 0 | N18: 2024-08-31 | O18: 0 | P18: 2024-08-31 | Q18: 0 | S18: 2024-08-31 | T18: 2023-12-30 | U18: 0 | V18: 2024-08-31 | X18: 0 | Y18: 2024-08-31 | AA18: 0 | AB18: 2024-08-31 | AD18: -245 | AE18: 10 | AF18: 2024-11-09 | AG18: 2 | AH18: 1 | AJ18: 2024-11-30
F19: 2025-02-21 | G19: 0 | H19: 2025-02-21 | I19: 0 | J19: 2025-02-21 | K19: 0 | L19: 2025-02-21 | M19: 0 | N19: 2025-02-21 | O19: 0 | P19: 2025-02-21 | Q19: 0 | S19: 2025-02-21 | U19: 29 | V19: 2025-09-12 | X19: 2 | Y19: 2025-09-26 | AA19: 10 | AB19: 2025-12-05 | AE19: 0 | AF19: =IF(AJ19="","",AJ19-(7*AG19)-(7*AH19)) -> 2025-12-05 | AG19: 1 | AH19: 0 | AJ19: 2025-12-12
G20: 0 | I20: 0 | K20: 0 | M20: 0 | O20: 0 | Q20: 0 | U20: 0 | X20: 0 | AA20: 0 | AE20: 0 | AG20: 0 | AH20: 0
G21: 0 | I21: 0 | K21: 0 | M21: 0 | O21: 0 | Q21: 0 | U21: 0 | X21: 0 | AA21: 0 | AE21: 0 | AG21: 0 | AH21: 0
G22: 0 | I22: 0 | K22: 0 | M22: 0 | O22: 0 | Q22: 0 | U22: 0 | X22: 0 | AA22: 0 | AE22: 0 | AG22: 0 | AH22: 0
G23: 0 | I23: 0 | K23: 0 | M23: 0 | O23: 0 | Q23: 0 | U23: 0 | X23: 0 | AA23: 0 | AE23: 0 | AG23: 0 | AH23: 0
G24: 2 | I24: 2 | K24: 2 | M24: 2 | O24: 2 | Q24: 2 | U24: 2 | X24: 2 | AA24: 2 | AE24: 0 | AG24: 0 | AH24: 0
G25: 0 | I25: 0 | K25: 0 | M25: 0 | O25: 0 | Q25: 0 | U25: 0 | X25: 0 | AA25: 0 | AE25: 0 | AG25: 0 | AH25: 0
G26: 0 | I26: 0 | K26: 0 | M26: 0 | O26: 0 | Q26: 0 | U26: 0 | X26: 0 | AA26: 0 | AE26: 0 | AG26: 0 | AH26: 0
G27: 0 | I27: 0 | K27: 0 | M27: 0 | O27: 0 | Q27: 0 | U27: 0 | X27: 0 | AA27: 0 | AE27: 0 | AG27: 0 | AH27: 0
G28: 0 | I28: 0 | K28: 0 | M28: 0 | O28: 0 | Q28: 0 | U28: 0 | X28: 0 | AA28: 0 | AE28: 0 | AG28: 0 | AH28: 0
G29: 0 | I29: 0 | K29: 0 | M29: 0 | O29: 0 | Q29: 0 | U29: 0 | X29: 0 | AA29: 0 | AE29: 0 | AG29: 0 | AH29: 0
G30: 0 | I30: 0 | K30: 0 | M30: 0 | O30: 0 | Q30: 0 | U30: 0 | X30: 0 | AA30: 0 | AE30: 0 | AG30: 0 | AH30: 0
G31: 0 | I31: 0 | K31: 0 | M31: 0 | O31: 0 | Q31: 0 | U31: 0 | X31: 0 | AA31: 0 | AE31: 0 | AG31: 0 | AH31: 0
G32: 0 | I32: 0 | K32: 0 | M32: 0 | O32: 0 | Q32: 0 | U32: 0 | X32: 0 | AA32: 0 | AE32: 0 | AG32: 0 | AH32: 0
G33: 0 | I33: 0 | K33: 0 | M33: 0 | O33: 0 | Q33: 0 | U33: 0 | X33: 0 | AA33: 0 | AE33: 0 | AG33: 0 | AH33: 0
G34: 0 | I34: 0 | K34: 0 | M34: 0 | O34: 0 | Q34: 0 | U34: 0 | X34: 0 | AA34: 0 | AE34: 0 | AG34: 0 | AH34: 0
G35: 0 | I35: 0 | K35: 0 | M35: 0 | O35: 0 | Q35: 0 | U35: 0 | X35: 0 | AA35: 0 | AE35: 0 | AG35: 0 | AH35: 0
G36: 0 | I36: 0 | K36: 0 | M36: 0 | O36: 0 | Q36: 0 | U36: 0 | X36: 0 | AA36: 0 | AE36: 0 | AG36: 0 | AH36: 0
G37: 0 | I37: 0 | K37: 0 | M37: 0 | O37: 0 | Q37: 0 | U37: 0 | X37: 0 | AA37: 0 | AE37: 0 | AG37: 0 | AH37: 0
G38: 0 | I38: 0 | K38: 0 | M38: 0 | O38: 0 | Q38: 0 | U38: 0 | X38: 0 | AA38: 0 | AE38: 0 | AG38: 0 | AH38: 0
G39: 0 | I39: 0 | K39: 0 | M39: 0 | O39: 0 | Q39: 0 | S39: =IF(V39="","",V39-(7*U39)) ->  | U39: 0 | X39: 0 | AA39: 0 | AB39: =IF(AF39="","",AF39-(7*AE39)) ->  | AE39: 0 | AG39: 0 | AH39: 0
G40: 0 | I40: 0 | K40: 0 | M40: 0 | O40: 0 | Q40: 0 | S40: =IF(V40="","",V40-(7*U40)) ->  | U40: 0 | X40: 0 | AA40: 0 | AE40: 0 | AG40: 0 | AH40: 0
G41: 0 | I41: 0 | K41: 0 | M41: 0 | O41: 0 | Q41: 0 | U41: 0 | X41: 0 | AA41: 0 | AE41: 0 | AG41: 0 | AH41: 0
G42: 0 | I42: 0 | K42: 0 | M42: 0 | O42: 0 | Q42: 0 | U42: 0 | X42: 0 | AA42: 0 | AE42: 0 | AG42: 0 | AH42: 0
G43: 0 | I43: 0 | K43: 0 | M43: 0 | O43: 0 | Q43: 0 | U43: 0 | X43: 0 | AA43: 0 | AE43: 0 | AG43: 0 | AH43: 0
G44: 0 | I44: 0 | K44: 0 | M44: 0 | O44: 0 | Q44: 0 | U44: 0 | X44: 0 | AA44: 0 | AE44: 0 | AG44: 0 | AH44: 0
G45: 0 | I45: 0 | K45: 0 | M45: 0 | O45: 0 | Q45: 0 | U45: 0 | X45: 0 | AA45: 0 | AE45: 0 | AG45: 0 | AH45: 0
G46: 0 | I46: 0 | K46: 0 | M46: 0 | O46: 0 | Q46: 0 | U46: 0 | X46: 0 | AA46: 0 | AE46: 0 | AG46: 0 | AH46: 0
G47: 0 | I47: 0 | K47: 0 | M47: 0 | O47: 0 | Q47: 0 | U47: 0 | V47: =IF(Y47="","",Y47-(X47*7)) ->  | X47: 0 | AA47: 0 | AE47: 0 | AG47: 0 | AH47: 0
G48: 0 | I48: 0 | K48: 0 | M48: 0 | O48: 0 | Q48: 0 | U48: 0 | X48: 0 | AA48: 0 | AE48: 0 | AG48: 0 | AH48: 0
G49: 0 | I49: 0 | K49: 0 | M49: 0 | O49: 0 | Q49: 0 | U49: 0 | X49: 0 | AA49: 0 | AE49: 0 | AG49: 0 | AH49: 0
G50: 0 | I50: 0 | K50: 0 | M50: 0 | O50: 0 | Q50: 0 | U50: 0 | X50: 0 | AA50: 0 | AE50: 0 | AG50: 0 | AH50: 0
G51: 0 | I51: 0 | K51: 0 | M51: 0 | O51: 0 | Q51: 0 | U51: 0 | X51: 0 | AA51: 0 | AE51: 0 | AG51: 0 | AH51: 0
G52: 0 | I52: 0 | K52: 0 | M52: 0 | O52: 0 | Q52: 0 | U52: 0 | X52: 0 | AA52: 0 | AE52: 0 | AG52: 0 | AH52: 0
G53: 0 | I53: 0 | K53: 0 | M53: 0 | O53: 0 | Q53: 0 | U53: 0 | X53: 0 | AA53: 0 | AE53: 0 | AG53: 0 | AH53: 0
G54: 0 | I54: 0 | K54: 0 | M54: 0 | O54: 0 | Q54: 0 | U54: 0 | X54: 0 | AA54: 0 | AE54: 0 | AG54: 0 | AH54: 0
G55: 0 | I55: 0 | K55: 0 | M55: 0 | O55: 0 | Q55: 0 | U55: 0 | X55: 0 | AA55: 0 | AE55: 0 | AG55: 0 | AH55: 0
G56: 0 | I56: 0 | K56: 0 | M56: 0 | O56: 0 | Q56: 0 | U56: 0 | X56: 0 | AA56: 0 | AE56: 0 | AG56: 0 | AH56: 0
G57: 0 | I57: 0 | K57: 0 | M57: 0 | O57: 0 | Q57: 0 | U57: 0 | X57: 0 | AA57: 0 | AE57: 0 | AG57: 0 | AH57: 0
G58: 0 | I58: 0 | K58: 0 | M58: 0 | O58: 0 | Q58: 0 | U58: 0 | X58: 0 | AA58: 0 | AE58: 0 | AG58: 0 | AH58: 0
G59: 0 | I59: 0 | K59: 0 | M59: 0 | O59: 0 | Q59: 0 | U59: 0 | X59: 0 | AA59: 0 | AE59: 0 | AG59: 0 | AH59: 0
G60: 0 | I60: 0 | K60: 0 | M60: 0 | O60: 0 | Q60: 0 | U60: 0 | X60: 0 | AA60: 0 | AE60: 0 | AG60: 0 | AH60: 0
G61: 0 | I61: 0 | K61: 0 | M61: 0 | O61: 0 | Q61: 0 | U61: 0 | X61: 0 | AA61: 0 | AE61: 0 | AG61: 0 | AH61: 0
G62: 0 | I62: 0 | K62: 0 | M62: 0 | O62: 0 | Q62: 0 | U62: 0 | X62: 0 | AA62: 0 | AE62: 0 | AG62: 0 | AH62: 0
G63: 0 | I63: 0 | K63: 0 | M63: 0 | O63: 0 | Q63: 0 | U63: 0 | X63: 0 | AA63: 0 | AE63: 0 | AG63: 0 | AH63: 0
G64: 0 | I64: 0 | K64: 0 | M64: 0 | O64: 0 | Q64: 0 | U64: 0 | X64: 0 | AA64: 0 | AE64: 0 | AG64: 0 | AH64: 0
G65: 0 | I65: 0 | K65: 0 | M65: 0 | O65: 0 | Q65: 0 | U65: 0 | X65: 0 | AA65: 0 | AE65: 0 | AG65: 0 | AH65: 0
G66: 0 | I66: 0 | K66: 0 | M66: 0 | O66: 0 | Q66: 0 | U66: 0 | X66: 0 | AA66: 0 | AE66: 0 | AG66: 0 | AH66: 0
G67: 0 | I67: 0 | K67: 0 | M67: 0 | O67: 0 | Q67: 0 | U67: 0 | X67: 0 | AA67: 0 | AE67: 0 | AG67: 0 | AH67: 0
G68: 0 | I68: 0 | K68: 0 | M68: 0 | O68: 0 | Q68: 0 | U68: 0 | X68: 0 | AA68: 0 | AE68: 0 | AG68: 0 | AH68: 0
G69: 0 | I69: 0 | K69: 0 | M69: 0 | O69: 0 | Q69: 0 | U69: 0 | X69: 0 | AA69: 0 | AE69: 0 | AG69: 0 | AH69: 0
G70: 0 | I70: 0 | K70: 0 | M70: 0 | O70: 0 | Q70: 0 | U70: 0 | X70: 0 | AA70: 0 | AE70: 0 | AG70: 0 | AH70: 0
F71: =IF(H71="","",H71-(7*G71)) ->  | G71: 0 | H71: =IF(J71="","",J71-(7*I71)) ->  | I71: 0 | J71: =IF(L71="","",L71-(7*K71)) ->  | K71: 0 | L71: =IF(N71="","",N71-(7*M71)) ->  | M71: 0 | N71: =IF(P71="","",P71-(7*O71)) ->  | O71: 0 | P71: =IF(S71="","",S71-(7*Q71)) ->  | Q71: 0 | U71: 0 | V71: =IF(Y71="","",Y71-(X71*7)) ->  | X71: 0 | Y71: =IF(AB71="","",AB71-(AA71*7)) ->  | AA71: 0 | AD71: =IF(AND(W71="", T71=""),"",IF(W71="",T71-S71,W71-AB71)) ->  | AE71: 0 | AF71: =IF(AJ71="","",AJ71-(7*AG71)-(7*AH71)) ->  | AG71: 0 | AH71: 0
G72: 0 | I72: 0 | K72: 0 | M72: 0 | O72: 0 | Q72: 0 | U72: 0 | X72: 0 | AA72: 0 | AE72: 0 | AG72: 0 | AH72: 0
G73: 0 | I73: 0 | K73: 0 | M73: 0 | O73: 0 | Q73: 0 | U73: 0 | X73: 0 | AA73: 0 | AB73: =IF(AF73="","",AF73-(7*AE73)) ->  | AE73: 0 | AG73: 0 | AH73: 0
G74: 0 | I74: 0 | K74: 0 | M74: 0 | O74: 0 | Q74: 0 | S74: =IF(V74="","",V74-(7*U74)) ->  | U74: 0 | X74: 0 | AA74: 0 | AE74: 0 | AG74: 0 | AH74: 0
G75: 0 | I75: 0 | K75: 0 | M75: 0 | O75: 0 | Q75: 0 | U75: 0 | V75: =IF(Y75="","",Y75-(X75*7)) ->  | X75: 0 | AA75: 0 | AE75: 0 | AG75: 0 | AH75: 0
G76: 0 | I76: 0 | K76: 0 | M76: 0 | O76: 0 | Q76: 0 | U76: 0 | V76: =IF(Y76="","",Y76-(X76*7)) ->  | X76: 0 | AA76: 0 | AE76: 0 | AG76: 0 | AH76: 0
G77: 0 | I77: 0 | K77: 0 | M77: 0 | O77: 0 | Q77: 0 | U77: 0 | X77: 0 | AA77: 0 | AE77: 0 | AG77: 0 | AH77: 0
G78: 0 | I78: 0 | K78: 0 | M78: 0 | O78: 0 | Q78: 0 | U78: 0 | X78: 0 | AA78: 0 | AE78: 0 | AG78: 0 | AH78: 0
G79: 0 | I79: 0 | K79: 0 | M79: 0 | O79: 0 | Q79: 0 | U79: 0 | X79: 0 | AA79: 0 | AE79: 0 | AF79: =IF(AJ79="","",AJ79-(7*AG79)-(7*AH79)) ->  | AG79: 0 | AH79: 0
G80: 0 | I80: 0 | K80: 0 | M80: 0 | O80: 0 | Q80: 0 | U80: 0 | X80: 0 | AA80: 0 | AE80: 0 | AG80: 0 | AH80: 0
G81: 0 | I81: 0 | K81: 0 | M81: 0 | O81: 0 | Q81: 0 | U81: 0 | X81: 0 | AA81: 0 | AE81: 0 | AG81: 0 | AH81: 0
G82: 0 | I82: 0 | K82: 0 | M82: 0 | O82: 0 | Q82: 0 | U82: 0 | X82: 0 | AA82: 0 | AE82: 0 | AG82: 0 | AH82: 0
G83: 0 | I83: 0 | K83: 0 | M83: 0 | O83: 0 | Q83: 0 | U83: 0 | X83: 0 | AA83: 0 | AE83: 0 | AG83: 0 | AH83: 0
G84: 0 | I84: 0 | K84: 0 | M84: 0 | O84: 0 | Q84: 0 | U84: 0 | X84: 0 | AA84: 0 | AE84: 0 | AG84: 0 | AH84: 0
G85: 0 | I85: 0 | K85: 0 | M85: 0 | O85: 0 | Q85: 0 | U85: 0 | X85: 0 | AA85: 0 | AE85: 0 | AG85: 0 | AH85: 0
G86: 0 | I86: 0 | K86: 0 | M86: 0 | O86: 0 | Q86: 0 | U86: 0 | X86: 0 | AA86: 0 | AE86: 0 | AG86: 0 | AH86: 0
G87: 0 | I87: 0 | K87: 0 | M87: 0 | O87: 0 | Q87: 0 | U87: 0 | X87: 0 | AA87: 0 | AE87: 0 | AG87: 0 | AH87: 0
G88: 0 | I88: 0 | K88: 0 | M88: 0 | O88: 0 | Q88: 0 | U88: 0 | X88: 0 | AA88: 0 | AE88: 0 | AG88: 0 | AH88: 0
G89: 0 | I89: 0 | K89: 0 | M89: 0 | O89: 0 | Q89: 0 | U89: 0 | X89: 0 | AA89: 0 | AE89: 0 | AG89: 0 | AH89: 0
G90: 0 | I90: 0 | K90: 0 | M90: 0 | O90: 0 | Q90: 0 | U90: 0 | X90: 0 | AA90: 0 | AE90: 0 | AG90: 0 | AH90: 0
G91: 0 | I91: 0 | K91: 0 | M91: 0 | O91: 0 | Q91: 0 | U91: 0 | X91: 0 | AA91: 0 | AE91: 0 | AG91: 0 | AH91: 0
G92: 0 | I92: 0 | K92: 0 | M92: 0 | O92: 0 | Q92: 0 | U92: 0 | X92: 0 | AA92: 0 | AE92: 0 | AG92: 0 | AH92: 0
G93: 0 | I93: 0 | K93: 0 | M93: 0 | O93: 0 | Q93: 0 | U93: 0 | X93: 0 | AA93: 0 | AE93: 0 | AG93: 0 | AH93: 0
G94: 0 | I94: 0 | K94: 0 | M94: 0 | O94: 0 | Q94: 0 | U94: 0 | X94: 0 | AA94: 0 | AE94: 0 | AG94: 0 | AH94: 0
G95: 0 | I95: 0 | K95: 0 | M95: 0 | O95: 0 | Q95: 0 | U95: 0 | X95: 0 | AA95: 0 | AE95: 0 | AG95: 0 | AH95: 0
G96: 0 | I96: 0 | K96: 0 | M96: 0 | O96: 0 | Q96: 0 | U96: 0 | X96: 0 | AA96: 0 | AE96: 0 | AG96: 0 | AH96: 0
G97: 0 | I97: 0 | K97: 0 | M97: 0 | O97: 0 | Q97: 0 | U97: 0 | X97: 0 | AA97: 0 | AE97: 0 | AG97: 0 | AH97: 0
G98: 0 | I98: 0 | K98: 0 | M98: 0 | O98: 0 | Q98: 0 | U98: 0 | X98: 0 | AA98: 0 | AE98: 0 | AG98: 0 | AH98: 0
G99: 0 | I99: 0 | K99: 0 | M99: 0 | O99: 0 | Q99: 0 | U99: 0 | X99: 0 | AA99: 0 | AE99: 0 | AG99: 0 | AH99: 0
G100: 0 | I100: 0 | K100: 0 | M100: 0 | O100: 0 | Q100: 0 | U100: 0 | X100: 0 | AA100: 0 | AE100: 0 | AG100: 0 | AH100: 0
G101: 0 | I101: 0 | K101: 0 | M101: 0 | O101: 0 | Q101: 0 | U101: 0 | X101: 0 | AA101: 0 | AE101: 0 | AG101: 0 | AH101: 0
G102: 0 | I102: 0 | K102: 0 | M102: 0 | O102: 0 | Q102: 0 | U102: 0 | X102: 0 | AA102: 0 | AE102: 0 | AG102: 0 | AH102: 0
G103: 0 | I103: 0 | K103: 0 | M103: 0 | O103: 0 | Q103: 0 | U103: 0 | X103: 0 | AA103: 0 | AE103: 0 | AG103: 0 | AH103: 0
G104: 0 | I104: 0 | K104: 0 | M104: 0 | O104: 0 | Q104: 0 | U104: 0 | X104: 0 | AA104: 0 | AE104: 0 | AG104: 0 | AH104: 0
G105: 0 | I105: 0 | K105: 0 | M105: 0 | O105: 0 | Q105: 0 | U105: 0 | X105: 0 | AA105: 0 | AE105: 0 | AG105: 0 | AH105: 0
G106: 0 | I106: 0 | K106: 0 | M106: 0 | O106: 0 | Q106: 0 | U106: 0 | X106: 0 | AA106: 0 | AE106: 0 | AG106: 0 | AH106: 0
G107: 0 | I107: 0 | K107: 0 | M107: 0 | O107: 0 | Q107: 0 | U107: 0 | X107: 0 | AA107: 0 | AE107: 0 | AG107: 0 | AH107: 0
G108: 0 | I108: 0 | K108: 0 | M108: 0 | O108: 0 | Q108: 0 | U108: 0 | X108: 0 | AA108: 0 | AE108: 0 | AG108: 0 | AH108: 0
G109: 0 | I109: 0 | K109: 0 | M109: 0 | O109: 0 | Q109: 0 | U109: 0 | X109: 0 | AA109: 0 | AE109: 0 | AG109: 0 | AH109: 0
G110: 0 | I110: 0 | K110: 0 | M110: 0 | O110: 0 | Q110: 0 | U110: 0 | V110: =IF(Y110="","",Y110-(X110*7)) ->  | X110: 0 | AA110: 0 | AE110: 0 | AG110: 0 | AH110: 0
G111: 0 | I111: 0 | K111: 0 | M111: 0 | O111: 0 | Q111: 0 | U111: 0 | V111: =IF(Y111="","",Y111-(X111*7)) ->  | X111: 0 | AA111: 0 | AE111: 0 | AG111: 0 | AH111: 0
G112: 0 | I112: 0 | K112: 0 | M112: 0 | O112: 0 | Q112: 0 | U112: 0 | X112: 0 | AA112: 0 | AE112: 0 | AG112: 0 | AH112: 0
G113: 0 | I113: 0 | K113: 0 | M113: 0 | O113: 0 | Q113: 0 | U113: 0 | X113: 0 | AA113: 0 | AE113: 0 | AG113: 0 | AH113: 0
G114: 0 | I114: 0 | K114: 0 | M114: 0 | O114: 0 | Q114: 0 | U114: 0 | X114: 0 | AA114: 0 | AE114: 0 | AG114: 0 | AH114: 0
G115: 0 | I115: 0 | K115: 0 | M115: 0 | O115: 0 | Q115: 0 | U115: 0 | X115: 0 | AA115: 0 | AE115: 0 | AG115: 0 | AH115: 0
G116: 0 | I116: 0 | K116: 0 | M116: 0 | O116: 0 | Q116: 0 | U116: 0 | X116: 0 | AA116: 0 | AE116: 0 | AG116: 0 | AH116: 0
G117: 0 | I117: 0 | K117: 0 | M117: 0 | O117: 0 | Q117: 0 | U117: 0 | X117: 0 | AA117: 0 | AE117: 0 | AG117: 0 | AH117: 0
G118: 0 | I118: 0 | K118: 0 | M118: 0 | O118: 0 | Q118: 0 | U118: 0 | X118: 0 | AA118: 0 | AE118: 0 | AG118: 0 | AH118: 0
G119: 0 | I119: 0 | K119: 0 | M119: 0 | O119: 0 | Q119: 0 | U119: 0 | X119: 0 | AA119: 0 | AE119: 0 | AG119: 0 | AH119: 0
G120: 0 | I120: 0 | K120: 0 | M120: 0 | O120: 0 | Q120: 0 | U120: 0 | X120: 0 | AA120: 0 | AE120: 0 | AG120: 0 | AH120: 0
G121: 0 | I121: 0 | K121: 0 | M121: 0 | O121: 0 | Q121: 0 | U121: 0 | X121: 0 | AA121: 0 | AE121: 0 | AG121: 0 | AH121: 0
G122: 0 | I122: 0 | K122: 0 | M122: 0 | O122: 0 | Q122: 0 | U122: 0 | X122: 0 | AA122: 0 | AE122: 0 | AG122: 0 | AH122: 0
G123: 0 | I123: 0 | K123: 0 | M123: 0 | O123: 0 | Q123: 0 | U123: 0 | X123: 0 | AA123: 0 | AE123: 0 | AG123: 0 | AH123: 0
G124: 0 | I124: 0 | K124: 0 | M124: 0 | O124: 0 | Q124: 0 | U124: 0 | X124: 0 | AA124: 0 | AE124: 0 | AG124: 0 | AH124: 0
G125: 0 | I125: 0 | K125: 0 | M125: 0 | O125: 0 | Q125: 0 | U125: 0 | X125: 0 | AA125: 0 | AE125: 0 | AG125: 0 | AH125: 0
G126: 0 | I126: 0 | K126: 0 | M126: 0 | O126: 0 | Q126: 0 | U126: 0 | X126: 0 | AA126: 0 | AE126: 0 | AG126: 0 | AH126: 0
G127: 0 | I127: 0 | K127: 0 | M127: 0 | O127: 0 | Q127: 0 | U127: 0 | X127: 0 | AA127: 0 | AE127: 0 | AG127: 0 | AH127: 0
G128: 0 | I128: 0 | K128: 0 | M128: 0 | O128: 0 | Q128: 0 | U128: 0 | X128: 0 | AA128: 0 | AE128: 0 | AG128: 0 | AH128: 0
G129: 0 | I129: 0 | K129: 0 | M129: 0 | O129: 0 | Q129: 0 | U129: 0 | X129: 0 | AA129: 0 | AE129: 0 | AG129: 0 | AH129: 0
G130: 0 | I130: 0 | K130: 0 | M130: 0 | O130: 0 | Q130: 0 | U130: 0 | X130: 0 | AA130: 0 | AE130: 0 | AG130: 0 | AH130: 0
G131: 0 | I131: 0 | K131: 0 | M131: 0 | O131: 0 | Q131: 0 | U131: 0 | X131: 0 | AA131: 0 | AE131: 0 | AG131: 0 | AH131: 0
G132: 0 | I132: 0 | K132: 0 | M132: 0 | O132: 0 | Q132: 0 | U132: 0 | X132: 0 | AA132: 0 | AE132: 0 | AG132: 0 | AH132: 0
G133: 0 | I133: 0 | K133: 0 | M133: 0 | O133: 0 | Q133: 0 | U133: 0 | X133: 0 | AA133: 0 | AE133: 0 | AG133: 0 | AH133: 0
G134: 0 | I134: 0 | K134: 0 | M134: 0 | O134: 0 | Q134: 0 | U134: 0 | X134: 0 | AA134: 0 | AE134: 0 | AG134: 0 | AH134: 0
F135: =IF(H135="","",H135-(7*G135)) ->  | G135: 0 | H135: =IF(J135="","",J135-(7*I135)) ->  | I135: 0 | J135: =IF(L135="","",L135-(7*K135)) ->  | K135: 0 | L135: =IF(N135="","",N135-(7*M135)) ->  | M135: 0 | N135: =IF(P135="","",P135-(7*O135)) ->  | O135: 0 | P135: =IF(S135="","",S135-(7*Q135)) ->  | Q135: 0 | U135: 0 | X135: 0 | Y135: =IF(AB135="","",AB135-(AA135*7)) ->  | AA135: 0 | AD135: =IF(AND(W135="", T135=""),"",IF(W135="",T135-S135,W135-AB135)) ->  | AE135: 0 | AG135: 0 | AH135: 0
G136: 0 | I136: 0 | K136: 0 | M136: 0 | O136: 0 | Q136: 0 | U136: 0 | X136: 0 | AA136: 0 | AE136: 0 | AG136: 0 | AH136: 0
G137: 0 | I137: 0 | K137: 0 | M137: 0 | O137: 0 | Q137: 0 | U137: 0 | X137: 0 | AA137: 0 | AB137: =IF(AF137="","",AF137-(7*AE137)) ->  | AE137: 0 | AG137: 0 | AH137: 0
G138: 0 | I138: 0 | K138: 0 | M138: 0 | O138: 0 | Q138: 0 | S138: =IF(V138="","",V138-(7*U138)) ->  | U138: 0 | X138: 0 | AA138: 0 | AE138: 0 | AG138: 0 | AH138: 0
G139: 0 | I139: 0 | K139: 0 | M139: 0 | O139: 0 | Q139: 0 | U139: 0 | X139: 0 | AA139: 0 | AE139: 0 | AG139: 0 | AH139: 0
G140: 0 | I140: 0 | K140: 0 | M140: 0 | O140: 0 | Q140: 0 | U140: 0 | X140: 0 | AA140: 0 | AE140: 0 | AG140: 0 | AH140: 0
G141: 0 | I141: 0 | K141: 0 | M141: 0 | O141: 0 | Q141: 0 | U141: 0 | V141: =IF(Y141="","",Y141-(X141*7)) ->  | X141: 0 | AA141: 0 | AE141: 0 | AG141: 0 | AH141: 0
G142: 0 | I142: 0 | K142: 0 | M142: 0 | O142: 0 | Q142: 0 | U142: 0 | V142: =IF(Y142="","",Y142-(X142*7)) ->  | X142: 0 | AA142: 0 | AE142: 0 | AG142: 0 | AH142: 0
G143: 0 | I143: 0 | K143: 0 | M143: 0 | O143: 0 | Q143: 0 | U143: 0 | X143: 0 | AA143: 0 | AE143: 0 | AF143: =IF(AJ143="","",AJ143-(7*AG143)-(7*AH143)) ->  | AG143: 0 | AH143: 0
G144: 0 | I144: 0 | K144: 0 | M144: 0 | O144: 0 | Q144: 0 | U144: 0 | X144: 0 | AA144: 0 | AE144: 0 | AG144: 0 | AH144: 0
G145: 0 | I145: 0 | K145: 0 | M145: 0 | O145: 0 | Q145: 0 | U145: 0 | X145: 0 | AA145: 0 | AE145: 0 | AG145: 0 | AH145: 0
G146: 0 | I146: 0 | K146: 0 | M146: 0 | O146: 0 | Q146: 0 | U146: 0 | X146: 0 | AA146: 0 | AE146: 0 | AG146: 0 | AH146: 0
G147: 0 | I147: 0 | K147: 0 | M147: 0 | O147: 0 | Q147: 0 | U147: 0 | X147: 0 | AA147: 0 | AE147: 0 | AG147: 0 | AH147: 0
G148: 0 | I148: 0 | K148: 0 | M148: 0 | O148: 0 | Q148: 0 | U148: 0 | X148: 0 | AA148: 0 | AE148: 0 | AG148: 0 | AH148: 0
G149: 0 | I149: 0 | K149: 0 | M149: 0 | O149: 0 | Q149: 0 | U149: 0 | X149: 0 | AA149: 0 | AE149: 0 | AG149: 0 | AH149: 0
G150: 0 | I150: 0 | K150: 0 | M150: 0 | O150: 0 | Q150: 0 | U150: 0 | X150: 0 | AA150: 0 | AE150: 0 | AG150: 0 | AH150: 0
G151: 0 | I151: 0 | K151: 0 | M151: 0 | O151: 0 | Q151: 0 | U151: 0 | X151: 0 | AA151: 0 | AE151: 0 | AG151: 0 | AH151: 0
G152: 0 | I152: 0 | K152: 0 | M152: 0 | O152: 0 | Q152: 0 | U152: 0 | X152: 0 | AA152: 0 | AE152: 0 | AG152: 0 | AH152: 0
G153: 0 | I153: 0 | K153: 0 | M153: 0 | O153: 0 | Q153: 0 | U153: 0 | X153: 0 | AA153: 0 | AE153: 0 | AG153: 0 | AH153: 0
G154: 0 | I154: 0 | K154: 0 | M154: 0 | O154: 0 | Q154: 0 | U154: 0 | X154: 0 | AA154: 0 | AE154: 0 | AG154: 0 | AH154: 0
G155: 0 | I155: 0 | K155: 0 | M155: 0 | O155: 0 | Q155: 0 | U155: 0 | X155: 0 | AA155: 0 | AE155: 0 | AG155: 0 | AH155: 0
G156: 0 | I156: 0 | K156: 0 | M156: 0 | O156: 0 | Q156: 0 | U156: 0 | X156: 0 | AA156: 0 | AE156: 0 | AG156: 0 | AH156: 0
G157: 0 | I157: 0 | K157: 0 | M157: 0 | O157: 0 | Q157: 0 | U157: 0 | X157: 0 | AA157: 0 | AE157: 0 | AG157: 0 | AH157: 0
G158: 0 | I158: 0 | K158: 0 | M158: 0 | O158: 0 | Q158: 0 | U158: 0 | X158: 0 | AA158: 0 | AE158: 0 | AG158: 0 | AH158: 0
G159: 0 | I159: 0 | K159: 0 | M159: 0 | O159: 0 | Q159: 0 | U159: 0 | X159: 0 | AA159: 0 | AE159: 0 | AG159: 0 | AH159: 0
G160: 0 | I160: 0 | K160: 0 | M160: 0 | O160: 0 | Q160: 0 | U160: 0 | X160: 0 | AA160: 0 | AE160: 0 | AG160: 0 | AH160: 0
G161: 0 | I161: 0 | K161: 0 | M161: 0 | O161: 0 | Q161: 0 | U161: 0 | X161: 0 | AA161: 0 | AE161: 0 | AG161: 0 | AH161: 0
G162: 0 | I162: 0 | K162: 0 | M162: 0 | O162: 0 | Q162: 0 | U162: 0 | X162: 0 | AA162: 0 | AE162: 0 | AG162: 0 | AH162: 0
G163: 0 | I163: 0 | K163: 0 | M163: 0 | O163: 0 | Q163: 0 | U163: 0 | X163: 0 | AA163: 0 | AE163: 0 | AG163: 0 | AH163: 0
G164: 0 | I164: 0 | K164: 0 | M164: 0 | O164: 0 | Q164: 0 | U164: 0 | X164: 0 | AA164: 0 | AE164: 0 | AG164: 0 | AH164: 0
G165: 0 | I165: 0 | K165: 0 | M165: 0 | O165: 0 | Q165: 0 | U165: 0 | X165: 0 | AA165: 0 | AE165: 0 | AG165: 0 | AH165: 0
G166: 0 | I166: 0 | K166: 0 | M166: 0 | O166: 0 | Q166: 0 | U166: 0 | X166: 0 | AA166: 0 | AE166: 0 | AG166: 0 | AH166: 0
G167: 0 | I167: 0 | K167: 0 | M167: 0 | O167: 0 | Q167: 0 | U167: 0 | X167: 0 | AA167: 0 | AE167: 0 | AG167: 0 | AH167: 0
G168: 0 | I168: 0 | K168: 0 | M168: 0 | O168: 0 | Q168: 0 | U168: 0 | X168: 0 | AA168: 0 | AE168: 0 | AG168: 0 | AH168: 0
G169: 0 | I169: 0 | K169: 0 | M169: 0 | O169: 0 | Q169: 0 | U169: 0 | X169: 0 | AA169: 0 | AE169: 0 | AG169: 0 | AH169: 0
G170: 0 | I170: 0 | K170: 0 | M170: 0 | O170: 0 | Q170: 0 | U170: 0 | X170: 0 | AA170: 0 | AE170: 0 | AG170: 0 | AH170: 0
G171: 0 | I171: 0 | K171: 0 | M171: 0 | O171: 0 | Q171: 0 | U171: 0 | X171: 0 | AA171: 0 | AE171: 0 | AG171: 0 | AH171: 0
G172: 0 | I172: 0 | K172: 0 | M172: 0 | O172: 0 | Q172: 0 | U172: 0 | X172: 0 | AA172: 0 | AE172: 0 | AG172: 0 | AH172: 0
G173: 0 | I173: 0 | K173: 0 | M173: 0 | O173: 0 | Q173: 0 | U173: 0 | V173: =IF(Y173="","",Y173-(X173*7)) ->  | X173: 0 | AA173: 0 | AE173: 0 | AG173: 0 | AH173: 0
G174: 0 | I174: 0 | K174: 0 | M174: 0 | O174: 0 | Q174: 0 | U174: 0 | V174: =IF(Y174="","",Y174-(X174*7)) ->  | X174: 0 | AA174: 0 | AE174: 0 | AG174: 0 | AH174: 0
G175: 0 | I175: 0 | K175: 0 | M175: 0 | O175: 0 | Q175: 0 | U175: 0 | X175: 0 | AA175: 0 | AE175: 0 | AG175: 0 | AH175: 0
G176: 0 | I176: 0 | K176: 0 | M176: 0 | O176: 0 | Q176: 0 | U176: 0 | X176: 0 | AA176: 0 | AE176: 0 | AG176: 0 | AH176: 0
G177: 0 | I177: 0 | K177: 0 | M177: 0 | O177: 0 | Q177: 0 | U177: 0 | X177: 0 | AA177: 0 | AE177: 0 | AG177: 0 | AH177: 0
G178: 0 | I178: 0 | K178: 0 | M178: 0 | O178: 0 | Q178: 0 | U178: 0 | X178: 0 | AA178: 0 | AE178: 0 | AG178: 0 | AH178: 0
G179: 0 | I179: 0 | K179: 0 | M179: 0 | O179: 0 | Q179: 0 | U179: 0 | X179: 0 | AA179: 0 | AE179: 0 | AG179: 0 | AH179: 0
G180: 0 | I180: 0 | K180: 0 | M180: 0 | O180: 0 | Q180: 0 | U180: 0 | X180: 0 | AA180: 0 | AE180: 0 | AG180: 0 | AH180: 0
G181: 0 | I181: 0 | K181: 0 | M181: 0 | O181: 0 | Q181: 0 | U181: 0 | X181: 0 | AA181: 0 | AE181: 0 | AG181: 0 | AH181: 0
G182: 0 | I182: 0 | K182: 0 | M182: 0 | O182: 0 | Q182: 0 | U182: 0 | X182: 0 | AA182: 0 | AE182: 0 | AG182: 0 | AH182: 0
G183: 0 | I183: 0 | K183: 0 | M183: 0 | O183: 0 | Q183: 0 | U183: 0 | X183: 0 | AA183: 0 | AE183: 0 | AG183: 0 | AH183: 0
G184: 0 | I184: 0 | K184: 0 | M184: 0 | O184: 0 | Q184: 0 | U184: 0 | X184: 0 | AA184: 0 | AE184: 0 | AG184: 0 | AH184: 0
G185: 0 | I185: 0 | K185: 0 | M185: 0 | O185: 0 | Q185: 0 | U185: 0 | X185: 0 | AA185: 0 | AE185: 0 | AG185: 0 | AH185: 0
B186: **ITEMS IN RED ARE IN TROUBLE** | AL186: LAST DATE REVIEWED W/ SUPER:

Sheet Full Norm - Example
R1: =YEAR(R4) -> 2022 | AL1: =YEAR(AL4) -> 2022 | BF1: =YEAR(BF4) -> 2022 | BZ1: =YEAR(BZ4) -> 2022 | CY1: =YEAR(CY4) -> 2022 | DS1: =YEAR(DS4) -> 2022 | EM1: =YEAR(EM4) -> 2022 | FL1: =YEAR(FL4) -> 2022 | GF1: =YEAR(GF4) -> 2022 | HE1: =YEAR(HE4) -> 2022 | HY1: =YEAR(HY4) -> 2022 | IS1: =YEAR(IS4) -> 2023 | JO1: =YEAR(JO4) -> 2023 | KI1: =YEAR(KI4) -> 2023 | LF1: =YEAR(LF4) -> 2023 | LZ1: =YEAR(LZ4) -> 2023 | MW1: =YEAR(MY4) -> 2023 | NS1: =YEAR(NS4) -> 2023 | ON1: =YEAR(ON4) -> 2023 | PK1: =YEAR(PK4) -> 2023 | QF1: =YEAR(QF4) -> 2023 | RB1: =YEAR(RB4) -> 2023 | RX1: =YEAR(RX4) -> 2023
R2: February | AL2: March | BF2: April | BZ2: May | CY2: June | DS2: July | EM2: August | FL2: September | GF2: October | HE2: November | HY2: December | IS2: January | JO2: February | KI2: March | LF2: April | LZ2: May | MW2: June | NS2: July | ON2: August | PK2: September | QF2: October | RB2: November | RX2: December
R3: 2022-02-07 | W3: 2022-02-14 | AB3: 2022-02-21 | AG3: 2022-02-28 | AL3: 2022-03-07 | AQ3: 2022-03-14 | AV3: 2022-03-21 | BA3: 2022-03-28 | BF3: 2022-04-04 | BK3: 2022-04-11 | BP3: 2022-04-18 | BU3: 2022-04-25 | BZ3: 2022-05-02 | CE3: 2022-05-09 | CJ3: 2022-05-16 | CO3: 2022-05-23 | CT3: 2022-05-30 | CY3: 2022-06-06 | DD3: 2022-06-13 | DI3: 2022-06-20 | DN3: 2022-06-27 | DS3: 2022-07-04 | DX3: 2022-07-11 | EC3: 2022-07-18 | EH3: 2022-07-25 | EM3: 2022-08-01 | ER3: 2022-08-08 | EW3: 2022-08-15 | FB3: 2022-08-22 | FG3: 2022-08-29 | FL3: 2022-09-05 | FQ3: 2022-09-12 | FV3: 2022-09-19 | GA3: 2022-09-26 | GF3: 2022-10-03 | GK3: 2022-10-10 | GP3: 2022-10-17 | GU3: 2022-10-24 | GZ3: 2022-10-31 | HE3: 2022-11-07 | HJ3: 2022-11-14 | HO3: 2022-11-21 | HT3: 2022-11-28 | HY3: 2022-12-05 | ID3: 2022-12-12 | II3: 2022-12-19 | IN3: 2022-12-26 | IS3: 2023-01-02 | IX3: 2023-01-09 | JC3: 2023-01-16 | JH3: 2023-01-23 | JM3: 2023-01-30 | JR3: 2023-02-06 | JW3: 2023-02-13 | KB3: 2023-02-20 | KG3: 2023-02-27 | KL3: 2023-03-06 | KQ3: 2023-03-13 | KV3: 2023-03-20 | LA3: 2023-03-27 | LF3: 2023-04-03 | LK3: 2023-04-10 | LP3: 2023-04-17 | LU3: 2023-04-24 | LZ3: 2023-05-01 | ME3: 2023-05-08 | MJ3: 2023-05-15 | MO3: 2023-05-22 | MT3: 2023-05-29 | MY3: 2023-06-05 | ND3: 2023-06-12 | NI3: 2023-06-19 | NN3: 2023-06-26 | NS3: 2023-07-03 | NX3: 2023-07-10 | OC3: 2023-07-17 | OH3: 2023-07-24 | OM3: 2023-07-31 | OR3: 2023-08-07 | OW3: 2023-08-14 | PB3: 2023-08-21 | PG3: 2023-08-28 | PL3: 2023-09-04 | PQ3: 2023-09-11 | PV3: 2023-09-18 | QA3: 2023-09-25 | QF3: 2023-10-02 | QK3: 2023-10-09 | QP3: 2023-10-16 | QU3: 2023-10-23 | QZ3: 2023-10-30 | RE3: 2023-11-06 | RJ3: 2023-11-13 | RO3: 2023-11-20 | RT3: 2023-11-27 | RY3: 2023-12-04 | SD3: 2023-12-11 | SE3: 2023-12-12 | SF3: 2023-12-13 | SG3: 2023-12-14 | SH3: 2023-12-15 | SI3: 2023-12-18 | SJ3: 2023-12-19 | SK3: 2023-12-20 | SL3: 2023-12-21 | SM3: 2023-12-22 | SN3: 2023-12-25 | SO3: 2023-12-26 | SP3: 2023-12-27 | SQ3: 2023-12-28 | SR3: 2023-12-29
R4: 2022-02-07 | S4: 2022-02-08 | T4: 2022-02-09 | U4: 2022-02-10 | V4: 2022-02-11 | W4: 2022-02-14 | X4: 2022-02-15 | Y4: 2022-02-16 | Z4: 2022-02-17 | AA4: 2022-02-18 | AB4: 2022-02-21 | AC4: 2022-02-22 | AD4: 2022-02-23 | AE4: 2022-02-24 | AF4: 2022-02-25 | AG4: 2022-02-28 | AH4: 2022-03-01 | AI4: 2022-03-02 | AJ4: 2022-03-03 | AK4: 2022-03-04 | AL4: 2022-03-07 | AM4: 2022-03-08 | AN4: 2022-03-09 | AO4: 2022-03-10 | AP4: 2022-03-11 | AQ4: 2022-03-14 | AR4: 2022-03-15 | AS4: 2022-03-16 | AT4: 2022-03-17 | AU4: 2022-03-18 | AV4: 2022-03-21 | AW4: 2022-03-22 | AX4: 2022-03-23 | AY4: 2022-03-24 | AZ4: 2022-03-25 | BA4: 2022-03-28 | BB4: 2022-03-29 | BC4: 2022-03-30 | BD4: 2022-03-31 | BE4: 2022-04-01 | BF4: 2022-04-04 | BG4: 2022-04-05 | BH4: 2022-04-06 | BI4: 2022-04-07 | BJ4: 2022-04-08 | BK4: 2022-04-11 | BL4: 2022-04-12 | BM4: 2022-04-13 | BN4: 2022-04-14 | BO4: 2022-04-15 | BP4: 2022-04-18 | BQ4: 2022-04-19 | BR4: 2022-04-20 | BS4: 2022-04-21 | BT4: 2022-04-22 | BU4: 2022-04-25 | BV4: 2022-04-26 | BW4: 2022-04-27 | BX4: 2022-04-28 | BY4: 2022-04-29 | BZ4: 2022-05-02 | CA4: 2022-05-03 | CB4: 2022-05-04 | CC4: 2022-05-05 | CD4: 2022-05-06 | CE4: 2022-05-09 | CF4: 2022-05-10 | CG4: 2022-05-11 | CH4: 2022-05-12 | CI4: 2022-05-13 | CJ4: 2022-05-16 | CK4: 2022-05-17 | CL4: 2022-05-18 | CM4: 2022-05-19 | CN4: 2022-05-20 | CO4: 2022-05-23 | CP4: 2022-05-24 | CQ4: 2022-05-25 | CR4: 2022-05-26 | CS4: 2022-05-27 | CT4: 2022-05-30 | CU4: 2022-05-31 | CV4: 2022-06-01 | CW4: 2022-06-02 | CX4: 2022-06-03 | CY4: 2022-06-06 | CZ4: 2022-06-07 | DA4: 2022-06-08 | DB4: 2022-06-09 | DC4: 2022-06-10 | DD4: 2022-06-13 | DE4: 2022-06-14 | DF4: 2022-06-15 | DG4: 2022-06-16 | DH4: 2022-06-17 | DI4: 2022-06-20 | DJ4: 2022-06-21 | DK4: 2022-06-22 | DL4: 2022-06-23 | DM4: 2022-06-24 | DN4: 2022-06-27 | DO4: 2022-06-28 | DP4: 2022-06-29 | DQ4: 2022-06-30 | DR4: 2022-07-01 | DS4: 2022-07-04 | DT4: 2022-07-05 | DU4: 2022-07-06 | DV4: 2022-07-07 | DW4: 2022-07-08 | DX4: 2022-07-11 | DY4: 2022-07-12 | DZ4: 2022-07-13 | EA4: 2022-07-14 | EB4: 2022-07-15 | EC4: 2022-07-18 | ED4: 2022-07-19 | EE4: 2022-07-20 | EF4: 2022-07-21 | EG4: 2022-07-22 | EH4: 2022-07-25 | EI4: 2022-07-26 | EJ4: 2022-07-27 | EK4: 2022-07-28 | EL4: 2022-07-29 | EM4: 2022-08-01 | EN4: 2022-08-02 | EO4: 2022-08-03 | EP4: 2022-08-04 | EQ4: 2022-08-05 | ER4: 2022-08-08 | ES4: 2022-08-09 | ET4: 2022-08-10 | EU4: 2022-08-11 | EV4: 2022-08-12 | EW4: 2022-08-15 | EX4: 2022-08-16 | EY4: 2022-08-17 | EZ4: 2022-08-18 | FA4: 2022-08-19 | FB4: 2022-08-22 | FC4: 2022-08-23 | FD4: 2022-08-24 | FE4: 2022-08-25 | FF4: 2022-08-26 | FG4: 2022-08-29 | FH4: 2022-08-30 | FI4: 2022-08-31 | FJ4: 2022-09-01 | FK4: 2022-09-02 | FL4: 2022-09-05 | FM4: 2022-09-06 | FN4: 2022-09-07 | FO4: 2022-09-08 | FP4: 2022-09-09 | FQ4: 2022-09-12 | FR4: 2022-09-13 | FS4: 2022-09-14 | FT4: 2022-09-15 | FU4: 2022-09-16 | FV4: 2022-09-19 | FW4: 2022-09-20 | FX4: 2022-09-21 | FY4: 2022-09-22 | FZ4: 2022-09-23 | GA4: 2022-09-26 | GB4: 2022-09-27 | GC4: 2022-09-28 | GD4: 2022-09-29 | GE4: 2022-09-30 | GF4: 2022-10-03 | GG4: 2022-10-04 | GH4: 2022-10-05 | GI4: 2022-10-06 | GJ4: 2022-10-07 | GK4: 2022-10-10 | GL4: 2022-10-11 | GM4: 2022-10-12 | GN4: 2022-10-13 | GO4: 2022-10-14 | GP4: 2022-10-17 | GQ4: 2022-10-18 | GR4: 2022-10-19 | GS4: 2022-10-20 | GT4: 2022-10-21 | GU4: 2022-10-24 | GV4: 2022-10-25 | GW4: 2022-10-26 | GX4: 2022-10-27 | GY4: 2022-10-28 | GZ4: 2022-10-31 | HA4: 2022-11-01 | HB4: 2022-11-02 | HC4: 2022-11-03 | HD4: 2022-11-04 | HE4: 2022-11-07 | HF4: 2022-11-08 | HG4: 2022-11-09 | HH4: 2022-11-10 | HI4: 2022-11-11 | HJ4: 2022-11-14 | HK4: 2022-11-15 | HL4: 2022-11-16 | HM4: 2022-11-17 | HN4: 2022-11-18 | HO4: 2022-11-21 | HP4: 2022-11-22 | HQ4: 2022-11-23 | HR4: 2022-11-24 | HS4: 2022-11-25 | HT4: 2022-11-28 | HU4: 2022-11-29 | HV4: 2022-11-30 | HW4: 2022-12-01 | HX4: 2022-12-02 | HY4: 2022-12-05 | HZ4: 2022-12-06 | IA4: 2022-12-07 | IB4: 2022-12-08 | IC4: 2022-12-09 | ID4: 2022-12-12 | IE4: 2022-12-13 | IF4: 2022-12-14 | IG4: 2022-12-15 | IH4: 2022-12-16 | II4: 2022-12-19 | IJ4: 2022-12-20 | IK4: 2022-12-21 | IL4: 2022-12-22 | IM4: 2022-12-23 | IN4: 2022-12-26 | IO4: 2022-12-27 | IP4: 2022-12-28 | IQ4: 2022-12-29 | IR4: 2022-12-30 | IS4: 2023-01-02 | IT4: 2023-01-03 | IU4: 2023-01-04 | IV4: 2023-01-05 | IW4: 2023-01-06 | IX4: 2023-01-09 | IY4: 2023-01-10 | IZ4: 2023-01-11 | JA4: 2023-01-12 | JB4: 2023-01-13 | JC4: 2023-01-16 | JD4: 2023-01-17 | JE4: 2023-01-18 | JF4: 2023-01-19 | JG4: 2023-01-20 | JH4: 2023-01-23 | JI4: 2023-01-24 | JJ4: 2023-01-25 | JK4: 2023-01-26 | JL4: 2023-01-27 | JM4: 2023-01-30 | JN4: 2023-01-31 | JO4: 2023-02-01 | JP4: 2023-02-02 | JQ4: 2023-02-03 | JR4: 2023-02-06 | JS4: 2023-02-07 | JT4: 2023-02-08 | JU4: 2023-02-09 | JV4: 2023-02-10 | JW4: 2023-02-13 | JX4: 2023-02-14 | JY4: 2023-02-15 | JZ4: 2023-02-16 | KA4: 2023-02-17 | KB4: 2023-02-20 | KC4: 2023-02-21 | KD4: 2023-02-22 | KE4: 2023-02-23 | KF4: 2023-02-24 | KG4: 2023-02-27 | KH4: 2023-02-28 | KI4: 2023-03-01 | KJ4: 2023-03-02 | KK4: 2023-03-03 | KL4: 2023-03-06 | KM4: 2023-03-07 | KN4: 2023-03-08 | KO4: 2023-03-09 | KP4: 2023-03-10 | KQ4: 2023-03-13 | KR4: 2023-03-14 | KS4: 2023-03-15 | KT4: 2023-03-16 | KU4: 2023-03-17 | KV4: 2023-03-20 | KW4: 2023-03-21 | KX4: 2023-03-22 | KY4: 2023-03-23 | KZ4: 2023-03-24 | LA4: 2023-03-27 | LB4: 2023-03-28 | LC4: 2023-03-29 | LD4: 2023-03-30 | LE4: 2023-03-31 | LF4: 2023-04-03 | LG4: 2023-04-04 | LH4: 2023-04-05 | LI4: 2023-04-06 | LJ4: 2023-04-07 | LK4: 2023-04-10 | LL4: 2023-04-11 | LM4: 2023-04-12 | LN4: 2023-04-13 | LO4: 2023-04-14 | LP4: 2023-04-17 | LQ4: 2023-04-18 | LR4: 2023-04-19 | LS4: 2023-04-20 | LT4: 2023-04-21 | LU4: 2023-04-24 | LV4: 2023-04-25 | LW4: 2023-04-26 | LX4: 2023-04-27 | LY4: 2023-04-28 | LZ4: 2023-05-01 | MA4: 2023-05-02 | MB4: 2023-05-03 | MC4: 2023-05-04 | MD4: 2023-05-05 | ME4: 2023-05-08 | MF4: 2023-05-09 | MG4: 2023-05-10 | MH4: 2023-05-11 | MI4: 2023-05-12 | MJ4: 2023-05-15 | MK4: 2023-05-16 | ML4: 2023-05-17 | MM4: 2023-05-18 | MN4: 2023-05-19 | MO4: 2023-05-22 | MP4: 2023-05-23 | MQ4: 2023-05-24 | MR4: 2023-05-25 | MS4: 2023-05-26 | MT4: 2023-05-29 | MU4: 2023-05-30 | MV4: 2023-05-31 | MW4: 2023-06-01 | MX4: 2023-06-02 | MY4: 2023-06-05 | MZ4: 2023-06-06 | NA4: 2023-06-07 | NB4: 2023-06-08 | NC4: 2023-06-09 | ND4: 2023-06-12 | NE4: 2023-06-13 | NF4: 2023-06-14 | NG4: 2023-06-15 | NH4: 2023-06-16 | NI4: 2023-06-19 | NJ4: 2023-06-20 | NK4: 2023-06-21 | NL4: 2023-06-22 | NM4: 2023-06-23 | NN4: 2023-06-26 | NO4: 2023-06-27 | NP4: 2023-06-28 | NQ4: 2023-06-29 | NR4: 2023-06-30 | NS4: 2023-07-03 | NT4: 2023-07-04 | NU4: 2023-07-05 | NV4: 2023-07-06 | NW4: 2023-07-07 | NX4: 2023-07-10 | NY4: 2023-07-11 | NZ4: 2023-07-12 | OA4: 2023-07-13 | OB4: 2023-07-14 | OC4: 2023-07-17 | OD4: 2023-07-18 | OE4: 2023-07-19 | OF4: 2023-07-20 | OG4: 2023-07-21 | OH4: 2023-07-24 | OI4: 2023-07-25 | OJ4: 2023-07-26 | OK4: 2023-07-27 | OL4: 2023-07-28 | OM4: 2023-07-31 | ON4: 2023-08-01 | OO4: 2023-08-02 | OP4: 2023-08-03 | OQ4: 2023-08-04 | OR4: 2023-08-07 | OS4: 2023-08-08 | OT4: 2023-08-09 | OU4: 2023-08-10 | OV4: 2023-08-11 | OW4: 2023-08-14 | OX4: 2023-08-15 | OY4: 2023-08-16 | OZ4: 2023-08-17 | PA4: 2023-08-18 | PB4: 2023-08-21 | PC4: 2023-08-22 | PD4: 2023-08-23 | PE4: 2023-08-24 | PF4: 2023-08-25 | PG4: 2023-08-28 | PH4: 2023-08-29 | PI4: 2023-08-30 | PJ4: 2023-08-31 | PK4: 2023-09-01 | PL4: 2023-09-04 | PM4: 2023-09-05 | PN4: 2023-09-06 | PO4: 2023-09-07 | PP4: 2023-09-08 | PQ4: 2023-09-11 | PR4: 2023-09-12 | PS4: 2023-09-13 | PT4: 2023-09-14 | PU4: 2023-09-15 | PV4: 2023-09-18 | PW4: 2023-09-19 | PX4: 2023-09-20 | PY4: 2023-09-21 | PZ4: 2023-09-22 | QA4: 2023-09-25 | QB4: 2023-09-26 | QC4: 2023-09-27 | QD4: 2023-09-28 | QE4: 2023-09-29 | QF4: 2023-10-02 | QG4: 2023-10-03 | QH4: 2023-10-04 | QI4: 2023-10-05 | QJ4: 2023-10-06 | QK4: 2023-10-09 | QL4: 2023-10-10 | QM4: 2023-10-11 | QN4: 2023-10-12 | QO4: 2023-10-13 | QP4: 2023-10-16 | QQ4: 2023-10-17 | QR4: 2023-10-18 | QS4: 2023-10-19 | QT4: 2023-10-20 | QU4: 2023-10-23 | QV4: 2023-10-24 | QW4: 2023-10-25 | QX4: 2023-10-26 | QY4: 2023-10-27 | QZ4: 2023-10-30 | RA4: 2023-10-31 | RB4: 2023-11-01 | RC4: 2023-11-02 | RD4: 2023-11-03 | RE4: 2023-11-06 | RF4: 2023-11-07 | RG4: 2023-11-08 | RH4: 2023-11-09 | RI4: 2023-11-10 | RJ4: 2023-11-13 | RK4: 2023-11-14 | RL4: 2023-11-15 | RM4: 2023-11-16 | RN4: 2023-11-17 | RO4: 2023-11-20 | RP4: 2023-11-21 | RQ4: 2023-11-22 | RR4: 2023-11-23 | RS4: 2023-11-24 | RT4: 2023-11-27 | RU4: 2023-11-28 | RV4: 2023-11-29 | RW4: 2023-11-30 | RX4: 2023-12-01 | RY4: 2023-12-04 | RZ4: 2023-12-05 | SA4: 2023-12-06 | SB4: 2023-12-07 | SC4: 2023-12-08 | SD4: 2023-12-11 | SE4: 2023-12-12 | SF4: 2023-12-13 | SG4: 2023-12-14 | SH4: 2023-12-15 | SI4: 2023-12-18 | SJ4: 2023-12-19 | SK4: 2023-12-20 | SL4: 2023-12-21 | SM4: 2023-12-22 | SN4: 2023-12-25 | SO4: 2023-12-26 | SP4: 2023-12-27 | SQ4: 2023-12-28 | SR4: 2023-12-29
R5: M | S5: T | T5: W | U5: TH | V5: F | W5: M | X5: T | Y5: W | Z5: TH | AA5: F | AB5: M | AC5: T | AD5: W | AE5: TH | AF5: F | AG5: M | AH5: T | AI5: W | AJ5: TH | AK5: F | AL5: M | AM5: T | AN5: W | AO5: TH | AP5: F | AQ5: M | AR5: T | AS5: W | AT5: TH | AU5: F | AV5: M | AW5: T | AX5: W | AY5: TH | AZ5: F | BA5: M | BB5: T | BC5: W | BD5: TH | BE5: F | BF5: M | BG5: T | BH5: W | BI5: TH | BJ5: F | BK5: M | BL5: T | BM5: W | BN5: TH | BO5: F | BP5: M | BQ5: T | BR5: W | BS5: TH | BT5: F | BU5: M | BV5: T | BW5: W | BX5: TH | BY5: F | BZ5: M | CA5: T | CB5: W | CC5: TH | CD5: F | CE5: M | CF5: T | CG5: W | CH5: TH | CI5: F | CJ5: M | CK5: T | CL5: W | CM5: TH | CN5: F | CO5: M | CP5: T | CQ5: W | CR5: TH | CS5: F | CT5: M | CU5: T | CV5: W | CW5: TH | CX5: F | CY5: M | CZ5: T | DA5: W | DB5: TH | DC5: F | DD5: M | DE5: T | DF5: W | DG5: TH | DH5: F | DI5: M | DJ5: T | DK5: W | DL5: TH | DM5: F | DN5: M | DO5: T | DP5: W | DQ5: TH | DR5: F | DS5: M | DT5: T | DU5: W | DV5: TH | DW5: F | DX5: M | DY5: T | DZ5: W | EA5: TH | EB5: F | EC5: M | ED5: T | EE5: W | EF5: TH | EG5: F | EH5: M | EI5: T | EJ5: W | EK5: TH | EL5: F | EM5: M | EN5: T | EO5: W | EP5: TH | EQ5: F | ER5: M | ES5: T | ET5: W | EU5: TH | EV5: F | EW5: M | EX5: T | EY5: W | EZ5: TH | FA5: F | FB5: M | FC5: T | FD5: W | FE5: TH | FF5: F | FG5: M | FH5: T | FI5: W | FJ5: TH | FK5: F | FL5: M | FM5: T | FN5: W | FO5: TH | FP5: F | FQ5: M | FR5: T | FS5: W | FT5: TH | FU5: F | FV5: M | FW5: T | FX5: W | FY5: TH | FZ5: F | GA5: M | GB5: T | GC5: W | GD5: TH | GE5: F | GF5: M | GG5: T | GH5: W | GI5: TH | GJ5: F | GK5: M | GL5: T | GM5: W | GN5: TH | GO5: F | GP5: M | GQ5: T | GR5: W | GS5: TH | GT5: F | GU5: M | GV5: T | GW5: W | GX5: TH | GY5: F | GZ5: M | HA5: T | HB5: W | HC5: TH | HD5: F | HE5: M | HF5: T | HG5: W | HH5: TH | HI5: F | HJ5: M | HK5: T | HL5: W | HM5: TH | HN5: F | HO5: M | HP5: T | HQ5: W | HR5: TH | HS5: F | HT5: M | HU5: T | HV5: W | HW5: TH | HX5: F | HY5: M | HZ5: T | IA5: W | IB5: TH | IC5: F | ID5: M | IE5: T | IF5: W | IG5: TH | IH5: F | II5: M | IJ5: T | IK5: W | IL5: TH | IM5: F | IN5: M | IO5: T | IP5: W | IQ5: TH | IR5: F | IS5: M | IT5: T | IU5: W | IV5: TH | IW5: F | IX5: M | IY5: T | IZ5: W | JA5: TH | JB5: F | JC5: M | JD5: T | JE5: W | JF5: TH | JG5: F | JH5: M | JI5: T | JJ5: W | JK5: TH | JL5: F | JM5: M | JN5: T | JO5: W | JP5: TH | JQ5: F | JR5: M | JS5: T | JT5: W | JU5: TH | JV5: F | JW5: M | JX5: T | JY5: W | JZ5: TH | KA5: F | KB5: M | KC5: T | KD5: W | KE5: TH | KF5: F | KG5: M | KH5: T | KI5: W | KJ5: TH | KK5: F | KL5: M | KM5: T | KN5: W | KO5: TH | KP5: F | KQ5: M | KR5: T | KS5: W | KT5: TH | KU5: F | KV5: M | KW5: T | KX5: W | KY5: TH | KZ5: F | LA5: M | LB5: T | LC5: W | LD5: TH | LE5: F | LF5: M | LG5: T | LH5: W | LI5: TH | LJ5: F | LK5: M | LL5: T | LM5: W | LN5: TH | LO5: F | LP5: M | LQ5: T | LR5: W | LS5: TH | LT5: F | LU5: M | LV5: T | LW5: W | LX5: TH | LY5: F | LZ5: M | MA5: T | MB5: W | MC5: TH | MD5: F | ME5: M | MF5: T | MG5: W | MH5: TH | MI5: F | MJ5: M | MK5: T | ML5: W | MM5: TH | MN5: F | MO5: M | MP5: T | MQ5: W | MR5: TH | MS5: F | MT5: M | MU5: T | MV5: W | MW5: TH | MX5: F | MY5: M | MZ5: T | NA5: W | NB5: TH | NC5: F | ND5: M | NE5: T | NF5: W | NG5: TH | NH5: F | NI5: M | NJ5: T | NK5: W | NL5: TH | NM5: F | NN5: M | NO5: T | NP5: W | NQ5: TH | NR5: F | NS5: M | NT5: T | NU5: W | NV5: TH | NW5: F | NX5: M | NY5: T | NZ5: W | OA5: TH | OB5: F | OC5: M | OD5: T | OE5: W | OF5: TH | OG5: F | OH5: M | OI5: T | OJ5: W | OK5: TH | OL5: F | OM5: M | ON5: T | OO5: W | OP5: TH | OQ5: F | OR5: M | OS5: T | OT5: W | OU5: TH | OV5: F | OW5: M | OX5: T | OY5: W | OZ5: TH | PA5: F | PB5: M | PC5: T | PD5: W | PE5: TH | PF5: F | PG5: M | PH5: T | PI5: W | PJ5: TH | PK5: F | PL5: M | PM5: T | PN5: W | PO5: TH | PP5: F | PQ5: M | PR5: T | PS5: W | PT5: TH | PU5: F | PV5: M | PW5: T | PX5: W | PY5: TH | PZ5: F | QA5: M | QB5: T | QC5: W | QD5: TH | QE5: F | QF5: M | QG5: T | QH5: W | QI5: TH | QJ5: F | QK5: M | QL5: T | QM5: W | QN5: TH | QO5: F | QP5: M | QQ5: T | QR5: W | QS5: TH | QT5: F | QU5: M | QV5: T | QW5: W | QX5: TH | QY5: F | QZ5: M | RA5: T | RB5: W | RC5: TH | RD5: F | RE5: M | RF5: T | RG5: W | RH5: TH | RI5: F | RJ5: M | RK5: T | RL5: W | RM5: TH | RN5: F | RO5: M | RP5: T | RQ5: W | RR5: TH | RS5: F | RT5: M | RU5: T | RV5: W | RW5: TH | RX5: F | RY5: M | RZ5: T | SA5: W | SB5: TH | SC5: F | SD5: M | SE5: T | SF5: W | SG5: TH | SH5: F | SI5: M | SJ5: T | SK5: W | SL5: TH | SM5: F | SN5: M | SO5: T | SP5: W | SQ5: TH | SR5: F
A6: PRE-CON MEETINGS | B6: PRE-CON MEETINGS | C6: PRE-CON MEETINGS | P6: PRE-CON MEETINGS | JQ6: North Exterioirs EIFS
A7: PRE-CON MEETINGS | B7: PRE-CON MEETINGS | C7: PRE-CON MEETINGS | JG7: Level 2 Zone E&F Framing | JQ7: Level 3 Fire Sprinkler | JV7: Level 3 OH MEP
A8: MILESTONES | B8: MILESTONES | C8: MILESTONES | P8: MILESTONES | LR8: 🔶 | LS8: Air On
A9: MILESTONES | B9: MILESTONES | C9: MILESTONES | AB9: 🔶 | AC9: Notice to Proceed | CO9: 🔷 | CP9: Sitework Complete | EY9: 🔷 | EZ9: Foundation Complete | HL9: 🔷 | HM9: Structure complete | KV9: 🔶 | KW9: Power On | LG9: 🔷 | LH9: Exterior Complete | OA9: 🔷 | OB9: Interior Complete | PG9: 🔶 | PH9: Substantial Completion | QA9: 🔶 | QB9: Final Completion + Financial Completion
A10: MILESTONES | B10: MILESTONES | C10: MILESTONES
A11: PROCUREMENT | B11: PROCUREMENT | C11: PROCUREMENT | P11: PROCUREMENT | FB11: Electrical Gear | JM11: SES Fit-out & Energize
A12: PROCUREMENT | B12: PROCUREMENT | C12: PROCUREMENT | EW12: HVAC Equipment
A13: PROCUREMENT | B13: PROCUREMENT | C13: PROCUREMENT | DS13: Windows
A14: Phase | B14: Area | C14: Zone | CT14: H | DS14: H | FN14: H | HP14: H | HQ14: H | HR14: H | HS14: H | IN14: H | IO14: H | MT14: H | NT14: H | PM14: H
A15: Sitework | B15: General | CT15: H | DS15: H | FN15: H | HP15: H | HQ15: H | HR15: H | HS15: H | IN15: H | IO15: H | MT15: H | NT15: H | PM15: H
A16: Sitework | B16: General | CT16: H | DS16: H | FN16: H | HP16: H | HQ16: H | HR16: H | HS16: H | IN16: H | IO16: H | MT16: H | NT16: H | PM16: H
A17: Sitework | B17: General | AB17: MOBILIZATION | CT17: H | DS17: H | FN17: H | HP17: H | HQ17: H | HR17: H | HS17: H | IN17: H | IO17: H | MT17: H | NT17: H | PM17: H
A18: Sitework | B18: General | AG18: 1H | AH18: 1H | AI18: 1H | AJ18: 1H | AK18: 1H | AL18: 1H | AM18: 1H | AN18: 1H | AO18: 1H | AP18: 1H | AQ18: 1H | AR18: 1H | AS18: 1H | AT18: 1H | AU18: 1H | AV18: 1I | AW18: 1I | AX18: 1I | AY18: 1I | AZ18: 1I | BA18: 1I | BB18: 1I | BC18: 1I | BD18: 1I | BE18: 1I | BF18: 1I | BG18: 1I | BH18: 1I | BI18: 1I | BJ18: 1I | BK18: 1I | BL18: 1I | BM18: 1I | BN18: 1I | BO18: 1I | BP18: 1J | BQ18: 1J | BR18: 1J | BS18: 1J | BT18: 1J | BU18: 1J | BV18: 1J | BW18: 1J | BX18: 1J | BY18: 1J | BZ18: 1J | CA18: 1J | CB18: 1J | CC18: 1J | CD18: 1J | CE18: 1J | CF18: 1J | CG18: 1J | CH18: 1J | CI18: 1J | CJ18: 1K | CK18: 1K | CL18: 1K | CM18: 1K | CN18: 1K | CO18: B | CP18: B | CQ18: B | CR18: B | CS18: B | CT18: B | DS18: H | FN18: H | HP18: H | HQ18: H | HR18: H | HS18: H | IN18: H | IO18: H | MT18: H | NT18: H | PM18: H
A19: Sitework | B19: General | F19: BEGINNING SITEWORK WORK | CT19: H | DS19: H | FN19: H | HP19: H | HQ19: H | HR19: H | HS19: H | IN19: H | IO19: H | MT19: H | NT19: H | PM19: H
A20: Sitework | B20: General | F20: 1H | G20: Excavation/Grading | CT20: H | DS20: H | FN20: H | HP20: H | HQ20: H | HR20: H | HS20: H | IN20: H | IO20: H | MT20: H | NT20: H | PM20: H
A21: Foundations | B21: General | F21: 1I | G21: Install Storm/Sanitary/Water/Dry U.G. Utilities | CT21: H | DS21: H | FN21: H | HP21: H | HQ21: H | HR21: H | HS21: H | IN21: H | IO21: H | MT21: H | NT21: H | PM21: H
A22: Foundations | B22: Zone A | C22: Zone A | F22: 1J | G22: Parking Area Base Stone | CS22: ZONE A | CT22: H | CU22: F1 | CV22: F1 | CW22: F1 | CX22: F1 | CY22: F1 | CZ22: F1 | DA22: F1 | DB22: F1 | DC22: F1 | DD22: F1 | DE22: F2 | DF22: F2 | DG22: F2 | DH22: F2 | DI22: F2 | DJ22: F2 | DK22: F2 | DL22: F2 | DM22: F2 | DN22: F2 | DO22: F3 | DP22: F3 | DQ22: F3 | DR22: F3 | DS22: H | DT22: F3 | DU22: F3 | DV22: F3 | DW22: F3 | DX22: F3 | DY22: F3 | DZ22: F4 | EA22: F4 | EB22: F4 | EC22: F4 | ED22: F4 | EE22: F4 | EF22: F4 | EG22: F4 | EH22: F4 | EI22: F4 | EJ22: F4 | EK22: F4 | EL22: F4 | EM22: F4 | EN22: F4 | EO22: B | EP22: B | EQ22: B | ER22: B | ES22: B | ET22: B | EU22: B | EV22: B | FN22: H | HP22: H | HQ22: H | HR22: H | HS22: H | IN22: H | IO22: H | MT22: H | NT22: H | PM22: H
A23: Foundations | B23: General | C23: General | F23: 1K | G23: Final Grading | CT23: H | DD23: ZONE B | DE23: F1 | DF23: F1 | DG23: F1 | DH23: F1 | DI23: F1 | DJ23: F1 | DK23: F1 | DL23: F1 | DM23: F1 | DN23: F1 | DO23: F2 | DP23: F2 | DQ23: F2 | DR23: F2 | DS23: H | DT23: F2 | DU23: F2 | DV23: F2 | DW23: F2 | DX23: F2 | DY23: F2 | DZ23: F3 | EA23: F3 | EB23: F3 | EC23: F3 | ED23: F3 | EE23: F3 | EF23: F3 | EG23: F3 | EH23: F3 | EI23: F3 | EJ23: F4 | EK23: F4 | EL23: F4 | EM23: F4 | EN23: F4 | EO23: F4 | EP23: F4 | EQ23: F4 | ER23: F4 | ES23: F4 | ET23: F4 | EU23: F4 | EV23: F4 | EW23: F4 | EX23: F4 | FN23: H | HP23: H | HQ23: H | HR23: H | HS23: H | IN23: H | IO23: H | MT23: H | NT23: H | PM23: H
A24: Foundations | B24: General | C24: General | CT24: H | DS24: H | FN24: H | HP24: H | HQ24: H | HR24: H | HS24: H | IN24: H | IO24: H | MT24: H | NT24: H | PM24: H
A25: Structure | B25: General | C25: General | CT25: H | DS25: H | FN25: H | HP25: H | HQ25: H | HR25: H | HS25: H | IN25: H | IO25: H | MT25: H | NT25: H | PM25: H
A26: Structure | B26: General | C26: General | CT26: H | DS26: H | FN26: H | HP26: H | HQ26: H | HR26: H | HS26: H | IN26: H | IO26: H | MT26: H | NT26: H | PM26: H
A27: Structure | B27: Zone 1A | CT27: H | DS27: H | EV27: LEVEL 1A | EW27: S1 | EX27: S1 | EY27: S1 | EZ27: S1 | FA27: S1 | FB27: S1 | FC27: S1 | FD27: S1 | FE27: S1 | FF27: S1 | FG27: S1 | FH27: S1 | FI27: S2 | FJ27: S2 | FK27: S2 | FL27: S2 | FM27: S2 | FN27: H | FO27: S2 | FP27: S2 | FQ27: S2 | FR27: S2 | FS27: S2 | FT27: S2 | FU27: S2 | FV27: S3 | FW27: S3 | FX27: S3 | FY27: S3 | FZ27: S3 | GA27: S3 | GB27: S4 | GC27: S4 | GD27: S4 | GE27: S4 | GF27: S4 | GG27: S4 | GH27: S4 | GI27: S4 | GJ27: S4 | HP27: H | HQ27: H | HR27: H | HS27: H | IN27: H | IO27: H | MT27: H | NT27: H | PM27: H
A28: Structure | B28: Zone 1B | F28: FOUNDATION LEGEND | CT28: H | DS28: H | EY28: LEVEL 1B | EZ28: S1 | FA28: S1 | FB28: S1 | FC28: S1 | FD28: S1 | FE28: S1 | FF28: S1 | FG28: S1 | FH28: S1 | FI28: S1 | FJ28: S1 | FK28: S1 | FL28: S2 | FM28: S2 | FN28: H | FO28: S2 | FP28: S2 | FQ28: S2 | FR28: S2 | FS28: S2 | FT28: S2 | FU28: S2 | FV28: S2 | FW28: S2 | FX28: S2 | FY28: S3 | FZ28: S3 | GA28: S3 | GB28: S3 | GC28: S3 | GD28: S3 | GE28: S4 | GF28: S4 | GG28: S4 | GH28: S4 | GI28: S4 | GJ28: S4 | GK28: S4 | GL28: S4 | GM28: S4 | HP28: H | HQ28: H | HR28: H | HS28: H | IN28: H | IO28: H | MT28: H | NT28: H | PM28: H
A29: Structure | B29: Zone 2A | F29: F1 | G29: Excavate & Pour Footings | CT29: H | DS29: H | FB29: LEVEL 2A | FC29: S1 | FD29: S1 | FE29: S1 | FF29: S1 | FG29: S1 | FH29: S1 | FI29: S1 | FJ29: S1 | FK29: S1 | FL29: S1 | FM29: S1 | FN29: H | FO29: S1 | FP29: S2 | FQ29: S2 | FR29: S2 | FS29: S2 | FT29: S2 | FU29: S2 | FV29: S2 | FW29: S2 | FX29: S2 | FY29: S2 | FZ29: S2 | GA29: S2 | GB29: S3 | GC29: S3 | GD29: S3 | GE29: S3 | GF29: S3 | GG29: S3 | GH29: S4 | GI29: S4 | GJ29: S4 | GK29: S4 | GL29: S4 | GM29: S4 | GN29: S4 | GO29: S4 | GP29: S4 | HP29: H | HQ29: H | HR29: H | HS29: H | IN29: H | IO29: H | MT29: H | NT29: H | PM29: H
A30: Structure | B30: Zone 2C | F30: F2 | G30: Columns & Walls | CT30: H | DS30: H | FE30: LEVEL 2B | FF30: S1 | FG30: S1 | FH30: S1 | FI30: S1 | FJ30: S1 | FK30: S1 | FL30: S1 | FM30: S1 | FN30: H | FO30: S1 | FP30: S1 | FQ30: S1 | FR30: S1 | FS30: S2 | FT30: S2 | FU30: S2 | FV30: S2 | FW30: S2 | FX30: S2 | FY30: S2 | FZ30: S2 | GA30: S2 | GB30: S2 | GC30: S2 | GD30: S2 | GE30: S3 | GF30: S3 | GG30: S3 | GH30: S3 | GI30: S3 | GJ30: S3 | GK30: S4 | GL30: S4 | GM30: S4 | GN30: S4 | GO30: S4 | GP30: S4 | GQ30: S4 | GR30: S4 | GS30: S4 | HP30: H | HQ30: H | HR30: H | HS30: H | IN30: H | IO30: H | MT30: H | NT30: H | PM30: H
A31: Structure | B31: Zone 3A | F31: F3 | G31: UG MEP | CT31: H | DS31: H | FH31: LEVEL 3A | FI31: S1 | FJ31: S1 | FK31: S1 | FL31: S1 | FM31: S1 | FN31: H | FO31: S1 | FP31: S1 | FQ31: S1 | FR31: S1 | FS31: S1 | FT31: S1 | FU31: S1 | FV31: S2 | FW31: S2 | FX31: S2 | FY31: S2 | FZ31: S2 | GA31: S2 | GB31: S2 | GC31: S2 | GD31: S2 | GE31: S2 | GF31: S2 | GG31: S2 | GH31: S3 | GI31: S3 | GJ31: S3 | GK31: S3 | GL31: S3 | GM31: S3 | GN31: S4 | GO31: S4 | GP31: S4 | GQ31: S4 | GR31: S4 | GS31: S4 | GT31: S4 | GU31: S4 | GV31: S4 | HP31: H | HQ31: H | HR31: H | HS31: H | IN31: H | IO31: H | MT31: H | NT31: H | PM31: H
A32: Structure | B32: Zone 3B | F32: F4 | G32: SOG | CT32: H | DS32: H | FK32: LEVEL 3B | FL32: S1 | FM32: S1 | FN32: H | FO32: S1 | FP32: S1 | FQ32: S1 | FR32: S1 | FS32: S1 | FT32: S1 | FU32: S1 | FV32: S1 | FW32: S1 | FX32: S1 | FY32: S2 | FZ32: S2 | GA32: S2 | GB32: S2 | GC32: S2 | GD32: S2 | GE32: S2 | GF32: S2 | GG32: S2 | GH32: S2 | GI32: S2 | GJ32: S2 | GK32: S3 | GL32: S3 | GM32: S3 | GN32: S3 | GO32: S3 | GP32: S3 | GQ32: S4 | GR32: S4 | GS32: S4 | GT32: S4 | GU32: S4 | GV32: S4 | GW32: S4 | GX32: S4 | GY32: S4 | HP32: H | HQ32: H | HR32: H | HS32: H | IN32: H | IO32: H | MT32: H | NT32: H | PM32: H
A33: Structure | B33: Zone 4A | F33: B | G33: Buffer | CT33: H | DS33: H | FO33: LEVEL 4A | FP33: S1 | FQ33: S1 | FR33: S1 | FS33: S1 | FT33: S1 | FU33: S1 | FV33: S1 | FW33: S1 | FX33: S1 | FY33: S1 | FZ33: S1 | GA33: S1 | GB33: S2 | GC33: S2 | GD33: S2 | GE33: S2 | GF33: S2 | GG33: S2 | GH33: S2 | GI33: S2 | GJ33: S2 | GK33: S2 | GL33: S2 | GM33: S2 | GN33: S3 | GO33: S3 | GP33: S3 | GQ33: S3 | GR33: S3 | GS33: S3 | GT33: S4 | GU33: S4 | GV33: S4 | GW33: S4 | GX33: S4 | GY33: S4 | GZ33: S4 | HA33: S4 | HB33: S4 | HP33: H | HQ33: H | HR33: H | HS33: H | IN33: H | IO33: H | MT33: H | NT33: H | PM33: H
A34: Structure | B34: Zone 4B | CT34: H | DS34: H | FN34: H | FR34: LEVEL 4B | FS34: S1 | FT34: S1 | FU34: S1 | FV34: S1 | FW34: S1 | FX34: S1 | FY34: S1 | FZ34: S1 | GA34: S1 | GB34: S1 | GC34: S1 | GD34: S1 | GE34: S2 | GF34: S2 | GG34: S2 | GH34: S2 | GI34: S2 | GJ34: S2 | GK34: S2 | GL34: S2 | GM34: S2 | GN34: S2 | GO34: S2 | GP34: S2 | GQ34: S3 | GR34: S3 | GS34: S3 | GT34: S3 | GU34: S3 | GV34: S3 | GW34: S4 | GX34: S4 | GY34: S4 | GZ34: S4 | HA34: S4 | HB34: S4 | HC34: S4 | HD34: S4 | HE34: S4 | HP34: H | HQ34: H | HR34: H | HS34: H | IN34: H | IO34: H | MT34: H | NT34: H | PM34: H
A35: Structure | B35: Zone 5A | CT35: H | DS35: H | FN35: H | FU35: LEVEL 5A | FV35: S1 | FW35: S1 | FX35: S1 | FY35: S1 | FZ35: S1 | GA35: S1 | GB35: S1 | GC35: S1 | GD35: S1 | GE35: S1 | GF35: S1 | GG35: S1 | GH35: S2 | GI35: S2 | GJ35: S2 | GK35: S2 | GL35: S2 | GM35: S2 | GN35: S2 | GO35: S2 | GP35: S2 | GQ35: S2 | GR35: S2 | GS35: S2 | GT35: S3 | GU35: S3 | GV35: S3 | GW35: S3 | GX35: S3 | GY35: S3 | GZ35: S4 | HA35: S4 | HB35: S4 | HC35: S4 | HD35: S4 | HE35: S4 | HF35: S4 | HG35: S4 | HH35: S4 | HP35: H | HQ35: H | HR35: H | HS35: H | IN35: H | IO35: H | MT35: H | NT35: H | PF35: Substantial Completion | PM35: H | PZ35: Final Completion + Financial Completion
A36: Structure | B36: Zone 5B | CT36: H | DS36: H | FN36: H | FX36: LEVEL 5B | FY36: S1 | FZ36: S1 | GA36: S1 | GB36: S1 | GC36: S1 | GD36: S1 | GE36: S1 | GF36: S1 | GG36: S1 | GH36: S1 | GI36: S1 | GJ36: S1 | GK36: S2 | GL36: S2 | GM36: S2 | GN36: S2 | GO36: S2 | GP36: S2 | GQ36: S2 | GR36: S2 | GS36: S2 | GT36: S2 | GU36: S2 | GV36: S2 | GW36: S3 | GX36: S3 | GY36: S3 | GZ36: S3 | HA36: S3 | HB36: S3 | HC36: S4 | HD36: S4 | HE36: S4 | HF36: S4 | HG36: S4 | HH36: S4 | HI36: S4 | HJ36: S4 | HK36: S4 | HL36: B | HM36: B | HN36: B | HO36: B | HP36: B | HQ36: B | HR36: B | HS36: B | HT36: B | HU36: B | HV36: B | HW36: B | HX36: B | HY36: B | HZ36: B | IA36: B | IB36: B | IC36: B | ID36: B | IE36: B | IF36: B | IG36: B | IH36: B | II36: B | IJ36: B | IK36: B | IL36: B | IN36: H | IO36: H | MT36: H | NT36: H | PM36: H
A37: Interior | B37: Stairs | C37: Stairs | CT37: H | DS37: H | FN37: H | HP37: H | HQ37: H | HR37: H | HS37: H | HX37: STAIR 1 | HY37: S5 | HZ37: S5 | IA37: S5 | IB37: S5 | IC37: S5 | ID37: S5 | IE37: S5 | IF37: S5 | IG37: S5 | IH37: S5 | II37: S5 | IJ37: S5 | IK37: S5 | IL37: S5 | IM37: S5 | IN37: H | IO37: H | IP37: S5 | IQ37: S5 | IR37: S5 | IS37: S5 | IT37: S5 | IU37: C | IV37: C | IW37: C | IX37: C | IY37: C | IZ37: C | JA37: C | JB37: C | JC37: C | JD37: C | JE37: C | JF37: C | JG37: C | JH37: C | JI37: C | MT37: H | NT37: H | PM37: H
A38: Interior | B38: Stairs | C38: Stairs | F38: STRUCTURE LEGEND | CT38: H | DS38: H | FN38: H | HP38: H | HQ38: H | HR38: H | HS38: H | IN38: H | IO38: H | IT38: STAIR 2 | IU38: S5 | IV38: S5 | IW38: S5 | IX38: S5 | IY38: S5 | IZ38: S5 | JA38: S5 | JB38: S5 | JC38: S5 | JD38: S5 | JE38: S5 | JF38: S5 | JG38: S5 | JH38: S5 | JI38: S5 | JJ38: S5 | JK38: S5 | JL38: S5 | JM38: S5 | JN38: S5 | JO38: C | JP38: C | JQ38: C | JR38: C | JS38: C | JT38: C | JU38: C | JV38: C | JW38: C | JX38: C | JY38: C | JZ38: C | KA38: C | KB38: C | KC38: C | MT38: H | NT38: H | PM38: H
A39: Interior | B39: Elevator | C39: Elevator | F39: S1 | G39: Deck Formwork | CT39: H | DS39: H | FN39: H | HP39: H | HQ39: H | HR39: H | HS39: H | IN39: H | IO39: H | JV39: ELEVATOR | JW39: S6 | JX39: S6 | JY39: S6 | JZ39: S6 | KA39: S6 | KB39: S6 | KC39: S6 | KD39: S6 | KE39: S6 | KF39: S6 | KG39: S6 | KH39: S6 | KI39: S6 | KJ39: S6 | KK39: S6 | KL39: S6 | KM39: S6 | KN39: S6 | KO39: S6 | KP39: S6 | KQ39: S6 | KR39: S6 | KS39: S6 | KT39: S6 | KU39: S6 | KV39: S6 | KW39: S6 | KX39: S6 | KY39: S6 | KZ39: S6 | LA39: S7 | LB39: S7 | LC39: S7 | LD39: S7 | LE39: S7 | LF39: S7 | LG39: S7 | LH39: S7 | LI39: S7 | LJ39: S7 | LK39: S7 | LL39: S7 | LM39: S7 | LN39: S7 | LO39: S7 | LP39: S7 | LQ39: S7 | LR39: S7 | LS39: S7 | LT39: S7 | LU39: S7 | LV39: S7 | LW39: S7 | LX39: S7 | LY39: S7 | LZ39: S7 | MA39: S7 | MB39: S7 | MC39: S7 | MD39: S7 | ME39: S8 | MF39: S8 | MG39: S8 | MH39: S8 | MI39: S8 | MJ39: S8 | MK39: S8 | ML39: S8 | MM39: S8 | MN39: S8 | MO39: S8 | MP39: S8 | MQ39: S8 | MR39: S8 | MS39: S8 | MT39: H | MU39: S8 | MV39: S8 | MW39: S8 | MX39: S8 | MY39: S8 | NT39: H | PM39: H
A40: Interior | B40: Elevator | C40: Elevator | F40: S2 | G40: Deck MEP & Reinforcing | CT40: H | DS40: H | FN40: H | HP40: H | HQ40: H | HR40: H | HS40: H | IN40: H | IO40: H | MT40: H | MW40: ELEVATOR | MX40: S9 | MY40: S9 | MZ40: S9 | NA40: S9 | NB40: S9 | NC40: S9 | ND40: S9 | NE40: S9 | NF40: S9 | NG40: S9 | NH40: S9 | NI40: S9 | NJ40: S9 | NK40: S9 | NL40: S9 | NM40: S9 | NN40: S9 | NO40: S9 | NP40: S9 | NQ40: S9 | NR40: S9 | NS40: S9 | NT40: H | NU40: S9 | NV40: S9 | NW40: S9 | NX40: S9 | NY40: S9 | NZ40: S9 | OA40: S9 | OB40: S9 | OC40: S9 | OD40: S9 | OE40: S9 | OF40: S9 | OG40: S9 | PM40: H
A41: Interior | B41: General | C41: General | F41: S3 | G41: Deck Inspections & Place | AA41: Notice to Proceed | CT41: H | DS41: H | FN41: H | HP41: H | HQ41: H | HR41: H | HS41: H | IN41: H | IO41: H | MT41: H | NT41: H | PM41: H
A42: Interior | B42: General | C42: General | F42: S4 | G42: Columns & Walls | CT42: H | DS42: H | FN42: H | HP42: H | HQ42: H | HR42: H | HS42: H | IN42: H | IO42: H | MT42: H | NT42: H | PM42: H
A43: Interior | B43: Floor 1 | C43: Zone A | CT43: H | DS43: H | FN43: H | HP43: H | HQ43: H | HR43: H | HS43: H | IL43: ZONE 1A | IM43: 1 | IN43: H | IO43: H | IP43: 1 | IQ43: 1 | IR43: 2 | IS43: 2 | IT43: 2 | IU43: 3 | IV43: 3 | IW43: 3 | IX43: 4 | IY43: 4 | IZ43: 4 | JA43: 5 | JB43: 5 | JC43: 5 | JD43: 6 | JE43: 6 | JF43: 6 | JG43: B | JH43: B | JI43: B | JJ43: 7 | JK43: 7 | JL43: 7 | JM43: 8 | JN43: 8 | JO43: 8 | JP43: B | JQ43: B | JR43: B | JS43: 9 | JT43: 9 | JU43: 9 | JV43: 10 | JW43: 10 | JX43: 10 | JY43: 11 | JZ43: 11 | KA43: 11 | KB43: 12 | KC43: 12 | KD43: 12 | KE43: 13 | KF43: 13 | KG43: 13 | KH43: B | KI43: B | KJ43: B | KK43: 14 | KL43: 14 | KM43: 14 | KN43: 15 | KO43: 15 | KP43: 15 | MT43: H | NT43: H | PM43: H
A44: Interior | B44: Floor 1 | C44: Zone B | CT44: H | DS44: H | FN44: H | HP44: H | HQ44: H | HR44: H | HS44: H | IN44: H | IO44: H | IQ44: ZONE 1B | IR44: 1 | IS44: 1 | IT44: 1 | IU44: 2 | IV44: 2 | IW44: 2 | IX44: 3 | IY44: 3 | IZ44: 3 | JA44: 4 | JB44: 4 | JC44: 4 | JD44: 5 | JE44: 5 | JF44: 5 | JG44: 6 | JH44: 6 | JI44: 6 | JJ44: B | JK44: B | JL44: B | JM44: 7 | JN44: 7 | JO44: 7 | JP44: 8 | JQ44: 8 | JR44: 8 | JS44: B | JT44: B | JU44: B | JV44: 9 | JW44: 9 | JX44: 9 | JY44: 10 | JZ44: 10 | KA44: 10 | KB44: 11 | KC44: 11 | KD44: 11 | KE44: 12 | KF44: 12 | KG44: 12 | KH44: 13 | KI44: 13 | KJ44: 13 | KK44: B | KL44: B | KM44: B | KN44: 14 | KO44: 14 | KP44: 14 | KQ44: 15 | KR44: 15 | KS44: 15 | MT44: H | NT44: H | PM44: H
A45: Interior | B45: Floor 1 | C45: Zone C | CT45: H | DS45: H | FN45: H | HP45: H | HQ45: H | HR45: H | HS45: H | IN45: H | IO45: H | IT45: ZONE 1C | IU45: 1 | IV45: 1 | IW45: 1 | IX45: 2 | IY45: 2 | IZ45: 2 | JA45: 3 | JB45: 3 | JC45: 3 | JD45: 4 | JE45: 4 | JF45: 4 | JG45: 5 | JH45: 5 | JI45: 5 | JJ45: 6 | JK45: 6 | JL45: 6 | JM45: B | JN45: B | JO45: B | JP45: 7 | JQ45: 7 | JR45: 7 | JS45: 8 | JT45: 8 | JU45: 8 | JV45: B | JW45: B | JX45: B | JY45: 9 | JZ45: 9 | KA45: 9 | KB45: 10 | KC45: 10 | KD45: 10 | KE45: 11 | KF45: 11 | KG45: 11 | KH45: 12 | KI45: 12 | KJ45: 12 | KK45: 13 | KL45: 13 | KM45: 13 | KN45: B | KO45: B | KP45: B | KQ45: 14 | KR45: 14 | KS45: 14 | KT45: 15 | KU45: 15 | KV45: 15 | MT45: H | NT45: H | PM45: H
A46: Interior | B46: Floor 1 | C46: General | CT46: H | DS46: H | FN46: H | HP46: H | HQ46: H | HR46: H | HS46: H | IN46: H | IO46: H | MT46: H | NT46: H | PM46: H
A47: Interior | B47: Floor 1 | C47: General | F47: STAIRS & ELEVATOR LEGEND | CT47: H | DS47: H | FN47: H | HP47: H | HQ47: H | HR47: H | HS47: H | IN47: H | IO47: H | MT47: H | NT47: H | PM47: H
A48: Interior | B48: Floor 2 | C48: Zone A | F48: S5 | G48: Erect Stair | CT48: H | DS48: H | FN48: H | HP48: H | HQ48: H | HR48: H | HS48: H | IN48: H | IO48: H | IW48: ZONE 2A | IX48: 1 | IY48: 1 | IZ48: 1 | JA48: 2 | JB48: 2 | JC48: 2 | JD48: 3 | JE48: 3 | JF48: 3 | JG48: 4 | JH48: 4 | JI48: 4 | JJ48: 5 | JK48: 5 | JL48: 5 | JM48: 6 | JN48: 6 | JO48: 6 | JP48: B | JQ48: B | JR48: B | JS48: 7 | JT48: 7 | JU48: 7 | JV48: 8 | JW48: 8 | JX48: 8 | JY48: B | JZ48: B | KA48: B | KB48: 9 | KC48: 9 | KD48: 9 | KE48: 10 | KF48: 10 | KG48: 10 | KH48: 11 | KI48: 11 | KJ48: 11 | KK48: 12 | KL48: 12 | KM48: 12 | KN48: 13 | KO48: 13 | KP48: 13 | KQ48: B | KR48: B | KS48: B | KT48: 14 | KU48: 14 | KV48: 14 | KW48: 15 | KX48: 15 | KY48: 15 | MT48: H | NT48: H | PM48: H
A49: Interior | B49: Floor 2 | C49: Zone B | F49: C | G49: Pour Concrete | CT49: H | DS49: H | FN49: H | HP49: H | HQ49: H | HR49: H | HS49: H | IN49: H | IO49: H | IZ49: ZONE 2B | JA49: 1 | JB49: 1 | JC49: 1 | JD49: 2 | JE49: 2 | JF49: 2 | JG49: 3 | JH49: 3 | JI49: 3 | JJ49: 4 | JK49: 4 | JL49: 4 | JM49: 5 | JN49: 5 | JO49: 5 | JP49: 6 | JQ49: 6 | JR49: 6 | JS49: B | JT49: B | JU49: B | JV49: 7 | JW49: 7 | JX49: 7 | JY49: 8 | JZ49: 8 | KA49: 8 | KB49: B | KC49: B | KD49: B | KE49: 9 | KF49: 9 | KG49: 9 | KH49: 10 | KI49: 10 | KJ49: 10 | KK49: 11 | KL49: 11 | KM49: 11 | KN49: 12 | KO49: 12 | KP49: 12 | KQ49: 13 | KR49: 13 | KS49: 13 | KT49: B | KU49: B | KV49: B | KW49: 14 | KX49: 14 | KY49: 14 | KZ49: 15 | LA49: 15 | LB49: 15 | MT49: H | NT49: H | PM49: H
A50: Interior | B50: Floor 2 | C50: Zone C | F50: S6 | G50: Shaft Prep | CT50: H | DS50: H | FN50: H | HP50: H | HQ50: H | HR50: H | HS50: H | IN50: H | IO50: H | JC50: ZONE 2C | JD50: 1 | JE50: 1 | JF50: 1 | JG50: 2 | JH50: 2 | JI50: 2 | JJ50: 3 | JK50: 3 | JL50: 3 | JM50: 4 | JN50: 4 | JO50: 4 | JP50: 5 | JQ50: 5 | JR50: 5 | JS50: 6 | JT50: 6 | JU50: 6 | JV50: B | JW50: B | JX50: B | JY50: 7 | JZ50: 7 | KA50: 7 | KB50: 8 | KC50: 8 | KD50: 8 | KE50: B | KF50: B | KG50: B | KH50: 9 | KI50: 9 | KJ50: 9 | KK50: 10 | KL50: 10 | KM50: 10 | KN50: 11 | KO50: 11 | KP50: 11 | KQ50: 12 | KR50: 12 | KS50: 12 | KT50: 13 | KU50: 13 | KV50: 13 | KW50: B | KX50: B | KY50: B | KZ50: 14 | LA50: 14 | LB50: 14 | LC50: 15 | LD50: 15 | LE50: 15 | MT50: H | NT50: H | PM50: H
A51: Interior | B51: Floor 2 | C51: Zone D | F51: S7 | G51: Elevator Cabs | CT51: H | DS51: H | FN51: H | HP51: H | HQ51: H | HR51: H | HS51: H | IN51: H | IO51: H | JF51: ZONE 2D | JG51: 1 | JH51: 1 | JI51: 1 | JJ51: 2 | JK51: 2 | JL51: 2 | JM51: 3 | JN51: 3 | JO51: 3 | JP51: 4 | JQ51: 4 | JR51: 4 | JS51: 5 | JT51: 5 | JU51: 5 | JV51: 6 | JW51: 6 | JX51: 6 | JY51: B | JZ51: B | KA51: B | KB51: 7 | KC51: 7 | KD51: 7 | KE51: 8 | KF51: 8 | KG51: 8 | KH51: B | KI51: B | KJ51: B | KK51: 9 | KL51: 9 | KM51: 9 | KN51: 10 | KO51: 10 | KP51: 10 | KQ51: 11 | KR51: 11 | KS51: 11 | KT51: 12 | KU51: 12 | KV51: 12 | KW51: 13 | KX51: 13 | KY51: 13 | KZ51: B | LA51: B | LB51: B | LC51: 14 | LD51: 14 | LE51: 14 | LF51: 15 | LG51: 15 | LH51: 15 | MT51: H | NT51: H | PM51: H
A52: Interior | B52: Floor 2 | C52: Zone E | F52: S8 | G52: Certification | CT52: H | DS52: H | FN52: H | HP52: H | HQ52: H | HR52: H | HS52: H | IN52: H | IO52: H | JI52: ZONE 2E | JJ52: 1 | JK52: 1 | JL52: 1 | JM52: 2 | JN52: 2 | JO52: 2 | JP52: 3 | JQ52: 3 | JR52: 3 | JS52: 4 | JT52: 4 | JU52: 4 | JV52: 5 | JW52: 5 | JX52: 5 | JY52: 6 | JZ52: 6 | KA52: 6 | KB52: B | KC52: B | KD52: B | KE52: 7 | KF52: 7 | KG52: 7 | KH52: 8 | KI52: 8 | KJ52: 8 | KK52: B | KL52: B | KM52: B | KN52: 9 | KO52: 9 | KP52: 9 | KQ52: 10 | KR52: 10 | KS52: 10 | KT52: 11 | KU52: 11 | KV52: 11 | KW52: 12 | KX52: 12 | KY52: 12 | KZ52: 13 | LA52: 13 | LB52: 13 | LC52: B | LD52: B | LE52: B | LF52: 14 | LG52: 14 | LH52: 14 | LI52: 15 | LJ52: 15 | LK52: 15 | MT52: H | NT52: H | PM52: H
A53: Interior | B53: Floor 2 | C53: Zone F | F53: S9 | G53: Comeback Areas for Elevator | CT53: H | DS53: H | FN53: H | HP53: H | HQ53: H | HR53: H | HS53: H | IN53: H | IO53: H | JL53: ZONE 2F | JM53: 1 | JN53: 1 | JO53: 1 | JP53: 2 | JQ53: 2 | JR53: 2 | JS53: 3 | JT53: 3 | JU53: 3 | JV53: 4 | JW53: 4 | JX53: 4 | JY53: 5 | JZ53: 5 | KA53: 5 | KB53: 6 | KC53: 6 | KD53: 6 | KE53: B | KF53: B | KG53: B | KH53: 7 | KI53: 7 | KJ53: 7 | KK53: 8 | KL53: 8 | KM53: 8 | KN53: B | KO53: B | KP53: B | KQ53: 9 | KR53: 9 | KS53: 9 | KT53: 10 | KU53: 10 | KV53: 10 | KW53: 11 | KX53: 11 | KY53: 11 | KZ53: 12 | LA53: 12 | LB53: 12 | LC53: 13 | LD53: 13 | LE53: 13 | LF53: B | LG53: B | LH53: B | LI53: 14 | LJ53: 14 | LK53: 14 | LL53: 15 | LM53: 15 | LN53: 15 | MT53: H | NT53: H | PM53: H
A54: Interior | B54: Floor 2 | C54: Zone G | CT54: H | DS54: H | FN54: H | HP54: H | HQ54: H | HR54: H | HS54: H | IN54: H | IO54: H | JO54: ZONE 2G | JP54: 1 | JQ54: 1 | JR54: 1 | JS54: 2 | JT54: 2 | JU54: 2 | JV54: 3 | JW54: 3 | JX54: 3 | JY54: 4 | JZ54: 4 | KA54: 4 | KB54: 5 | KC54: 5 | KD54: 5 | KE54: 6 | KF54: 6 | KG54: 6 | KH54: B | KI54: B | KJ54: B | KK54: 7 | KL54: 7 | KM54: 7 | KN54: 8 | KO54: 8 | KP54: 8 | KQ54: B | KR54: B | KS54: B | KT54: 9 | KU54: 9 | KV54: 9 | KW54: 10 | KX54: 10 | KY54: 10 | KZ54: 11 | LA54: 11 | LB54: 11 | LC54: 12 | LD54: 12 | LE54: 12 | LF54: 13 | LG54: 13 | LH54: 13 | LI54: B | LJ54: B | LK54: B | LL54: 14 | LM54: 14 | LN54: 14 | LO54: 15 | LP54: 15 | LQ54: 15 | MT54: H | NT54: H | PM54: H
A55: Interior | B55: Floor 2 | C55: Zone H | CT55: H | DS55: H | FN55: H | HP55: H | HQ55: H | HR55: H | HS55: H | IN55: H | IO55: H | JR55: ZONE 2H | JS55: 1 | JT55: 1 | JU55: 1 | JV55: 2 | JW55: 2 | JX55: 2 | JY55: 3 | JZ55: 3 | KA55: 3 | KB55: 4 | KC55: 4 | KD55: 4 | KE55: 5 | KF55: 5 | KG55: 5 | KH55: 6 | KI55: 6 | KJ55: 6 | KK55: B | KL55: B | KM55: B | KN55: 7 | KO55: 7 | KP55: 7 | KQ55: 8 | KR55: 8 | KS55: 8 | KT55: B | KU55: B | KV55: B | KW55: 9 | KX55: 9 | KY55: 9 | KZ55: 10 | LA55: 10 | LB55: 10 | LC55: 11 | LD55: 11 | LE55: 11 | LF55: 12 | LG55: 12 | LH55: 12 | LI55: 13 | LJ55: 13 | LK55: 13 | LL55: B | LM55: B | LN55: B | LO55: 14 | LP55: 14 | LQ55: 14 | LR55: 15 | LS55: 15 | LT55: 15 | MT55: H | NT55: H | PM55: H
A56: Interior | B56: Floor 2 | C56: Zone I | CT56: H | DS56: H | FN56: H | HP56: H | HQ56: H | HR56: H | HS56: H | IN56: H | IO56: H | JU56: ZONE 2I | JV56: 1 | JW56: 1 | JX56: 1 | JY56: 2 | JZ56: 2 | KA56: 2 | KB56: 3 | KC56: 3 | KD56: 3 | KE56: 4 | KF56: 4 | KG56: 4 | KH56: 5 | KI56: 5 | KJ56: 5 | KK56: 6 | KL56: 6 | KM56: 6 | KN56: B | KO56: B | KP56: B | KQ56: 7 | KR56: 7 | KS56: 7 | KT56: 8 | KU56: 8 | KV56: 8 | KW56: B | KX56: B | KY56: B | KZ56: 9 | LA56: 9 | LB56: 9 | LC56: 10 | LD56: 10 | LE56: 10 | LF56: 11 | LG56: 11 | LH56: 11 | LI56: 12 | LJ56: 12 | LK56: 12 | LL56: 13 | LM56: 13 | LN56: 13 | LO56: B | LP56: B | LQ56: B | LR56: 14 | LS56: 14 | LT56: 14 | LU56: 15 | LV56: 15 | LW56: 15 | MT56: H | NT56: H | PM56: H
A57: Interior | B57: Floor 2 | C57: Zone J | CT57: H | DS57: H | FN57: H | HP57: H | HQ57: H | HR57: H | HS57: H | IN57: H | IO57: H | JX57: ZONE 2J | JY57: 1 | JZ57: 1 | KA57: 1 | KB57: 2 | KC57: 2 | KD57: 2 | KE57: 3 | KF57: 3 | KG57: 3 | KH57: 4 | KI57: 4 | KJ57: 4 | KK57: 5 | KL57: 5 | KM57: 5 | KN57: 6 | KO57: 6 | KP57: 6 | KQ57: B | KR57: B | KS57: B | KT57: 7 | KU57: 7 | KV57: 7 | KW57: 8 | KX57: 8 | KY57: 8 | KZ57: B | LA57: B | LB57: B | LC57: 9 | LD57: 9 | LE57: 9 | LF57: 10 | LG57: 10 | LH57: 10 | LI57: 11 | LJ57: 11 | LK57: 11 | LL57: 12 | LM57: 12 | LN57: 12 | LO57: 13 | LP57: 13 | LQ57: 13 | LR57: B | LS57: B | LT57: B | LU57: 14 | LV57: 14 | LW57: 14 | LX57: 15 | LY57: 15 | LZ57: 15 | MT57: H | NT57: H | PM57: H
A58: Interior | B58: Floor 2 | C58: Zone K | F58: INTERIOR LEGEND | CT58: H | DS58: H | FN58: H | HP58: H | HQ58: H | HR58: H | HS58: H | IN58: H | IO58: H | KA58: ZONE 2K | KB58: 1 | KC58: 1 | KD58: 1 | KE58: 2 | KF58: 2 | KG58: 2 | KH58: 3 | KI58: 3 | KJ58: 3 | KK58: 4 | KL58: 4 | KM58: 4 | KN58: 5 | KO58: 5 | KP58: 5 | KQ58: 6 | KR58: 6 | KS58: 6 | KT58: B | KU58: B | KV58: B | KW58: 7 | KX58: 7 | KY58: 7 | KZ58: 8 | LA58: 8 | LB58: 8 | LC58: B | LD58: B | LE58: B | LF58: 9 | LG58: 9 | LH58: 9 | LI58: 10 | LJ58: 10 | LK58: 10 | LL58: 11 | LM58: 11 | LN58: 11 | LO58: 12 | LP58: 12 | LQ58: 12 | LR58: 13 | LS58: 13 | LT58: 13 | LU58: B | LV58: B | LW58: B | LX58: 14 | LY58: 14 | LZ58: 14 | MA58: 15 | MB58: 15 | MC58: 15 | MT58: H | NT58: H | PM58: H
A59: Interior | B59: Floor 2 | C59: General | F59: 1 | G59: Remove Reshores, Floor Prep & Wall Layout | CT59: H | DS59: H | FN59: H | HP59: H | HQ59: H | HR59: H | HS59: H | IN59: H | IO59: H | MT59: H | NT59: H | PM59: H
A60: Interior | B60: Floor 2 | C60: General | F60: 2 | G60: Fire Sprinkler & Install Walls | CT60: H | DS60: H | FN60: H | HP60: H | HQ60: H | HR60: H | HS60: H | IN60: H | IO60: H | MT60: H | NT60: H | PM60: H
A61: Interior | B61: Floor 3 | C61: Zone A | F61: 3 | G61: OH Mechanical Duct | CT61: H | DS61: H | FN61: H | HP61: H | HQ61: H | HR61: H | HS61: H | IN61: H | IO61: H | KD61: ZONE 3A | KE61: 1 | KF61: 1 | KG61: 1 | KH61: 2 | KI61: 2 | KJ61: 2 | KK61: 3 | KL61: 3 | KM61: 3 | KN61: 4 | KO61: 4 | KP61: 4 | KQ61: 5 | KR61: 5 | KS61: 5 | KT61: 6 | KU61: 6 | KV61: 6 | KW61: B | KX61: B | KY61: B | KZ61: 7 | LA61: 7 | LB61: 7 | LC61: 8 | LD61: 8 | LE61: 8 | LF61: B | LG61: B | LH61: B | LI61: 9 | LJ61: 9 | LK61: 9 | LL61: 10 | LM61: 10 | LN61: 10 | LO61: 11 | LP61: 11 | LQ61: 11 | LR61: 12 | LS61: 12 | LT61: 12 | LU61: 13 | LV61: 13 | LW61: 13 | LX61: B | LY61: B | LZ61: B | MA61: 14 | MB61: 14 | MC61: 14 | MD61: 15 | ME61: 15 | MF61: 15 | MT61: H | NT61: H | PM61: H
A62: Interior | B62: Floor 3 | C62: Zone B | F62: 4 | G62: OH Mech Equip, Piping, Branch Lines & Plumbing | CT62: H | DS62: H | FN62: H | HP62: H | HQ62: H | HR62: H | HS62: H | IN62: H | IO62: H | KG62: ZONE 3B | KH62: 1 | KI62: 1 | KJ62: 1 | KK62: 2 | KL62: 2 | KM62: 2 | KN62: 3 | KO62: 3 | KP62: 3 | KQ62: 4 | KR62: 4 | KS62: 4 | KT62: 5 | KU62: 5 | KV62: 5 | KW62: 6 | KX62: 6 | KY62: 6 | KZ62: B | LA62: B | LB62: B | LC62: 7 | LD62: 7 | LE62: 7 | LF62: 8 | LG62: 8 | LH62: 8 | LI62: B | LJ62: B | LK62: B | LL62: 9 | LM62: 9 | LN62: 9 | LO62: 10 | LP62: 10 | LQ62: 10 | LR62: 11 | LS62: 11 | LT62: 11 | LU62: 12 | LV62: 12 | LW62: 12 | LX62: 13 | LY62: 13 | LZ62: 13 | MA62: B | MB62: B | MC62: B | MD62: 14 | ME62: 14 | MF62: 14 | MG62: 15 | MH62: 15 | MI62: 15 | MT62: H | NT62: H | PM62: H
A63: Interior | B63: Floor 3 | C63: Zone C | F63: 5 | G63: OH Electrical & Frame Walls | CT63: H | DS63: H | FN63: H | HP63: H | HQ63: H | HR63: H | HS63: H | IN63: H | IO63: H | KJ63: ZONE 3C | KK63: 1 | KL63: 1 | KM63: 1 | KN63: 2 | KO63: 2 | KP63: 2 | KQ63: 3 | KR63: 3 | KS63: 3 | KT63: 4 | KU63: 4 | KV63: 4 | KW63: 5 | KX63: 5 | KY63: 5 | KZ63: 6 | LA63: 6 | LB63: 6 | LC63: B | LD63: B | LE63: B | LF63: 7 | LG63: 7 | LH63: 7 | LI63: 8 | LJ63: 8 | LK63: 8 | LL63: B | LM63: B | LN63: B | LO63: 9 | LP63: 9 | LQ63: 9 | LR63: 10 | LS63: 10 | LT63: 10 | LU63: 11 | LV63: 11 | LW63: 11 | LX63: 12 | LY63: 12 | LZ63: 12 | MA63: 13 | MB63: 13 | MC63: 13 | MD63: B | ME63: B | MF63: B | MG63: 14 | MH63: 14 | MI63: 14 | MJ63: 15 | MK63: 15 | ML63: 15 | MT63: H | NT63: H | PM63: H
A64: Interior | B64: Floor 3 | C64: Zone D | F64: 6 | G64: Frame Walls, Install In-wall Electrical & Plumbing | CT64: H | DS64: H | FN64: H | HP64: H | HQ64: H | HR64: H | HS64: H | IN64: H | IO64: H | KM64: ZONE 3D | KN64: 1 | KO64: 1 | KP64: 1 | KQ64: 2 | KR64: 2 | KS64: 2 | KT64: 3 | KU64: 3 | KV64: 3 | KW64: 4 | KX64: 4 | KY64: 4 | KZ64: 5 | LA64: 5 | LB64: 5 | LC64: 6 | LD64: 6 | LE64: 6 | LF64: B | LG64: B | LH64: B | LI64: 7 | LJ64: 7 | LK64: 7 | LL64: 8 | LM64: 8 | LN64: 8 | LO64: B | LP64: B | LQ64: B | LR64: 9 | LS64: 9 | LT64: 9 | LU64: 10 | LV64: 10 | LW64: 10 | LX64: 11 | LY64: 11 | LZ64: 11 | MA64: 12 | MB64: 12 | MC64: 12 | MD64: 13 | ME64: 13 | MF64: 13 | MG64: B | MH64: B | MI64: B | MJ64: 14 | MK64: 14 | ML64: 14 | MM64: 15 | MN64: 15 | MO64: 15 | MT64: H | NT64: H | PM64: H
A65: Interior | B65: Floor 3 | C65: Zone E | F65: 7 | G65: In-wall Process Piping, 1st Drywall, Insulation & Insp | CT65: H | DS65: H | FN65: H | HP65: H | HQ65: H | HR65: H | HS65: H | IN65: H | IO65: H | KP65: ZONE 3E | KQ65: 1 | KR65: 1 | KS65: 1 | KT65: 2 | KU65: 2 | KV65: 2 | KW65: 3 | KX65: 3 | KY65: 3 | KZ65: 4 | LA65: 4 | LB65: 4 | LC65: 5 | LD65: 5 | LE65: 5 | LF65: 6 | LG65: 6 | LH65: 6 | LI65: B | LJ65: B | LK65: B | LL65: 7 | LM65: 7 | LN65: 7 | LO65: 8 | LP65: 8 | LQ65: 8 | LR65: B | LS65: B | LT65: B | LU65: 9 | LV65: 9 | LW65: 9 | LX65: 10 | LY65: 10 | LZ65: 10 | MA65: 11 | MB65: 11 | MC65: 11 | MD65: 12 | ME65: 12 | MF65: 12 | MG65: 13 | MH65: 13 | MI65: 13 | MJ65: B | MK65: B | ML65: B | MM65: 14 | MN65: 14 | MO65: 14 | MP65: 15 | MQ65: 15 | MR65: 15 | MT65: H | NT65: H | PM65: H
A66: Interior | B66: Floor 3 | C66: General | F66: 8 | G66: Finish Walls & Painting | CT66: H | DS66: H | FN66: H | HP66: H | HQ66: H | HR66: H | HS66: H | IN66: H | IO66: H | MT66: H | NT66: H | PM66: H
A67: Interior | B67: Floor 3 | C67: General | F67: 9 | G67: Painting & Install Ceiling Grid | CT67: H | DS67: H | FN67: H | HP67: H | HQ67: H | HR67: H | HS67: H | IN67: H | IO67: H | MT67: H | NT67: H | PM67: H
A68: Interior | B68: Floor 4 | C68: Zone A | F68: 10 | G68: Install Electrical Fixtures & Mech Ceiling Drops | CT68: H | DS68: H | FN68: H | HP68: H | HQ68: H | HR68: H | HS68: H | IN68: H | IO68: H | KS68: ZONE 4A | KT68: 1 | KU68: 1 | KV68: 1 | KW68: 2 | KX68: 2 | KY68: 2 | KZ68: 3 | LA68: 3 | LB68: 3 | LC68: 4 | LD68: 4 | LE68: 4 | LF68: 5 | LG68: 5 | LH68: 5 | LI68: 6 | LJ68: 6 | LK68: 6 | LL68: B | LM68: B | LN68: B | LO68: 7 | LP68: 7 | LQ68: 7 | LR68: 8 | LS68: 8 | LT68: 8 | LU68: B | LV68: B | LW68: B | LX68: 9 | LY68: 9 | LZ68: 9 | MA68: 10 | MB68: 10 | MC68: 10 | MD68: 11 | ME68: 11 | MF68: 11 | MG68: 12 | MH68: 12 | MI68: 12 | MJ68: 13 | MK68: 13 | ML68: 13 | MM68: B | MN68: B | MO68: B | MP68: 14 | MQ68: 14 | MR68: 14 | MS68: 15 | MT68: H | MU68: 15 | MV68: 15 | NT68: H | PM68: H
A69: Interior | B69: Floor 4 | C69: Zone B | F69: 11 | G69: Remaining Ceiling Drops & Install Casework | CT69: H | DS69: H | FN69: H | HP69: H | HQ69: H | HR69: H | HS69: H | IN69: H | IO69: H | KV69: ZONE 4B | KW69: 1 | KX69: 1 | KY69: 1 | KZ69: 2 | LA69: 2 | LB69: 2 | LC69: 3 | LD69: 3 | LE69: 3 | LF69: 4 | LG69: 4 | LH69: 4 | LI69: 5 | LJ69: 5 | LK69: 5 | LL69: 6 | LM69: 6 | LN69: 6 | LO69: B | LP69: B | LQ69: B | LR69: 7 | LS69: 7 | LT69: 7 | LU69: 8 | LV69: 8 | LW69: 8 | LX69: B | LY69: B | LZ69: B | MA69: 9 | MB69: 9 | MC69: 9 | MD69: 10 | ME69: 10 | MF69: 10 | MG69: 11 | MH69: 11 | MI69: 11 | MJ69: 12 | MK69: 12 | ML69: 12 | MM69: 13 | MN69: 13 | MO69: 13 | MP69: B | MQ69: B | MR69: B | MS69: 14 | MT69: H | MU69: 14 | MV69: 14 | MW69: 15 | MX69: 15 | MY69: 15 | NT69: H | PM69: H
A70: Interior | B70: Floor 4 | C70: Zone C | F70: 12 | G70: Countertops, Millwork & Final Paint | CT70: H | DS70: H | FN70: H | HP70: H | HQ70: H | HR70: H | HS70: H | IN70: H | IO70: H | KY70: ZONE 4C | KZ70: 1 | LA70: 1 | LB70: 1 | LC70: 2 | LD70: 2 | LE70: 2 | LF70: 3 | LG70: 3 | LH70: 3 | LI70: 4 | LJ70: 4 | LK70: 4 | LL70: 5 | LM70: 5 | LN70: 5 | LO70: 6 | LP70: 6 | LQ70: 6 | LR70: B | LS70: B | LT70: B | LU70: 7 | LV70: 7 | LW70: 7 | LX70: 8 | LY70: 8 | LZ70: 8 | MA70: B | MB70: B | MC70: B | MD70: 9 | ME70: 9 | MF70: 9 | MG70: 10 | MH70: 10 | MI70: 10 | MJ70: 11 | MK70: 11 | ML70: 11 | MM70: 12 | MN70: 12 | MO70: 12 | MP70: 13 | MQ70: 13 | MR70: 13 | MS70: B | MT70: H | MU70: B | MV70: B | MW70: 14 | MX70: 14 | MY70: 14 | MZ70: 15 | NA70: 15 | NB70: 15 | NT70: H | PM70: H
A71: Interior | B71: Floor 4 | C71: Zone D | F71: 13 | G71: Wall & Casework Fixtures, Ceiling Tiles & Flooring | CT71: H | DS71: H | FN71: H | HP71: H | HQ71: H | HR71: H | HS71: H | IN71: H | IO71: H | LB71: ZONE 4D | LC71: 1 | LD71: 1 | LE71: 1 | LF71: 2 | LG71: 2 | LH71: 2 | LI71: 3 | LJ71: 3 | LK71: 3 | LL71: 4 | LM71: 4 | LN71: 4 | LO71: 5 | LP71: 5 | LQ71: 5 | LR71: 6 | LS71: 6 | LT71: 6 | LU71: B | LV71: B | LW71: B | LX71: 7 | LY71: 7 | LZ71: 7 | MA71: 8 | MB71: 8 | MC71: 8 | MD71: B | ME71: B | MF71: B | MG71: 9 | MH71: 9 | MI71: 9 | MJ71: 10 | MK71: 10 | ML71: 10 | MM71: 11 | MN71: 11 | MO71: 11 | MP71: 12 | MQ71: 12 | MR71: 12 | MS71: 13 | MT71: H | MU71: 13 | MV71: 13 | MW71: B | MX71: B | MY71: B | MZ71: 14 | NA71: 14 | NB71: 14 | NC71: 15 | ND71: 15 | NE71: 15 | NT71: H | PM71: H
A72: Interior | B72: Floor 4 | C72: Zone E | F72: 14 | G72: Flooring, Final Paint & 1st Clean | CT72: H | DS72: H | FN72: H | HP72: H | HQ72: H | HR72: H | HS72: H | IN72: H | IO72: H | LE72: ZONE 4E | LF72: 1 | LG72: 1 | LH72: 1 | LI72: 2 | LJ72: 2 | LK72: 2 | LL72: 3 | LM72: 3 | LN72: 3 | LO72: 4 | LP72: 4 | LQ72: 4 | LR72: 5 | LS72: 5 | LT72: 5 | LU72: 6 | LV72: 6 | LW72: 6 | LX72: B | LY72: B | LZ72: B | MA72: 7 | MB72: 7 | MC72: 7 | MD72: 8 | ME72: 8 | MF72: 8 | MG72: B | MH72: B | MI72: B | MJ72: 9 | MK72: 9 | ML72: 9 | MM72: 10 | MN72: 10 | MO72: 10 | MP72: 11 | MQ72: 11 | MR72: 11 | MS72: 12 | MT72: H | MU72: 12 | MV72: 12 | MW72: 13 | MX72: 13 | MY72: 13 | MZ72: B | NA72: B | NB72: B | NC72: 14 | ND72: 14 | NE72: 14 | NF72: 15 | NG72: 15 | NH72: 15 | NT72: H | PM72: H
A73: Interior | B73: Floor 4 | C73: Zone F | F73: 15 | G73: Punchlist, Corrections & Final Clean | CT73: H | DS73: H | FN73: H | HP73: H | HQ73: H | HR73: H | HS73: H | IN73: H | IO73: H | LH73: ZONE 4F | LI73: 1 | LJ73: 1 | LK73: 1 | LL73: 2 | LM73: 2 | LN73: 2 | LO73: 3 | LP73: 3 | LQ73: 3 | LR73: 4 | LS73: 4 | LT73: 4 | LU73: 5 | LV73: 5 | LW73: 5 | LX73: 6 | LY73: 6 | LZ73: 6 | MA73: B | MB73: B | MC73: B | MD73: 7 | ME73: 7 | MF73: 7 | MG73: 8 | MH73: 8 | MI73: 8 | MJ73: B | MK73: B | ML73: B | MM73: 9 | MN73: 9 | MO73: 9 | MP73: 10 | MQ73: 10 | MR73: 10 | MS73: 11 | MT73: H | MU73: 11 | MV73: 11 | MW73: 12 | MX73: 12 | MY73: 12 | MZ73: 13 | NA73: 13 | NB73: 13 | NC73: B | ND73: B | NE73: B | NF73: 14 | NG73: 14 | NH73: 14 | NI73: 15 | NJ73: 15 | NK73: 15 | NT73: H | PM73: H
A74: Interior | B74: Floor 4 | C74: Zone G | CT74: H | DS74: H | FN74: H | HP74: H | HQ74: H | HR74: H | HS74: H | IN74: H | IO74: H | LK74: ZONE 4G | LL74: 1 | LM74: 1 | LN74: 1 | LO74: 2 | LP74: 2 | LQ74: 2 | LR74: 3 | LS74: 3 | LT74: 3 | LU74: 4 | LV74: 4 | LW74: 4 | LX74: 5 | LY74: 5 | LZ74: 5 | MA74: 6 | MB74: 6 | MC74: 6 | MD74: B | ME74: B | MF74: B | MG74: 7 | MH74: 7 | MI74: 7 | MJ74: 8 | MK74: 8 | ML74: 8 | MM74: B | MN74: B | MO74: B | MP74: 9 | MQ74: 9 | MR74: 9 | MS74: 10 | MT74: H | MU74: 10 | MV74: 10 | MW74: 11 | MX74: 11 | MY74: 11 | MZ74: 12 | NA74: 12 | NB74: 12 | NC74: 13 | ND74: 13 | NE74: 13 | NF74: B | NG74: B | NH74: B | NI74: 14 | NJ74: 14 | NK74: 14 | NL74: 15 | NM74: 15 | NN74: 15 | NT74: H | PM74: H
A75: Interior | B75: Floor 4 | C75: Zone H | CT75: H | DS75: H | FN75: H | HP75: H | HQ75: H | HR75: H | HS75: H | IN75: H | IO75: H | LN75: ZONE 4H | LO75: 1 | LP75: 1 | LQ75: 1 | LR75: 2 | LS75: 2 | LT75: 2 | LU75: 3 | LV75: 3 | LW75: 3 | LX75: 4 | LY75: 4 | LZ75: 4 | MA75: 5 | MB75: 5 | MC75: 5 | MD75: 6 | ME75: 6 | MF75: 6 | MG75: B | MH75: B | MI75: B | MJ75: 7 | MK75: 7 | ML75: 7 | MM75: 8 | MN75: 8 | MO75: 8 | MP75: B | MQ75: B | MR75: B | MS75: 9 | MT75: H | MU75: 9 | MV75: 9 | MW75: 10 | MX75: 10 | MY75: 10 | MZ75: 11 | NA75: 11 | NB75: 11 | NC75: 12 | ND75: 12 | NE75: 12 | NF75: 13 | NG75: 13 | NH75: 13 | NI75: B | NJ75: B | NK75: B | NL75: 14 | NM75: 14 | NN75: 14 | NO75: 15 | NP75: 15 | NQ75: 15 | NT75: H | PM75: H
A76: Interior | B76: Floor 4 | C76: Zone I | CT76: H | DS76: H | FN76: H | HP76: H | HQ76: H | HR76: H | HS76: H | IN76: H | IO76: H | LQ76: ZONE 4I | LR76: 1 | LS76: 1 | LT76: 1 | LU76: 2 | LV76: 2 | LW76: 2 | LX76: 3 | LY76: 3 | LZ76: 3 | MA76: 4 | MB76: 4 | MC76: 4 | MD76: 5 | ME76: 5 | MF76: 5 | MG76: 6 | MH76: 6 | MI76: 6 | MJ76: B | MK76: B | ML76: B | MM76: 7 | MN76: 7 | MO76: 7 | MP76: 8 | MQ76: 8 | MR76: 8 | MS76: B | MT76: H | MU76: B | MV76: B | MW76: 9 | MX76: 9 | MY76: 9 | MZ76: 10 | NA76: 10 | NB76: 10 | NC76: 11 | ND76: 11 | NE76: 11 | NF76: 12 | NG76: 12 | NH76: 12 | NI76: 13 | NJ76: 13 | NK76: 13 | NL76: B | NM76: B | NN76: B | NO76: 14 | NP76: 14 | NQ76: 14 | NR76: 15 | NS76: 15 | NT76: H | NU76: 15 | PM76: H
A77: Interior | B77: Floor 4 | C77: General | CT77: H | DS77: H | FN77: H | HP77: H | HQ77: H | HR77: H | HS77: H | IN77: H | IO77: H | MT77: H | NT77: H | PM77: H
A78: Interior | B78: Floor 4 | C78: General | F78: COMMISSIONING LEGEND | CT78: H | DS78: H | FN78: H | HP78: H | HQ78: H | HR78: H | HS78: H | IN78: H | IO78: H | MT78: H | NT78: H | PM78: H
A79: Interior | B79: Floor 5 | C79: Zone A | F79: 16 | G79: Set AHU | CT79: H | DS79: H | FN79: H | HP79: H | HQ79: H | HR79: H | HS79: H | IN79: H | IO79: H | LT79: ZONE 5A | LU79: 1 | LV79: 1 | LW79: 1 | LX79: 2 | LY79: 2 | LZ79: 2 | MA79: 3 | MB79: 3 | MC79: 3 | MD79: 4 | ME79: 4 | MF79: 4 | MG79: 5 | MH79: 5 | MI79: 5 | MJ79: 6 | MK79: 6 | ML79: 6 | MM79: B | MN79: B | MO79: B | MP79: 7 | MQ79: 7 | MR79: 7 | MS79: 8 | MT79: H | MU79: 8 | MV79: 8 | MW79: B | MX79: B | MY79: B | MZ79: 9 | NA79: 9 | NB79: 9 | NC79: 10 | ND79: 10 | NE79: 10 | NF79: 11 | NG79: 11 | NH79: 11 | NI79: 12 | NJ79: 12 | NK79: 12 | NL79: 13 | NM79: 13 | NN79: 13 | NO79: B | NP79: B | NQ79: B | NR79: 14 | NS79: 14 | NT79: H | NU79: 14 | NV79: 15 | NW79: 15 | NX79: 15 | PM79: H
A80: Interior | B80: Floor 5 | C80: Zone B | F80: 17 | G80: Mechanical Installation | CT80: H | DS80: H | FN80: H | HP80: H | HQ80: H | HR80: H | HS80: H | IN80: H | IO80: H | LW80: ZONE 5B | LX80: 1 | LY80: 1 | LZ80: 1 | MA80: 2 | MB80: 2 | MC80: 2 | MD80: 3 | ME80: 3 | MF80: 3 | MG80: 4 | MH80: 4 | MI80: 4 | MJ80: 5 | MK80: 5 | ML80: 5 | MM80: 6 | MN80: 6 | MO80: 6 | MP80: B | MQ80: B | MR80: B | MS80: 7 | MT80: H | MU80: 7 | MV80: 7 | MW80: 8 | MX80: 8 | MY80: 8 | MZ80: B | NA80: B | NB80: B | NC80: 9 | ND80: 9 | NE80: 9 | NF80: 10 | NG80: 10 | NH80: 10 | NI80: 11 | NJ80: 11 | NK80: 11 | NL80: 12 | NM80: 12 | NN80: 12 | NO80: 13 | NP80: 13 | NQ80: 13 | NR80: B | NS80: B | NT80: H | NU80: B | NV80: 14 | NW80: 14 | NX80: 14 | NY80: 15 | NZ80: 15 | OA80: 15 | OB80: B | OC80: B | PM80: H
A81: Cx | B81: General | C81: General | F81: 18 | G81: Controls | CT81: H | DS81: H | FN81: H | HP81: H | HQ81: H | HR81: H | HS81: H | IN81: H | IO81: H | MT81: H | NT81: H | PM81: H
A82: Cx | B82: General | C82: General | F82: 19 | G82: Point to Point | CT82: H | DS82: H | FN82: H | HP82: H | HQ82: H | HR82: H | HS82: H | IN82: H | IO82: H | MT82: H | NT82: H | PM82: H
A83: Cx | B83: General | C83: General | F83: 20 | G83: Mech Startup | CT83: H | DS83: H | FN83: H | HP83: H | HQ83: H | HR83: H | HS83: H | IN83: H | IO83: H | MT83: H | NT83: H | PM83: H
A84: Cx | B84: General | C84: General | F84: 21 | G84: Pre-functional Checklists | CT84: H | DS84: H | FN84: H | HP84: H | HQ84: H | HR84: H | HS84: H | IN84: H | IO84: H | KG84: 16 | KH84: 16 | KI84: 16 | KJ84: 16 | KK84: 16 | MT84: H | NC84: 21 | ND84: 21 | NE84: 21 | NF84: 21 | NG84: 21 | NH84: 21 | NI84: 21 | NJ84: 21 | NK84: 21 | NL84: 21 | NM84: 21 | NN84: 21 | NO84: 21 | NP84: 21 | NQ84: 21 | NR84: 21 | NS84: 21 | NT84: H | NU84: 21 | NV84: 21 | NW84: 21 | NX84: 21 | NY84: 21 | NZ84: 21 | OA84: 21 | OB84: 21 | OC84: 21 | OD84: 21 | OE84: 21 | OF84: 21 | PM84: H
A85: Cx | B85: General | C85: General | F85: 22 | G85: Controls | CT85: H | DS85: H | FN85: H | HP85: H | HQ85: H | HR85: H | HS85: H | IN85: H | IO85: H | KL85: 17 | KM85: 17 | KN85: 17 | KO85: 17 | KP85: 17 | KQ85: 17 | KR85: 17 | KS85: 17 | KT85: 17 | KU85: 17 | MT85: H | NN85: 22 | NO85: 22 | NP85: 22 | NQ85: 22 | NR85: 22 | NS85: 22 | NT85: H | NU85: 22 | NV85: 22 | NW85: 22 | NX85: 22 | NY85: 22 | NZ85: 22 | OA85: 22 | OB85: 22 | OC85: 22 | OD85: 22 | OE85: 22 | OF85: 22 | OG85: 22 | OH85: 22 | PM85: H
A86: Cx | B86: General | C86: General | F86: 23 | G86: TAB | CT86: H | DS86: H | FN86: H | HP86: H | HQ86: H | HR86: H | HS86: H | IN86: H | IO86: H | KV86: 18 | KW86: 18 | KX86: 18 | KY86: 18 | KZ86: 18 | LA86: 18 | LB86: 18 | LC86: 18 | LD86: 18 | LE86: 18 | MT86: H | NT86: H | OD86: 23 | OE86: 23 | OF86: 23 | OG86: 23 | OH86: 23 | OI86: 23 | OJ86: 23 | OK86: 23 | OL86: 23 | OM86: 23 | PM86: H
A87: Cx | B87: General | C87: General | F87: 24 | G87: Cx + FA Testing | CT87: H | DS87: H | FN87: H | HP87: H | HQ87: H | HR87: H | HS87: H | IN87: H | IO87: H | LF87: 19 | LG87: 19 | LH87: 19 | LI87: 19 | LJ87: 19 | LK87: 19 | LL87: 19 | LM87: 19 | LN87: 19 | LO87: 19 | MT87: H | NT87: H | OM87: 24 | ON87: 24 | OO87: 24 | OP87: 24 | OQ87: 24 | OR87: 24 | OS87: 24 | OT87: 24 | OU87: 24 | OV87: 24 | OW87: B | OX87: B | OY87: B | OZ87: B | PA87: B | PB87: B | PC87: B | PD87: B | PE87: B | PF87: B | PM87: H
A88: Cx | B88: General | C88: General | F88: 25 | G88: LS/ FA Testing | CT88: H | DS88: H | FN88: H | HP88: H | HQ88: H | HR88: H | HS88: H | IN88: H | IO88: H | LP88: 20 | LQ88: 20 | LR88: 20 | LS88: 20 | LT88: 20 | MT88: H | NT88: H | OM88: 25 | ON88: 25 | OO88: 25 | OP88: 25 | OQ88: 25 | OR88: 25 | OS88: 25 | OT88: 25 | OU88: 25 | OV88: 25 | PM88: H
A89: Exterior | B89: All | C89: All | F89: 26 | G89: Functional Performance Testing | CT89: H | DS89: H | FN89: H | HP89: H | HQ89: H | HR89: H | HS89: H | IN89: H | IO89: H | MT89: H | NT89: H | OW89: 26 | OX89: 26 | OY89: 26 | OZ89: 26 | PA89: 26 | PB89: 26 | PC89: 26 | PD89: 26 | PE89: 26 | PF89: 26 | PG89: 26 | PH89: 26 | PI89: 26 | PJ89: 26 | PK89: 26 | PL89: 26 | PM89: H | PN89: 26 | PO89: 26 | PP89: 26 | PQ89: B | PR89: B | PS89: B | PT89: B | PU89: B | PV89: B | PW89: B | PX89: B | PY89: B | PZ89: B
A90: Exterior | B90: All | C90: All | CT90: H | DS90: H | FN90: H | GQ90: B | GR90: B | GS90: B | GT90: B | GU90: B | GV90: B | GW90: B | GX90: B | GY90: B | HP90: H | HQ90: H | HR90: H | HS90: H | IN90: H | IO90: H | MT90: H | NT90: H | PM90: H
A91: Exterior | B91: East | C91: A | CT91: H | DS91: H | FN91: H | GY91: EAST A | GZ91: A | HA91: A | HB91: A | HC91: A | HD91: A | HE91: B | HF91: B | HG91: B | HH91: B | HI91: B | HJ91: B | HK91: B | HL91: B | HM91: B | HN91: B | HO91: C | HP91: H | HQ91: H | HR91: H | HS91: H | HT91: C | HU91: C | HV91: C | HW91: C | HX91: D | HY91: D | HZ91: D | IA91: D | IB91: D | IC91: E | ID91: E | IE91: E | IF91: E | IG91: E | IN91: H | IO91: H | MT91: H | NT91: H | PM91: H
A92: Exterior | B92: East | C92: B | CT92: H | DS92: H | FN92: H | HD92: EAST B | HE92: A | HF92: A | HG92: A | HH92: A | HI92: A | HJ92: B | HK92: B | HL92: B | HM92: B | HN92: B | HO92: B | HP92: H | HQ92: H | HR92: H | HS92: H | HT92: B | HU92: B | HV92: B | HW92: B | HX92: C | HY92: C | HZ92: C | IA92: C | IB92: C | IC92: D | ID92: D | IE92: D | IF92: D | IG92: D | IH92: E | II92: E | IJ92: E | IK92: E | IL92: E | IN92: H | IO92: H | MT92: H | NT92: H | PM92: H
A93: Exterior | B93: East | C93: C | CT93: H | DS93: H | FN93: H | HI93: EAST C | HJ93: A | HK93: A | HL93: A | HM93: A | HN93: A | HO93: B | HP93: H | HQ93: H | HR93: H | HS93: H | HT93: B | HU93: B | HV93: B | HW93: B | HX93: B | HY93: B | HZ93: B | IA93: B | IB93: B | IC93: C | ID93: C | IE93: C | IF93: C | IG93: C | IH93: D | II93: D | IJ93: D | IK93: D | IL93: D | IM93: E | IN93: H | IO93: H | IP93: E | IQ93: E | IR93: E | IS93: E | MT93: H | NT93: H | PM93: H
A94: Exterior | B94: East | C94: D | F94: EXTERIOR LEGEND | CT94: H | DS94: H | FN94: H | HN94: EAST D | HO94: A | HP94: H | HQ94: H | HR94: H | HS94: H | HT94: A | HU94: A | HV94: A | HW94: A | HX94: B | HY94: B | HZ94: B | IA94: B | IB94: B | IC94: B | ID94: B | IE94: B | IF94: B | IG94: B | IH94: C | II94: C | IJ94: C | IK94: C | IL94: C | IM94: D | IN94: H | IO94: H | IP94: D | IQ94: D | IR94: D | IS94: D | IT94: E | IU94: E | IV94: E | IW94: E | IX94: E | MT94: H | NT94: H | PM94: H
A95: Exterior | B95: South | C95: A | F95: A | G95: Structural Steel Supports | CT95: H | DS95: H | FN95: H | HP95: H | HQ95: H | HR95: H | HS95: H | HW95: SOUTH A | HX95: A | HY95: A | HZ95: A | IA95: A | IB95: A | IC95: B | ID95: B | IE95: B | IF95: B | IG95: B | IH95: B | II95: B | IJ95: B | IK95: B | IL95: B | IM95: C | IN95: H | IO95: H | IP95: C | IQ95: C | IR95: C | IS95: C | IT95: D | IU95: D | IV95: D | IW95: D | IX95: D | IY95: E | IZ95: E | JA95: E | JB95: E | JC95: E | MT95: H | NT95: H | PM95: H
A96: Exterior | B96: South | C96: B | F96: B | G96: Framing & Sheathing | CT96: H | DS96: H | FN96: H | HP96: H | HQ96: H | HR96: H | HS96: H | IB96: SOUTH B | IC96: A | ID96: A | IE96: A | IF96: A | IG96: A | IH96: B | II96: B | IJ96: B | IK96: B | IL96: B | IM96: B | IN96: H | IO96: H | IP96: B | IQ96: B | IR96: B | IS96: B | IT96: C | IU96: C | IV96: C | IW96: C | IX96: C | IY96: D | IZ96: D | JA96: D | JB96: D | JC96: D | JD96: E | JE96: E | JF96: E | JG96: E | JH96: E | MT96: H | NT96: H | PM96: H
A97: Exterior | B97: South | C97: C | F97: C | G97: EIFS | CT97: H | DS97: H | FN97: H | HP97: H | HQ97: H | HR97: H | HS97: H | IG97: SOUTH C | IH97: A | II97: A | IJ97: A | IK97: A | IL97: A | IM97: B | IN97: H | IO97: H | IP97: B | IQ97: B | IR97: B | IS97: B | IT97: B | IU97: B | IV97: B | IW97: B | IX97: B | IY97: C | IZ97: C | JA97: C | JB97: C | JC97: C | JD97: D | JE97: D | JF97: D | JG97: D | JH97: D | JI97: E | JJ97: E | JK97: E | JL97: E | JM97: E | JN97: B | JO97: B | JP97: B | JQ97: B | JR97: B | MT97: H | NT97: H | PM97: H
A98: Exterior | B98: South | C98: D | F98: D | G98: Window Installation | CT98: H | DS98: H | FN98: H | HP98: H | HQ98: H | HR98: H | HS98: H | IL98: SOUTH D | IM98: A | IN98: H | IO98: H | IP98: A | IQ98: A | IR98: A | IS98: A | IT98: B | IU98: B | IV98: B | IW98: B | IX98: B | IY98: B | IZ98: B | JA98: B | JB98: B | JC98: B | JD98: C | JE98: C | JF98: C | JG98: C | JH98: C | JI98: D | JJ98: D | JK98: D | JL98: D | JM98: D | JN98: E | JO98: E | JP98: E | JQ98: E | JR98: E | MT98: H | NT98: H | PM98: H
A99: Exterior | B99: West | C99: A | F99: E | G99: Final Caulking & Finishes | CT99: H | DS99: H | FN99: H | HP99: H | HQ99: H | HR99: H | HS99: H | IN99: H | IO99: H | IS99: WEST A | IT99: A | IU99: A | IV99: A | IW99: A | IX99: A | IY99: B | IZ99: B | JA99: B | JB99: B | JC99: B | JD99: B | JE99: B | JF99: B | JG99: B | JH99: B | JI99: C | JJ99: C | JK99: C | JL99: C | JM99: C | JN99: D | JO99: D | JP99: D | JQ99: D | JR99: D | JS99: E | JT99: E | JU99: E | JV99: E | JW99: E | MT99: H | NT99: H | PM99: H
A100: Exterior | B100: West | C100: B | F100: F | G100: Shade Structure | CT100: H | DS100: H | FN100: H | HP100: H | HQ100: H | HR100: H | HS100: H | IN100: H | IO100: H | IX100: WEST B | IY100: A | IZ100: A | JA100: A | JB100: A | JC100: A | JD100: B | JE100: B | JF100: B | JG100: B | JH100: B | JI100: B | JJ100: B | JK100: B | JL100: B | JM100: B | JN100: C | JO100: C | JP100: C | JQ100: C | JR100: C | JS100: D | JT100: D | JU100: D | JV100: D | JW100: D | JX100: E | JY100: E | JZ100: E | KA100: E | KB100: E | MT100: H | NT100: H | PM100: H
A101: Exterior | B101: West | C101: C | CT101: H | DS101: H | FN101: H | HP101: H | HQ101: H | HR101: H | HS101: H | IN101: H | IO101: H | JC101: WEST C | JD101: A | JE101: A | JF101: A | JG101: A | JH101: A | JI101: B | JJ101: B | JK101: B | JL101: B | JM101: B | JN101: B | JO101: B | JP101: B | JQ101: B | JR101: B | JS101: C | JT101: C | JU101: C | JV101: C | JW101: C | JX101: D | JY101: D | JZ101: D | KA101: D | KB101: D | KC101: E | KD101: E | KE101: E | KF101: E | KG101: E | MT101: H | NT101: H | PM101: H
A102: Exterior | B102: West | C102: D | CT102: H | DS102: H | FN102: H | HP102: H | HQ102: H | HR102: H | HS102: H | IN102: H | IO102: H | JH102: WEST D | JI102: A | JJ102: A | JK102: A | JL102: A | JM102: A | JN102: B | JO102: B | JP102: B | JQ102: B | JR102: B | JS102: B | JT102: B | JU102: B | JV102: B | JW102: B | JX102: C | JY102: C | JZ102: C | KA102: C | KB102: C | KC102: D | KD102: D | KE102: D | KF102: D | KG102: D | KH102: E | KI102: E | KJ102: E | KK102: E | KL102: E | MT102: H | NT102: H | PM102: H
A103: Exterior | B103: North | C103: A | CT103: H | DS103: H | FN103: H | HP103: H | HQ103: H | HR103: H | HS103: H | IN103: H | IO103: H | JM103: NORTH A | JN103: A | JO103: A | JP103: A | JQ103: A | JR103: A | JS103: B | JT103: B | JU103: B | JV103: B | JW103: B | JX103: B | JY103: B | JZ103: B | KA103: B | KB103: B | KC103: C | KD103: C | KE103: C | KF103: C | KG103: C | KH103: D | KI103: D | KJ103: D | KK103: D | KL103: D | KM103: E | KN103: E | KO103: E | KP103: E | KQ103: E | MT103: H | NT103: H | PM103: H
A104: Exterior | B104: North | C104: B | CT104: H | DS104: H | FN104: H | HP104: H | HQ104: H | HR104: H | HS104: H | IN104: H | IO104: H | JR104: NORTH B | JS104: A | JT104: A | JU104: A | JV104: A | JW104: A | JX104: B | JY104: B | JZ104: B | KA104: B | KB104: B | KC104: B | KD104: B | KE104: B | KF104: B | KG104: B | KH104: C | KI104: C | KJ104: C | KK104: C | KL104: C | KM104: D | KN104: D | KO104: D | KP104: D | KQ104: D | KR104: E | KS104: E | KT104: E | KU104: E | KV104: E | MT104: H | NT104: H | PM104: H
A105: Exterior | B105: North | C105: C | F105: FINISHING SITEWORK LEGEND | CT105: H | DS105: H | FN105: H | HP105: H | HQ105: H | HR105: H | HS105: H | IN105: H | IO105: H | JW105: NORTH C | JX105: A | JY105: A | JZ105: A | KA105: A | KB105: A | KC105: B | KD105: B | KE105: B | KF105: B | KG105: B | KH105: B | KI105: B | KJ105: B | KK105: B | KL105: B | KM105: C | KN105: C | KO105: C | KP105: C | KQ105: C | KR105: D | KS105: D | KT105: D | KU105: D | KV105: D | KW105: E | KX105: E | KY105: E | KZ105: E | LA105: E | MT105: H | NT105: H | PM105: H
A106: Exterior | B106: North | C106: D | F106: 1 | G106: Site Demoblization | CT106: H | DS106: H | FN106: H | HP106: H | HQ106: H | HR106: H | HS106: H | IN106: H | IO106: H | KB106: NORTH D | KC106: A | KD106: A | KE106: A | KF106: A | KG106: A | KH106: B | KI106: B | KJ106: B | KK106: B | KL106: B | KM106: B | KN106: B | KO106: B | KP106: B | KQ106: B | KR106: C | KS106: C | KT106: C | KU106: C | KV106: C | KW106: D | KX106: D | KY106: D | KZ106: D | LA106: D | LB106: E | LC106: E | LD106: E | LE106: E | LF106: E | MT106: H | NT106: H | PM106: H
A107: Exterior | B107: All | C107: All | F107: 2 | G107: UG Electrical | CT107: H | DS107: H | FN107: H | HP107: H | HQ107: H | HR107: H | HS107: H | IN107: H | IO107: H | MT107: H | NT107: H | PM107: H
A108: Exterior | B108: All | C108: All | F108: 3 | G108: Rough Grading | CT108: H | DS108: H | FN108: H | HP108: H | HQ108: H | HR108: H | HS108: H | IN108: H | IO108: H | MT108: H | NT108: H | PM108: H
A109: Exterior | B109: All | C109: All | F109: 4 | G109: Hardscaping | CT109: H | DS109: H | FN109: H | HP109: H | HQ109: H | HR109: H | HS109: H | IN109: H | IO109: H | LG109: F | LH109: F | LI109: F | LJ109: F | LK109: F | LL109: F | LM109: F | LN109: F | LO109: F | LP109: F | LQ109: F | LR109: F | LS109: F | LT109: F | LU109: F | LV109: F | LW109: F | LX109: F | LY109: F | LZ109: F | MA109: F | MB109: F | MC109: F | MD109: F | ME109: F | MT109: H | NT109: H | PM109: H
A110: Exterior | B110: Roof | C110: Area A | F110: 5 | G110: Trees & Irrigation | CT110: H | DS110: H | FN110: H | HP110: H | HQ110: H | HR110: H | HS110: H | IN110: H | IO110: H | IT110: B | IU110: B | IV110: B | IW110: B | IX110: B | JN110: Roofing Area A | MT110: H | NT110: H | PM110: H
A111: Exterior | B111: Roof | C111: Area B | F111: 6 | G111: Landscaping | CT111: H | DS111: H | FN111: H | HP111: H | HQ111: H | HR111: H | HS111: H | IN111: H | IO111: H | KC111: Roofing Area B | MT111: H | NT111: H | PM111: H
A112: Sitework | B112: Sitework | C112: Sitework | F112: 7 | G112: Paving | CT112: H | DS112: H | FN112: H | HP112: H | HQ112: H | HR112: H | HS112: H | IN112: H | IO112: H | MT112: H | NT112: H | PM112: H
A113: Sitework | B113: Sitework | C113: Sitework | F113: 8 | G113: Site Finishes | CT113: H | DS113: H | FN113: H | HP113: H | HQ113: H | HR113: H | HS113: H | IN113: H | IO113: H | MT113: H | NT113: H | PM113: H
A114: Sitework | B114: Sitework | C114: Area A | CT114: H | DS114: H | FN114: H | HP114: H | HQ114: H | HR114: H | HS114: H | IN114: H | IO114: H | ME114: AREA A | MF114: 1 | MG114: 1 | MH114: 1 | MI114: 1 | MJ114: 1 | MK114: 2 | ML114: 2 | MM114: 2 | MN114: 2 | MO114: 2 | MP114: 3 | MQ114: 3 | MR114: 3 | MS114: 3 | MT114: H | MU114: 3 | MV114: 5 | MW114: 5 | MX114: 5 | MY114: 5 | MZ114: 5 | NA114: 6 | NB114: 6 | NC114: 6 | ND114: 6 | NE114: 6 | NF114: 7 | NG114: 7 | NH114: 7 | NI114: 7 | NJ114: 7 | NK114: 8 | NL114: 8 | NM114: 8 | NN114: 8 | NO114: 8 | NT114: H | PM114: H
A115: Sitework | B115: Sitework | C115: Area B | CT115: H | DS115: H | FN115: H | HP115: H | HQ115: H | HR115: H | HS115: H | IN115: H | IO115: H | MJ115: AREA B | MK115: 1 | ML115: 1 | MM115: 1 | MN115: 1 | MO115: 1 | MP115: 2 | MQ115: 2 | MR115: 2 | MS115: 2 | MT115: H | MU115: 2 | MV115: 3 | MW115: 3 | MX115: 3 | MY115: 3 | MZ115: 3 | NA115: 5 | NB115: 5 | NC115: 5 | ND115: 5 | NE115: 5 | NF115: 6 | NG115: 6 | NH115: 6 | NI115: 6 | NJ115: 6 | NK115: 7 | NL115: 7 | NM115: 7 | NN115: 7 | NO115: 7 | NP115: 8 | NQ115: 8 | NR115: 8 | NS115: 8 | NT115: H | NU115: 8 | PM115: H
A116: Sitework | B116: Sitework | C116: Area C | CT116: H | DS116: H | FN116: H | HP116: H | HQ116: H | HR116: H | HS116: H | IN116: H | IO116: H | MO116: AREA C | MP116: 1 | MQ116: 1 | MR116: 1 | MS116: 1 | MT116: H | MU116: 1 | MV116: 2 | MW116: 2 | MX116: 2 | MY116: 2 | MZ116: 2 | NA116: 3 | NB116: 3 | NC116: 3 | ND116: 3 | NE116: 3 | NF116: 5 | NG116: 5 | NH116: 5 | NI116: 5 | NJ116: 5 | NK116: 6 | NL116: 6 | NM116: 6 | NN116: 6 | NO116: 6 | NP116: 7 | NQ116: 7 | NR116: 7 | NS116: 7 | NT116: H | NU116: 7 | NV116: 8 | NW116: 8 | NX116: 8 | NY116: 8 | NZ116: 8 | OA116: B | OB116: B | OC116: B | OD116: B | OE116: B | OF116: B | OG116: B | OH116: B | OI116: B | OJ116: B | OK116: B | OL116: B | OM116: B | ON116: B | OO116: B | OP116: B | OQ116: B | OR116: B | OS116: B | OT116: B | OU116: B | OV116: B | OW116: B | OX116: B | OY116: B | OZ116: B | PA116: B | PB116: B | PC116: B | PD116: B | PE116: B | PF116: B | PM116: H
CT117: H | DS117: H | FN117: H | HP117: H | HQ117: H | HR117: H | HS117: H | IN117: H | IO117: H | MT117: H | NT117: H | PM117: H
FN118: H | HP118: H | HQ118: H | HR118: H | HS118: H | IN118: H | IO118: H | MT118: H | NT118: H | PM118: H
FN119: H | HP119: H | HQ119: H | HR119: H | HS119: H | IN119: H | IO119: H | MT119: H | NT119: H | PM119: H
FN120: H | HP120: H | HQ120: H | HR120: H | HS120: H | IN120: H | IO120: H | MT120: H | NT120: H | PM120: H
FN121: H | HP121: H | HQ121: H | HR121: H | HS121: H | IN121: H | IO121: H | MT121: H | NT121: H | PM121: H
FN122: H | HP122: H | HQ122: H | HR122: H | HS122: H | IN122: H | IO122: H | MT122: H | NT122: H | PM122: H

Sheet VBA Macros Instructions
B8: Macro | C8: Output Sheet | D8: Purpose
B9: GenerateWWP | C9: WWP | D9: Creates a Weekly Work Plan based on the selected start date.
B10: CleanWWP | C10: WWP | D10: Clears the current WWP safely while preserving headers.
B11: TaktPlan_Macro | C11: 6WLA | D11: Generates a 6-Week Lookahead plan directly from the NORM schedule.

Sheet WWP (Automatic)
A1: 2022-03-17 | G1: 16 | H1: 17 | I1: 18 | J1: 21 | K1: 22
A2: Phase | B2: Zone | C2: Area | D2: Trade | E2: Activity Code | F2: Description | G2: W | H2: TH | I2: F | J2: M | K2: T | L2: Notes
A3: Sitework | B3: General | D3: Earthwork | E3: 1H | F3: Excavation/Grading
A4: Sitework | B4: General | D4: Utilities | E4: 1I | F4: Install Storm/Sanitary/Water/Dry U.G. Utilities

Sheet 6WLA (Automatic)
A1: 2022-06-07 | D1: 2022
A2: Interior | B2: Elevator | D2: June | W2: July
B3: Floor 4 | D3: 2022-06-07 | E3: 2022-06-08 | F3: 2022-06-09 | G3: 2022-06-10 | H3: 2022-06-13 | I3: 2022-06-14 | J3: 2022-06-15 | K3: 2022-06-16 | L3: 2022-06-17 | M3: 2022-06-20 | N3: 2022-06-21 | O3: 2022-06-22 | P3: 2022-06-23 | Q3: 2022-06-24 | R3: 2022-06-27 | S3: 2022-06-28 | T3: 2022-06-29 | U3: 2022-06-30 | V3: 2022-07-01 | W3: 2022-07-04 | X3: 2022-07-05 | Y3: 2022-07-06 | Z3: 2022-07-07 | AA3: 2022-07-08 | AB3: 2022-07-11 | AC3: 2022-07-12 | AD3: 2022-07-13 | AE3: 2022-07-14 | AF3: 2022-07-15 | AG3: 2022-07-18
A4: Interior | B4: Elevator | C4: Elevator | D4: T | E4: W | F4: TH | G4: F | H4: M | I4: T | J4: W | K4: TH | L4: F | M4: M | N4: T | O4: W | P4: TH | Q4: F | R4: M | S4: T | T4: W | U4: TH | V4: F | W4: M | X4: T | Y4: W | Z4: TH | AA4: F | AB4: M | AC4: T | AD4: W | AE4: TH | AF4: F | AG4: M
A5: Foundations | B5: Zone A | C5: Zone A | D5: F1 | E5: F1 | F5: F1 | G5: F1 | H5: F1 | I5: F2 | J5: F2 | K5: F2 | L5: F2 | M5: F2 | N5: F2 | O5: F2 | P5: F2 | Q5: F2 | R5: F2 | S5: F3 | T5: F3 | U5: F3 | V5: F3 | W5: H | X5: F3 | Y5: F3 | Z5: F3 | AA5: F3 | AB5: F3 | AC5: F3 | AD5: F4 | AE5: F4 | AF5: F4 | AG5: F4
B6: General | C6: General | H6: ZONE B | I6: F1 | J6: F1 | K6: F1 | L6: F1 | M6: F1 | N6: F1 | O6: F1 | P6: F1 | Q6: F1 | R6: F1 | S6: F2 | T6: F2 | U6: F2 | V6: F2 | W6: H | X6: F2 | Y6: F2 | Z6: F2 | AA6: F2 | AB6: F2 | AC6: F2 | AD6: F3 | AE6: F3 | AF6: F3 | AG6: F3

Sheet Logistics Plan
C73: CURRENT WEEK | D73: AREA/ZONE | E73: CRANE | F73: FORKLIFT | G73: HOIST | H73: MONDAY | I73: CRANE | J73: FORKLIFT | K73: HOIST | L73: TUESDAY | M73: CRANE | N73: FORKLIFT | O73: HOIST | P73: WEDNESDAY | Q73: CRANE | R73: FORKLIFT | S73: HOIST | T73: THURSDAY | U73: CRANE | V73: FORKLIFT | W73: HOIST | X73: FRIDAY | Y73: CRANE | Z73: FORKLIFT | AA73: HOIST | AB73: SATURDAY
H74: DESCRIPTION | L74: DESCRIPTION | P74: DESCRIPTION | T74: DESCRIPTION | X74: DESCRIPTION | AB74: DESCRIPTION
C75: 05:00:00
C76: 06:00:00
C77: 07:00:00
C78: 08:00:00
C79: 09:00:00
C80: 10:00:00
C81: 11:00:00
C82: 12:00:00
C83: 13:00:00
C84: 14:00:00
C85: 15:00:00
C86: 16:00:00
C87: 17:00:00
C88: 18:00:00
C89: 19:00:00
C90: NOTES:

Sheet 6WLA (Manual)
G4: =YEAR(G6) -> 2023 | L4: =YEAR(L6) -> 2023 | Q4: =YEAR(Q6) -> 2023 | V4: =YEAR(V6) -> 2023 | AA4: =YEAR(AA6) -> 2023 | AF4: =YEAR(AF6) -> 2023
G5: =TEXT(DATE(YEAR(G6),MONTH(G6),DAY(G6)),"mmmm") -> January | L5: =TEXT(DATE(YEAR(L6),MONTH(L6),DAY(L6)),"mmmm") -> January | Q5: =TEXT(DATE(YEAR(Q6),MONTH(Q6),DAY(Q6)),"mmmm") -> January | V5: =TEXT(DATE(YEAR(V6),MONTH(V6),DAY(V6)),"mmmm") -> February | AA5: =TEXT(DATE(YEAR(AA6),MONTH(AA6),DAY(AA6)),"mmmm") -> February | AF5: =TEXT(DATE(YEAR(AF6),MONTH(AF6),DAY(AF6)),"mmmm") -> February
G6: 2023-01-16 | H6: =G6+1 -> 2023-01-17 | I6: =H6+1 -> 2023-01-18 | J6: 2023-01-19 | K6: 2023-01-20 | L6: =K6+3 -> 2023-01-23 | M6: =L6+1 -> 2023-01-24 | N6: =M6+1 -> 2023-01-25 | O6: 2023-01-26 | P6: 2023-01-27 | Q6: =P6+3 -> 2023-01-30 | R6: =Q6+1 -> 2023-01-31 | S6: 2023-02-01 | T6: 2023-02-02 | U6: 2023-02-03 | V6: =U6+3 -> 2023-02-06 | W6: =V6+1 -> 2023-02-07 | X6: 2023-02-08 | Y6: 2023-02-09 | Z6: 2023-02-10 | AA6: =Z6+3 -> 2023-02-13 | AB6: =AA6+1 -> 2023-02-14 | AC6: 2023-02-15 | AD6: 2023-02-16 | AE6: 2023-02-17 | AF6: =AE6+3 -> 2023-02-20 | AG6: =AF6+1 -> 2023-02-21 | AH6: 2023-02-22 | AI6: 2023-02-23 | AJ6: 2023-02-24
G7: M | H7: T | I7: W | J7: TH | K7: F | L7: M | M7: T | N7: W | O7: TH | P7: F | Q7: M | R7: T | S7: W | T7: TH | U7: F | V7: M | W7: T | X7: W | Y7: TH | Z7: F | AA7: M | AB7: T | AC7: W | AD7: TH | AE7: F | AF7: M | AG7: T | AH7: W | AI7: TH | AJ7: F
D8: PRE-CON MEETINGS | U8: South Exterioirs EIFS
K9: Level 2 Zone E&F Framing | U9: Level 3 Fire Sprinkler | Z9: Level 3 OH MEP
D10: STAIRS & ELEVATORS | AK10: STAIRS & ELEVATORS
E11: BUILDING | AB11: Shaft Prep | AK11: BUILDING
G12: Erect Stair 2
G13: Pour 1 | W13: Pour 2
D15: INTERIORS
D16: INTERIORS | E16: FLOOR 1 | F16: Zone 1A | G16: 3 | H16: 4 | I16: 4 | J16: 4 | K16: 5 | L16: 5 | M16: 5 | N16: 6 | O16: 6 | P16: 6 | Q16: B | R16: B | S16: B | T16: 7 | U16: 7 | V16: 7 | W16: 8 | X16: 8 | Y16: 8 | Z16: B | AA16: B | AB16: B | AC16: 9 | AD16: 9 | AE16: 9 | AF16: 10 | AG16: 10 | AH16: 10 | AI16: 11 | AJ16: 11 | AK16: Zone 1A | AL16: FLOOR 1 | AM16: INTERIORS
F17: Zone 1B | G17: 2 | H17: 3 | I17: 3 | J17: 3 | K17: 4 | L17: 4 | M17: 4 | N17: 5 | O17: 5 | P17: 5 | Q17: 6 | R17: 6 | S17: 6 | T17: B | U17: B | V17: B | W17: 7 | X17: 7 | Y17: 7 | Z17: 8 | AA17: 8 | AB17: 8 | AC17: B | AD17: B | AE17: B | AF17: 9 | AG17: 9 | AH17: 9 | AI17: 10 | AJ17: 10 | AK17: Zone 1B
F18: Zone 1C | G18: 1 | H18: 2 | I18: 2 | J18: 2 | K18: 3 | L18: 3 | M18: 3 | N18: 4 | O18: 4 | P18: 4 | Q18: 5 | R18: 5 | S18: 5 | T18: 6 | U18: 6 | V18: 6 | W18: B | X18: B | Y18: B | Z18: 7 | AA18: 7 | AB18: 7 | AC18: 8 | AD18: 8 | AE18: 8 | AF18: B | AG18: B | AH18: B | AI18: 9 | AJ18: 9 | AK18: Zone 1C
E19: FLOOR 1 | F19: Zone 2A | H19: 1 | I19: 1 | J19: 1 | K19: 2 | L19: 2 | M19: 2 | N19: 3 | O19: 3 | P19: 3 | Q19: 4 | R19: 4 | S19: 4 | T19: 5 | U19: 5 | V19: 5 | W19: 6 | X19: 6 | Y19: 6 | Z19: B | AA19: B | AB19: B | AC19: 7 | AD19: 7 | AE19: 7 | AF19: 8 | AG19: 8 | AH19: 8 | AI19: B | AJ19: B | AK19: Zone 2A | AL19: FLOOR 1
F20: Zone 2B | K20: 1 | L20: 1 | M20: 1 | N20: 2 | O20: 2 | P20: 2 | Q20: 3 | R20: 3 | S20: 3 | T20: 4 | U20: 4 | V20: 4 | W20: 5 | X20: 5 | Y20: 5 | Z20: 6 | AA20: 6 | AB20: 6 | AC20: B | AD20: B | AE20: B | AF20: 7 | AG20: 7 | AH20: 7 | AI20: 8 | AJ20: 8 | AK20: Zone 2B
F21: Zone 2C | N21: 1 | O21: 1 | P21: 1 | Q21: 2 | R21: 2 | S21: 2 | T21: 3 | U21: 3 | V21: 3 | W21: 4 | X21: 4 | Y21: 4 | Z21: 5 | AA21: 5 | AB21: 5 | AC21: 6 | AD21: 6 | AE21: 6 | AF21: B | AG21: B | AH21: B | AI21: 7 | AJ21: 7 | AK21: Zone 2C
F22: Zone 2D | Q22: 1 | R22: 1 | S22: 1 | T22: 2 | U22: 2 | V22: 2 | W22: 3 | X22: 3 | Y22: 3 | Z22: 4 | AA22: 4 | AB22: 4 | AC22: 5 | AD22: 5 | AE22: 5 | AF22: 6 | AG22: 6 | AH22: 6 | AI22: B | AJ22: B | AK22: Zone 2D
F23: Zone 2E | T23: 1 | U23: 1 | V23: 1 | W23: 2 | X23: 2 | Y23: 2 | Z23: 3 | AA23: 3 | AB23: 3 | AC23: 4 | AD23: 4 | AE23: 4 | AF23: 5 | AG23: 5 | AH23: 5 | AI23: 6 | AJ23: 6 | AK23: Zone 2E
F24: Zone 2F | W24: 1 | X24: 1 | Y24: 1 | Z24: 2 | AA24: 2 | AB24: 2 | AC24: 3 | AD24: 3 | AE24: 3 | AF24: 4 | AG24: 4 | AH24: 4 | AI24: 5 | AJ24: 5 | AK24: Zone 2F
F25: Zone 2G | Z25: 1 | AA25: 1 | AB25: 1 | AC25: 2 | AD25: 2 | AE25: 2 | AF25: 3 | AG25: 3 | AH25: 3 | AI25: 4 | AJ25: 4 | AK25: Zone 2G
F26: Zone 2H | AC26: 1 | AD26: 1 | AE26: 1 | AF26: 2 | AG26: 2 | AH26: 2 | AI26: 3 | AJ26: 3 | AK26: Zone 2H
F27: Zone 2I | AF27: 1 | AG27: 1 | AH27: 1 | AI27: 2 | AJ27: 2 | AK27: Zone 2I
F28: Zone 2J | AI28: 1 | AJ28: 1 | AK28: Zone 2J
D29: EXTERIORS
D30: EXTERIORS | E30: WEST | F30: Zone C | G30: E | H30: E | AK30: Zone C | AL30: WEST | AM30: EXTERIORS
F31: Zone D | G31: D | H31: D | I31: E | J31: E | K31: E | L31: E | M31: E | AK31: Zone D
E32: EAST | F32: Zone A | G32: C | H32: C | I32: D | J32: D | K32: D | L32: D | M32: D | N32: E | O32: E | P32: E | Q32: E | R32: E | AK32: Zone A | AL32: EAST
F33: Zone B | G33: B | H33: B | I33: C | J33: C | K33: C | L33: C | M33: C | N33: D | O33: D | P33: D | Q33: D | R33: D | S33: E | T33: E | U33: E | V33: E | W33: E | AK33: Zone B
F34: Zone C | G34: B | H34: B | I34: B | J34: B | K34: B | L34: B | M34: B | N34: C | O34: C | P34: C | Q34: C | R34: C | S34: D | T34: D | U34: D | V34: D | W34: D | X34: E | Y34: E | Z34: E | AA34: E | AB34: E | AK34: Zone C
F35: Zone D | G35: A | H35: A | I35: B | J35: B | K35: B | L35: B | M35: B | N35: B | O35: B | P35: B | Q35: B | R35: B | S35: C | T35: C | U35: C | V35: C | W35: C | X35: D | Y35: D | Z35: D | AA35: D | AB35: D | AC35: E | AD35: E | AE35: E | AF35: E | AG35: E | AK35: Zone D
E36: NORTH | F36: Zone A | I36: A | J36: A | K36: A | L36: A | M36: A | N36: B | O36: B | P36: B | Q36: B | R36: B | S36: B | T36: B | U36: B | V36: B | W36: B | X36: C | Y36: C | Z36: C | AA36: C | AB36: C | AC36: D | AD36: D | AE36: D | AF36: D | AG36: D | AH36: E | AI36: E | AJ36: E | AK36: Zone A | AL36: NORTH
F37: Zone B | N37: A | O37: A | P37: A | Q37: A | R37: A | S37: B | T37: B | U37: B | V37: B | W37: B | X37: B | Y37: B | Z37: B | AA37: B | AB37: B | AC37: C | AD37: C | AE37: C | AF37: C | AG37: C | AH37: D | AI37: D | AJ37: D | AK37: Zone B
F38: Zone C | S38: A | T38: A | U38: A | V38: A | W38: A | X38: B | Y38: B | Z38: B | AA38: B | AB38: B | AC38: B | AD38: B | AE38: B | AF38: B | AG38: B | AH38: C | AI38: C | AJ38: C | AK38: Zone C
F39: Zone D | X39: A | Y39: A | Z39: A | AA39: A | AB39: A | AC39: B | AD39: B | AE39: B | AF39: B | AG39: B | AH39: B | AI39: B | AJ39: B | AK39: Zone D
E40: SOUTH | F40: Zone A | AC40: A | AD40: A | AE40: A | AF40: A | AG40: A | AH40: B | AI40: B | AJ40: B | AK40: Zone A | AL40: SOUTH
F41: Zone B | AH41: A | AI41: A | AJ41: A | AK41: Zone B

Sheet WWP-One Floor (Manual)
C11: ASK QUESTIONS & HAVE A DISCUSSION 1. Ask where your bottleneck zone is 2. Ask what’s your slowest trades 3. Discuss any owner changes with the trades 4. Remind the team of any key project planning items 5. Discuss key handoffs for the next two days 6. Discuss any new activities starting 7. Discuss any quality meetings needed for new work 8. Discuss deliveries and ask where they go | I11: TRADE PARTNER WEEKLY TACTICAL 1. Make the weekly work plan: 1 - Week 2. Review last week 3. Review current week 4. Review current progress 5. Fill out any one-off activities
C27: WEEKLY WORK PLAN (JAN 16-20) | I27: 16 | J27: 17 | K27: 18 | L27: 19 | M27: 20 | N27: NOTES | R27: PPC | V27: SUCCESSFUL HANDOFF %
C28: PHASE | D28: FLOOR | E28: ZONE | F28: TRADE | G28: # | H28: ACTIVITY | I28: M | J28: T | K28: W | L28: T | M28: F | R28: Planned | S28: Done | T28: % | V28: Planned | W28: Completed
C29: INTERIORS | D29: FLOOR 1 | E29: Zone 1A | F29: Mechanical #1 | G29: 3 | H29: OH Mechanical Duct | I29: H | R29: 1 | S29: 1 | T29: =IFERROR(S29/R29,"") -> 1 | V29: =SUMPRODUCT(LEN(I29:M40) - LEN(SUBSTITUTE(I29:M40, "H", ""))) + SUMPRODUCT(LEN(I44:M54) - LEN(SUBSTITUTE(I44:M54, "H", ""))) -> 12 | W29: 11
F30: Mechanical #2 | G30: 4 | H30: OH Mech Equip, Piping, Branch Lines & Plumbing | L30: H | R30: 3 | S30: 3 | T30: =IFERROR(S30/R30,"") -> 1
F31: Electrical | G31: 5 | H31: OH Electrical & Frame Walls | R31: 1 | S31: 0 | T31: 0 | V31: PHP = | W31: =W29/V29 -> 0.9166666667
E32: Zone 1B | F32: FS | G32: 2 | H32: Install Fire Sprinkler Main and Branch Lines & Install Priority Walls | I32: H | R32: 1 | S32: 1 | T32: 1
F33: Mechanical #1 | G33: 3 | H33: OH Mechanical Duct | L33: H | R33: 3 | S33: 3 | T33: 1
F34: Mechanical #2 | G34: 4 | H34: OH Mech Equip, Piping, Branch Lines & Plumbing | R34: 1 | S34: 1 | T34: 1
E35: Zone 1C | F35: Concrete | G35: 1 | H35: Remove re-shores, Floor Prep, Final Patch Ceiling & Layout Walls | I35: H | R35: 1 | S35: 1 | T35: 1
F36: FS | G36: 2 | H36: Install Fire Sprinkler Main and Branch Lines & Install Priority Walls | L36: H | R36: 3 | S36: 3 | T36: 1
F37: Mechanical #1 | G37: 3 | H37: OH Mechanical Duct | R37: 1 | S37: 1 | T37: 1
D38: FLOOR 2 | E38: Zone 2A | F38: Concrete | G38: 1 | H38: Remove re-shores, Floor Prep, Final Patch Ceiling & Layout Walls | L38: H | R38: 3 | S38: 3 | T38: 1
F39: FS | G39: 2 | H39: Install Fire Sprinkler Main and Branch Lines & Install Priority Walls | R39: 1 | S39: 1 | T39: 1
E40: Zone 2B | F40: Concrete | G40: 1 | H40: Remove re-shores, Floor Prep, Final Patch Ceiling & Layout Walls | R40: 1 | S40: 1 | T40: 1
C42: WEEKLY WORK PLAN (JAN 16-20) | I42: 16 | J42: 17 | K42: 18 | L42: 19 | M42: 20 | N42: NOTES | R42: PPC
C43: PHASE | D43: FLOOR | E43: ZONE | F43: TRADE | G43: # | H43: ACTIVITY | I43: M | J43: T | K43: W | L43: T | M43: F | R43: Planned | S43: Done | T43: %
C44: EXTERIORS | D44: WEST | E44: ZONE C | F44: Finishers | G44: E | H44: Final Caulking & Finishes | J44: H | R44: 2 | S44: 2 | T44: 1
E45: ZONE D | F45: Glaziers | G45: D | H45: Window Installation | J45: H | R45: 2 | S45: 2 | T45: 1
F46: Finishers | G46: E | H46: Final Caulking & Finishes | R46: 3 | S46: 3 | T46: 1
D47: EAST | E47: ZONE A | F47: EIFS installers | G47: C | H47: EIFS | J47: H | R47: 2 | S47: 1 | T47: 0.5
F48: Glaziers | G48: D | H48: Window Installation | R48: 3 | S48: 3 | T48: 1
E49: ZONE B | F49: Framers | G49: B | H49: Framing & Sheathing | J49: H | R49: 2 | S49: 1 | T49: 0.5
F50: EIFS installers | G50: C | H50: EIFS | R50: 3 | S50: 3 | T50: 1
E51: ZONE C | F51: Framers | G51: B | H51: Framing & Sheathing | R51: 5 | S51: 5 | T51: 1
E52: ZONE D | F52: Steel Erectors | G52: A | H52: Structural Steel Supports | J52: H | R52: 2 | S52: 2 | T52: 1
F53: Framers | G53: B | H53: Framing & Sheathing | R53: 3 | S53: 3 | T53: 1
D54: NORTH | E54: ZONE A | F54: Steel Erectors | G54: A | H54: Structural Steel Supports | R54: 3 | S54: 3 | T54: 1
R55: =SUM(R29:R54) -> 50 | S55: =SUM(S29:S54) -> 47
R56: PPC = | S56: =S55/R55 -> 0.94

Sheet Roadblocks
C2: SOLVE PROBLEMS - By now you will have red markings everywhere on your boards and on Canva. Any of these that are issues that need to be solved now go on the issues board. - Once all issues are listed you can ids each of them and make assignments below. it is crucial that all assignments are sized in a way that they can be done the next day in that day. if they are bigger than that they go on the team scrum board.
C22: Roadblock Tracking and Removal Log (ISSUES)
C23: No. | D23: Roadblock | E23: Zone | F23: Date Added | G23: Affected Activity | H23: Who is on Point | I23: Classification | J23: Corrective Action | K23: Critical Date | L23: Count Down (Days) | M23: Date Resolved | N23: Process Time | O23: Score | P23: RR | Q23: Actions | S23: Dashboard
C24: 1 | D24: Roadblock 1 | E24: Zone 1 | F24: 2024-01-10 | G24: Activity X | H24: Person 1 | I24: Classification 4 | K24: 2024-01-22 | L24: =_xlfn.IFS(F24="","",M24="",K24-TODAY(),M24>0,M24-F24) -> 5 | M24: 2024-01-15 | N24: =_xlfn.IFS(F24="","",M24="","In Progress",M24>0,M24-F24) -> 5 | O24: =IF(D24="","",IF(N24="In Progress", "", M24-K24)) -> -7 | P24: =IF(Tabla24[[#This Row],[Date Resolved]]="","",Tabla24[[#This Row],[Critical Date]]-Tabla24[[#This Row],[Date Resolved]]) -> 7 | S24: Roadblock < 7 Days to Critical | U24: =COUNTIF(L24:L45,"<="&TODAY()+7) -> 3
C25: 2 | D25: Roadblock 2 | E25: Zone 2 | F25: 2024-01-22 | G25: Activity Y | H25: Person 2 | I25: General | K25: 2024-02-22 | L25: =_xlfn.IFS(F25="","",M25="",K25-TODAY(),M25>0,M25-F25) -> 29 | M25: 2024-02-20 | N25: =_xlfn.IFS(F25="","",M25="","In Progress",M25>0,M25-F25) -> 29 | O25: =IF(D25="","",IF(N25="In Progress", "", M25-K25)) -> -2 | P25: =IF(Tabla24[[#This Row],[Date Resolved]]="","",Tabla24[[#This Row],[Critical Date]]-Tabla24[[#This Row],[Date Resolved]]) -> 2 | S25: Uncleared Roadblocks | U25: =COUNTIFS(F24:F45,">=1",M24:M45,"") -> 0
C26: 3 | D26: Roadblock 3 | E26: Zone 3 | F26: 2024-02-23 | G26: Activity Z | H26: Person 3 | I26: Design | K26: 2024-04-15 | L26: =_xlfn.IFS(F26="","",M26="",K26-TODAY(),M26>0,M26-F26) -> 34 | M26: 2024-03-28 | N26: =_xlfn.IFS(F26="","",M26="","In Progress",M26>0,M26-F26) -> 34 | O26: =IF(D26="","",IF(N26="In Progress", "", M26-K26)) -> -18 | P26: =IF(Tabla24[[#This Row],[Date Resolved]]="","",Tabla24[[#This Row],[Critical Date]]-Tabla24[[#This Row],[Date Resolved]]) -> 18 | S26: Cleared Roadblocks | U26: =COUNTIF(M24:M45,">=1") -> 3
L27: =_xlfn.IFS(F27="","",M27="",K27-TODAY(),M27>0,M27-F27) ->  | N27: =_xlfn.IFS(F27="","",M27="","In Progress",M27>0,M27-F27) ->  | O27: =IF(D27="","",IF(N27="In Progress", "", M27-K27)) ->  | P27: =IF(Tabla24[[#This Row],[Date Resolved]]="","",Tabla24[[#This Row],[Critical Date]]-Tabla24[[#This Row],[Date Resolved]]) ->  | S27: Average Process Time | U27: =AVERAGE(N24:N45) -> 22.66666667
L28: =_xlfn.IFS(F28="","",M28="",K28-TODAY(),M28>0,M28-F28) ->  | N28: =_xlfn.IFS(F28="","",M28="","In Progress",M28>0,M28-F28) ->  | P28: =IF(Tabla24[[#This Row],[Date Resolved]]="","",Tabla24[[#This Row],[Critical Date]]-Tabla24[[#This Row],[Date Resolved]]) ->  | S28: Score | U28: =Tabla24[[#Totals],[Score]] -> -9
L29: =_xlfn.IFS(F29="","",M29="",K29-TODAY(),M29>0,M29-F29) ->  | N29: =_xlfn.IFS(F29="","",M29="","In Progress",M29>0,M29-F29) ->  | P29: =IF(Tabla24[[#This Row],[Date Resolved]]="","",Tabla24[[#This Row],[Critical Date]]-Tabla24[[#This Row],[Date Resolved]]) ->  | S29: Roadblock Removal Average | U29: =IFERROR(AVERAGE(Tabla24[RR]),"None") -> 9
L30: =_xlfn.IFS(F30="","",M30="",K30-TODAY(),M30>0,M30-F30) ->  | N30: =_xlfn.IFS(F30="","",M30="","In Progress",M30>0,M30-F30) ->  | P30: =IF(Tabla24[[#This Row],[Date Resolved]]="","",Tabla24[[#This Row],[Critical Date]]-Tabla24[[#This Row],[Date Resolved]]) -> 
L31: =_xlfn.IFS(F31="","",M31="",K31-TODAY(),M31>0,M31-F31) ->  | N31: =_xlfn.IFS(F31="","",M31="","In Progress",M31>0,M31-F31) ->  | P31: =IF(Tabla24[[#This Row],[Date Resolved]]="","",Tabla24[[#This Row],[Critical Date]]-Tabla24[[#This Row],[Date Resolved]]) ->  | S31: List for Who is on Point | U31: List for Classification
L32: =_xlfn.IFS(F32="","",M32="",K32-TODAY(),M32>0,M32-F32) ->  | N32: =_xlfn.IFS(F32="","",M32="","In Progress",M32>0,M32-F32) ->  | P32: =IF(Tabla24[[#This Row],[Date Resolved]]="","",Tabla24[[#This Row],[Critical Date]]-Tabla24[[#This Row],[Date Resolved]]) ->  | S32: Person 1 | U32: General
L33: =_xlfn.IFS(F33="","",M33="",K33-TODAY(),M33>0,M33-F33) ->  | N33: =_xlfn.IFS(F33="","",M33="","In Progress",M33>0,M33-F33) ->  | P33: =IF(Tabla24[[#This Row],[Date Resolved]]="","",Tabla24[[#This Row],[Critical Date]]-Tabla24[[#This Row],[Date Resolved]]) ->  | S33: Person 2 | U33: MEP
L34: =_xlfn.IFS(F34="","",M34="",K34-TODAY(),M34>0,M34-F34) ->  | N34: =_xlfn.IFS(F34="","",M34="","In Progress",M34>0,M34-F34) ->  | P34: =IF(Tabla24[[#This Row],[Date Resolved]]="","",Tabla24[[#This Row],[Critical Date]]-Tabla24[[#This Row],[Date Resolved]]) ->  | S34: Person 3 | U34: Design
L35: =_xlfn.IFS(F35="","",M35="",K35-TODAY(),M35>0,M35-F35) ->  | N35: =_xlfn.IFS(F35="","",M35="","In Progress",M35>0,M35-F35) ->  | P35: =IF(Tabla24[[#This Row],[Date Resolved]]="","",Tabla24[[#This Row],[Critical Date]]-Tabla24[[#This Row],[Date Resolved]]) ->  | S35: Person 4 | U35: Classification 4
L36: =_xlfn.IFS(F36="","",M36="",K36-TODAY(),M36>0,M36-F36) ->  | N36: =_xlfn.IFS(F36="","",M36="","In Progress",M36>0,M36-F36) ->  | P36: =IF(Tabla24[[#This Row],[Date Resolved]]="","",Tabla24[[#This Row],[Critical Date]]-Tabla24[[#This Row],[Date Resolved]]) ->  | S36: Person 5 | U36: Classification 5
L37: =_xlfn.IFS(F37="","",M37="",K37-TODAY(),M37>0,M37-F37) ->  | N37: =_xlfn.IFS(F37="","",M37="","In Progress",M37>0,M37-F37) ->  | P37: =IF(Tabla24[[#This Row],[Date Resolved]]="","",Tabla24[[#This Row],[Critical Date]]-Tabla24[[#This Row],[Date Resolved]]) ->  | U37: Classification 6
L38: =_xlfn.IFS(F38="","",M38="",K38-TODAY(),M38>0,M38-F38) ->  | N38: =_xlfn.IFS(F38="","",M38="","In Progress",M38>0,M38-F38) ->  | P38: =IF(Tabla24[[#This Row],[Date Resolved]]="","",Tabla24[[#This Row],[Critical Date]]-Tabla24[[#This Row],[Date Resolved]]) -> 
L39: =_xlfn.IFS(F39="","",M39="",K39-TODAY(),M39>0,M39-F39) ->  | N39: =_xlfn.IFS(F39="","",M39="","In Progress",M39>0,M39-F39) ->  | P39: =IF(Tabla24[[#This Row],[Date Resolved]]="","",Tabla24[[#This Row],[Critical Date]]-Tabla24[[#This Row],[Date Resolved]]) -> 
L40: =_xlfn.IFS(F40="","",M40="",K40-TODAY(),M40>0,M40-F40) ->  | N40: =_xlfn.IFS(F40="","",M40="","In Progress",M40>0,M40-F40) ->  | P40: =IF(Tabla24[[#This Row],[Date Resolved]]="","",Tabla24[[#This Row],[Critical Date]]-Tabla24[[#This Row],[Date Resolved]]) -> 
L41: =_xlfn.IFS(F41="","",M41="",K41-TODAY(),M41>0,M41-F41) ->  | N41: =_xlfn.IFS(F41="","",M41="","In Progress",M41>0,M41-F41) ->  | P41: =IF(Tabla24[[#This Row],[Date Resolved]]="","",Tabla24[[#This Row],[Critical Date]]-Tabla24[[#This Row],[Date Resolved]]) -> 
L42: =_xlfn.IFS(F42="","",M42="",K42-TODAY(),M42>0,M42-F42) ->  | N42: =_xlfn.IFS(F42="","",M42="","In Progress",M42>0,M42-F42) ->  | P42: =IF(Tabla24[[#This Row],[Date Resolved]]="","",Tabla24[[#This Row],[Critical Date]]-Tabla24[[#This Row],[Date Resolved]]) -> 
L43: =_xlfn.IFS(F43="","",M43="",K43-TODAY(),M43>0,M43-F43) ->  | N43: =_xlfn.IFS(F43="","",M43="","In Progress",M43>0,M43-F43) ->  | P43: =IF(Tabla24[[#This Row],[Date Resolved]]="","",Tabla24[[#This Row],[Critical Date]]-Tabla24[[#This Row],[Date Resolved]]) -> 
L44: =_xlfn.IFS(F44="","",M44="",K44-TODAY(),M44>0,M44-F44) ->  | N44: =_xlfn.IFS(F44="","",M44="","In Progress",M44>0,M44-F44) ->  | P44: =IF(Tabla24[[#This Row],[Date Resolved]]="","",Tabla24[[#This Row],[Critical Date]]-Tabla24[[#This Row],[Date Resolved]]) -> 
L45: =_xlfn.IFS(F45="","",M45="",K45-TODAY(),M45>0,M45-F45) ->  | N45: =_xlfn.IFS(F45="","",M45="","In Progress",M45>0,M45-F45) ->  | P45: =IF(Tabla24[[#This Row],[Date Resolved]]="","",Tabla24[[#This Row],[Critical Date]]-Tabla24[[#This Row],[Date Resolved]]) -> 
O46: =+AVERAGE(Tabla24[Score]) -> -9 | P46: =SUBTOTAL(101,Tabla24[RR]) -> 9

Sheet Day Plan (Manual)
B2: AFTERNOON FOREMAN HUDDLE 1. Make the day plan: 1 - Day 2. Review today 3. Discuss tomorrow 4. Fill out the day plan according to the agenda 5. Fill out any one-off activities
B27: SHOUT OUTS | C27: The Concrete crew is out to a great start. They are cleaning as they go when stripping. | Fire Sprinkler Trade is killing it with material staging.
B28: FEEDBACK | C28: Ask crews for feedback on bathrooms and lunch area…
B29: SAFETY FOCUS | C29: Biggest safety focus is being careful around stripping operations and removing all nails from wood stripped.
B30: PERMITS | C30: Electrical contractor has a dig permit at South exterior starting at 8am. Sign-off required before beginning. | Also, Structural Steel Contractor has a hot work permit at South Stair. No access and fire watch to stay 30 minutes later.
B31: WEATHER | C31: Clear and Sunny
B32: DELIVERIES | C32: Delivery of Duct on First Floor. Place in room designed on Logistics map.
B33: DAY PLAN | C33: Fire Sprinkler is starting in Zone 1. We have a first in place mockup inspection scheduled for Monday. Concrete continues in Zone 2.

Sheet Crew Board

Sheet KPIs

Sheet Scrum Board
B4: TEAM SCRUM BOARD 1. Any issues needing to scale to the team will be put into the backlog column 2. What did you do yesterday? 3. What will you do today? 4. What is standing in your way? 5. How can we help you? 6. How can we make this fun?
B12: TO DO | C12: TO DO THIS WEEK | D12: DO TODAY | E12: DONE

Sheet One Floor Norm Example
Y1: 2022 | AS1: 2023 | FW1: 2024 | PY1: 2025 | ZZ1: 2026 | AKA1: 2027
Y2: December | AS2: January | BO2: February | CI2: March | DF2: April | DZ2: May | EW2: June | FW2: January | GT2: February | HO2: March | IJ2: April | JF2: May | KC2: June | KW2: July | LT2: August | MP2: September | NK2: October | OH2: November | PC2: December | PY2: January | QV2: February | RP2: March | SK2: April | TG2: May | UC2: June | UX2: July | VU2: August | WP2: September | XL2: October | YI2: November | ZC2: December | ZZ2: January | AAV2: February | ABP2: March | ACL2: April | ADH2: May | AEC2: June | AEY2: July | AFV2: August | AGQ2: September | AHM2: October | AII2: November | AJD2: December | AKA2: January | AKW2: February | ALQ2: March | AMM2: April | ANI2: May | AOD2: June | AOZ2: July | APW2: August | AQR2: September | ARN2: October | ASJ2: November | ATE2: December
Y3: 2022-12-05 | Z3: 2022-12-06 | AA3: 2022-12-07 | AB3: 2022-12-08 | AC3: 2022-12-09 | AD3: 2022-12-12 | AE3: 2022-12-13 | AF3: 2022-12-14 | AG3: 2022-12-15 | AH3: 2022-12-16 | AI3: 2022-12-19 | AJ3: 2022-12-20 | AK3: 2022-12-21 | AL3: 2022-12-22 | AM3: 2022-12-23 | AN3: 2022-12-26 | AO3: 2022-12-27 | AP3: 2022-12-28 | AQ3: 2022-12-29 | AR3: 2022-12-30 | AS3: 2023-01-02 | AT3: 2023-01-03 | AU3: 2023-01-04 | AV3: 2023-01-05 | AW3: 2023-01-06 | AX3: 2023-01-09 | AY3: 2023-01-10 | AZ3: 2023-01-11 | BA3: 2023-01-12 | BB3: 2023-01-13 | BC3: 2023-01-16 | BD3: 2023-01-17 | BE3: 2023-01-18 | BF3: 2023-01-19 | BG3: 2023-01-20 | BH3: 2023-01-23 | BI3: 2023-01-24 | BJ3: 2023-01-25 | BK3: 2023-01-26 | BL3: 2023-01-27 | BM3: 2023-01-30 | BN3: 2023-01-31 | BO3: 2023-02-01 | BP3: 2023-02-02 | BQ3: 2023-02-03 | BR3: 2023-02-06 | BS3: 2023-02-07 | BT3: 2023-02-08 | BU3: 2023-02-09 | BV3: 2023-02-10 | BW3: 2023-02-13 | BX3: 2023-02-14 | BY3: 2023-02-15 | BZ3: 2023-02-16 | CA3: 2023-02-17 | CB3: 2023-02-20 | CC3: 2023-02-21 | CD3: 2023-02-22 | CE3: 2023-02-23 | CF3: 2023-02-24 | CG3: 2023-02-27 | CH3: 2023-02-28 | CI3: 2023-03-01 | CJ3: 2023-03-02 | CK3: 2023-03-03 | CL3: 2023-03-06 | CM3: 2023-03-07 | CN3: 2023-03-08 | CO3: 2023-03-09 | CP3: 2023-03-10 | CQ3: 2023-03-13 | CR3: 2023-03-14 | CS3: 2023-03-15 | CT3: 2023-03-16 | CU3: 2023-03-17 | CV3: 2023-03-20 | CW3: 2023-03-21 | CX3: 2023-03-22 | CY3: 2023-03-23 | CZ3: 2023-03-24 | DA3: 2023-03-27 | DB3: 2023-03-28 | DC3: 2023-03-29 | DD3: 2023-03-30 | DE3: 2023-03-31 | DF3: 2023-04-03 | DG3: 2023-04-04 | DH3: 2023-04-05 | DI3: 2023-04-06 | DJ3: 2023-04-07 | DK3: 2023-04-10 | DL3: 2023-04-11 | DM3: 2023-04-12 | DN3: 2023-04-13 | DO3: 2023-04-14 | DP3: 2023-04-17 | DQ3: 2023-04-18 | DR3: 2023-04-19 | DS3: 2023-04-20 | DT3: 2023-04-21 | DU3: 2023-04-24 | DV3: 2023-04-25 | DW3: 2023-04-26 | DX3: 2023-04-27 | DY3: 2023-04-28 | DZ3: 2023-05-01 | EA3: 2023-05-02 | EB3: 2023-05-03 | EC3: 2023-05-04 | ED3: 2023-05-05 | EE3: 2023-05-08 | EF3: 2023-05-09 | EG3: 2023-05-10 | EH3: 2023-05-11 | EI3: 2023-05-12 | EJ3: 2023-05-15 | EK3: 2023-05-16 | EL3: 2023-05-17 | EM3: 2023-05-18 | EN3: 2023-05-19 | EO3: 2023-05-22 | EP3: 2023-05-23 | EQ3: 2023-05-24 | ER3: 2023-05-25 | ES3: 2023-05-26 | ET3: 2023-05-29 | EU3: 2023-05-30 | EV3: 2023-05-31 | EW3: 2023-06-01 | EX3: 2023-06-02 | EY3: 2023-06-05 | EZ3: 2023-06-06 | FA3: 2023-06-07 | FB3: 2023-06-08 | FC3: 2023-06-09 | FD3: 2023-06-12 | FE3: 2023-06-13 | FF3: 2023-06-14 | FG3: 2023-06-15 | FH3: 2023-06-16 | FI3: 2023-06-19 | FJ3: 2023-06-20 | FK3: 2023-06-21 | FL3: 2023-06-22 | FM3: 2023-06-23 | FN3: 2023-06-26 | FO3: 2023-06-27 | FP3: 2023-06-28 | FQ3: 2023-06-29 | FR3: 2023-06-30 | FW3: 2024-01-01 | FX3: 2024-01-02 | FY3: 2024-01-03 | FZ3: 2024-01-04 | GA3: 2024-01-05 | GB3: 2024-01-08 | GC3: 2024-01-09 | GD3: 2024-01-10 | GE3: 2024-01-11 | GF3: 2024-01-12 | GG3: 2024-01-15 | GH3: 2024-01-16 | GI3: 2024-01-17 | GJ3: 2024-01-18 | GK3: 2024-01-19 | GL3: 2024-01-22 | GM3: 2024-01-23 | GN3: 2024-01-24 | GO3: 2024-01-25 | GP3: 2024-01-26 | GQ3: 2024-01-29 | GR3: 2024-01-30 | GS3: 2024-01-31 | GT3: 2024-02-01 | GU3: 2024-02-02 | GV3: 2024-02-05 | GW3: 2024-02-06 | GX3: 2024-02-07 | GY3: 2024-02-08 | GZ3: 2024-02-09 | HA3: 2024-02-12 | HB3: 2024-02-13 | HC3: 2024-02-14 | HD3: 2024-02-15 | HE3: 2024-02-16 | HF3: 2024-02-19 | HG3: 2024-02-20 | HH3: 2024-02-21 | HI3: 2024-02-22 | HJ3: 2024-02-23 | HK3: 2024-02-26 | HL3: 2024-02-27 | HM3: 2024-02-28 | HN3: 2024-02-29 | HO3: 2024-03-01 | HP3: 2024-03-04 | HQ3: 2024-03-05 | HR3: 2024-03-06 | HS3: 2024-03-07 | HT3: 2024-03-08 | HU3: 2024-03-11 | HV3: 2024-03-12 | HW3: 2024-03-13 | HX3: 2024-03-14 | HY3: 2024-03-15 | HZ3: 2024-03-18 | IA3: 2024-03-19 | IB3: 2024-03-20 | IC3: 2024-03-21 | ID3: 2024-03-22 | IE3: 2024-03-25 | IF3: 2024-03-26 | IG3: 2024-03-27 | IH3: 2024-03-28 | II3: 2024-03-29 | IJ3: 2024-04-01 | IK3: 2024-04-02 | IL3: 2024-04-03 | IM3: 2024-04-04 | IN3: 2024-04-05 | IO3: 2024-04-08 | IP3: 2024-04-09 | IQ3: 2024-04-10 | IR3: 2024-04-11 | IS3: 2024-04-12 | IT3: 2024-04-15 | IU3: 2024-04-16 | IV3: 2024-04-17 | IW3: 2024-04-18 | IX3: 2024-04-19 | IY3: 2024-04-22 | IZ3: 2024-04-23 | JA3: 2024-04-24 | JB3: 2024-04-25 | JC3: 2024-04-26 | JD3: 2024-04-29 | JE3: 2024-04-30 | JF3: 2024-05-01 | JG3: 2024-05-02 | JH3: 2024-05-03 | JI3: 2024-05-06 | JJ3: 2024-05-07 | JK3: 2024-05-08 | JL3: 2024-05-09 | JM3: 2024-05-10 | JN3: 2024-05-13 | JO3: 2024-05-14 | JP3: 2024-05-15 | JQ3: 2024-05-16 | JR3: 2024-05-17 | JS3: 2024-05-20 | JT3: 2024-05-21 | JU3: 2024-05-22 | JV3: 2024-05-23 | JW3: 2024-05-24 | JX3: 2024-05-27 | JY3: 2024-05-28 | JZ3: 2024-05-29 | KA3: 2024-05-30 | KB3: 2024-05-31 | KC3: 2024-06-03 | KD3: 2024-06-04 | KE3: 2024-06-05 | KF3: 2024-06-06 | KG3: 2024-06-07 | KH3: 2024-06-10 | KI3: 2024-06-11 | KJ3: 2024-06-12 | KK3: 2024-06-13 | KL3: 2024-06-14 | KM3: 2024-06-17 | KN3: 2024-06-18 | KO3: 2024-06-19 | KP3: 2024-06-20 | KQ3: 2024-06-21 | KR3: 2024-06-24 | KS3: 2024-06-25 | KT3: 2024-06-26 | KU3: 2024-06-27 | KV3: 2024-06-28 | KW3: 2024-07-01 | KX3: 2024-07-02 | KY3: 2024-07-03 | KZ3: 2024-07-04 | LA3: 2024-07-05 | LB3: 2024-07-08 | LC3: 2024-07-09 | LD3: 2024-07-10 | LE3: 2024-07-11 | LF3: 2024-07-12 | LG3: 2024-07-15 | LH3: 2024-07-16 | LI3: 2024-07-17 | LJ3: 2024-07-18 | LK3: 2024-07-19 | LL3: 2024-07-22 | LM3: 2024-07-23 | LN3: 2024-07-24 | LO3: 2024-07-25 | LP3: 2024-07-26 | LQ3: 2024-07-29 | LR3: 2024-07-30 | LS3: 2024-07-31 | LT3: 2024-08-01 | LU3: 2024-08-02 | LV3: 2024-08-05 | LW3: 2024-08-06 | LX3: 2024-08-07 | LY3: 2024-08-08 | LZ3: 2024-08-09 | MA3: 2024-08-12 | MB3: 2024-08-13 | MC3: 2024-08-14 | MD3: 2024-08-15 | ME3: 2024-08-16 | MF3: 2024-08-19 | MG3: 2024-08-20 | MH3: 2024-08-21 | MI3: 2024-08-22 | MJ3: 2024-08-23 | MK3: 2024-08-26 | ML3: 2024-08-27 | MM3: 2024-08-28 | MN3: 2024-08-29 | MO3: 2024-08-30 | MP3: 2024-09-02 | MQ3: 2024-09-03 | MR3: 2024-09-04 | MS3: 2024-09-05 | MT3: 2024-09-06 | MU3: 2024-09-09 | MV3: 2024-09-10 | MW3: 2024-09-11 | MX3: 2024-09-12 | MY3: 2024-09-13 | MZ3: 2024-09-16 | NA3: 2024-09-17 | NB3: 2024-09-18 | NC3: 2024-09-19 | ND3: 2024-09-20 | NE3: 2024-09-23 | NF3: 2024-09-24 | NG3: 2024-09-25 | NH3: 2024-09-26 | NI3: 2024-09-27 | NJ3: 2024-09-30 | NK3: 2024-10-01 | NL3: 2024-10-02 | NM3: 2024-10-03 | NN3: 2024-10-04 | NO3: 2024-10-07 | NP3: 2024-10-08 | NQ3: 2024-10-09 | NR3: 2024-10-10 | NS3: 2024-10-11 | NT3: 2024-10-14 | NU3: 2024-10-15 | NV3: 2024-10-16 | NW3: 2024-10-17 | NX3: 2024-10-18 | NY3: 2024-10-21 | NZ3: 2024-10-22 | OA3: 2024-10-23 | OB3: 2024-10-24 | OC3: 2024-10-25 | OD3: 2024-10-28 | OE3: 2024-10-29 | OF3: 2024-10-30 | OG3: 2024-10-31 | OH3: 2024-11-01 | OI3: 2024-11-04 | OJ3: 2024-11-05 | OK3: 2024-11-06 | OL3: 2024-11-07 | OM3: 2024-11-08 | ON3: 2024-11-11 | OO3: 2024-11-12 | OP3: 2024-11-13 | OQ3: 2024-11-14 | OR3: 2024-11-15 | OS3: 2024-11-18 | OT3: 2024-11-19 | OU3: 2024-11-20 | OV3: 2024-11-21 | OW3: 2024-11-22 | OX3: 2024-11-25 | OY3: 2024-11-26 | OZ3: 2024-11-27 | PA3: 2024-11-28 | PB3: 2024-11-29 | PC3: 2024-12-02 | PD3: 2024-12-03 | PE3: 2024-12-04 | PF3: 2024-12-05 | PG3: 2024-12-06 | PH3: 2024-12-09 | PI3: 2024-12-10 | PJ3: 2024-12-11 | PK3: 2024-12-12 | PL3: 2024-12-13 | PM3: 2024-12-16 | PN3: 2024-12-17 | PO3: 2024-12-18 | PP3: 2024-12-19 | PQ3: 2024-12-20 | PR3: 2024-12-23 | PS3: 2024-12-24 | PT3: 2024-12-25 | PU3: 2024-12-26 | PV3: 2024-12-27 | PW3: 2024-12-30 | PX3: 2024-12-31 | PY3: 2025-01-01 | PZ3: 2025-01-02 | QA3: 2025-01-03 | QB3: 2025-01-06 | QC3: 2025-01-07 | QD3: 2025-01-08 | QE3: 2025-01-09 | QF3: 2025-01-10 | QG3: 2025-01-13 | QH3: 2025-01-14 | QI3: 2025-01-15 | QJ3: 2025-01-16 | QK3: 2025-01-17 | QL3: 2025-01-20 | QM3: 2025-01-21 | QN3: 2025-01-22 | QO3: 2025-01-23 | QP3: 2025-01-24 | QQ3: 2025-01-27 | QR3: 2025-01-28 | QS3: 2025-01-29 | QT3: 2025-01-30 | QU3: 2025-01-31 | QV3: 2025-02-03 | QW3: 2025-02-04 | QX3: 2025-02-05 | QY3: 2025-02-06 | QZ3: 2025-02-07 | RA3: 2025-02-10 | RB3: 2025-02-11 | RC3: 2025-02-12 | RD3: 2025-02-13 | RE3: 2025-02-14 | RF3: 2025-02-17 | RG3: 2025-02-18 | RH3: 2025-02-19 | RI3: 2025-02-20 | RJ3: 2025-02-21 | RK3: 2025-02-24 | RL3: 2025-02-25 | RM3: 2025-02-26 | RN3: 2025-02-27 | RO3: 2025-02-28 | RP3: 2025-03-03 | RQ3: 2025-03-04 | RR3: 2025-03-05 | RS3: 2025-03-06 | RT3: 2025-03-07 | RU3: 2025-03-10 | RV3: 2025-03-11 | RW3: 2025-03-12 | RX3: 2025-03-13 | RY3: 2025-03-14 | RZ3: 2025-03-17 | SA3: 2025-03-18 | SB3: 2025-03-19 | SC3: 2025-03-20 | SD3: 2025-03-21 | SE3: 2025-03-24 | SF3: 2025-03-25 | SG3: 2025-03-26 | SH3: 2025-03-27 | SI3: 2025-03-28 | SJ3: 2025-03-31 | SK3: 2025-04-01 | SL3: 2025-04-02 | SM3: 2025-04-03 | SN3: 2025-04-04 | SO3: 2025-04-07 | SP3: 2025-04-08 | SQ3: 2025-04-09 | SR3: 2025-04-10 | SS3: 2025-04-11 | ST3: 2025-04-14 | SU3: 2025-04-15 | SV3: 2025-04-16 | SW3: 2025-04-17 | SX3: 2025-04-18 | SY3: 2025-04-21 | SZ3: 2025-04-22 | TA3: 2025-04-23 | TB3: 2025-04-24 | TC3: 2025-04-25 | TD3: 2025-04-28 | TE3: 2025-04-29 | TF3: 2025-04-30 | TG3: 2025-05-01 | TH3: 2025-05-02 | TI3: 2025-05-05 | TJ3: 2025-05-06 | TK3: 2025-05-07 | TL3: 2025-05-08 | TM3: 2025-05-09 | TN3: 2025-05-12 | TO3: 2025-05-13 | TP3: 2025-05-14 | TQ3: 2025-05-15 | TR3: 2025-05-16 | TS3: 2025-05-19 | TT3: 2025-05-20 | TU3: 2025-05-21 | TV3: 2025-05-22 | TW3: 2025-05-23 | TX3: 2025-05-26 | TY3: 2025-05-27 | TZ3: 2025-05-28 | UA3: 2025-05-29 | UB3: 2025-05-30 | UC3: 2025-06-02 | UD3: 2025-06-03 | UE3: 2025-06-04 | UF3: 2025-06-05 | UG3: 2025-06-06 | UH3: 2025-06-09 | UI3: 2025-06-10 | UJ3: 2025-06-11 | UK3: 2025-06-12 | UL3: 2025-06-13 | UM3: 2025-06-16 | UN3: 2025-06-17 | UO3: 2025-06-18 | UP3: 2025-06-19 | UQ3: 2025-06-20 | UR3: 2025-06-23 | US3: 2025-06-24 | UT3: 2025-06-25 | UU3: 2025-06-26 | UV3: 2025-06-27 | UW3: 2025-06-30 | UX3: 2025-07-01 | UY3: 2025-07-02 | UZ3: 2025-07-03 | VA3: 2025-07-04 | VB3: 2025-07-07 | VC3: 2025-07-08 | VD3: 2025-07-09 | VE3: 2025-07-10 | VF3: 2025-07-11 | VG3: 2025-07-14 | VH3: 2025-07-15 | VI3: 2025-07-16 | VJ3: 2025-07-17 | VK3: 2025-07-18 | VL3: 2025-07-21 | VM3: 2025-07-22 | VN3: 2025-07-23 | VO3: 2025-07-24 | VP3: 2025-07-25 | VQ3: 2025-07-28 | VR3: 2025-07-29 | VS3: 2025-07-30 | VT3: 2025-07-31 | VU3: 2025-08-01 | VV3: 2025-08-04 | VW3: 2025-08-05 | VX3: 2025-08-06 | VY3: 2025-08-07 | VZ3: 2025-08-08 | WA3: 2025-08-11 | WB3: 2025-08-12 | WC3: 2025-08-13 | WD3: 2025-08-14 | WE3: 2025-08-15 | WF3: 2025-08-18 | WG3: 2025-08-19 | WH3: 2025-08-20 | WI3: 2025-08-21 | WJ3: 2025-08-22 | WK3: 2025-08-25 | WL3: 2025-08-26 | WM3: 2025-08-27 | WN3: 2025-08-28 | WO3: 2025-08-29 | WP3: 2025-09-01 | WQ3: 2025-09-02 | WR3: 2025-09-03 | WS3: 2025-09-04 | WT3: 2025-09-05 | WU3: 2025-09-08 | WV3: 2025-09-09 | WW3: 2025-09-10 | WX3: 2025-09-11 | WY3: 2025-09-12 | WZ3: 2025-09-15 | XA3: 2025-09-16 | XB3: 2025-09-17 | XC3: 2025-09-18 | XD3: 2025-09-19 | XE3: 2025-09-22 | XF3: 2025-09-23 | XG3: 2025-09-24 | XH3: 2025-09-25 | XI3: 2025-09-26 | XJ3: 2025-09-29 | XK3: 2025-09-30 | XL3: 2025-10-01 | XM3: 2025-10-02 | XN3: 2025-10-03 | XO3: 2025-10-06 | XP3: 2025-10-07 | XQ3: 2025-10-08 | XR3: 2025-10-09 | XS3: 2025-10-10 | XT3: 2025-10-13 | XU3: 2025-10-14 | XV3: 2025-10-15 | XW3: 2025-10-16 | XX3: 2025-10-17 | XY3: 2025-10-20 | XZ3: 2025-10-21 | YA3: 2025-10-22 | YB3: 2025-10-23 | YC3: 2025-10-24 | YD3: 2025-10-27 | YE3: 2025-10-28 | YF3: 2025-10-29 | YG3: 2025-10-30 | YH3: 2025-10-31 | YI3: 2025-11-03 | YJ3: 2025-11-04 | YK3: 2025-11-05 | YL3: 2025-11-06 | YM3: 2025-11-07 | YN3: 2025-11-10 | YO3: 2025-11-11 | YP3: 2025-11-12 | YQ3: 2025-11-13 | YR3: 2025-11-14 | YS3: 2025-11-17 | YT3: 2025-11-18 | YU3: 2025-11-19 | YV3: 2025-11-20 | YW3: 2025-11-21 | YX3: 2025-11-24 | YY3: 2025-11-25 | YZ3: 2025-11-26 | ZA3: 2025-11-27 | ZB3: 2025-11-28 | ZC3: 2025-12-01 | ZD3: 2025-12-02 | ZE3: 2025-12-03 | ZF3: 2025-12-04 | ZG3: 2025-12-05 | ZH3: 2025-12-08 | ZI3: 2025-12-09 | ZJ3: 2025-12-10 | ZK3: 2025-12-11 | ZL3: 2025-12-12 | ZM3: 2025-12-15 | ZN3: 2025-12-16 | ZO3: 2025-12-17 | ZP3: 2025-12-18 | ZQ3: 2025-12-19 | ZR3: 2025-12-22 | ZS3: 2025-12-23 | ZT3: 2025-12-24 | ZU3: 2025-12-25 | ZV3: 2025-12-26 | ZW3: 2025-12-29 | ZX3: 2025-12-30 | ZY3: 2025-12-31 | ZZ3: 2026-01-01 | AAA3: 2026-01-02 | AAB3: 2026-01-05 | AAC3: 2026-01-06 | AAD3: 2026-01-07 | AAE3: 2026-01-08 | AAF3: 2026-01-09 | AAG3: 2026-01-12 | AAH3: 2026-01-13 | AAI3: 2026-01-14 | AAJ3: 2026-01-15 | AAK3: 2026-01-16 | AAL3: 2026-01-19 | AAM3: 2026-01-20 | AAN3: 2026-01-21 | AAO3: 2026-01-22 | AAP3: 2026-01-23 | AAQ3: 2026-01-26 | AAR3: 2026-01-27 | AAS3: 2026-01-28 | AAT3: 2026-01-29 | AAU3: 2026-01-30 | AAV3: 2026-02-02 | AAW3: 2026-02-03 | AAX3: 2026-02-04 | AAY3: 2026-02-05 | AAZ3: 2026-02-06 | ABA3: 2026-02-09 | ABB3: 2026-02-10 | ABC3: 2026-02-11 | ABD3: 2026-02-12 | ABE3: 2026-02-13 | ABF3: 2026-02-16 | ABG3: 2026-02-17 | ABH3: 2026-02-18 | ABI3: 2026-02-19 | ABJ3: 2026-02-20 | ABK3: 2026-02-23 | ABL3: 2026-02-24 | ABM3: 2026-02-25 | ABN3: 2026-02-26 | ABO3: 2026-02-27 | ABP3: 2026-03-02 | ABQ3: 2026-03-03 | ABR3: 2026-03-04 | ABS3: 2026-03-05 | ABT3: 2026-03-06 | ABU3: 2026-03-09 | ABV3: 2026-03-10 | ABW3: 2026-03-11 | ABX3: 2026-03-12 | ABY3: 2026-03-13 | ABZ3: 2026-03-16 | ACA3: 2026-03-17 | ACB3: 2026-03-18 | ACC3: 2026-03-19 | ACD3: 2026-03-20 | ACE3: 2026-03-23 | ACF3: 2026-03-24 | ACG3: 2026-03-25 | ACH3: 2026-03-26 | ACI3: 2026-03-27 | ACJ3: 2026-03-30 | ACK3: 2026-03-31 | ACL3: 2026-04-01 | ACM3: 2026-04-02 | ACN3: 2026-04-03 | ACO3: 2026-04-06 | ACP3: 2026-04-07 | ACQ3: 2026-04-08 | ACR3: 2026-04-09 | ACS3: 2026-04-10 | ACT3: 2026-04-13 | ACU3: 2026-04-14 | ACV3: 2026-04-15 | ACW3: 2026-04-16 | ACX3: 2026-04-17 | ACY3: 2026-04-20 | ACZ3: 2026-04-21 | ADA3: 2026-04-22 | ADB3: 2026-04-23 | ADC3: 2026-04-24 | ADD3: 2026-04-27 | ADE3: 2026-04-28 | ADF3: 2026-04-29 | ADG3: 2026-04-30 | ADH3: 2026-05-01 | ADI3: 2026-05-04 | ADJ3: 2026-05-05 | ADK3: 2026-05-06 | ADL3: 2026-05-07 | ADM3: 2026-05-08 | ADN3: 2026-05-11 | ADO3: 2026-05-12 | ADP3: 2026-05-13 | ADQ3: 2026-05-14 | ADR3: 2026-05-15 | ADS3: 2026-05-18 | ADT3: 2026-05-19 | ADU3: 2026-05-20 | ADV3: 2026-05-21 | ADW3: 2026-05-22 | ADX3: 2026-05-25 | ADY3: 2026-05-26 | ADZ3: 2026-05-27 | AEA3: 2026-05-28 | AEB3: 2026-05-29 | AEC3: 2026-06-01 | AED3: 2026-06-02 | AEE3: 2026-06-03 | AEF3: 2026-06-04 | AEG3: 2026-06-05 | AEH3: 2026-06-08 | AEI3: 2026-06-09 | AEJ3: 2026-06-10 | AEK3: 2026-06-11 | AEL3: 2026-06-12 | AEM3: 2026-06-15 | AEN3: 2026-06-16 | AEO3: 2026-06-17 | AEP3: 2026-06-18 | AEQ3: 2026-06-19 | AER3: 2026-06-22 | AES3: 2026-06-23 | AET3: 2026-06-24 | AEU3: 2026-06-25 | AEV3: 2026-06-26 | AEW3: 2026-06-29 | AEX3: 2026-06-30 | AEY3: 2026-07-01 | AEZ3: 2026-07-02 | AFA3: 2026-07-03 | AFB3: 2026-07-06 | AFC3: 2026-07-07 | AFD3: 2026-07-08 | AFE3: 2026-07-09 | AFF3: 2026-07-10 | AFG3: 2026-07-13 | AFH3: 2026-07-14 | AFI3: 2026-07-15 | AFJ3: 2026-07-16 | AFK3: 2026-07-17 | AFL3: 2026-07-20 | AFM3: 2026-07-21 | AFN3: 2026-07-22 | AFO3: 2026-07-23 | AFP3: 2026-07-24 | AFQ3: 2026-07-27 | AFR3: 2026-07-28 | AFS3: 2026-07-29 | AFT3: 2026-07-30 | AFU3: 2026-07-31 | AFV3: 2026-08-03 | AFW3: 2026-08-04 | AFX3: 2026-08-05 | AFY3: 2026-08-06 | AFZ3: 2026-08-07 | AGA3: 2026-08-10 | AGB3: 2026-08-11 | AGC3: 2026-08-12 | AGD3: 2026-08-13 | AGE3: 2026-08-14 | AGF3: 2026-08-17 | AGG3: 2026-08-18 | AGH3: 2026-08-19 | AGI3: 2026-08-20 | AGJ3: 2026-08-21 | AGK3: 2026-08-24 | AGL3: 2026-08-25 | AGM3: 2026-08-26 | AGN3: 2026-08-27 | AGO3: 2026-08-28 | AGP3: 2026-08-31 | AGQ3: 2026-09-01 | AGR3: 2026-09-02 | AGS3: 2026-09-03 | AGT3: 2026-09-04 | AGU3: 2026-09-07 | AGV3: 2026-09-08 | AGW3: 2026-09-09 | AGX3: 2026-09-10 | AGY3: 2026-09-11 | AGZ3: 2026-09-14 | AHA3: 2026-09-15 | AHB3: 2026-09-16 | AHC3: 2026-09-17 | AHD3: 2026-09-18 | AHE3: 2026-09-21 | AHF3: 2026-09-22 | AHG3: 2026-09-23 | AHH3: 2026-09-24 | AHI3: 2026-09-25 | AHJ3: 2026-09-28 | AHK3: 2026-09-29 | AHL3: 2026-09-30 | AHM3: 2026-10-01 | AHN3: 2026-10-02 | AHO3: 2026-10-05 | AHP3: 2026-10-06 | AHQ3: 2026-10-07 | AHR3: 2026-10-08 | AHS3: 2026-10-09 | AHT3: 2026-10-12 | AHU3: 2026-10-13 | AHV3: 2026-10-14 | AHW3: 2026-10-15 | AHX3: 2026-10-16 | AHY3: 2026-10-19 | AHZ3: 2026-10-20 | AIA3: 2026-10-21 | AIB3: 2026-10-22 | AIC3: 2026-10-23 | AID3: 2026-10-26 | AIE3: 2026-10-27 | AIF3: 2026-10-28 | AIG3: 2026-10-29 | AIH3: 2026-10-30 | AII3: 2026-11-02 | AIJ3: 2026-11-03 | AIK3: 2026-11-04 | AIL3: 2026-11-05 | AIM3: 2026-11-06 | AIN3: 2026-11-09 | AIO3: 2026-11-10 | AIP3: 2026-11-11 | AIQ3: 2026-11-12 | AIR3: 2026-11-13 | AIS3: 2026-11-16 | AIT3: 2026-11-17 | AIU3: 2026-11-18 | AIV3: 2026-11-19 | AIW3: 2026-11-20 | AIX3: 2026-11-23 | AIY3: 2026-11-24 | AIZ3: 2026-11-25 | AJA3: 2026-11-26 | AJB3: 2026-11-27 | AJC3: 2026-11-30 | AJD3: 2026-12-01 | AJE3: 2026-12-02 | AJF3: 2026-12-03 | AJG3: 2026-12-04 | AJH3: 2026-12-07 | AJI3: 2026-12-08 | AJJ3: 2026-12-09 | AJK3: 2026-12-10 | AJL3: 2026-12-11 | AJM3: 2026-12-14 | AJN3: 2026-12-15 | AJO3: 2026-12-16 | AJP3: 2026-12-17 | AJQ3: 2026-12-18 | AJR3: 2026-12-21 | AJS3: 2026-12-22 | AJT3: 2026-12-23 | AJU3: 2026-12-24 | AJV3: 2026-12-25 | AJW3: 2026-12-28 | AJX3: 2026-12-29 | AJY3: 2026-12-30 | AJZ3: 2026-12-31 | AKA3: 2027-01-01 | AKB3: 2027-01-04 | AKC3: 2027-01-05 | AKD3: 2027-01-06 | AKE3: 2027-01-07 | AKF3: 2027-01-08 | AKG3: 2027-01-11 | AKH3: 2027-01-12 | AKI3: 2027-01-13 | AKJ3: 2027-01-14 | AKK3: 2027-01-15 | AKL3: 2027-01-18 | AKM3: 2027-01-19 | AKN3: 2027-01-20 | AKO3: 2027-01-21 | AKP3: 2027-01-22 | AKQ3: 2027-01-25 | AKR3: 2027-01-26 | AKS3: 2027-01-27 | AKT3: 2027-01-28 | AKU3: 2027-01-29 | AKV3: 2027-02-01 | AKW3: 2027-02-02 | AKX3: 2027-02-03 | AKY3: 2027-02-04 | AKZ3: 2027-02-05 | ALA3: 2027-02-08 | ALB3: 2027-02-09 | ALC3: 2027-02-10 | ALD3: 2027-02-11 | ALE3: 2027-02-12 | ALF3: 2027-02-15 | ALG3: 2027-02-16 | ALH3: 2027-02-17 | ALI3: 2027-02-18 | ALJ3: 2027-02-19 | ALK3: 2027-02-22 | ALL3: 2027-02-23 | ALM3: 2027-02-24 | ALN3: 2027-02-25 | ALO3: 2027-02-26 | ALP3: 2027-03-01 | ALQ3: 2027-03-02 | ALR3: 2027-03-03 | ALS3: 2027-03-04 | ALT3: 2027-03-05 | ALU3: 2027-03-08 | ALV3: 2027-03-09 | ALW3: 2027-03-10 | ALX3: 2027-03-11 | ALY3: 2027-03-12 | ALZ3: 2027-03-15 | AMA3: 2027-03-16 | AMB3: 2027-03-17 | AMC3: 2027-03-18 | AMD3: 2027-03-19 | AME3: 2027-03-22 | AMF3: 2027-03-23 | AMG3: 2027-03-24 | AMH3: 2027-03-25 | AMI3: 2027-03-26 | AMJ3: 2027-03-29 | AMK3: 2027-03-30 | AML3: 2027-03-31 | AMM3: 2027-04-01 | AMN3: 2027-04-02 | AMO3: 2027-04-05 | AMP3: 2027-04-06 | AMQ3: 2027-04-07 | AMR3: 2027-04-08 | AMS3: 2027-04-09 | AMT3: 2027-04-12 | AMU3: 2027-04-13 | AMV3: 2027-04-14 | AMW3: 2027-04-15 | AMX3: 2027-04-16 | AMY3: 2027-04-19 | AMZ3: 2027-04-20 | ANA3: 2027-04-21 | ANB3: 2027-04-22 | ANC3: 2027-04-23 | AND3: 2027-04-26 | ANE3: 2027-04-27 | ANF3: 2027-04-28 | ANG3: 2027-04-29 | ANH3: 2027-04-30 | ANI3: 2027-05-03 | ANJ3: 2027-05-04 | ANK3: 2027-05-05 | ANL3: 2027-05-06 | ANM3: 2027-05-07 | ANN3: 2027-05-10 | ANO3: 2027-05-11 | ANP3: 2027-05-12 | ANQ3: 2027-05-13 | ANR3: 2027-05-14 | ANS3: 2027-05-17 | ANT3: 2027-05-18 | ANU3: 2027-05-19 | ANV3: 2027-05-20 | ANW3: 2027-05-21 | ANX3: 2027-05-24 | ANY3: 2027-05-25 | ANZ3: 2027-05-26 | AOA3: 2027-05-27 | AOB3: 2027-05-28 | AOC3: 2027-05-31 | AOD3: 2027-06-01 | AOE3: 2027-06-02 | AOF3: 2027-06-03 | AOG3: 2027-06-04 | AOH3: 2027-06-07 | AOI3: 2027-06-08 | AOJ3: 2027-06-09 | AOK3: 2027-06-10 | AOL3: 2027-06-11 | AOM3: 2027-06-14 | AON3: 2027-06-15 | AOO3: 2027-06-16 | AOP3: 2027-06-17 | AOQ3: 2027-06-18 | AOR3: 2027-06-21 | AOS3: 2027-06-22 | AOT3: 2027-06-23 | AOU3: 2027-06-24 | AOV3: 2027-06-25 | AOW3: 2027-06-28 | AOX3: 2027-06-29 | AOY3: 2027-06-30 | AOZ3: 2027-07-01 | APA3: 2027-07-02 | APB3: 2027-07-05 | APC3: 2027-07-06 | APD3: 2027-07-07 | APE3: 2027-07-08 | APF3: 2027-07-09 | APG3: 2027-07-12 | APH3: 2027-07-13 | API3: 2027-07-14 | APJ3: 2027-07-15 | APK3: 2027-07-16 | APL3: 2027-07-19 | APM3: 2027-07-20 | APN3: 2027-07-21 | APO3: 2027-07-22 | APP3: 2027-07-23 | APQ3: 2027-07-26 | APR3: 2027-07-27 | APS3: 2027-07-28 | APT3: 2027-07-29 | APU3: 2027-07-30 | APV3: 2027-08-02 | APW3: 2027-08-03 | APX3: 2027-08-04 | APY3: 2027-08-05 | APZ3: 2027-08-06 | AQA3: 2027-08-09 | AQB3: 2027-08-10 | AQC3: 2027-08-11 | AQD3: 2027-08-12 | AQE3: 2027-08-13 | AQF3: 2027-08-16 | AQG3: 2027-08-17 | AQH3: 2027-08-18 | AQI3: 2027-08-19 | AQJ3: 2027-08-20 | AQK3: 2027-08-23 | AQL3: 2027-08-24 | AQM3: 2027-08-25 | AQN3: 2027-08-26 | AQO3: 2027-08-27 | AQP3: 2027-08-30 | AQQ3: 2027-08-31 | AQR3: 2027-09-01 | AQS3: 2027-09-02 | AQT3: 2027-09-03 | AQU3: 2027-09-06 | AQV3: 2027-09-07 | AQW3: 2027-09-08 | AQX3: 2027-09-09 | AQY3: 2027-09-10 | AQZ3: 2027-09-13 | ARA3: 2027-09-14 | ARB3: 2027-09-15 | ARC3: 2027-09-16 | ARD3: 2027-09-17 | ARE3: 2027-09-20 | ARF3: 2027-09-21 | ARG3: 2027-09-22 | ARH3: 2027-09-23 | ARI3: 2027-09-24 | ARJ3: 2027-09-27 | ARK3: 2027-09-28 | ARL3: 2027-09-29 | ARM3: 2027-09-30 | ARN3: 2027-10-01 | ARO3: 2027-10-04 | ARP3: 2027-10-05 | ARQ3: 2027-10-06 | ARR3: 2027-10-07 | ARS3: 2027-10-08 | ART3: 2027-10-11 | ARU3: 2027-10-12 | ARV3: 2027-10-13 | ARW3: 2027-10-14 | ARX3: 2027-10-15 | ARY3: 2027-10-18 | ARZ3: 2027-10-19 | ASA3: 2027-10-20 | ASB3: 2027-10-21 | ASC3: 2027-10-22 | ASD3: 2027-10-25 | ASE3: 2027-10-26 | ASF3: 2027-10-27 | ASG3: 2027-10-28 | ASH3: 2027-10-29 | ASI3: 2027-11-01 | ASJ3: 2027-11-02 | ASK3: 2027-11-03 | ASL3: 2027-11-04 | ASM3: 2027-11-05 | ASN3: 2027-11-08 | ASO3: 2027-11-09 | ASP3: 2027-11-10 | ASQ3: 2027-11-11 | ASR3: 2027-11-12 | ASS3: 2027-11-15 | AST3: 2027-11-16 | ASU3: 2027-11-17 | ASV3: 2027-11-18 | ASW3: 2027-11-19 | ASX3: 2027-11-22 | ASY3: 2027-11-23 | ASZ3: 2027-11-24 | ATA3: 2027-11-25 | ATB3: 2027-11-26 | ATC3: 2027-11-29 | ATD3: 2027-11-30 | ATE3: 2027-12-01 | ATF3: 2027-12-02 | ATG3: 2027-12-03 | ATH3: 2027-12-06 | ATI3: 2027-12-07 | ATJ3: 2027-12-08 | ATK3: 2027-12-09 | ATL3: 2027-12-10 | ATM3: 2027-12-13 | ATN3: 2027-12-14 | ATO3: 2027-12-15 | ATP3: 2027-12-16 | ATQ3: 2027-12-17 | ATR3: 2027-12-20 | ATS3: 2027-12-21 | ATT3: 2027-12-22 | ATU3: 2027-12-23 | ATV3: 2027-12-24 | ATW3: 2027-12-27 | ATX3: 2027-12-28 | ATY3: 2027-12-29 | ATZ3: 2027-12-30 | AUA3: 2027-12-31
Y4: M | Z4: T | AA4: W | AB4: TH | AC4: F | AD4: M | AE4: T | AF4: W | AG4: TH | AH4: F | AI4: M | AJ4: T | AK4: W | AL4: TH | AM4: F | AN4: M | AO4: T | AP4: W | AQ4: TH | AR4: F | AS4: M | AT4: T | AU4: W | AV4: TH | AW4: F | AX4: M | AY4: T | AZ4: W | BA4: TH | BB4: F | BC4: M | BD4: T | BE4: W | BF4: TH | BG4: F | BH4: M | BI4: T | BJ4: W | BK4: TH | BL4: F | BM4: M | BN4: T | BO4: W | BP4: TH | BQ4: F | BR4: M | BS4: T | BT4: W | BU4: TH | BV4: F | BW4: M | BX4: T | BY4: W | BZ4: TH | CA4: F | CB4: M | CC4: T | CD4: W | CE4: TH | CF4: F | CG4: M | CH4: T | CI4: W | CJ4: TH | CK4: F | CL4: M | CM4: T | CN4: W | CO4: TH | CP4: F | CQ4: M | CR4: T | CS4: W | CT4: TH | CU4: F | CV4: M | CW4: T | CX4: W | CY4: TH | CZ4: F | DA4: M | DB4: T | DC4: W | DD4: TH | DE4: F | DF4: M | DG4: T | DH4: W | DI4: TH | DJ4: F | DK4: M | DL4: T | DM4: W | DN4: TH | DO4: F | DP4: M | DQ4: T | DR4: W | DS4: TH | DT4: F | DU4: M | DV4: T | DW4: W | DX4: TH | DY4: F | DZ4: M | EA4: T | EB4: W | EC4: TH | ED4: F | EE4: M | EF4: T | EG4: W | EH4: TH | EI4: F | EJ4: M | EK4: T | EL4: W | EM4: TH | EN4: F | EO4: M | EP4: T | EQ4: W | ER4: TH | ES4: F | ET4: M | EU4: T | EV4: W | EW4: TH | EX4: F | EY4: M | EZ4: T | FA4: W | FB4: TH | FC4: F | FD4: M | FE4: T | FF4: W | FG4: TH | FH4: F | FI4: M | FJ4: T | FK4: W | FL4: TH | FM4: F | FN4: M | FO4: T | FP4: W | FQ4: TH | FR4: F | FW4: M | FX4: T | FY4: W | FZ4: TH | GA4: F | GB4: M | GC4: T | GD4: W | GE4: TH | GF4: F | GG4: M | GH4: T | GI4: W | GJ4: TH | GK4: F | GL4: M | GM4: T | GN4: W | GO4: TH | GP4: F | GQ4: M | GR4: T | GS4: W | GT4: TH | GU4: F | GV4: M | GW4: T | GX4: W | GY4: TH | GZ4: F | HA4: M | HB4: T | HC4: W | HD4: TH | HE4: F | HF4: M | HG4: T | HH4: W | HI4: TH | HJ4: F | HK4: M | HL4: T | HM4: W | HN4: TH | HO4: F | HP4: M | HQ4: T | HR4: W | HS4: TH | HT4: F | HU4: M | HV4: T | HW4: W | HX4: TH | HY4: F | HZ4: M | IA4: T | IB4: W | IC4: TH | ID4: F | IE4: M | IF4: T | IG4: W | IH4: TH | II4: F | IJ4: M | IK4: T | IL4: W | IM4: TH | IN4: F | IO4: M | IP4: T | IQ4: W | IR4: TH | IS4: F | IT4: M | IU4: T | IV4: W | IW4: TH | IX4: F | IY4: M | IZ4: T | JA4: W | JB4: TH | JC4: F | JD4: M | JE4: T | JF4: W | JG4: TH | JH4: F | JI4: M | JJ4: T | JK4: W | JL4: TH | JM4: F | JN4: M | JO4: T | JP4: W | JQ4: TH | JR4: F | JS4: M | JT4: T | JU4: W | JV4: TH | JW4: F | JX4: M | JY4: T | JZ4: W | KA4: TH | KB4: F | KC4: M | KD4: T | KE4: W | KF4: TH | KG4: F | KH4: M | KI4: T | KJ4: W | KK4: TH | KL4: F | KM4: M | KN4: T | KO4: W | KP4: TH | KQ4: F | KR4: M | KS4: T | KT4: W | KU4: TH | KV4: F | KW4: M | KX4: T | KY4: W | KZ4: TH | LA4: F | LB4: M | LC4: T | LD4: W | LE4: TH | LF4: F | LG4: M | LH4: T | LI4: W | LJ4: TH | LK4: F | LL4: M | LM4: T | LN4: W | LO4: TH | LP4: F | LQ4: M | LR4: T | LS4: W | LT4: TH | LU4: F | LV4: M | LW4: T | LX4: W | LY4: TH | LZ4: F | MA4: M | MB4: T | MC4: W | MD4: TH | ME4: F | MF4: M | MG4: T | MH4: W | MI4: TH | MJ4: F | MK4: M | ML4: T | MM4: W | MN4: TH | MO4: F | MP4: M | MQ4: T | MR4: W | MS4: TH | MT4: F | MU4: M | MV4: T | MW4: W | MX4: TH | MY4: F | MZ4: M | NA4: T | NB4: W | NC4: TH | ND4: F | NE4: M | NF4: T | NG4: W | NH4: TH | NI4: F | NJ4: M | NK4: T | NL4: W | NM4: TH | NN4: F | NO4: M | NP4: T | NQ4: W | NR4: TH | NS4: F | NT4: M | NU4: T | NV4: W | NW4: TH | NX4: F | NY4: M | NZ4: T | OA4: W | OB4: TH | OC4: F | OD4: M | OE4: T | OF4: W | OG4: TH | OH4: F | OI4: M | OJ4: T | OK4: W | OL4: TH | OM4: F | ON4: M | OO4: T | OP4: W | OQ4: TH | OR4: F | OS4: M | OT4: T | OU4: W | OV4: TH | OW4: F | OX4: M | OY4: T | OZ4: W | PA4: TH | PB4: F | PC4: M | PD4: T | PE4: W | PF4: TH | PG4: F | PH4: M | PI4: T | PJ4: W | PK4: TH | PL4: F | PM4: M | PN4: T | PO4: W | PP4: TH | PQ4: F | PR4: M | PS4: T | PT4: W | PU4: TH | PV4: F | PW4: M | PX4: T | PY4: W | PZ4: TH | QA4: F | QB4: M | QC4: T | QD4: W | QE4: =+IF($A$7="SW","TO","TH") -> TH | QF4: F | QG4: M | QH4: T | QI4: W | QJ4: =+IF($A$7="SW","TO","TH") -> TH | QK4: F | QL4: M | QM4: T | QN4: W | QO4: =+IF($A$7="SW","TO","TH") -> TH | QP4: F | QQ4: M | QR4: T | QS4: W | QT4: =+IF($A$7="SW","TO","TH") -> TH | QU4: F | QV4: M | QW4: T | QX4: W | QY4: =+IF($A$7="SW","TO","TH") -> TH | QZ4: F | RA4: M | RB4: T | RC4: W | RD4: =+IF($A$7="SW","TO","TH") -> TH | RE4: F | RF4: M | RG4: T | RH4: W | RI4: =+IF($A$7="SW","TO","TH") -> TH | RJ4: F | RK4: M | RL4: T | RM4: W | RN4: =+IF($A$7="SW","TO","TH") -> TH | RO4: F | RP4: M | RQ4: T | RR4: W | RS4: =+IF($A$7="SW","TO","TH") -> TH | RT4: F | RU4: M | RV4: T | RW4: W | RX4: =+IF($A$7="SW","TO","TH") -> TH | RY4: F | RZ4: M | SA4: T | SB4: W | SC4: =+IF($A$7="SW","TO","TH") -> TH | SD4: F | SE4: M | SF4: T | SG4: W | SH4: =+IF($A$7="SW","TO","TH") -> TH | SI4: F | SJ4: M | SK4: T | SL4: W | SM4: =+IF($A$7="SW","TO","TH") -> TH | SN4: F | SO4: M | SP4: T | SQ4: W | SR4: =+IF($A$7="SW","TO","TH") -> TH | SS4: F | ST4: M | SU4: T | SV4: W | SW4: =+IF($A$7="SW","TO","TH") -> TH | SX4: F | SY4: M | SZ4: T | TA4: W | TB4: =+IF($A$7="SW","TO","TH") -> TH | TC4: F | TD4: M | TE4: T | TF4: W | TG4: =+IF($A$7="SW","TO","TH") -> TH | TH4: F | TI4: M | TJ4: T | TK4: W | TL4: =+IF($A$7="SW","TO","TH") -> TH | TM4: F | TN4: M | TO4: T | TP4: W | TQ4: =+IF($A$7="SW","TO","TH") -> TH | TR4: F | TS4: M | TT4: T | TU4: W | TV4: =+IF($A$7="SW","TO","TH") -> TH | TW4: F | TX4: M | TY4: T | TZ4: W | UA4: =+IF($A$7="SW","TO","TH") -> TH | UB4: F | UC4: M | UD4: T | UE4: W | UF4: =+IF($A$7="SW","TO","TH") -> TH | UG4: F | UH4: M | UI4: T | UJ4: W | UK4: =+IF($A$7="SW","TO","TH") -> TH | UL4: F | UM4: M | UN4: T | UO4: W | UP4: =+IF($A$7="SW","TO","TH") -> TH | UQ4: F | UR4: M | US4: T | UT4: W | UU4: =+IF($A$7="SW","TO","TH") -> TH | UV4: F | UW4: M | UX4: T | UY4: W | UZ4: =+IF($A$7="SW","TO","TH") -> TH | VA4: F | VB4: M | VC4: T | VD4: W | VE4: =+IF($A$7="SW","TO","TH") -> TH | VF4: F | VG4: M | VH4: T | VI4: W | VJ4: =+IF($A$7="SW","TO","TH") -> TH | VK4: F | VL4: M | VM4: T | VN4: W | VO4: =+IF($A$7="SW","TO","TH") -> TH | VP4: F | VQ4: M | VR4: T | VS4: W | VT4: =+IF($A$7="SW","TO","TH") -> TH | VU4: F | VV4: M | VW4: T | VX4: W | VY4: =+IF($A$7="SW","TO","TH") -> TH | VZ4: F | WA4: M | WB4: T | WC4: W | WD4: =+IF($A$7="SW","TO","TH") -> TH | WE4: F | WF4: M | WG4: T | WH4: W | WI4: =+IF($A$7="SW","TO","TH") -> TH | WJ4: F | WK4: M | WL4: T | WM4: W | WN4: =+IF($A$7="SW","TO","TH") -> TH | WO4: F | WP4: M | WQ4: T | WR4: W | WS4: =+IF($A$7="SW","TO","TH") -> TH | WT4: F | WU4: M | WV4: T | WW4: W | WX4: =+IF($A$7="SW","TO","TH") -> TH | WY4: F | WZ4: M | XA4: T | XB4: W | XC4: =+IF($A$7="SW","TO","TH") -> TH | XD4: F | XE4: M | XF4: T | XG4: W | XH4: =+IF($A$7="SW","TO","TH") -> TH | XI4: F | XJ4: M | XK4: T | XL4: W | XM4: =+IF($A$7="SW","TO","TH") -> TH | XN4: F | XO4: M | XP4: T | XQ4: W | XR4: =+IF($A$7="SW","TO","TH") -> TH | XS4: F | XT4: M | XU4: T | XV4: W | XW4: =+IF($A$7="SW","TO","TH") -> TH | XX4: F | XY4: M | XZ4: T | YA4: W | YB4: =+IF($A$7="SW","TO","TH") -> TH | YC4: F | YD4: M | YE4: T | YF4: W | YG4: =+IF($A$7="SW","TO","TH") -> TH | YH4: F | YI4: M | YJ4: T | YK4: W | YL4: =+IF($A$7="SW","TO","TH") -> TH | YM4: F | YN4: M | YO4: T | YP4: W | YQ4: =+IF($A$7="SW","TO","TH") -> TH | YR4: F | YS4: M | YT4: T | YU4: W | YV4: =+IF($A$7="SW","TO","TH") -> TH | YW4: F | YX4: M | YY4: T | YZ4: W | ZA4: =+IF($A$7="SW","TO","TH") -> TH | ZB4: F | ZC4: M | ZD4: T | ZE4: W | ZF4: =+IF($A$7="SW","TO","TH") -> TH | ZG4: F | ZH4: M | ZI4: T | ZJ4: W | ZK4: =+IF($A$7="SW","TO","TH") -> TH | ZL4: F | ZM4: M | ZN4: T | ZO4: W | ZP4: =+IF($A$7="SW","TO","TH") -> TH | ZQ4: F | ZR4: M | ZS4: T | ZT4: W | ZU4: =+IF($A$7="SW","TO","TH") -> TH | ZV4: F | ZW4: M | ZX4: T | ZY4: W | ZZ4: =+IF($A$7="SW","TO","TH") -> TH | AAA4: F | AAB4: M | AAC4: T | AAD4: W | AAE4: =+IF($A$7="SW","TO","TH") -> TH | AAF4: F | AAG4: M | AAH4: T | AAI4: W | AAJ4: =+IF($A$7="SW","TO","TH") -> TH | AAK4: F | AAL4: M | AAM4: T | AAN4: W | AAO4: =+IF($A$7="SW","TO","TH") -> TH | AAP4: F | AAQ4: M | AAR4: T | AAS4: W | AAT4: =+IF($A$7="SW","TO","TH") -> TH | AAU4: F | AAV4: M | AAW4: T | AAX4: W | AAY4: =+IF($A$7="SW","TO","TH") -> TH | AAZ4: F | ABA4: M | ABB4: T | ABC4: W | ABD4: =+IF($A$7="SW","TO","TH") -> TH | ABE4: F | ABF4: M | ABG4: T | ABH4: W | ABI4: =+IF($A$7="SW","TO","TH") -> TH | ABJ4: F | ABK4: M | ABL4: T | ABM4: W | ABN4: =+IF($A$7="SW","TO","TH") -> TH | ABO4: F | ABP4: M | ABQ4: T | ABR4: W | ABS4: =+IF($A$7="SW","TO","TH") -> TH | ABT4: F | ABU4: M | ABV4: T | ABW4: W | ABX4: =+IF($A$7="SW","TO","TH") -> TH | ABY4: F | ABZ4: M | ACA4: T | ACB4: W | ACC4: =+IF($A$7="SW","TO","TH") -> TH | ACD4: F | ACE4: M | ACF4: T | ACG4: W | ACH4: =+IF($A$7="SW","TO","TH") -> TH | ACI4: F | ACJ4: M | ACK4: T | ACL4: W | ACM4: =+IF($A$7="SW","TO","TH") -> TH | ACN4: F | ACO4: M | ACP4: T | ACQ4: W | ACR4: =+IF($A$7="SW","TO","TH") -> TH | ACS4: F | ACT4: M | ACU4: T | ACV4: W | ACW4: =+IF($A$7="SW","TO","TH") -> TH | ACX4: F | ACY4: M | ACZ4: T | ADA4: W | ADB4: =+IF($A$7="SW","TO","TH") -> TH | ADC4: F | ADD4: M | ADE4: T | ADF4: W | ADG4: =+IF($A$7="SW","TO","TH") -> TH | ADH4: F | ADI4: M | ADJ4: T | ADK4: W | ADL4: =+IF($A$7="SW","TO","TH") -> TH | ADM4: F | ADN4: M | ADO4: T | ADP4: W | ADQ4: =+IF($A$7="SW","TO","TH") -> TH | ADR4: F | ADS4: M | ADT4: T | ADU4: W | ADV4: =+IF($A$7="SW","TO","TH") -> TH | ADW4: F | ADX4: M | ADY4: T | ADZ4: W | AEA4: =+IF($A$7="SW","TO","TH") -> TH | AEB4: F | AEC4: M | AED4: T | AEE4: W | AEF4: =+IF($A$7="SW","TO","TH") -> TH | AEG4: F | AEH4: M | AEI4: T | AEJ4: W | AEK4: =+IF($A$7="SW","TO","TH") -> TH | AEL4: F | AEM4: M | AEN4: T | AEO4: W | AEP4: =+IF($A$7="SW","TO","TH") -> TH | AEQ4: F | AER4: M | AES4: T | AET4: W | AEU4: =+IF($A$7="SW","TO","TH") -> TH | AEV4: F | AEW4: M | AEX4: T | AEY4: W | AEZ4: =+IF($A$7="SW","TO","TH") -> TH | AFA4: F | AFB4: M | AFC4: T | AFD4: W | AFE4: =+IF($A$7="SW","TO","TH") -> TH | AFF4: F | AFG4: M | AFH4: T | AFI4: W | AFJ4: =+IF($A$7="SW","TO","TH") -> TH | AFK4: F | AFL4: M | AFM4: T | AFN4: W | AFO4: =+IF($A$7="SW","TO","TH") -> TH | AFP4: F | AFQ4: M | AFR4: T | AFS4: W | AFT4: =+IF($A$7="SW","TO","TH") -> TH | AFU4: F | AFV4: M | AFW4: T | AFX4: W | AFY4: =+IF($A$7="SW","TO","TH") -> TH | AFZ4: F | AGA4: M | AGB4: T | AGC4: W | AGD4: =+IF($A$7="SW","TO","TH") -> TH | AGE4: F | AGF4: M | AGG4: T | AGH4: W | AGI4: =+IF($A$7="SW","TO","TH") -> TH | AGJ4: F | AGK4: M | AGL4: T | AGM4: W | AGN4: =+IF($A$7="SW","TO","TH") -> TH | AGO4: F | AGP4: M | AGQ4: T | AGR4: W | AGS4: =+IF($A$7="SW","TO","TH") -> TH | AGT4: F | AGU4: M | AGV4: T | AGW4: W | AGX4: =+IF($A$7="SW","TO","TH") -> TH | AGY4: F | AGZ4: M | AHA4: T | AHB4: W | AHC4: =+IF($A$7="SW","TO","TH") -> TH | AHD4: F | AHE4: M | AHF4: T | AHG4: W | AHH4: =+IF($A$7="SW","TO","TH") -> TH | AHI4: F | AHJ4: M | AHK4: T | AHL4: W | AHM4: =+IF($A$7="SW","TO","TH") -> TH | AHN4: F | AHO4: M | AHP4: T | AHQ4: W | AHR4: =+IF($A$7="SW","TO","TH") -> TH | AHS4: F | AHT4: M | AHU4: T | AHV4: W | AHW4: =+IF($A$7="SW","TO","TH") -> TH | AHX4: F | AHY4: M | AHZ4: T | AIA4: W | AIB4: =+IF($A$7="SW","TO","TH") -> TH | AIC4: F | AID4: M | AIE4: T | AIF4: W | AIG4: =+IF($A$7="SW","TO","TH") -> TH | AIH4: F | AII4: M | AIJ4: T | AIK4: W | AIL4: =+IF($A$7="SW","TO","TH") -> TH | AIM4: F | AIN4: M | AIO4: T | AIP4: W | AIQ4: =+IF($A$7="SW","TO","TH") -> TH | AIR4: F | AIS4: M | AIT4: T | AIU4: W | AIV4: =+IF($A$7="SW","TO","TH") -> TH | AIW4: F | AIX4: M | AIY4: T | AIZ4: W | AJA4: =+IF($A$7="SW","TO","TH") -> TH | AJB4: F | AJC4: M | AJD4: T | AJE4: W | AJF4: =+IF($A$7="SW","TO","TH") -> TH | AJG4: F | AJH4: M | AJI4: T | AJJ4: W | AJK4: =+IF($A$7="SW","TO","TH") -> TH | AJL4: F | AJM4: M | AJN4: T | AJO4: W | AJP4: =+IF($A$7="SW","TO","TH") -> TH | AJQ4: F | AJR4: M | AJS4: T | AJT4: W | AJU4: =+IF($A$7="SW","TO","TH") -> TH | AJV4: F | AJW4: M | AJX4: T | AJY4: W | AJZ4: =+IF($A$7="SW","TO","TH") -> TH | AKA4: F | AKB4: M | AKC4: T | AKD4: W | AKE4: =+IF($A$7="SW","TO","TH") -> TH | AKF4: F | AKG4: M | AKH4: T | AKI4: W | AKJ4: =+IF($A$7="SW","TO","TH") -> TH | AKK4: F | AKL4: M | AKM4: T | AKN4: W | AKO4: =+IF($A$7="SW","TO","TH") -> TH | AKP4: F | AKQ4: M | AKR4: T | AKS4: W | AKT4: =+IF($A$7="SW","TO","TH") -> TH | AKU4: F | AKV4: M | AKW4: T | AKX4: W | AKY4: =+IF($A$7="SW","TO","TH") -> TH | AKZ4: F | ALA4: M | ALB4: T | ALC4: W | ALD4: =+IF($A$7="SW","TO","TH") -> TH | ALE4: F | ALF4: M | ALG4: T | ALH4: W | ALI4: TH | ALJ4: F | ALK4: M | ALL4: T | ALM4: W | ALN4: TH | ALO4: F | ALP4: M | ALQ4: T | ALR4: W | ALS4: TH | ALT4: F | ALU4: M | ALV4: T | ALW4: W | ALX4: TH | ALY4: F | ALZ4: M | AMA4: T | AMB4: W | AMC4: TH | AMD4: F | AME4: M | AMF4: T | AMG4: W | AMH4: TH | AMI4: F | AMJ4: M | AMK4: T | AML4: W | AMM4: TH | AMN4: F | AMO4: M | AMP4: T | AMQ4: W | AMR4: TH | AMS4: F | AMT4: M | AMU4: T | AMV4: W | AMW4: TH | AMX4: F | AMY4: M | AMZ4: T | ANA4: W | ANB4: TH | ANC4: F | AND4: M | ANE4: T | ANF4: W | ANG4: TH | ANH4: F | ANI4: M | ANJ4: T | ANK4: W | ANL4: TH | ANM4: F | ANN4: M | ANO4: T | ANP4: W | ANQ4: TH | ANR4: F | ANS4: M | ANT4: T | ANU4: W | ANV4: TH | ANW4: F | ANX4: M | ANY4: T | ANZ4: W | AOA4: TH | AOB4: F | AOC4: M | AOD4: T | AOE4: W | AOF4: TH | AOG4: F | AOH4: M | AOI4: T | AOJ4: W | AOK4: TH | AOL4: F | AOM4: M | AON4: T | AOO4: W | AOP4: TH | AOQ4: F | AOR4: M | AOS4: T | AOT4: W | AOU4: TH | AOV4: F | AOW4: M | AOX4: T | AOY4: W | AOZ4: TH | APA4: F | APB4: M | APC4: T | APD4: W | APE4: TH | APF4: F | APG4: M | APH4: T | API4: W | APJ4: TH | APK4: F | APL4: M | APM4: T | APN4: W | APO4: TH | APP4: F | APQ4: M | APR4: T | APS4: W | APT4: TH | APU4: F | APV4: M | APW4: T | APX4: W | APY4: TH | APZ4: F | AQA4: M | AQB4: T | AQC4: W | AQD4: TH | AQE4: F | AQF4: M | AQG4: T | AQH4: W | AQI4: TH | AQJ4: F | AQK4: M | AQL4: T | AQM4: W | AQN4: TH | AQO4: F | AQP4: M | AQQ4: T | AQR4: W | AQS4: TH | AQT4: F | AQU4: M | AQV4: T | AQW4: W | AQX4: TH | AQY4: F | AQZ4: M | ARA4: T | ARB4: W | ARC4: TH | ARD4: F | ARE4: M | ARF4: T | ARG4: W | ARH4: TH | ARI4: F | ARJ4: M | ARK4: T | ARL4: W | ARM4: TH | ARN4: F | ARO4: M | ARP4: T | ARQ4: W | ARR4: TH | ARS4: F | ART4: M | ARU4: T | ARV4: W | ARW4: TH | ARX4: F | ARY4: M | ARZ4: T | ASA4: W | ASB4: TH | ASC4: F | ASD4: M | ASE4: T | ASF4: W | ASG4: TH | ASH4: F | ASI4: M | ASJ4: T | ASK4: W | ASL4: TH | ASM4: F | ASN4: M | ASO4: T | ASP4: W | ASQ4: TH | ASR4: F | ASS4: M | AST4: T | ASU4: W | ASV4: TH | ASW4: F | ASX4: M | ASY4: T | ASZ4: W | ATA4: TH | ATB4: F | ATC4: M | ATD4: T | ATE4: W | ATF4: TH | ATG4: F | ATH4: M | ATI4: T | ATJ4: W | ATK4: TH | ATL4: F | ATM4: M | ATN4: T | ATO4: W | ATP4: TH | ATQ4: F | ATR4: M | ATS4: T | ATT4: W | ATU4: TH | ATV4: F | ATW4: M | ATX4: T | ATY4: W | ATZ4: TH | AUA4: F
BC10: Zone 1 | BD10: 1 | BE10: 1 | BF10: 1 | BG10: 2 | BH10: 2 | BI10: 2 | BJ10: B | BK10: B | BL10: B | BM10: 3 | BN10: 3 | BO10: 3 | BP10: 4 | BQ10: 4 | BR10: 4 | BS10: 5 | BT10: 5 | BU10: 5 | BV10: 6 | BW10: 6 | BX10: 6 | BY10: 7 | BZ10: 7 | CA10: 7 | CB10: 8 | CC10: 8 | CD10: 8 | CE10: B | CF10: B | CG10: B | CH10: 9 | CI10: 9 | CJ10: 9 | CK10: 10 | CL10: 10 | CM10: 10 | CN10: B | CO10: B | CP10: B | CQ10: B | CR10: 11 | CS10: 11 | CT10: 11 | CU10: B | CV10: B | CW10: B | CX10: 12 | CY10: 12 | CZ10: 12 | DA10: 13 | DB10: 13 | DC10: 13 | DD10: 14 | DE10: 14 | DF10: 14 | DG10: 15 | DH10: 15 | DI10: 15
BF11: Zone 2 | BG11: 1 | BH11: 1 | BI11: 1 | BJ11: 2 | BK11: 2 | BL11: 2 | BM11: B | BN11: B | BO11: B | BP11: 3 | BQ11: 3 | BR11: 3 | BS11: 4 | BT11: 4 | BU11: 4 | BV11: 5 | BW11: 5 | BX11: 5 | BY11: 6 | BZ11: 6 | CA11: 6 | CB11: 7 | CC11: 7 | CD11: 7 | CE11: 8 | CF11: 8 | CG11: 8 | CH11: B | CI11: B | CJ11: B | CK11: 9 | CL11: 9 | CM11: 9 | CN11: B | CO11: B | CP11: B | CQ11: B | CR11: 10 | CS11: 10 | CT11: 10 | CU11: 11 | CV11: 11 | CW11: 11 | CX11: B | CY11: B | CZ11: B | DA11: 12 | DB11: 12 | DC11: 12 | DD11: 13 | DE11: 13 | DF11: 13 | DG11: 14 | DH11: 14 | DI11: 14 | DJ11: B | DK11: B | DL11: B | DM11: B | DN11: 15 | DO11: 15 | DP11: 15
AI12: 1 | AJ12: Remove re-shores, Floor Prep, Final Patch Ceiling & Layout Walls | BC12: Remove Reshores | BI12: Zone 3 | BJ12: 1 | BK12: 1 | BL12: 1 | BM12: 2 | BN12: 2 | BO12: 2 | BP12: B | BQ12: B | BR12: B | BS12: 3 | BT12: 3 | BU12: 3 | BV12: 4 | BW12: 4 | BX12: 4 | BY12: 5 | BZ12: 5 | CA12: 5 | CB12: 6 | CC12: 6 | CD12: 6 | CE12: 7 | CF12: 7 | CG12: 7 | CH12: 8 | CI12: 8 | CJ12: 8 | CK12: B | CL12: B | CM12: B | CN12: B | CO12: B | CP12: B | CQ12: B | CR12: 9 | CS12: 9 | CT12: 9 | CU12: 10 | CV12: 10 | CW12: 10 | CX12: 11 | CY12: 11 | CZ12: 11 | DA12: B | DB12: B | DC12: B | DD12: 12 | DE12: 12 | DF12: 12 | DG12: 13 | DH12: 13 | DI12: 13 | DJ12: B | DK12: B | DL12: B | DM12: B | DN12: 14 | DO12: 14 | DP12: 14 | DQ12: 15 | DR12: 15 | DS12: 15
AI13: 2 | AJ13: Install Fire Sprinkler Main and Branch Lines & Install Priority Walls | BL13: Zone 4 | BM13: 1 | BN13: 1 | BO13: 1 | BP13: 2 | BQ13: 2 | BR13: 2 | BS13: B | BT13: B | BU13: B | BV13: 3 | BW13: 3 | BX13: 3 | BY13: 4 | BZ13: 4 | CA13: 4 | CB13: 5 | CC13: 5 | CD13: 5 | CE13: 6 | CF13: 6 | CG13: 6 | CH13: 7 | CI13: 7 | CJ13: 7 | CK13: 8 | CL13: 8 | CM13: 8 | CN13: B | CO13: B | CP13: B | CQ13: B | CR13: B | CS13: B | CT13: B | CU13: 9 | CV13: 9 | CW13: 9 | CX13: 10 | CY13: 10 | CZ13: 10 | DA13: 11 | DB13: 11 | DC13: 11 | DD13: B | DE13: B | DF13: B | DG13: 12 | DH13: 12 | DI13: 12 | DJ13: B | DK13: B | DL13: B | DM13: B | DN13: 13 | DO13: 13 | DP13: 13 | DQ13: 14 | DR13: 14 | DS13: 14 | DT13: 15 | DU13: 15 | DV13: 15
AI14: 3 | AJ14: OH Mechanical | BO14: Zone 5 | BP14: 1 | BQ14: 1 | BR14: 1 | BS14: 2 | BT14: 2 | BU14: 2 | BV14: B | BW14: B | BX14: B | BY14: 3 | BZ14: 3 | CA14: 3 | CB14: 4 | CC14: 4 | CD14: 4 | CE14: 5 | CF14: 5 | CG14: 5 | CH14: 6 | CI14: 6 | CJ14: 6 | CK14: 7 | CL14: 7 | CM14: 7 | CN14: B | CO14: B | CP14: B | CQ14: B | CR14: 8 | CS14: 8 | CT14: 8 | CU14: B | CV14: B | CW14: B | CX14: 9 | CY14: 9 | CZ14: 9 | DA14: 10 | DB14: 10 | DC14: 10 | DD14: 11 | DE14: 11 | DF14: 11 | DG14: B | DH14: B | DI14: B | DJ14: B | DK14: B | DL14: B | DM14: B | DN14: 12 | DO14: 12 | DP14: 12 | DQ14: 13 | DR14: 13 | DS14: 13 | DT14: 14 | DU14: 14 | DV14: 14 | DW14: 15 | DX14: 15 | DY14: 15
AI15: 4 | AJ15: OH Mechanical, OH Plumbing | BR15: Zone 6 | BS15: 1 | BT15: 1 | BU15: 1 | BV15: 2 | BW15: 2 | BX15: 2 | BY15: B | BZ15: B | CA15: B | CB15: 3 | CC15: 3 | CD15: 3 | CE15: 4 | CF15: 4 | CG15: 4 | CH15: 5 | CI15: 5 | CJ15: 5 | CK15: 6 | CL15: 6 | CM15: 6 | CN15: B | CO15: B | CP15: B | CQ15: B | CR15: 7 | CS15: 7 | CT15: 7 | CU15: 8 | CV15: 8 | CW15: 8 | CX15: B | CY15: B | CZ15: B | DA15: 9 | DB15: 9 | DC15: 9 | DD15: 10 | DE15: 10 | DF15: 10 | DG15: 11 | DH15: 11 | DI15: 11 | DJ15: B | DK15: B | DL15: B | DM15: B | DN15: B | DO15: B | DP15: B | DQ15: 12 | DR15: 12 | DS15: 12 | DT15: 13 | DU15: 13 | DV15: 13 | DW15: 14 | DX15: 14 | DY15: 14 | DZ15: 15 | EA15: 15 | EB15: 15
AI16: 5 | AJ16: OH Electrical & Frame Walls | BU16: Zone 7 | BV16: 1 | BW16: 1 | BX16: 1 | BY16: 2 | BZ16: 2 | CA16: 2 | CB16: B | CC16: B | CD16: B | CE16: 3 | CF16: 3 | CG16: 3 | CH16: 4 | CI16: 4 | CJ16: 4 | CK16: 5 | CL16: 5 | CM16: 5 | CN16: B | CO16: B | CP16: B | CQ16: B | CR16: 6 | CS16: 6 | CT16: 6 | CU16: 7 | CV16: 7 | CW16: 7 | CX16: 8 | CY16: 8 | CZ16: 8 | DA16: B | DB16: B | DC16: B | DD16: 9 | DE16: 9 | DF16: 9 | DG16: 10 | DH16: 10 | DI16: 10 | DJ16: B | DK16: B | DL16: B | DM16: B | DN16: 11 | DO16: 11 | DP16: 11 | DQ16: B | DR16: B | DS16: B | DT16: 12 | DU16: 12 | DV16: 12 | DW16: 13 | DX16: 13 | DY16: 13 | DZ16: 14 | EA16: 14 | EB16: 14 | EC16: 15 | ED16: 15 | EE16: 15
AI17: 6 | AJ17: In-wall Electrical & Plumbing | BX17: Zone 8 | BY17: 1 | BZ17: 1 | CA17: 1 | CB17: 2 | CC17: 2 | CD17: 2 | CE17: B | CF17: B | CG17: B | CH17: 3 | CI17: 3 | CJ17: 3 | CK17: 4 | CL17: 4 | CM17: 4 | CN17: B | CO17: B | CP17: B | CQ17: B | CR17: 5 | CS17: 5 | CT17: 5 | CU17: 6 | CV17: 6 | CW17: 6 | CX17: 7 | CY17: 7 | CZ17: 7 | DA17: 8 | DB17: 8 | DC17: 8 | DD17: B | DE17: B | DF17: B | DG17: 9 | DH17: 9 | DI17: 9 | DJ17: B | DK17: B | DL17: B | DM17: B | DN17: 10 | DO17: 10 | DP17: 10 | DQ17: 11 | DR17: 11 | DS17: 11 | DT17: B | DU17: B | DV17: B | DW17: 12 | DX17: 12 | DY17: 12 | DZ17: 13 | EA17: 13 | EB17: 13 | EC17: 14 | ED17: 14 | EE17: 14 | EF17: 15 | EG17: 15 | EH17: 15
AI18: 7 | AJ18: In-wall Piping, One-side Dry Wall & In-wall Inspection | CA18: Zone 9 | CB18: 1 | CC18: 1 | CD18: 1 | CE18: 2 | CF18: 2 | CG18: 2 | CH18: B | CI18: B | CJ18: B | CK18: 3 | CL18: 3 | CM18: 3 | CN18: B | CO18: B | CP18: B | CQ18: B | CR18: 4 | CS18: 4 | CT18: 4 | CU18: 5 | CV18: 5 | CW18: 5 | CX18: 6 | CY18: 6 | CZ18: 6 | DA18: 7 | DB18: 7 | DC18: 7 | DD18: 8 | DE18: 8 | DF18: 8 | DG18: B | DH18: B | DI18: B | DJ18: B | DK18: B | DL18: B | DM18: B | DN18: 9 | DO18: 9 | DP18: 9 | DQ18: 10 | DR18: 10 | DS18: 10 | DT18: 11 | DU18: 11 | DV18: 11 | DW18: B | DX18: B | DY18: B | DZ18: 12 | EA18: 12 | EB18: 12 | EC18: 13 | ED18: 13 | EE18: 13 | EF18: 14 | EG18: 14 | EH18: 14 | EI18: 15 | EJ18: 15 | EK18: 15
AI19: 8 | AJ19: Second Side Dry Wall, Insulation & Finish Walls | CD19: Zone 10 | CE19: 1 | CF19: 1 | CG19: 1 | CH19: 2 | CI19: 2 | CJ19: 2 | CK19: B | CL19: B | CM19: B | CN19: B | CO19: B | CP19: B | CQ19: B | CR19: 3 | CS19: 3 | CT19: 3 | CU19: 4 | CV19: 4 | CW19: 4 | CX19: 5 | CY19: 5 | CZ19: 5 | DA19: 6 | DB19: 6 | DC19: 6 | DD19: 7 | DE19: 7 | DF19: 7 | DG19: 8 | DH19: 8 | DI19: 8 | DJ19: B | DK19: B | DL19: B | DM19: B | DN19: B | DO19: B | DP19: B | DQ19: 9 | DR19: 9 | DS19: 9 | DT19: 10 | DU19: 10 | DV19: 10 | DW19: 11 | DX19: 11 | DY19: 11 | DZ19: B | EA19: B | EB19: B | EC19: 12 | ED19: 12 | EE19: 12 | EF19: 13 | EG19: 13 | EH19: 13 | EI19: 14 | EJ19: 14 | EK19: 14 | EL19: 15 | EM19: 15 | EN19: 15
AI20: 9 | AJ20: Prime 1st & 2nd Coat Paint | CG20: Zone 11 | CH20: 1 | CI20: 1 | CJ20: 1 | CK20: 2 | CL20: 2 | CM20: 2 | CN20: B | CO20: B | CP20: B | CQ20: B | CR20: B | CS20: B | CT20: B | CU20: 3 | CV20: 3 | CW20: 3 | CX20: 4 | CY20: 4 | CZ20: 4 | DA20: 5 | DB20: 5 | DC20: 5 | DD20: 6 | DE20: 6 | DF20: 6 | DG20: 7 | DH20: 7 | DI20: 7 | DJ20: B | DK20: B | DL20: B | DM20: B | DN20: 8 | DO20: 8 | DP20: 8 | DQ20: B | DR20: B | DS20: B | DT20: 9 | DU20: 9 | DV20: 9 | DW20: 10 | DX20: 10 | DY20: 10 | DZ20: 11 | EA20: 11 | EB20: 11 | EC20: B | ED20: B | EE20: B | EF20: 12 | EG20: 12 | EH20: 12 | EI20: 13 | EJ20: 13 | EK20: 13 | EL20: 14 | EM20: 14 | EN20: 14 | EO20: 15 | EP20: 15 | EQ20: 15 | ER20: B | ES20: B | ET20: B | EU20: B | EV20: B | EW20: B | EX20: B | EY20: B | EZ20: B | FA20: B | FB20: B | FC20: B | FD20: B | FE20: B | FF20: B | FG20: B | FH20: B | FI20: B
AI21: 10 | AJ21: Ceiling Grid, Lights, Electrical Fixtures & Mechanical Ceiling Drops | CV21: Start Drywall | DB21: Power On | EC21: Air On | EH21: Fianal Clean | ES21: Additional Buffer or Time Gained | FJ21: Contractual Substantial Completion and Financial Target
AI22: 11 | AJ22: Casework & Final Pain (Possible) | ET22: Target Substantial Completion | EZ22: Target Final Completion
AI23: 12 | AJ23: Millwork, Plumbing, Wall and Casework, Ceiling Tiles | BM23: Erect Stair
AI24: 13 | AJ24: Flooring | BQ24: Pour Stair Pans
AI25: 14 | AJ25: Final Paint, Final Clean 1st Pass & Incomplete Worklist | BV25: Erect Stair
AI26: 15 | AJ26: Arch Punchlist, Corrections & Final Clean | BZ26: Pour Stair Pans
CV30: Temp Roof | DA30: Install Swing Stages
DE31: Set AHU & Install
DL32: Zone 1-4
AJ33: Weather Risk | AR33: 3 | DR33: Zone 5-8
AJ34: Manpower not available | AR34: 5 | DX34: Zone 9-11
AJ35: Procurement Issues | AR35: 5 | DX35: B | DY35: B | DZ35: B | EA35: B | EB35: B
AJ36: Shortage in crew | AR36: 2
AJ37: Contractor labor not ready | AR37: 8 | BY37: Shaft Prep
AJ38: Higher risk | AR38: =+MAX(AR33:AR37) -> 8 | CC38: Elevator Cabs
DA39: Test + Certification
DD41: Pre-Functional Checklists
DR42: Controls
DW43: TAB
EF44: Commissioning
EI45: Fire Life Safety
EM46: Final Walks

Sheet Legend (hidden)
F2: NORM LEGEND
A3: Code | B3: Phase | C3: Trade Partner | D3: Description
A4: 1H | B4: Beginning Sitework Work | C4: Earthwork | D4: Excavation/Grading
A5: 1I | B5: Beginning Sitework Work | C5: Utilities | D5: Install Storm/Sanitary/Water/Dry U.G. Utilities | G5: BEGINNING SITEWORK WORK | X5: EXTERIOR LEGEND
A6: 1J | B6: Beginning Sitework Work | C6: Earthwork | D6: Parking Area Base Stone | G6: 1H | H6: Excavation/Grading | X6: A | Y6: Structural Steel Supports
A7: 1K | B7: Beginning Sitework Work | C7: Earthwork | D7: Final Grading | G7: 1I | H7: Install Storm/Sanitary/Water/Dry U.G. Utilities | X7: B | Y7: Framing & Sheathing
A8: F1 | B8: Foundation | C8: Concrete | D8: Excavate & Pour Footings | G8: 1J | H8: Parking Area Base Stone | X8: C | Y8: EIFS
A9: F2 | B9: Foundation | C9: Concrete | D9: Columns & Walls | G9: 1K | H9: Final Grading | X9: D | Y9: Window Installation
A10: F3 | B10: Foundation | C10: MEP | D10: UG MEP | X10: E | Y10: Final Caulking & Finishes
A11: F4 | B11: Foundation | C11: Concrete | D11: SOG | X11: F | Y11: Shade Structure
A12: B | B12: Foundation | C12: TBD | D12: Buffer
A13: S1 | B13: Structure | C13: Concrete | D13: Deck Formwork | G13: FOUNDATION LEGEND
A14: S2 | B14: Structure | C14: MEP | D14: Deck MEP & Reinforcing | G14: F1 | H14: Excavate & Pour Footings
A15: S3 | B15: Structure | C15: Inspector | D15: Deck Inspections & Place | G15: F2 | H15: Columns & Walls
A16: S4 | B16: Structure | C16: Concrete | D16: Columns & Walls | G16: F3 | H16: UG MEP | X16: FINISHING SITEWORK LEGEND
A17: S5 | B17: Stairs & Elevator | C17: Stairs | D17: Erect Stair | G17: F4 | H17: SOG | X17: 1 | Y17: Site Demoblization
A18: C | B18: Stairs & Elevator | C18: Concrete | D18: Pour Concrete | G18: B. | H18: Buffer | X18: 2 | Y18: UG Electrical
A19: S6 | B19: Stairs & Elevator | C19: Concrete | D19: Shaft Prep | X19: 3 | Y19: Rough Grading
A20: S7 | B20: Stairs & Elevator | C20: Elevator | D20: Elevator Cabs | X20: 4 | Y20: Hardscaping
A21: S8 | B21: Stairs & Elevator | C21: Elevator | D21: Certification | X21: 5 | Y21: Trees & Irrigation
A22: S9 | B22: Stairs & Elevator | C22: Elevator | D22: Comeback Areas for Elevator | G22: INTERIOR LEGEND | X22: 6 | Y22: Landscaping
A23: 1 | B23: Interiors | C23: Flooring | D23: Remove Reshores, Floor Prep & Wall Layout | G23: 1 | H23: Remove Reshores, Floor Prep & Wall Layout | X23: 7 | Y23: Paving
A24: 2 | B24: Interiors | C24: Sprinkler | D24: Fire Sprinkler & Install Walls | G24: 2 | H24: Fire Sprinkler & Install Walls | X24: 8 | Y24: Site Finishes
A25: 3 | B25: Interiors | C25: Mechanical | D25: OH Mechanical Duct | G25: 3 | H25: OH Mechanical Duct
A26: 4 | B26: Interiors | C26: Mechanical | D26: OH Mech Equip, Piping, Branch Lines & Plumbing | G26: 4 | H26: OH Mech Equip, Piping, Branch Lines & Plumbing
A27: 5 | B27: Interiors | C27: Electrical | D27: OH Electrical & Frame Walls | G27: 5 | H27: OH Electrical & Frame Walls
A28: 6 | B28: Interiors | C28: Electrical | D28: Frame Walls, Install In-wall Electrical & Plumbing | G28: 6 | H28: Frame Walls, Install In-wall Electrical & Plumbing | X28: STRUCTURE LEGEND
A29: 7 | B29: Interiors | C29: Plumbing | D29: In-wall Process Piping, 1st Drywall, Insulation & Insp | G29: 7 | H29: In-wall Process Piping, 1st Drywall, Insulation & Insp | X29: S1 | Y29: Deck Formwork
A30: 8 | B30: Interiors | C30: Painting | D30: Finish Walls & Painting | G30: 8 | H30: Finish Walls & Painting | X30: S2 | Y30: Deck MEP & Reinforcing
A31: 9 | B31: Interiors | C31: Electrical | D31: Painting & Install Ceiling Grid | G31: 9 | H31: Painting & Install Ceiling Grid | X31: S3 | Y31: Deck Inspections & Place
A32: 10 | B32: Interiors | C32: Drywall | D32: Install Electrical Fixtures & Mech Ceiling Drops | G32: 10 | H32: Install Electrical Fixtures & Mech Ceiling Drops | X32: S4 | Y32: Columns & Walls
A33: 11 | B33: Interiors | C33: Mechanical | D33: Remaining Ceiling Drops & Install Casework | G33: 11 | H33: Remaining Ceiling Drops & Install Casework
A34: 12 | B34: Interiors | C34: Countertops | D34: Countertops, Millwork & Final Paint | G34: 12 | H34: Countertops, Millwork & Final Paint
A35: 13 | B35: Interiors | C35: Electrical & Flooring | D35: Wall & Casework Fixtures, Ceiling Tiles & Flooring | G35: 13 | H35: Wall & Casework Fixtures, Ceiling Tiles & Flooring
A36: 14 | B36: Interiors | C36: Flooring & Painting | D36: Flooring, Final Paint & 1st Clean | G36: 14 | H36: Flooring, Final Paint & 1st Clean
A37: 15 | B37: Interiors | C37: Contruction Company | D37: Punchlist, Corrections & Final Clean | G37: 15 | H37: Punchlist, Corrections & Final Clean
A38: 16 | B38: Commissioning | C38: HVAC | D38: Set AHU
A39: 17 | B39: Commissioning | C39: HVAC | D39: Mechanical Installation
A40: 18 | B40: Commissioning | C40: HVAC | D40: Controls
A41: 19 | B41: Commissioning | C41: HVAC | D41: Point to Point
A42: 20 | B42: Commissioning | C42: HVAC | D42: Mech Startup
A43: 21 | B43: Commissioning | C43: HVAC | D43: Pre-functional Checklists
A44: 22 | B44: Commissioning | C44: HVAC | D44: Controls
A45: 23 | B45: Commissioning | C45: HVAC | D45: TAB
A46: 24 | B46: Commissioning | C46: HVAC | D46: Cx + FA Testing
A47: 25 | B47: Commissioning | C47: HVAC | D47: LS/ FA Testing
A48: 26 | B48: Commissioning | C48: HVAC | D48: Functional Performance Testing
A49: A | B49: Exteriors | C49: Steel | D49: Structural Steel Supports
A50: B | B50: Exteriors | C50: Framer | D50: Framing & Sheathing
A51: C | B51: Exteriors | C51: Exterior | D51: EIFS
A52: D | B52: Exteriors | C52: Exterior | D52: Window Installation
A53: E | B53: Exteriors | C53: Exterior | D53: Final Caulking & Finishes
A54: F | B54: Exteriors | C54: Exterior | D54: Shade Structure
A55: 1 | B55: Finishing Sitework | C55: Sitework | D55: Site Demoblization
A56: 2 | B56: Finishing Sitework | C56: Electrical | D56: UG Electrical
A57: 3 | B57: Finishing Sitework | C57: Sitework | D57: Rough Grading
A58: 4 | B58: Finishing Sitework | C58: Sitework | D58: Hardscaping
A59: 5 | B59: Finishing Sitework | C59: Landscaping | D59: Trees & Irrigation
A60: 6 | B60: Finishing Sitework | C60: Landscaping | D60: Landscaping
A61: 7 | B61: Finishing Sitework | C61: Paving | D61: Paving
A62: 8 | B62: Finishing Sitework | C62: Sitework | D62: Site Finishes
